Workbook

Sheet Inputs
A1: Linear units Sizing & selection | I1: 2018 JHj, TS, ASc Release 15 | L1: This side of blue line is for calculations. And is not Input or output | W1: =MATCH(W2,MasterData!1:1,0) -> 2 | X1: =MATCH(X2,MasterData!1:1,0) -> 3 | Y1: =MATCH(Y2,MasterData!1:1,0) -> 4 | Z1: =MATCH(Z2,MasterData!1:1,0) -> 5 | AA1: =MATCH(AA2,MasterData!1:1,0) -> 6 | AB1: =MATCH(AB2,MasterData!1:1,0) -> 7 | AC1: =MATCH(AC2,MasterData!1:1,0) -> 8 | AD1: =MATCH(AD2,MasterData!1:1,0) -> 9 | AE1: =MATCH(AE2,MasterData!1:1,0) -> 10 | AF1: =MATCH(AF2,MasterData!1:1,0) -> 11 | AG1: =MATCH(AG2,MasterData!1:1,0) -> 12 | AH1: =MATCH(AH2,MasterData!1:1,0) -> 13 | AI1: =MATCH(AI2,MasterData!1:1,0) -> 14 | AJ1: =MATCH(AJ2,MasterData!1:1,0) -> 15 | AK1: =MATCH(AK2,MasterData!1:1,0) -> 16 | AL1: =MATCH(AL2,MasterData!1:1,0) -> 17 | AM1: =MATCH(AM2,MasterData!1:1,0) -> 18 | AN1: =MATCH(AN2,MasterData!1:1,0) -> 19 | AO1: =MATCH(AO2,MasterData!1:1,0) -> 20 | AP1: =MATCH(AP2,MasterData!1:1,0) -> 21 | AQ1: =MATCH(AQ2,MasterData!1:1,0) -> 22 | AR1: =MATCH(AR2,MasterData!1:1,0) -> 23 | AS1: =MATCH(AS2,MasterData!1:1,0) -> 24 | AT1: =MATCH(AT2,MasterData!1:1,0) -> 25 | AU1: =MATCH(AU2,MasterData!1:1,0) -> 26 | AV1: =MATCH(AV2,MasterData!1:1,0) -> 27 | AW1: =MATCH(AW2,MasterData!1:1,0) -> 28 | AX1: =MATCH(AX2,MasterData!1:1,0) -> 29 | AY1: =MATCH(AY2,MasterData!1:1,0) -> 30 | AZ1: =MATCH(AZ2,MasterData!1:1,0) -> 31 | BA1: =MATCH(BA2,MasterData!1:1,0) -> 32 | BB1: =MATCH(BB2,MasterData!1:1,0) -> 33 | BC1: =MATCH(BC2,MasterData!1:1,0) -> 34 | BD1: =MATCH(BD2,MasterData!1:1,0) -> 35 | BE1: =MATCH(BE2,MasterData!1:1,0) -> 36 | BF1: =MATCH(BF2,MasterData!1:1,0) -> 37 | BG1: =MATCH(BG2,MasterData!1:1,0) -> 38 | BH1: =MATCH(BH2,MasterData!1:1,0) -> 39 | BI1: =MATCH(BI2,MasterData!1:1,0) -> 40 | BJ1: =MATCH(BJ2,MasterData!1:1,0) -> 41 | BK1: =MATCH(BK2,MasterData!1:1,0) -> 42 | BL1: =MATCH(BL2,MasterData!1:1,0) -> 43 | BM1: =MATCH(BM2,MasterData!1:1,0) -> 44 | BN1: =MATCH(BN2,MasterData!1:1,0) -> 45 | BO1: =MATCH(BO2,MasterData!1:1,0) -> 46 | BP1: =MATCH(BP2,MasterData!1:1,0) -> 47 | BQ1: =MATCH(BQ2,MasterData!1:1,0) -> 48 | BR1: =MATCH(BR2,MasterData!1:1,0) -> 49 | BS1: =MATCH(BS2,MasterData!1:1,0) -> 50 | BT1: =MATCH(BT2,MasterData!1:1,0) -> 51 | BU1: =MATCH(BU2,MasterData!1:1,0) -> 52 | BV1: =MATCH(BV2,MasterData!1:1,0) -> 53 | BW1: =MATCH(BW2,MasterData!1:1,0) -> 54 | BX1: =MATCH(BX2,MasterData!1:1,0) -> 55 | BY1: =MATCH(BY2,MasterData!1:1,0) -> 56 | BZ1: =MATCH(BZ2,MasterData!1:1,0) -> 57 | CA1: =MATCH(CA2,MasterData!1:1,0) -> 58 | CB1: =MATCH(CB2,MasterData!1:1,0) -> 59 | CC1: =MATCH(CC2,MasterData!1:1,0) -> 60 | CD1: =MATCH(CD2,MasterData!1:1,0) -> 61 | CE1: =MATCH(CE2,MasterData!1:1,0) -> 62 | CF1: =MATCH(CF2,MasterData!1:1,0) -> 63 | CG1: =MATCH(CG2,MasterData!1:1,0) -> 64 | CH1: =MATCH(CH2,MasterData!1:1,0) -> 65 | CI1: =MATCH(CI2,MasterData!1:1,0) -> 66 | CJ1: =MATCH(CJ2,MasterData!1:1,0) -> 67 | CK1: =MATCH(CK2,MasterData!1:1,0) -> 68 | CL1: =MATCH(CL2,MasterData!1:1,0) -> 69 | CM1: =MATCH(CM2,MasterData!1:1,0) -> 70 | CN1: =MATCH(CN2,MasterData!1:1,0) -> 71 | CO1: =MATCH(CO2,MasterData!1:1,0) -> 72 | CP1: =MATCH(CP2,MasterData!1:1,0) -> 73 | CQ1: =MATCH(CQ2,MasterData!1:1,0) -> 74 | CR1: =MATCH(CR2,MasterData!1:1,0) -> 75 | CS1: =MATCH(CS2,MasterData!1:1,0) -> 76 | CT1: =MATCH(CT2,MasterData!1:1,0) -> 77 | CU1: =MATCH(CU2,MasterData!1:1,0) -> 78 | CV1: =MATCH(CV2,MasterData!1:1,0) -> 79 | CW1: =MATCH(CW2,MasterData!1:1,0) -> 80 | CX1: =MATCH(CX2,MasterData!1:1,0) -> 81 | CY1: =MATCH(CY2,MasterData!1:1,0) -> 82 | CZ1: =MATCH(CZ2,MasterData!1:1,0) -> 83 | DA1: =MATCH(DA2,MasterData!1:1,0) -> 84 | DB1: =MATCH(DB2,MasterData!1:1,0) -> 85 | DC1: =MATCH(DC2,MasterData!1:1,0) -> 86 | DD1: =MATCH(DD2,MasterData!1:1,0) -> 87 | DE1: =MATCH(DE2,MasterData!1:1,0) -> 88 | DF1: =MATCH(DF2,MasterData!1:1,0) -> 89 | DG1: =MATCH(DG2,MasterData!1:1,0) -> 90 | DH1: =MATCH(DH2,MasterData!1:1,0) -> 91 | DI1: =MATCH(DI2,MasterData!1:1,0) -> 92 | DJ1: =MATCH(DJ2,MasterData!1:1,0) -> 93 | DK1: =MATCH(DK2,MasterData!1:1,0) -> 94 | DL1: =MATCH(DL2,MasterData!1:1,0) -> 95 | DM1: =MATCH(DM2,MasterData!1:1,0) -> 96 | DN1: =MATCH(DN2,MasterData!1:1,0) -> 97 | DO1: =MATCH(DO2,MasterData!1:1,0) -> 98 | DP1: =MATCH(DP2,MasterData!1:1,0) -> 99 | DQ1: =MATCH(DQ2,MasterData!1:1,0) -> 100 | DR1: =MATCH(DR2,MasterData!1:1,0) -> 101 | DS1: =MATCH(DS2,MasterData!1:1,0) -> 102 | DT1: =MATCH(DT2,MasterData!1:1,0) -> 103 | DU1: =MATCH(DU2,MasterData!1:1,0) -> 104 | DV1: =MATCH(DV2,MasterData!1:1,0) -> 105 | DW1: =MATCH(DW2,MasterData!1:1,0) -> 106 | DX1: =MATCH(DX2,MasterData!1:1,0) -> 107 | DY1: =MATCH(DY2,MasterData!1:1,0) -> 108 | DZ1: =MATCH(DZ2,MasterData!1:1,0) -> 119 | EA1: =MATCH(EA2,MasterData!1:1,0) -> 118 | EB1: =MATCH(EB2,MasterData!1:1,0) -> 112 | EC1: =MATCH(EC2,MasterData!1:1,0) -> 113 | ED1: =MATCH(ED2,MasterData!1:1,0) -> 114 | EE1: =MATCH(EE2,MasterData!1:1,0) -> 115
U2: =IF(OR(C8="MF",C8="MG"),U5,IF(OR(C8="2HB",C8="2DB",C8="2RB",C8="MS"),U7,U6)) -> MF10S10Z_D | V2: Slide_Type_Size | W2: Actuation | X2: Guide_Type | Y2: Stroke_Max_mm | Z2: Carr_mass_individual | AA2: Mass_Screw_Support | AB2: zero_Stroke_Mass | AC2: Mass_per_100mm | AD2: Lx_carr | AE2: Ly_carr | AF2: Lz_carr | AG2: Inertia_coupling | AH2: Screw_Belt_Efficency | AI2: Idle_SP_1 | AJ2: Idle_SP_2 | AK2: Idle_SP_3 | AL2: idle_T1 | AM2: idle_T2 | AN2: idle_T3 | AO2: Friction_Carr | AP2: Friction_factor | AQ2: Fx_max_speed(0) | AR2: Fx_max_speed(1) | AS2: Fx_max_speed(2) | AT2: Fx_max_B(0) | AU2: Fx_max_B(1) | AV2: Fx_max_B(2) | AW2: Fx_max_M(0) | AX2: Fx_max_M(1) | AY2: Fx_max_M(2) | AZ2: Fy_max_individual | BA2: Fz_max_individual | BB2: Mx_max_individual | BC2: My_max_individual | BD2: Mz_max_individual | BE2: My_max_z_fact | BF2: Mz_max_z_fact | BG2: Speed_max | BH2: Accel_max | BI2: Carr_Qty | BJ2: Carr_dyn_C_each | BK2: PL_Carr | BL2: TR_dyn_C | BM2: TR_dia | BN2: Pl_Wheel | BO2: x_R_great_A | BP2: x_R_less_A | BQ2: y_R_great_A | BR2: y_R_less_A | BS2: Belt_pretension | BT2: Belt_mass | BU2: DS_dyn_C | BV2: TS_dyn_C | BW2: DS_dia | BX2: TS_dia | BY2: DS_width(mm) | BZ2: TS_width(mm) | CA2: Offset_Endcaps | CB2: Stroke_Offset(0) | CC2: Stroke_Offset(1) | CD2: Stroke_Offset(2) | CE2: Stroke_Offset(3) | CF2: Stroke_Offset(4) | CG2: Stroke_Offset(5) | CH2: Stroke_Offset(6) | CI2: Stroke_Offset(7) | CJ2: Stroke_Offset(8) | CK2: Stroke_Offset(9) | CL2: Stroke_Offset(10) | CM2: Stroke_Offset(11) | CN2: Stroke_Offset(12) | CO2: Stroke_Offset(13) | CP2: Stroke_Offset(14) | CQ2: Stroke_Offset(15) | CR2: Stroke_Offset(16) | CS2: Stroke_Offset(17) | CT2: Stroke_Offset(18) | CU2: Stroke_Offset(19) | CV2: Stroke_Offset_at_Stroke(0) | CW2: Stroke_Offset_at_Stroke(1) | CX2: Stroke_Offset_at_Stroke(2) | CY2: Stroke_Offset_at_Stroke(3) | CZ2: Stroke_Offset_at_Stroke(4) | DA2: Stroke_Offset_at_Stroke(5) | DB2: Stroke_Offset_at_Stroke(6) | DC2: Stroke_Offset_at_Stroke(7) | DD2: Stroke_Offset_at_Stroke(8) | DE2: Stroke_Offset_at_Stroke(9) | DF2: Stroke_Offset_at_Stroke(10) | DG2: Stroke_Offset_at_Stroke(11) | DH2: Stroke_Offset_at_Stroke(12) | DI2: Stroke_Offset_at_Stroke(13) | DJ2: Stroke_Offset_at_Stroke(14) | DK2: Stroke_Offset_at_Stroke(15) | DL2: Stroke_Offset_at_Stroke(16) | DM2: Stroke_Offset_at_Stroke(17) | DN2: Stroke_Offset_at_Stroke(18) | DO2: Stroke_Offset_at_Stroke(19) | DP2: Lead,Advancein1rev | DQ2: Screw_Dyn_C | DR2: Inertia_Screw | DS2: Screw_PL | DT2: Screw_Support_PL | DU2: Screw_Support_Dyn_C | DV2: Max_Fr_driveshaft | DW2: Nom_TQ_Mx | DX2: BallScrewRootDiameter | DY2: Intermediate_Screw_Supports | DZ2: Weak_side_faces | EA2: K_factor | EB2: Repeatability | EC2: Belt Type | ED2: Profile size (width × height) | EE2: Screw Diameter
A3: Customer | U3: Unit selected -> | V3: =IF(OR(C8="MF",C8="MG"),V5,IF(OR(C8="2HB",C8="2DB",C8="2RB",C8="MS"),V7,V6)) -> MF10S10Z350_D | W3: =VLOOKUP($V$3,MasterData!$A:$DO,Inputs!W1,FALSE) -> BallScrew | X3: =VLOOKUP($V$3,MasterData!$A:$DO,Inputs!X1,FALSE) -> Ball Guide | Y3: =VLOOKUP($V$3,MasterData!$A:$DO,Inputs!Y1,FALSE) -> 5058 | Z3: =VLOOKUP($V$3,MasterData!$A:$DO,Inputs!Z1,FALSE) -> 4 | AA3: =VLOOKUP($V$3,MasterData!$A:$DO,Inputs!AA1,FALSE) -> 4.42 | AB3: =VLOOKUP($V$3,MasterData!$A:$DO,Inputs!AB1,FALSE) -> 14.4 | AC3: =VLOOKUP($V$3,MasterData!$A:$DO,Inputs!AC1,FALSE) -> 1.72 | AD3: =VLOOKUP($V$3,MasterData!$A:$DO,Inputs!AD1,FALSE) -> 350 | AE3: =VLOOKUP($V$3,MasterData!$A:$DO,Inputs!AE1,FALSE) -> 22 | AF3: =VLOOKUP($V$3,MasterData!$A:$DO,Inputs!AF1,FALSE) -> 69 | AG3: =VLOOKUP($V$3,MasterData!$A:$DO,Inputs!AG1,FALSE) -> 0.000163 | AH3: =VLOOKUP($V$3,MasterData!$A:$DO,Inputs!AH1,FALSE) -> 0.9 | AI3: =VLOOKUP($V$3,MasterData!$A:$DO,Inputs!AI1,FALSE) -> 99999 | AJ3: =VLOOKUP($V$3,MasterData!$A:$DO,Inputs!AJ1,FALSE) -> 99999 | AK3: =VLOOKUP($V$3,MasterData!$A:$DO,Inputs!AK1,FALSE) -> 500 | AL3: =VLOOKUP($V$3,MasterData!$A:$DO,Inputs!AL1,FALSE) -> 0.16 | AM3: =VLOOKUP($V$3,MasterData!$A:$DO,Inputs!AM1,FALSE) -> 0.16 | AN3: =VLOOKUP($V$3,MasterData!$A:$DO,Inputs!AN1,FALSE) -> 0.16 | AO3: =VLOOKUP($V$3,MasterData!$A:$DO,Inputs!AO1,FALSE) -> 2 | AP3: =VLOOKUP($V$3,MasterData!$A:$DO,Inputs!AP1,FALSE) -> 0.02 | AQ3: =VLOOKUP($V$3,MasterData!$A:$DO,Inputs!AQ1,FALSE) -> 0 | AR3: =VLOOKUP($V$3,MasterData!$A:$DO,Inputs!AR1,FALSE) -> 0 | AS3: =VLOOKUP($V$3,MasterData!$A:$DO,Inputs!AS1,FALSE) -> 0 | AT3: =VLOOKUP($V$3,MasterData!$A:$DO,Inputs!AT1,FALSE) -> 5000 | AU3: =VLOOKUP($V$3,MasterData!$A:$DO,Inputs!AU1,FALSE) -> 0 | AV3: =VLOOKUP($V$3,MasterData!$A:$DO,Inputs!AV1,FALSE) -> 0 | AW3: =VLOOKUP($V$3,MasterData!$A:$DO,Inputs!AW1,FALSE) -> 0 | AX3: =VLOOKUP($V$3,MasterData!$A:$DO,Inputs!AX1,FALSE) -> 0 | AY3: =VLOOKUP($V$3,MasterData!$A:$DO,Inputs!AY1,FALSE) -> 0 | AZ3: =VLOOKUP($V$3,MasterData!$A:$DO,Inputs!AZ1,FALSE) -> 3750 | BA3: =VLOOKUP($V$3,MasterData!$A:$DO,Inputs!BA1,FALSE) -> 3750 | BB3: =VLOOKUP($V$3,MasterData!$A:$DO,Inputs!BB1,FALSE) -> 60 | BC3: =VLOOKUP($V$3,MasterData!$A:$DO,Inputs!BC1,FALSE) -> 0 | BD3: =VLOOKUP($V$3,MasterData!$A:$DO,Inputs!BD1,FALSE) -> 0 | BE3: =VLOOKUP($V$3,MasterData!$A:$DO,Inputs!BE1,FALSE) -> 3.75 | BF3: =VLOOKUP($V$3,MasterData!$A:$DO,Inputs!BF1,FALSE) -> 3.75 | BG3: =VLOOKUP($V$3,MasterData!$A:$DO,Inputs!BG1,FALSE) -> 0.5 | BH3: =VLOOKUP($V$3,MasterData!$A:$DO,Inputs!BH1,FALSE) -> 8 | BI3: =VLOOKUP($V$3,MasterData!$A:$DO,Inputs!BI1,FALSE) -> 2 | BJ3: =VLOOKUP($V$3,MasterData!$A:$DO,Inputs!BJ1,FALSE) -> 41000 | BK3: =VLOOKUP($V$3,MasterData!$A:$DO,Inputs!BK1,FALSE) -> 0 | BL3: =VLOOKUP($V$3,MasterData!$A:$DO,Inputs!BL1,FALSE) -> 0 | BM3: =VLOOKUP($V$3,MasterData!$A:$DO,Inputs!BM1,FALSE) -> 0 | BN3: =VLOOKUP($V$3,MasterData!$A:$DO,Inputs!BN1,FALSE) -> 0 | BO3: =VLOOKUP($V$3,MasterData!$A:$DO,Inputs!BO1,FALSE) -> 0 | BP3: =VLOOKUP($V$3,MasterData!$A:$DO,Inputs!BP1,FALSE) -> 0 | BQ3: =VLOOKUP($V$3,MasterData!$A:$DO,Inputs!BQ1,FALSE) -> 0 | BR3: =VLOOKUP($V$3,MasterData!$A:$DO,Inputs!BR1,FALSE) -> 0 | BS3: =VLOOKUP($V$3,MasterData!$A:$DO,Inputs!BS1,FALSE) -> 0 | BT3: =VLOOKUP($V$3,MasterData!$A:$DO,Inputs!BT1,FALSE) -> 0 | BU3: =VLOOKUP($V$3,MasterData!$A:$DO,Inputs!BU1,FALSE) -> 18600 | BV3: =VLOOKUP($V$3,MasterData!$A:$DO,Inputs!BV1,FALSE) -> 0 | BW3: =VLOOKUP($V$3,MasterData!$A:$DO,Inputs!BW1,FALSE) -> 0 | BX3: =VLOOKUP($V$3,MasterData!$A:$DO,Inputs!BX1,FALSE) -> 0 | BY3: =VLOOKUP($V$3,MasterData!$A:$DO,Inputs!BY1,FALSE) -> 0 | BZ3: =VLOOKUP($V$3,MasterData!$A:$DO,Inputs!BZ1,FALSE) -> 0 | CA3: =VLOOKUP($V$3,MasterData!$A:$DO,Inputs!CA1,FALSE) -> 88 | CB3: =VLOOKUP($V$3,MasterData!$A:$DO,Inputs!CB1,FALSE) -> 478 | CC3: =VLOOKUP($V$3,MasterData!$A:$DO,Inputs!CC1,FALSE) -> 0 | CD3: =VLOOKUP($V$3,MasterData!$A:$DO,Inputs!CD1,FALSE) -> 0 | CE3: =VLOOKUP($V$3,MasterData!$A:$DO,Inputs!CE1,FALSE) -> 0 | CF3: =VLOOKUP($V$3,MasterData!$A:$DO,Inputs!CF1,FALSE) -> 0 | CG3: =VLOOKUP($V$3,MasterData!$A:$DO,Inputs!CG1,FALSE) -> 0 | CH3: =VLOOKUP($V$3,MasterData!$A:$DO,Inputs!CH1,FALSE) -> 0 | CI3: =VLOOKUP($V$3,MasterData!$A:$DO,Inputs!CI1,FALSE) -> 0 | CJ3: =VLOOKUP($V$3,MasterData!$A:$DO,Inputs!CJ1,FALSE) -> 0 | CK3: =VLOOKUP($V$3,MasterData!$A:$DO,Inputs!CK1,FALSE) -> 0 | CL3: =VLOOKUP($V$3,MasterData!$A:$DO,Inputs!CL1,FALSE) -> 0 | CM3: =VLOOKUP($V$3,MasterData!$A:$DO,Inputs!CM1,FALSE) -> 0 | CN3: =VLOOKUP($V$3,MasterData!$A:$DO,Inputs!CN1,FALSE) -> 0 | CO3: =VLOOKUP($V$3,MasterData!$A:$DO,Inputs!CO1,FALSE) -> 0 | CP3: =VLOOKUP($V$3,MasterData!$A:$DO,Inputs!CP1,FALSE) -> 0 | CQ3: =VLOOKUP($V$3,MasterData!$A:$DO,Inputs!CQ1,FALSE) -> 0 | CR3: =VLOOKUP($V$3,MasterData!$A:$DO,Inputs!CR1,FALSE) -> 0 | CS3: =VLOOKUP($V$3,MasterData!$A:$DO,Inputs!CS1,FALSE) -> 0 | CT3: =VLOOKUP($V$3,MasterData!$A:$DO,Inputs!CT1,FALSE) -> 0 | CU3: =VLOOKUP($V$3,MasterData!$A:$DO,Inputs!CU1,FALSE) -> 0 | CV3: =VLOOKUP($V$3,MasterData!$A:$DO,Inputs!CV1,FALSE) -> 0 | CW3: =VLOOKUP($V$3,MasterData!$A:$DO,Inputs!CW1,FALSE) -> 0 | CX3: =VLOOKUP($V$3,MasterData!$A:$DO,Inputs!CX1,FALSE) -> 0 | CY3: =VLOOKUP($V$3,MasterData!$A:$DO,Inputs!CY1,FALSE) -> 0 | CZ3: =VLOOKUP($V$3,MasterData!$A:$DO,Inputs!CZ1,FALSE) -> 0 | DA3: =VLOOKUP($V$3,MasterData!$A:$DO,Inputs!DA1,FALSE) -> 0 | DB3: =VLOOKUP($V$3,MasterData!$A:$DO,Inputs!DB1,FALSE) -> 0 | DC3: =VLOOKUP($V$3,MasterData!$A:$DO,Inputs!DC1,FALSE) -> 0 | DD3: =VLOOKUP($V$3,MasterData!$A:$DO,Inputs!DD1,FALSE) -> 0 | DE3: =VLOOKUP($V$3,MasterData!$A:$DO,Inputs!DE1,FALSE) -> 0 | DF3: =VLOOKUP($V$3,MasterData!$A:$DO,Inputs!DF1,FALSE) -> 0 | DG3: =VLOOKUP($V$3,MasterData!$A:$DO,Inputs!DG1,FALSE) -> 0 | DH3: =VLOOKUP($V$3,MasterData!$A:$DO,Inputs!DH1,FALSE) -> 0 | DI3: =VLOOKUP($V$3,MasterData!$A:$DO,Inputs!DI1,FALSE) -> 0 | DJ3: =VLOOKUP($V$3,MasterData!$A:$DO,Inputs!DJ1,FALSE) -> 0 | DK3: =VLOOKUP($V$3,MasterData!$A:$DO,Inputs!DK1,FALSE) -> 0 | DL3: =VLOOKUP($V$3,MasterData!$A:$DO,Inputs!DL1,FALSE) -> 0 | DM3: =VLOOKUP($V$3,MasterData!$A:$DO,Inputs!DM1,FALSE) -> 0 | DN3: =VLOOKUP($V$3,MasterData!$A:$DO,Inputs!DN1,FALSE) -> 0 | DO3: =VLOOKUP($V$3,MasterData!$A:$DO,Inputs!DO1,FALSE) -> 0 | DP3: =VLOOKUP($V$3,MasterData!$A:$DO,Inputs!DP1,FALSE) -> 10 | DQ3: =VLOOKUP($V$3,MasterData!$A:$DO,Inputs!DQ1,FALSE) -> 20600 | DR3: =VLOOKUP($V$3,MasterData!$A:$DO,Inputs!DR1,FALSE) -> 0.00025 | DS3: =VLOOKUP($V$3,MasterData!$A:$DO,Inputs!DS1,FALSE) -> 0 | DT3: =VLOOKUP($V$3,MasterData!$A:$DO,Inputs!DT1,FALSE) -> 0 | DU3: =VLOOKUP($V$3,MasterData!$A:$DO,Inputs!DU1,FALSE) -> 18600 | DV3: =VLOOKUP($V$3,MasterData!$A:$DO,Inputs!DV1,FALSE) -> 500 | DW3: =VLOOKUP($V$3,MasterData!$A:$DO,Inputs!DW1,FALSE) -> 267 | DX3: =VLOOKUP($V$3,MasterData!$A:$DO,Inputs!DX1,FALSE) -> 23.35 | DY3: =VLOOKUP($V$3,MasterData!$A:$DO,Inputs!DY1,FALSE) -> 2 | DZ3: =VLOOKUP($V$3,MasterData!$A:$DO,Inputs!DZ1,FALSE) -> 0 | EA3: =VLOOKUP($V$3,MasterData!$A:$DO,Inputs!EA1,FALSE) -> 0 | EB3: =VLOOKUP($V$3,MasterData!$A:$DO,Inputs!EB1,FALSE) -> Equal to or better than 0.100 mm | EC3: =VLOOKUP($V$3,MasterData!$A:$DO,Inputs!EC1,FALSE) -> 0 | ED3: =VLOOKUP($V$3,MasterData!$A:$DO,Inputs!ED1,FALSE) -> 108 x 100 mm | EE3: =VLOOKUP($V$3,MasterData!$A:$DO,Inputs!EE1,FALSE) -> 25 mm
A4: Project | U4: prefix | V4: full
A5: Date | E5: Ref: | T5: MF,MG | U5: =C9&C12&LEFT(C18,1)&IF(RIGHT(C9,1)="S","_"&LEFT(E12,1),"") -> MF10S10Z_D | V5: =C9&C12&LEFT(C18,1)&IF(LEFT(C18,1)="Z",G17,"")&IF(RIGHT(C9,1)="S","_"&LEFT(E12,1),"") -> MF10S10Z350_D
O6: =AND(RIGHT($C$9)<>"K",LEFT($C$8,1)="M") -> TRUE | T6: WM,WH | U6: =C9&C12&"-"&LEFT(C18,1) -> MF10S10-Z | V6: =U2&G17 -> MF10S10Z_D350
A7: Linear drive unit: | L7: =OFFSET(Unit_Qty,Unit_Qty,0)&", "&OFFSET(L19,L19,1) -> Single unit, Horizontal Side | T7: 2HB,DB | U7: =C9&C12 -> MF10S10 | V7: =U2&G17 -> MF10S10Z_D350 | AD7: Calculation of total length L tot = stroke + C
B8: Family | C8: MF | AC8: C = | AD8: =VLOOKUP(Stroke,AC10:AD29,2) -> 478
B9: Size | C9: MF10S | D9: =IF(C9=" ","Select",IF(ISERROR(VLOOKUP(C9,AE77:AE120,1,FALSE)),"Reselect","")) ->  | AC9: at stroke | AD9: Offset
B10: Guidings | C10: =Guide_Type -> Ball Guide | AB10: Stroke_Offset_0 | AC10: =Stroke_Offset_at_Stroke_0 -> 0.0 | AD10: =Stroke_Offset_0 -> 478.0
B11: Drive mechanism | C11: =Actuation&IF(EC3=0,", "&EE3,", "&EC3) -> BallScrew, 25 mm | E11: Screw Support | L11: =Carr_Qty*1 -> 2 | M11: Carriages/unit | P11: To Fix: | AB11: Stroke_Offset_1 | AC11: =IF(Stroke_Offset_at_Stroke_1=0,99999,Stroke_Offset_at_Stroke_1) -> 99999.0 | AD11: =Stroke_Offset_1 -> 0.0
B12: lead | C12: 10 | D12: =IF(C12=" ","Select",IF(ISERROR(VLOOKUP(C12,N126:N131,1,FALSE)),"Reselect","")) ->  | E12: D - Double Screw Support | AB12: Stroke_Offset_2 | AC12: =IF(Stroke_Offset_at_Stroke_2=0,99999,Stroke_Offset_at_Stroke_2) -> 99999.0 | AD12: =Stroke_Offset_2 -> 0.0
P13: add part number concatenations (leave for next owner) | AB13: Stroke_Offset_3 | AC13: =IF(Stroke_Offset_at_Stroke_3=0,99999,Stroke_Offset_at_Stroke_3) -> 99999.0 | AD13: =Stroke_Offset_3 -> 0.0
B14: Move per rev | C14: =Lead&" mm" -> 10 mm | L14: =L15-1 -> 0 | M14: <-Unit_Qty-1 | P14: MF double carriages don't have all screw support variants in the database. Add? | AB14: Stroke_Offset_4 | AC14: =IF(Stroke_Offset_at_Stroke_4=0,99999,Stroke_Offset_at_Stroke_4) -> 99999.0 | AD14: =Stroke_Offset_4 -> 0.0
B15: Repeatability | C15: =EB3 -> Equal to or better than 0.100 mm | L15: 1 | M15: units | AB15: Stroke_Offset_5 | AC15: =IF(Stroke_Offset_at_Stroke_5=0,99999,Stroke_Offset_at_Stroke_5) -> 99999.0 | AD15: =Stroke_Offset_5 -> 0.0
F16: ="LA=" -> LA= | G16: 500 | H16: =IF(L9=3,"mm","Only when C-saddle") -> Only when C-saddle | I16: =IF(AND(G17>0,G16<G17),"Too short"," ") ->  | L16: Single unit | AB16: Stroke_Offset_6 | AC16: =IF(Stroke_Offset_at_Stroke_6=0,99999,Stroke_Offset_at_Stroke_6) -> 99999.0 | AD16: =Stroke_Offset_6 -> 0.0
F17: LA_min= | G17: =IFERROR(VLOOKUP(U2,AK133:AL234,2,FALSE),"") -> 350 | H17: mm | L17: Two units in parallel | AB17: Stroke_Offset_7 | AC17: =IF(Stroke_Offset_at_Stroke_7=0,99999,Stroke_Offset_at_Stroke_7) -> 99999.0 | AD17: =Stroke_Offset_7 -> 0.0
B18: Saddle | C18: Z = Double standard carriages | E18: =IF(OR(C8="2HB",C8="2DB",C8="2RB",C8="MS"),"",IF(C18=" ","Select",IF(ISERROR(VLOOKUP(C18,P126:P131,1,FALSE)),"Reselect",""))) ->  | AB18: Stroke_Offset_8 | AC18: =IF(Stroke_Offset_at_Stroke_8=0,99999,Stroke_Offset_at_Stroke_8) -> 99999.0 | AD18: =Stroke_Offset_8 -> 0.0
B19: Stroke | C19: 1000 | D19: mm | F19: Total length | G19: =Stroke+Stroke_Offset+Offset_Endcaps+IF(Carr_Qty=2,dist_bet_Carr,0) -> 2066 | H19: mm | L19: 2 | AB19: Stroke_Offset_9 | AC19: =IF(Stroke_Offset_at_Stroke_9=0,99999,Stroke_Offset_at_Stroke_9) -> 99999.0 | AD19: =Stroke_Offset_9 -> 0.0
C20: =IF(C19>Stroke_Max_mm,"Longer than standard. Check with plant"," ") ->  | L20: 1 | M20: Horizontal | AB20: Stroke_Offset_10 | AC20: =IF(Stroke_Offset_at_Stroke_10=0,99999,Stroke_Offset_at_Stroke_10) -> 99999.0 | AD20: =Stroke_Offset_10 -> 0.0
C21: Number of units | L21: 2 | M21: Horizontal Side | AB21: Stroke_Offset_11 | AC21: =IF(Stroke_Offset_at_Stroke_11=0,99999,Stroke_Offset_at_Stroke_11) -> 99999.0 | AD21: =Stroke_Offset_11 -> 0.0
A22: =IF(L15=2,"Distance between linear units"," ") ->  | D22: 500 | L22: 3 | M22: Vertical | AB22: Stroke_Offset_12 | AC22: =IF(Stroke_Offset_at_Stroke_12=0,99999,Stroke_Offset_at_Stroke_12) -> 99999.0 | AD22: =Stroke_Offset_12 -> 0.0
AB23: Stroke_Offset_13 | AC23: =IF(Stroke_Offset_at_Stroke_13=0,99999,Stroke_Offset_at_Stroke_13) -> 99999.0 | AD23: =Stroke_Offset_13 -> 0.0
C24: Weight of linear drive unit/-s | D24: =zero_Stroke_Mass + ((Stroke + (Carr_Qty - 1) * dist_bet_Carr) / 100 * Mass_per_100mm) + (Carr_Qty * Carr_mass_individual) + Mass_Screw_Support -> 52.6 | E24: kg | L24: 1 | AB24: Stroke_Offset_14 | AC24: =IF(Stroke_Offset_at_Stroke_14=0,99999,Stroke_Offset_at_Stroke_14) -> 99999.0 | AD24: =Stroke_Offset_14 -> 0.0
F25: =IF(Q33=0," ","Deflection") ->  | L25: 1 | M25: =IF(L19=1,"Top or downward"," ") ->  | AB25: Stroke_Offset_15 | AC25: =IF(Stroke_Offset_at_Stroke_15=0,99999,Stroke_Offset_at_Stroke_15) -> 99999.0 | AD25: =Stroke_Offset_15 -> 0.0
B26: Mounting direction | L26: 2 | M26: =IF(L19=1,"Sideway"," ") ->  | AB26: Stroke_Offset_16 | AC26: =IF(Stroke_Offset_at_Stroke_16=0,99999,Stroke_Offset_at_Stroke_16) -> 99999.0 | AD26: =Stroke_Offset_16 -> 0.0
AB27: Stroke_Offset_17 | AC27: =IF(Stroke_Offset_at_Stroke_17=0,99999,Stroke_Offset_at_Stroke_17) -> 99999.0 | AD27: =Stroke_Offset_17 -> 0.0
L28: 2 | M28: =IF(L28=1,1,0) -> 0 | N28: <-Carry_weight_Yes | AB28: Stroke_Offset_18 | AC28: =IF(Stroke_Offset_at_Stroke_18=0,99999,Stroke_Offset_at_Stroke_18) -> 99999.0 | AD28: =Stroke_Offset_18 -> 0.0
L29: 1 | M29: Yes | AB29: Stroke_Offset_19 | AC29: =IF(Stroke_Offset_at_Stroke_19=0,99999,Stroke_Offset_at_Stroke_19) -> 99999.0 | AD29: =Stroke_Offset_19 -> 0.0
L30: 2 | M30: No
AB31: = Fx_max_B - Fx_max_M * Speed
AC32: Fx_max_speed | AD32: Fx_max_B | AE32: Fx_max_M
AB33: Fx_max | AC33: =AD33-AE33*Speed -> 5000 | AD33: =VLOOKUP(Speed,AC34:AE36,2) -> 5000 | AE33: =VLOOKUP(Speed,AC34:AE36,3) -> 0
AB34: Speed0 | AC34: =Fx_max_speed_0*1 -> 0 | AD34: =Fx_max_B_0 -> 5000 | AE34: =Fx_max_M_0 -> 0
AB35: Speed1 | AC35: =IF(Fx_max_speed_1*1=0,9999,Fx_max_speed_1*1) -> 9999 | AD35: =Fx_max_B_1 -> 0 | AE35: =Fx_max_M_1 -> 0
AB36: Speed2 | AC36: =IF(Fx_max_speed_2*1 = 0,99999, Fx_max_speed_2*1) -> 99999 | AD36: =Fx_max_B_2 -> 0 | AE36: =Fx_max_M_2 -> 0
N39: VB code variables-> | P39: _Static | Q39: _Dyn | R39: _tot | AH39: Customized profile
O40: Forces Detail | U40: Belt_mass_tot | V40: =Belt_mass * SystemLength_mm / 1000 * 2 -> 0
C41: Vector force. (does not act at CG) | P41: Flat | Q41: slant | AA41: Axial_F_Fy | AB41: =Fy_tot / 4 / Carr_Qty -> 0 | AG41: Acceleration | AI41: =Accel -> 0.5 | AJ41: m/s2 | AK41: <-Accel | AO41: =IF((AP45+AP47)>AN43,1,0) -> 0
B42: Fx = | C42: 200 | D42: N | E42: =IF(Fx_tot>Fx_max,"Too much"," ") ->  | I42: Applied force. | P42: Const speed/Static | Q42: Dynamic | R42: Eq load | T42: Friction | X42: allowed | Y42: % of max | AA42: Axial_F_Mz | AB42: =Mz_tot / Lx_carr * 1000 / 4 / Carr_Qty -> 3.214084311 | AG42: Deceleration | AI42: =Accel -> 0.5 | AJ42: m/s2 | AO42: =IF(AO41=1,AP42,Speed) -> 0.25 | AP42: =AO46*Accel -> 0.8282511696
B43: Fy = | C43: 0 | D43: N | E43: =IF(Fy_tot>Fy_max,"Too much"," ") ->  | I43: This force is applied at the CG | O43: Fx = | P43: =Fx_in + friction_Total + (Mass + (Carr_mass_individual + Belt_mass_tot) * Carr_Qty) * Gravity_x + Applied_x + Friction_Carr * Carr_Qty -> 204.85 | Q43: =(Mass+(Carr_mass_individual+ Belt_mass_tot)*Carr_Qty)*Accel -> 104.00 | R43: =(ABS(Fx_Static+Fx_Dyn)^3*(dist_accel/MoveDistance_mm)+ABS(Fx_Static)^3*(dist_const_Spd/MoveDistance_mm)+ABS(Fx_Static-Fx_Dyn)^3*(dist_accel/MoveDistance_mm))^(1/3) -> 209.55 | S43: N | X43: =Fx_max*Unit_Qty -> 5000 | AG43: Distance (stroke) | AI43: =MoveDistance_mm -> 1372 | AJ43: mm | AK43: <-MoveDistance_mm | AN43: =MoveDistance_mm/1000 -> 1.372 | AO43: Move in Meters
B44: Fz = | C44: 0 | D44: N | E44: =IF(Fz_tot>Fz_max,"Too much"," ") ->  | H44: Applied_x | I44: 0 | J44: N | O44: Fy = | P44: =Fy_in + Mass * Gravity_y + Applied_y -> 0 | R44: =(ABS(Q44+P44)^3*(dist_accel/MoveDistance_mm)+ABS(P44)^3*(dist_const_Spd/MoveDistance_mm)+ABS(P44-Q44)^3*(dist_accel/MoveDistance_mm))^(1/3) -> 0.00 | S44: N | T44: =Fy_tot * Friction_factor -> 0 | X44: =Fy_max_individual*Carr_Qty -> 7500 | Y44: =Fy_tot / Fy_max -> 0.0% | AA44: Radial_F_Fz | AB44: =Fz_tot / 4 / Carr_Qty -> 0 | AG44: Speed | AI44: =C52 -> 0.25 | AJ44: m/s | AK44: <-Speed
B45: Mx = | C45: 0 | D45: Nm | E45: =IF(L15=2," ",IF(Mx_tot>Mx_max,"Too much"," ")) ->  | H45: Applied_y | I45: 0 | J45: N | O45: Fz = | P45: =Fz_in + Mass * Gravity_z + Applied_z -> 0 | R45: =(ABS(Q45+P45)^3*(dist_accel/MoveDistance_mm)+ABS(P45)^3*(dist_const_Spd/MoveDistance_mm)+ABS(P45-Q45)^3*(dist_accel/MoveDistance_mm))^(1/3) -> 0.00 | S45: N | T45: =Fz_tot * Friction_factor -> 0 | V45: Friction sub calc | X45: =Fz_max_individual*Carr_Qty*Unit_Qty -> 7500 | Y45: =Fz_tot / Fz_max -> 0.0% | AA45: Radial_F_Mx | AB45: =(Mx_tot + (Mass * Gravity_y + Applied_y) * Lz_carr / 1000) / Ly_carr * 1000 / 2 / Carr_Qty -> 0 | AG45: Distance for acc. | AI45: =1000*AN45 -> 62.500 | AJ45: mm | AN45: =IF(AO41=0,AP45,AO45) -> 0.063 | AO45: =AN43*AI42/(AI42+Accel) -> 0.686 | AP45: =Accel*AP46*AP46/2 -> 0.0625
B46: My = | C46: 0 | D46: Nm | E46: =IF(My_tot>My_max,"Too much"," ") ->  | H46: Applied_z | I46: 0 | J46: N | O46: Mx = | P46: =Mx_in + (Mx_Applied + Mx_Static_g) / 1000 -> 0 | Q46: 0 | R46: =(ABS(Mx_Static+Mx_Dyn)^3*(dist_accel/MoveDistance_mm)+ABS(Mx_Static)^3*(dist_const_Spd/MoveDistance_mm)+ABS(Mx_Static-Mx_Dyn)^3*(dist_accel/MoveDistance_mm))^(1/3) -> 0.00 | S46: Nm | T46: =(Mx_tot / Ly_carr) * 1000 * Friction_factor -> 0.0 | U46: All others | V46: WM06Z,S | W46: WM08Z,S | X46: =IF(Unit_Qty=2,IF(Carr_Qty=1,0.75,1)*Unit_Dist* Fz_max_individual/1000*Carr_Qty,Mx_max_individual*Carr_Qty) -> 120 | Y46: =Mx_tot / Mx_max -> 0.0% | AA46: Radial_F_My | AB46: =(My_tot + Mass * Speed * Lz_carr / 1000) / Lx_carr * 1000 / 2 / Carr_Qty -> 6.674736162 | AG46: Time for acc. | AI46: =IF(AO41=0,AP46,AO46) -> 0.500 | AJ46: s | AO46: =SQRT(2*AO45/Accel) -> 1.656502339 | AP46: =Speed/Accel -> 0.5
B47: Mz = | C47: 0 | D47: Nm | E47: =IF(L15=2," ",IF(Mz_tot>Mz_max,"Too much"," ")) ->  | O47: My = | P47: =My_in + (My_Applied + My_Static_g ) / 1000 -> 0 | Q47: =(Mass * Accel * ABS(z_distance - Lz_carr)) / 1000 -> 13.1 | R47: =(ABS(My_Static+My_Dyn)^3*(dist_accel/MoveDistance_mm)+ABS(My_Static)^3*(dist_const_Spd/MoveDistance_mm)+ABS(My_Static-My_Dyn)^3*(dist_accel/MoveDistance_mm))^(1/3) -> 5.89 | S47: Nm | T47: =IF(OR(U2="WM06Z120-S",U2="WM06S005-S",U2="WM06S020-S",U2="WM06S050-S"),V47,IF(OR(U2="WM08Z170-S",U2="WM08S005-S",U2="WM08S010-S",U2="WM08S020-S",U2="WM08S050-S"),W47,U47)) -> 0.34 | U47: =(My_tot/Lx_carr)*1000*Friction_factor -> 0.337 | V47: =My_tot * 1.5 -> 8.842 | W47: =My_tot -> 5.895 | X47: =IF(Carr_Qty*1>1,dist_bet_Carr*My_max_z_fact,My_max_individual*Carr_Qty)*Unit_Qty -> 1875 | Y47: =My_tot / My_max -> 0.3% | AG47: Distance for decel. | AI47: =AN47*1000 -> 62.500 | AJ47: mm | AN47: =IF(AO41=0,AP47,AO47) -> 0.063 | AO47: =AN43*AI41/(AI42+Accel) -> 0.686 | AP47: =AI42*AP48*AP48/2 -> 0.0625
O48: Mz = | P48: =Mz_in + (Mz_Applied + Mz_Static_g ) / 1000 -> 0 | Q48: =(Mass * Accel * ABS(y_distance)) / 1000 -> 20 | R48: =(ABS(Mz_Static+Mz_Dyn)^3*(dist_accel/MoveDistance_mm)+ABS(Mz_Static)^3*(dist_const_Spd/MoveDistance_mm)+ABS(Mz_Static-Mz_Dyn)^3*(dist_accel/MoveDistance_mm))^(1/3) -> 9.00 | S48: Nm | T48: =IF(OR(U2="WM06Z120-S",U2="WM06S005-S",U2="WM06S020-S",U2="WM06S050-S"),V48,IF(OR(U2="WM08Z170-S",U2="WM08S005-S",U2="WM08S010-S",U2="WM08S020-S",U2="WM08S050-S"),W48,U48)) -> 0.5142534898 | U48: =(Mz_tot / Lx_carr) * 1000 * Friction_factor -> 0.514 | V48: =My_tot * 1.5 -> 8.842 | W48: =My_tot -> 5.895 | X48: =IF(Carr_Qty*1>1,dist_bet_Carr*Mz_max_z_fact,Mz_max_individual*Carr_Qty)*Unit_Qty -> 1875 | Y48: =Mz_tot / Mz_max -> 0.5% | AA48: Axial_F_temp | AB48: =IF(AB134="MLSH06Z",Axial_F_Mz * 2 + Axial_F_Fy,"") ->  | AG48: Time for decel. | AI48: =IF(AO41=0,AP48,AO48) -> 0.500 | AJ48: s | AO48: =SQRT(2*AO47/AI42) -> 1.656502339 | AP48: =Speed/AI42 -> 0.5
B49: Total mass to move | C49: 200 | D49: kg | I49: CG location from top of carriage | AA49: Radial_F_temp | AB49: =IF(AB134="MLSH06Z",Radial_F_Mx + Radial_F_My + Radial_F_Fz,"") ->  | AG49: Dist. at const speed | AI49: =AN49*1000 -> 1247 | AJ49: mm | AN49: =AN43-AN45-AN47 -> 1.247 | AP49: =IF((AN45+AN47)>AN43,"Du når ej önskad max hastighet"," ") -> 
A50: Will this mass be carried by the carriage/carriages? | H50: Lx = | I50: 200 | J50: mm | X50: Totally | Y50: =IF(SUM(Y44:Y48)=0,0.0001,SUM(Y44:Y48)+0.001) -> 0.9% | AA50: Axial_F_tot | AB50: =IF(AB134="MLSH06Z",(Radial_F_temp + Axial_F_temp) / SQRT(2),Axial_F_Fy + Axial_F_Mz) -> 3.214084311 | AG50: Time at const speed | AI50: =AN49/Speed -> 4.988 | AJ50: s
F51: =IF(G52>3001,"Too high rpm "," ") ->  | H51: Ly = | I51: 200 | J51: mm | S51: Friction Total -> | T51: =SUM(T44:T48) -> 0.9 | U51: N | AA51: Radial_F_tot | AB51: =IF(AB134="MLSH06Z",Axial_F_tot + Pl_Wheel,Radial_F_Fz + Radial_F_Mx + Radial_F_My + Pl_Wheel) -> 6.674736162 | AG51: Cycle time | AI51: =IF(AO41=0,AP51,AO51) -> 5.988 | AJ51: s | AO51: =AO46+AO48 -> 3.313004679 | AP51: =AI48+AI46+AI50 -> 5.988
B52: Speed | C52: 0.25 | D52: m/s | E52: =IF(Speed>Speed_max,"Too high, max: "&ROUND(Speed_max,2)," ") ->  | H52: Lz = | I52: 200 | J52: mm | AG52: Average speed | AI52: =AN43/AI51 -> 0.229 | AJ52: m/s
B53: Acceleration | C53: 0.5 | D53: m/s² | E53: =IF(Accel>Accel_max,"Too high, Max: "&ROUND(Accel_max,2)," ") ->  | AA53: P-factor for Wheel units
D54: =IF(AND(OR(C8="MF",C8="MG"),N121="fail Screw CS"),"To high rpm (speed) for critical speed, please add Screw Support","") ->  | M54: =Friction_Carr -> 2 | AA54: P_factor | AB54: =IF(Radial_F_tot < Axial_F_tot,x_R_less_A * Radial_F_tot + y_R_less_A * Axial_F_tot,x_R_great_A * Radial_F_tot + y_R_great_A * Axial_F_tot) -> 0
A55: Move profile over | C55: 1372 | D55: mm stroke | F55: =IF(C55>C19,"This is longer than stroke of unit !"," ") -> This is longer than stroke of unit !
A57: Time to move one direction | AF57: Special MF calculations
C58: =AI51 -> 5.99 | D58: sec | AG58: Fz_direction | AH58: =IF($L$19=1,AH63,IF($L$19=2,AH68,IF($L$19=3,AH73,""))) -> 38.42857143
AG59: Fy_Direction | AH59: =IF($L$19=1,AH64,IF($L$19=2,AH69,IF($L$19=3,AH74,""))) -> 28.57142857
A60: =IF(AO41=1,"You will not reach full speed"," ") ->  | T60: Gr_Accel | U60: =10*Carry_weight_Yes -> 0 | V60: m/s2 | AG60: Mx_direction | AH60: 0
A61: =IF(AO41=1,"You will reach just"," ") ->  | C61: =IF(AO41=1,AO46*Accel," ") ->  | D61: =IF(AO41=1,"m/s"," ") ->  | U61: Acceleration of gravity assignment | AG61: EQ_load | AH61: =Fz_direction + (Fy_Direction + 0.001) + (Mx_direction / Nom_TQ_Mx) * Carr_dyn_C_each -> 67.001
E62: 0 | F62: =AN45*1000 -> 62.500 | G62: =F62+AN49*1000 -> 1309.500 | H62: =AN43*1000 -> 1372 | T62: =L19 -> 2 | U62: Horizontal | V62: Horizontal Side | W62: Vertical | AF62: Horizontal
E63: 0 | F63: =AO42 -> 0.25 | G63: =F63 -> 0.25 | H63: 0 | T63: Gravity_x | U63: 0 | V63: 0 | W63: =Gr_Accel -> 0 | X63: =OFFSET(T63,0,$T$62) -> 0 | Y63: m/s2 | AG63: Fz_direction | AH63: =Fz_in / 2 / Carr_Qty + Applied_z + Mass * Gravity_z * (Lx_carr / 2 + x_distance) / Lx_carr / Carr_Qty + Mass * Accel * (ABS(z_distance) + Lz_carr) / Lx_carr / Carr_Qty + My_in * 1000 / Lx_carr / Carr_Qty -> 38.42857143
T64: Gravity_y | U64: 0 | V64: =Gr_Accel -> 0 | W64: 0 | X64: =OFFSET(T64,0,$T$62) -> 0 | Y64: m/s2 | AG64: Fy_Direction | AH64: =Fy_tot / 2 / Carr_Qty + Mz_tot / Lx_carr * 1000 / Carr_Qty -> 12.85633724
T65: Gravity_z | U65: =Gr_Accel -> 0 | V65: 0 | W65: 0 | X65: =OFFSET(T65,0,$T$62) -> 0 | Y65: m/s2 | AG65: Mx_direction | AH65: =Mx_tot / 2 / Carr_Qty / 0.9 -> 0
U67: Horizontal | V67: Horizontal Side | W67: Vertical | AF67: Horizontal Size
S68: Mx_Static_g | T68: =OFFSET(T68,0,$T$62) -> 0 | U68: =Mass * Gravity_z * ABS(y_distance) -> 0 | V68: =Mass * Gravity_y * (ABS(z_distance - Lz_carr)) -> 0 | W68: 0 | X68: Nmm | Y68: z _carr and negatives need addressed in VB code and old .xls sheets | AG68: Fz_direction | AH68: =Fz_in / 2 / Carr_Qty + My_in / Lx_carr / Carr_Qty * 1000 + Mass * Accel * (ABS(z_distance) + Lz_carr) / Lx_carr / Carr_Qty -> 38.42857143
S69: My_Static_g | T69: =OFFSET(T69,0,$T$62) -> 0 | U69: =Mass * Gravity_z *ABS(x_distance) -> 0 | V69: 0 | W69: =Mass * Gravity_x * (ABS(z_distance - Lz_carr)) -> 0 | X69: Nmm | AG69: Fy_Direction | AH69: =Fy_in / 2 / Carr_Qty + Applied_y + Mass * Gravity_y / 2 / Carr_Qty + Mass * Accel * ABS(y_distance) / Lx_carr / Carr_Qty + Mz_in / Lx_carr * 1000 / Carr_Qty -> 28.57142857
S70: Mz_Static_g | T70: =OFFSET(T70,0,$T$62) -> 0 | U70: 0 | V70: =Mass * Gravity_y * ABS(x_distance) -> 0 | W70: =Mass * Gravity_x * ABS(y_distance) -> 0 | X70: Nmm | AG70: Mx_direction | AH70: =(Mx_in + Applied_z + Mass * Gravity_y * (ABS(z_distance) + Lz_carr) / 1000) / 2 / Carr_Qty / 0.8 -> 0
A71: =OFFSET(Unit_Qty,Unit_Qty,0)&", "&OFFSET(L19,L19,1)&" Mounting" -> Single unit, Horizontal Side Mounting
S72: Mx_Applied | T72: =Applied_z * ABS(y_distance) + Applied_y * (ABS(z_distance- Lz_carr)) -> 0 | AF72: Vertical
B73: Result: | D73: Allowed | S73: My_Applied | T73: =Applied_z * ABS(x_distance) + Applied_x * (ABS(z_distance- Lz_carr)) -> 0 | AG73: Fz_direction | AH73: =Fz_in / 2 / Carr_Qty + My_in / Lx_carr * 1000 / Carr_Qty + (Applied_x + Mass * Gravity_x + Mass * Accel) * (ABS(z_distance) + Lz_carr) / Lx_carr / Carr_Qty -> 38.42857143
A74: Fx = | B74: =Fx_tot -> 210 | C74: N | D74: =Fx_max -> 5000 | E74: N | F74: =IF(B74>D74,"Too much !"," ") ->  | S74: Mz_Applied | T74: =Applied_x * ABS(y_distance) + Applied_y * ABS(x_distance) -> 0 | AG74: Fy_Direction | AH74: =Fy_in / 2 / Carr_Qty + Mz_in / Lx_carr / Carr_Qty * 1000 + (+Applied_x + Mass * Gravity_x + Mass * Accel) * ABS(y_distance) / Lx_carr / Carr_Qty -> 28.57142857
A75: Fy = | B75: =Fy_tot -> 0 | C75: N | D75: =Fy_max -> 7500 | E75: N | AG75: Mx_direction | AH75: =Mx_in -> 0
A76: Fz = | B76: =Fz_tot -> 0 | C76: N | D76: =Fz_max -> 7500 | E76: N | Z76: Prefix | AA76: 0 | AB76: Selection | AC76: options | AD76: counter | AE76: list
A77: Mx = | B77: =Mx_tot -> 0 | C77: Nm | D77: =Mx_max -> 120 | E77: Nm | Z77: MF | AA77: =IF(LEFT(AB77,LEN($C$8))=$C$8,AA76+1,AA76) -> 1 | AB77: MF06B | AC77: =IF(LEFT(AB77,LEN($C$8))=$C$8,AB77," ") -> MF06B | AD77: 1 | AE77: =IFERROR(VLOOKUP(AD77,$AA$77:$AB$120,2,FALSE)," ") -> MF06B
A78: My = | B78: =My_tot -> 6 | C78: Nm | D78: =My_max -> 1875 | E78: Nm | Z78: MG | AA78: 2 | AB78: MF06S | AC78: MF06S | AD78: 2 | AE78: =IFERROR(VLOOKUP(AD78,$AA$77:$AB$120,2,FALSE)," ") -> MF06S
A79: Mz = | B79: =Mz_tot -> 9 | C79: Nm | D79: =Mz_max -> 1875 | E79: Nm | Z79: MLS | AA79: 3 | AB79: MF07B | AC79: MF07B | AD79: 3 | AE79: =IFERROR(VLOOKUP(AD79,$AA$77:$AB$120,2,FALSE)," ") -> MF07B
F80: Total dynamic load combined all directions (apart of Fx) | G80: =Percent_of_max -> 0.9% | M80: 1 | Z80: WH | AA80: 4 | AB80: MF07S | AC80: MF07S | AD80: 4 | AE80: =IFERROR(VLOOKUP(AD80,$AA$77:$AB$120,2,FALSE)," ") -> MF07S
B81: =IF(Percent_of_max>1.001,"The total load is too much ! Select bigger unit or another configuration.",IF(Fx_tot>Fx_max,"The axial force is too much ! Select bigger unit or another configuration."," ")) ->  | M81: Guide for selection of fm factor | Z81: WHZ | AA81: 5 | AB81: MF10B | AC81: MF10B | AD81: 5 | AE81: =IFERROR(VLOOKUP(AD81,$AA$77:$AB$120,2,FALSE)," ") -> MF10B
M82: fm = 1,0 ; The same load in both directions | Z82: WM | AA82: 6 | AB82: MF10S | AC82: MF10S | AD82: 6 | AE82: =IFERROR(VLOOKUP(AD82,$AA$77:$AB$120,2,FALSE)," ") -> MF10S
B83: Designation: | C83: =V3 -> MF10S10Z350_D | M83: fm = 0,89 ; Full load forward, 75% load back | Z83: WV | AA83: 6 | AB83: MG05B | AD83: =AD82+1 -> 7
M84: fm = 0,81 ; Full load forward, 50% load back | Z84: 2DB | AA84: 6 | AB84: MG06B | AD84: =AD83+1 -> 8
A85: Calculation of lifetime | M85: fm = 0,8 ; Full load forward, no load back | Z85: 2HB | AA85: 6 | AB85: MG06S | AD85: 9
C86: Average load factor fm | D86: 1 | M86: fm = 0,48 ; Full load 10% of the stroke forward and 20% rest of cycle | Z86: 2RB | AA86: 6 | AB86: MG07B | AD86: 10
Z87: MS | AA87: 6 | AB87: MG07S | AD87: 11
C88: Lifetime in km | AA88: 6 | AB88: MG10B | AD88: 12
C89: =Guide_Type -> Ball Guide | D89: =VLOOKUP(Guide_Type,M91:N97,2,FALSE) -> 1,964,536,966 | E89: km | F89: =D89*1000000/(Move_Distance*2) -> 7.2E+11 | G89: Cycles | M89: User_Life_Factor | N89: =1000000 / Move_Distance / 2 / CyclesPerTime / 60 / Hours_Per_Day / Days_Per_Year -> 0.004217957024 | AA89: 6 | AB89: MG10S | AD89: 13
C90: =VLOOKUP(Actuation,L100:N102,2,FALSE) -> Ball screw | D90: =VLOOKUP(Actuation,L100:N102,3,FALSE) -> 9,499,951 | E90: km | F90: =D90*1000000/(Move_Distance*2) -> 3.5E+09 | G90: Cycles | L90: Guide life | AA90: 6 | AB90: MLSH06Z | AD90: 14
C91: =VLOOKUP(Actuation,L105:N107,2,FALSE) -> Support Bearing | D91: =VLOOKUP(Actuation,L105:N107,3,FALSE) -> 376,049 | E91: km | F91: =D91*1000000/(Move_Distance*2) -> 1.4E+08 | G91: Cycles | L91: MF06 | M91: =IF(LEFT(C9,4)="MF06","Ball Guide","Ball Guide - MF06") -> Ball Guide - MF06 | N91: =50 * (Carr_dyn_C_each / (Fz_direction + (Fy_Direction + 0.001) + Mx_direction / Ly_carr * 1000) / 1.8) ^ 3 -> 1,964,536,966 | O91: km | P91: =N91*$N$89 -> 8,286,332 | Q91: yr | AA91: 6 | AB91: MLSM06D | AD91: 15
L92: MF07,10 | M92: =IF(OR(LEFT(C9,4)="MF07",LEFT(C9,4)="MF10"),"Ball Guide","Ball Guide - MF07, MF10") -> Ball Guide | N92: =(50 * (Carr_dyn_C_each / (EQ_load) / 1.8 / fm_factor) ^ 3) -> 1,964,536,966 | O92: km | P92: 8,286,332 | Q92: yr | V92: Inertia_motor_shaft | W92: =IF(Gear_Direct="Gear",W98,W104) -> 0.001506370155 | X92: kg m² | AA92: 6 | AB92: MLSM08D | AD92: 16
C93: number of cycles per minute | D93: 0.2 | F93: Duty cycle | G93: =D93*2*C58/60 -> 4% | H93: =IF(G93>1,"Not possible !"," ") ->  | L93: Non MF | M93: =IF(OR(M92="Ball Guide",M91="Ball Guide"),"Ball Guide - Non MF","Ball Guide") -> Ball Guide - Non MF | N93: =((Carr_dyn_C_each / (Fz_max_individual + PL_Carr) / Percent_of_max / fm_factor) ^ 3) * 100 -> 182,698,468,537 | O93: km | P93: =N93*$N$89 -> 770,614,289 | Q93: yr | V93: Motor_shaft_top_speed | W93: =IF(Gear_Direct="Gear",W99,W105) -> 1500 | X93: Rpm | AA93: 6 | AB93: MLSM08Z | AD93: 17
C94: Working hours per day | D94: 24 | M94: Prism Guide | N94: =IF(Percent_of_max<0.3,36000, (36000 - (Percent_of_max - 0.3) * 36000 / 0.7)) -> 36,000 | O94: km | P94: =N94*$N$89 -> 152 | Q94: yr | V94: Inertial_Motor_tot | W94: =IF(Gear_Direct="Gear",W100,W106) -> 0.001506370155 | X94: kg m² | AA94: 6 | AB94: WH04Z | AD94: 18
C95: Working days per year | D95: 300 | M95: Wheel | N95: =(TR_dyn_C / P_factor / fm_factor) ^ 3 * TR_dia * PI() ->  | O95: km | P95: =N95*$N$89 ->  | Q95: yr | V95: TQ_MT_CS | W95: =IF(Gear_Direct="Gear",W101,W107) -> 0.5311040784 | X95: Nm | AA95: 6 | AB95: WH05Z | AD95: 19
M96: Profile Rail | N96: =((Carr_dyn_C_each * K_factor / 4) / F_rms_max) ^ 3 * 100 * fm_factor ->  | O96: km | P96: =N96*$N$89 ->  | Q96: yr | AA96: 6 | AB96: WH08Z | AD96: 20
C97: Lifetime in Years | M97: Ball Bushing | N97: =N96 ->  | O97: km | Q97: yr | V97: Gear | AA97: 6 | AB97: WH12Z | AD97: 21
C98: =Guide_Type -> Ball Guide | D98: =VLOOKUP(Guide_Type,M91:P95,4,FALSE) -> 8,286,332.5 | E98: Years | S98: Idle_TQ_single | T98: =IF(RPM_DS<= Idle_SP_1,T99,IF(RPM_DS<=Idle_SP_2,T100,T101)) -> 0.16 | V98: Inertia_motor_shaft | W98: =(Inertia_system + Inertia_coupling) / Ratio ^ 2 / Gearbox_Effiency + Gear_inertia + Inertia_motor -> 0.0004293664576 | X98: kg m² | AA98: 6 | AB98: WHZ05Z | AD98: 22
C99: =VLOOKUP(Actuation,L100:P102,2,FALSE) -> Ball screw | D99: =IF(Actuation="Leadscrew","",VLOOKUP(Actuation,L100:P102,5,FALSE)) -> 40,070.4 | E99: Years | L99: Drive life | S99: RPM_DS<= Idle_SP_1 | T99: =idle_T1 -> 0.16 | V99: Motor_shaft_top_speed | W99: =RPM_DS * Ratio -> 6000 | X99: Rpm | AA99: 6 | AB99: WHZ08Z | AD99: 23
C100: =VLOOKUP(Actuation,L105:P107,2,FALSE) -> Support Bearing | D100: =VLOOKUP(Actuation,L105:P107,5,FALSE) -> 1,586.2 | E100: Years | L100: BallScrew | M100: Ball screw | N100: =IF(OR(N121="",Root_Diameter=0),(Screw_Dyn_C / (Fx_tot+ Screw_PL) / (fm_factor)) ^ 3 * Lead,N121) -> 9,499,951 | O100: km | P100: =N100*$N$89 -> 40,070 | Q100: yr | S100: RPM_DS<= Idle_SP_2 | T100: =idle_T1 + (RPM_DS - Idle_SP_1) / (Idle_SP_2 - Idle_SP_1) * (idle_T2 - idle_T1) ->  | V100: Inertial_Motor_tot | W100: =(Inertia_system + Inertia_coupling) / Ratio ^ 2 + Gear_inertia + Inertia_motor -> 0.0004253981347 | X100: kg m² | AA100: 6 | AB100: WM04D | AD100: 24
L101: Belt | M101: Drive Station | N101: =(DS_dyn_C / ((2 * 1.1 * Belt_pretension + Fx_tot * fm_factor) / 2)) ^ 3 * Lead -> 55,943,354 | O101: km | P101: =N101*$N$89 -> 235,967 | Q101: yr | S101: RPM_DS> Idle_SP_2 | T101: =idle_T2 + (RPM_DS - Idle_SP_2) / (Idle_SP_3 - Idle_SP_2) * (idle_T3 - idle_T2) -> 0.16 | V101: TQ_MT_CS | W101: =TQ_DR_CS / Ratio / Gearbox_Effiency + Gear_idle_torque -> 0.2383665888 | X101: Nm | AA101: 6 | AB101: WM04S | AD101: 25
C102: Limiting | D102: =MIN(D98:D100) -> 1,586.2 | E102: Years | L102: Belt, Moving Profile | M102: =M101 -> Drive Station | N102: =N101 -> 55,943,354 | O102: km | P102: =N102*$N$89 -> 235,967 | Q102: yr | AA102: 6 | AB102: WM06D | AD102: 26
S103: Idle_TQ_dual | T103: =IF(Carr_Qty>1,IF(OR(Actuation="BallScrew",Actuation="Leadscrew"),T104,T105),0) -> 0.003536776513 | V103: Direct | AA103: 6 | AB103: WM06S | AD103: 27
C104: Idle torque at no load | D104: =Idle_TQ_tot -> 0.16 | E104: Nm and | F104: =RPM_DS -> 1,500 | G104: rpm at | H104: =Speed -> 0.25 | I104: m/s | L104: Support life | S104: Ball,lead,dual | T104: =Friction_Carr * Lead / 2 / 1000 / PI() / Screw_Belt_Efficency -> 0.003536776513 | V104: Inertia_motor_shaft | W104: =Inertia_system + Inertia_coupling + Inertia_motor -> 0.001506370155 | X104: kg m² | AA104: 6 | AB104: WM06Z | AD104: 28
L105: =IF(Actuation="Leadscrew","Leadscrew","BallScrew") -> BallScrew | M105: Support Bearing | N105: =IF(OR(C8="MF",C8="MG"),N110,N111) -> 376,049 | O105: km | P105: =N105*$N$89 -> 1,586 | Q105: yr | S105: Belt, Belt Moving | T105: =Friction_Carr * DS_dia / 2 / 1000 -> 0 | V105: Motor_shaft_top_speed | W105: =RPM_DS -> 1500 | X105: Rpm | AA105: 6 | AB105: WM08D | AD105: 29
C106: Drive torque at constant speed | D106: =TQ_DR_CS -> 0.526 | E106: Nm and | F106: =D106*RPM_DS/9.55 -> 83 | G106: W | L106: Belt | M106: Tension Station | N106: =(TS_dyn_C / ((2 * 1.1 * Belt_pretension + 1.6 * Fx_tot * fm_factor) / 2)) ^ 3 * Lead -> 0 | O106: km | P106: =N106*$N$89 -> 0 | Q106: yr | V106: Inertial_Motor_tot | W106: =Inertia_system + Inertia_coupling + Inertia_motor -> 0.001506370155 | X106: kg m² | AA106: 6 | AB106: WM08S | AD106: 30
C107: Drive torque during acc | D107: =TQ_DR_Accel -> 0.872 | E107: Nm and | F107: =D107*RPM_DS/9.55 -> 137 | G107: W | L107: Belt, Moving Profile | M107: Tension Station | N107: =(TS_dyn_C / ((SQRT(2)* 1.1 * Belt_pretension + SQRT(2)*0.8 * Fx_tot * fm_factor) / 2)) ^ 3 * Lead -> 0 | O107: km | P107: =N107*$N$89 -> 0 | Q107: yr | S107: Idle_TQ_tot | T107: =Idle_TQ_single + Idle_TQ_dual -> 0.1635367765 | V107: TQ_MT_CS | W107: =TQ_DR_CS / 0.99 -> 0.5311040784 | X107: Nm | AA107: 6 | AB107: WM08Z | AD107: 31
C108: System inertia | D108: =Inertia_system -> 0.001043370155 | E108: kg m² (excluding gear, motor etc) | S108: Carr_mass_tot | T108: =Carr_mass_individual * Carr_Qty -> 8 | AA108: 6 | AB108: WM12D | AD108: 32
L109: Support Bearing | S109: Inertia_load | T109: =(Mass + Carr_mass_tot * Unit_Qty) * (Speed * 60 / 2 / PI() / RPM_DS) ^ 2 -> 0.0005268701549 | AA109: 6 | AB109: WV06D | AD109: 33
B110: Gear / Motor | M110: MF or MG | N110: =(Screw_Support_Dyn_C / (0.62 * Max_Fr_driveshaft + 1.17 * Fx_tot * fm_factor)) ^ 3 * Lead -> 376,049 | O110: km | V110: Inertia_balance | W110: =Inertial_Motor_tot / Inertia_motor -> 5.02123385 | X110: kg m² | AA110: 6 | AB110: WV08D | AD110: 34
M111: all others | N111: =(Screw_Support_Dyn_C / (Fx_tot + Screw_Support_PL) / fm_factor) ^ 3 * Lead -> 6,992,919 | O111: km | S111: Inertia_system | T111: =IF(OR(Actuation="BallScrew",Actuation="Leadscrew"),T119,T116) -> 0.001043370155 | V111: TQ_MT_Accel | W111: =Inertia_motor_shaft * 3.14 * Motor_shaft_top_speed / 30 / Motor_shaft_acceleration_time + TQ_MT_CS -> 1.004104307 | X111: Nm | AA111: 6 | AB111: WV12D | AD111: 35
S112: Belt | V112: Motor_shaft_acceleration_time | W112: =Speed / Accel -> 0.5 | X112: s | AA112: 6 | AB112: 2DB08 | AD112: 36
C113: =IF($L$265=2,"Ratio"," ") ->  | D113: 4 | L113: RPM | S113: Inertia_Belt | T113: =(Belt_mass_tot * Unit_Qty) * (Speed * 60 / 2 / PI() / RPM_DS) ^ 2 -> 0 | V113: Inertia motor | W113: =IF(L269=1,0,IF(L269=2,R209,IF(L269=3,V180,IF(L269=4,P237,IF(L269=5,D129,0))))) -> 0.0003 | X113: kg m² | AA113: 6 | AB113: 2DB12 | AD113: 37
C114: =IF($L$265=2,"Effiency factor"," ") ->  | D114: 95% | L114: Wheel | M114: RPM_TR | N114: =Speed * 1000 / TR_dia / PI() * 60 ->  | O114: RPM | S114: Inertia_DS | T114: =PI() * DS_dia ^ 2 / 4 * DS_width * 2.7 / 10 ^ 6 / 2 * (DS_dia / 2 / 1000) ^ 2 * Unit_Qty -> 0 | AA114: 6 | AB114: 2DB16 | AD114: 38
C115: =IF($L$265=2,"Idle torque"," ") ->  | D115: 0.1 | E115: =IF($L$265=2,"Nm"," ") ->  | L115: Screw | M115: RPM_DS | N115: =Speed * 1000 / Lead * 60 -> 1500 | O115: RPM | S115: Inertia_TS | T115: =PI() * TS_dia ^ 2 / 4 * TS_width * 2.7 / 10 ^ 6 / 2 * (TS_dia / 2 / 1000) ^ 2 * Unit_Qty -> 0 | AA115: 6 | AB115: 2HB10 | AD115: 39
C116: =IF($L$265=2,"Inertia"," ") ->  | D116: 5e-05 | E116: =IF($L$265=2,"kg m²"," ") ->  | F116: =IF(AND(L265=2,Q26=2),"Total inertia for gears and parallel shaft"," ") ->  | M116: RPM_TS | S116: Inertia_system | T116: =Inertia_load + Inertia_Belt + Inertia_DS + Inertia_TS -> 0.0005268701549 | AA116: 6 | AB116: 2HB20 | AD116: 40
S117: Screw | AA117: 6 | AB117: 2RB12 | AD117: 41
L118: Screw critical speed | S118: Inertia_Screw_total | T118: =Inertia_Screw * SystemLength_mm / 1000 * Unit_Qty -> 0.0005165 | AA118: 6 | AB118: 2RB16 | AD118: 42
M119: L_Free | N119: =Stroke / 1000 / (Screw_Support_QTY + 1) -> 0.3333333333 | S119: Inertia_system | T119: =Inertia_load + Inertia_Screw_total -> 0.001043370155 | AA119: 6 | AB119: MS25L | AD119: 43
M120: Screw_Critical_Speed | N120: =96 * Root_Diameter / L_Free ^ 2 -> 20174.4 | AA120: 6 | AB120: MS33L | AD120: 44
C121: =IF(OR(L269=2,L269=3),"Nominal torque",IF(L269=4,"Holding torque"," ")) ->  | D121: =IF(L269=2,Q209,IF(L269=3,R180,IF(L269=4,O237," "))) ->  | E121: =IF(L269=2,"Nm",IF(L269=3,"Nm at max speed",IF(L269=4,"Nm"," "))) ->  | N121: =IF(N115> Screw_Critical_Speed,"fail Screw CS","") ->  | S121: Friction_TQ_no_load | T121: =Friction_Carr * Lead / 2 / 1000 / PI() / 0.9 -> 0.003536776513
C122: =IF($L$269=2,"Nominal speed",IF($L$269=3,"Peak torque"," ")) ->  | D122: =IF(L269=2,O209,IF(L269=3,S180," ")) ->  | E122: =IF($L$269=2,"rpm",IF($L$269=3,"Nm"," ")) ->  | S122: TQ_DR_CS | T122: =Idle_TQ_tot + Fx_Static * Lead / 2 / 1000 / Screw_Belt_Efficency / PI() -> 0.5257930376
C123: =IF($L$269=2,"Nominal power",IF($L$269=3,"Max speed"," ")) ->  | D123: =IF(L269=2,P209,IF(L269=3,O180," ")) ->  | E123: =IF($L$269=2,"kW",IF($L$269=3,"rpm"," ")) ->  | S123: TQ_DR_Accel | T123: =TQ_DR_CS + (Fx_Dyn + Belt_mass_tot * Accel) * Lead / 2 / 1000 / Screw_Belt_Efficency / PI() + Unit_Qty * Inertia_Screw * SystemLength_mm / 1000 * PI() * RPM_DS / 30 / Speed * Accel -> 0.8719686768
C124: =IF(L269=3,"Nominal power"," ") ->  | D124: =IF(L269=3,P180," ") ->  | E124: =IF(L269=3,"kW"," ") ->  | M124: options table
C125: =IF(L269=5,"Customer motor data:"," ") -> Customer motor data: | D125: Supplier, torque, power, rpm etc | N125: Lead | O125: carriage | P125: Carriage with description
L126: 2 | N126: =VLOOKUP($AB$134,$AB$135:$AH$183,$L126,FALSE) -> 05 | O126: =VLOOKUP($AB$187,$AB$188:$AH$239,$L126,FALSE) -> N | P126: =IFERROR(O126&" = "&VLOOKUP(O126,AN188:AO195,2,FALSE)," ") -> N = Single standard carriage
L127: 3 | N127: 10 | O127: Z | P127: =IFERROR(O127&" = "&VLOOKUP(O127,AN189:AO196,2,FALSE)," ") -> Z = Double standard carriages
L128: 4 | N128: 25 | P128: =IFERROR(O128&" = "&VLOOKUP(O128,AN190:AO197,2,FALSE)," ") -> 
C129: =IF(L269=5,"Motor inertia:"," ") -> Motor inertia: | D129: 0.0003 | E129: =IF(L269=5,"kg m²"," ") -> kg m² | L129: 5 | P129: =IFERROR(O129&" = "&VLOOKUP(O129,AN191:AO198,2,FALSE)," ") -> 
L130: 6 | P130: =IFERROR(O130&" = "&VLOOKUP(O130,AN192:AO199,2,FALSE)," ") -> 
B131: Required motor data | L131: 7 | P131: =IFERROR(O131&" = "&VLOOKUP(O131,AN195:AO200,2,FALSE)," ") -> 
C132: Torque at constant speed | D132: =TQ_MT_CS -> 0.53 | E132: Nm | AL132: Min LA
C133: Torque during acceleration | D133: =TQ_MT_Accel -> 1.00 | E133: Nm | AJ133: MLSH06Z135-Z290 | AK133: MLSH06Z135-Z | AL133: 290
C134: Power at constant speed | D134: =D132*D136/9550 -> 0.08 | E134: kW | AB134: =C9 -> MF10S | AD134: Available Screw leads (mm) | AJ134: MLSM06D10-Z320 | AK134: MLSM06D10-Z | AL134: 320
C135: Power during acceleration | D135: =D133*D136/9550 -> 0.16 | E135: kW | F135: =D136/D122*50 ->  | G135: =IF(L269=2,"Hz"," ") ->  | AB135: WM04S | AC135: 05 | AJ135: MLSM06D05-Z320 | AK135: MLSM06D05-Z | AL135: 320
C136: Max speed | D136: =Motor_shaft_top_speed -> 1,500 | E136: rpm | AB136: WM04D | AC136: 05 | AJ136: MLSM06D20-Z320 | AK136: MLSM06D20-Z | AL136: 320
C137: Inertia balance | D137: =Inertia_balance -> 5.0 | AB137: WM04N | AC137: 05 | AJ137: MLSM06D50-Z320 | AK137: MLSM06D50-Z | AL137: 320
AB138: WM06S | AC138: 05 | AD138: 20 | AE138: 50 | AJ138: MLSM08D05-Z400 | AK138: MLSM08D05-Z | AL138: 400
AB139: WM06D | AC139: 05 | AD139: 20 | AE139: 50 | AJ139: MLSM08D10-Z400 | AK139: MLSM08D10-Z | AL139: 400
AB140: WM06N | AC140: 05 | AJ140: MLSM08D20-Z400 | AK140: MLSM08D20-Z | AL140: 400
A141: Notes: | AB141: WM06X | AC141: 05 | AJ141: MLSM08D40-Z400 | AK141: MLSM08D40-Z | AL141: 400
AB142: WM08S | AC142: 05 | AD142: 10 | AE142: 20 | AF142: 50 | AJ142: MLSM08Z200-Z400 | AK142: MLSM08Z200-Z | AL142: 400
AB143: WM08D | AC143: 05 | AD143: 10 | AE143: 20 | AF143: 50 | AJ143: WH04Z100-Z135 | AK143: WH04Z100-Z | AL143: 135
AB144: WM08N | AC144: 000 | AJ144: WH05Z120-Z260 | AK144: WH05Z120-Z | AL144: 260
AB145: WM12N | AC145: 000 | AJ145: WH08Z200-Z300 | AK145: WH08Z200-Z | AL145: 300
AB146: WM12D | AC146: 05 | AD146: 10 | AE146: 20 | AF146: 40 | AJ146: WH12Z260-Z300 | AK146: WH12Z260-Z | AL146: 300
AB147: WV06D | AC147: 05 | AD147: 20 | AE147: 50 | AJ147: WM04S05-Z175 | AK147: WM04S05-Z | AL147: 175
AB148: WV06X | AC148: 05 | AJ148: WM04D05-M225 | AK148: WM04D05-M | AL148: 225
AB149: WV08D | AC149: 05 | AD149: 10 | AE149: 20 | AF149: 50 | AJ149: WM06S05-Y255 | AK149: WM06S05-Y | AL149: 255
AB150: WV12D | AC150: 05 | AD150: 10 | AE150: 20 | AF150: 40 | AJ150: WM06S20-Y255 | AK150: WM06S20-Y | AL150: 255
AB151: WH04Z | AC151: 100 | AJ151: WM06S50-Y255 | AK151: WM06S50-Y | AL151: 255
AB152: WH05Z | AC152: 120 | AJ152: WM06D05-Z335 | AK152: WM06D05-Z | AL152: 335
AB153: WH08Z | AC153: 200 | AJ153: WM06D20-Z335 | AK153: WM06D20-Z | AL153: 335
AB154: WH12Z | AC154: 260 | AJ154: WM06D50-Z335 | AK154: WM06D50-Z | AL154: 335
AB155: WHZ05Z | AC155: 120 | AJ155: WM08S05-Y280 | AK155: WM08S05-Y | AL155: 280
AB156: WHZ08Z | AC156: 200 | AJ156: WM08S10-Y280 | AK156: WM08S10-Y | AL156: 280
AB157: MLSM06D | AC157: 05 | AD157: 10 | AE157: 20 | AF157: 50 | AJ157: WM08S20-Y280 | AK157: WM08S20-Y | AL157: 280
AB158: MLSM08D | AC158: 05 | AD158: 10 | AE158: 20 | AF158: 40 | AJ158: WM08S50-Y280 | AK158: WM08S50-Y | AL158: 280
AB159: MLSM08Z | AC159: 200 | AJ159: WM08D05-Z360 | AK159: WM08D05-Z | AL159: 360
AB160: MLSH06Z | AC160: 135 | AJ160: WM08D10-Z360 | AK160: WM08D10-Z | AL160: 360
AB161: MG05B | AC161: 130 | AJ161: WM08D20-Z360 | AK161: WM08D20-Z | AL161: 360
AB162: MG06B | AC162: 105 | AJ162: WM08D50-Z360 | AK162: WM08D50-Z | AL162: 360
AB163: MG07B | AC163: 130 | AJ163: WM12D05-Z450 | AK163: WM12D05-Z | AL163: 450
AB164: MG10B | AC164: 176 | AJ164: WM12D10-Z450 | AK164: WM12D10-Z | AL164: 450
AB165: MF06B | AC165: 105 | AJ165: WM12D20-Z450 | AK165: WM12D20-Z | AL165: 450
AB166: MF07B | AC166: 130 | AJ166: WM12D40-Z450 | AK166: WM12D40-Z | AL166: 450
AB167: MF10B | AC167: 176 | AJ167: WM06Z120-Y255 | AK167: WM06Z120-Y | AL167: 255
AB168: MG06S | AC168: 05 | AD168: 10 | AE168: 20 | AJ168: WM08Z170-Y280 | AK168: WM08Z170-Y | AL168: 280
AB169: MG07S | AC169: 05 | AD169: 12 | AE169: 20 | AJ169: WM08Z170-Z360 | AK169: WM08Z170-Z | AL169: 360
AB170: MG10S | AC170: 05 | AD170: 10 | AE170: 25 | AJ170: WHZ05Z120-Z260 | AK170: WHZ05Z120-Z | AL170: 260
AB171: MF06S | AC171: 05 | AD171: 10 | AE171: 20 | AJ171: WHZ08Z200-Z300 | AK171: WHZ08Z200-Z | AL171: 300
AB172: MF07S | AC172: 05 | AD172: 12 | AE172: 20 | AJ172: MF06B105Z250 | AK172: MF06B105Z | AL172: 250
AB173: MF10S | AC173: 05 | AD173: 10 | AE173: 25 | AJ173: MF07B130Z250 | AK173: MF07B130Z | AL173: 250
AB174: 2HB10 | AC174: G0 | AD174: H0 | AJ174: MF10B176Z350 | AK174: MF10B176Z | AL174: 350
AB175: 2HB20 | AC175: L0 | AD175: M0 | AE175: N0 | AJ175: MG06B105Z200 | AK175: MG06B105Z | AL175: 200
AB176: 2RB12 | AC176: G0 | AD176: H0 | AJ176: MG07B130Z250 | AK176: MG07B130Z | AL176: 250
L177: 1 | M177: 2 | N177: 3 | O177: 4 | P177: 5 | Q177: 6 | R177: 7 | S177: 8 | T177: 9 | U177: 10 | V177: 11 | W177: 12 | X177: 13 | Y177: 14 | AB177: 2RB16 | AC177: I0 | AD177: J0 | AE177: K0 | AJ177: MG10B176Z350 | AK177: MG10B176Z | AL177: 350
AB178: 2DB08 | AC178: A0 | AD178: B0 | AE178: C0 | AF178: D0 | AJ178: MF06S05Z200_D | AK178: MF06S05Z_D | AL178: 200
M179: AKM servo motor | O179: nom rpm | P179: kW | Q179: nom Nm | R179: Nm at max rpm | S179: Peak Nm | T179: Inertia | U179: Brake inertia | W179: Nm/A | X179: mVmin | Y179: Ohm | AB179: 2DB12 | AC179: F0 | AD179: V0 | AE179: QJ | AJ179: MF06S05Z200_X | AK179: MF06S05Z_X | AL179: 200
M180: =VLOOKUP($L$277,$L$181:M204,M$177) -> AKM41C | N180: =VLOOKUP($L$277,$L$178:N201,N177) -> 0 | O180: =VLOOKUP($L$277,$L$178:O201,O177) -> 3000 | P180: =VLOOKUP($L$277,$L$178:P201,P177) -> 0.56 | Q180: =VLOOKUP($L$277,$L$178:Q201,Q177) -> 1.95 | R180: =VLOOKUP($L$277,$L$178:R201,R177) -> 1.77 | S180: =VLOOKUP($L$277,$L$178:S201,S177) -> 6.12 | T180: =VLOOKUP($L$277,$L$178:T201,T177) -> 8.1e-05 | U180: =VLOOKUP($L$277,$L$178:U201,U177) -> 6.8e-06 | V180: =VLOOKUP($L$277,$L$178:V201,V177) -> 8.78e-05 | W180: =VLOOKUP($L$277,$L$178:W201,W177) -> 1.34 | X180: =VLOOKUP($L$277,$L$178:X201,X177) -> 86.3 | Y180: =VLOOKUP($L$277,$L$178:Y201,Y177) -> 21.7 | AB180: 2DB16 | AC180: G0 | AD180: W0 | AE180: RJ | AF180: LJ | AG180: D0 | AJ180: MF06S05Z200_S | AK180: MF06S05Z_S | AL180: 200
L181: 1 | M181: AKM31C | O181: 5000 | P181: 0.52 | Q181: 1.15 | R181: 1 | S181: 3.88 | T181: 3.3e-05 | U181: 1.2e-06 | V181: =IF($O$269=2,T181+U181,T181) -> 3.42e-05 | W181: 0.85 | X181: 54.5 | Y181: 21.4 | AJ181: MF06S10Z200_D | AK181: MF06S10Z_D | AL181: 200
L182: 2 | M182: AKM32C | O182: 3000 | P182: 0.58 | Q182: 2 | R182: 1.86 | S182: 6.92 | T182: 5.9e-05 | U182: 1.2e-06 | V182: 6.02e-05 | W182: 1.4 | X182: 89.8 | Y182: 23 | AB182: WM06Z | AC182: 120 | AJ182: MF06S10Z200_S | AK182: MF06S10Z_S | AL182: 200
L183: 3 | M183: AKM33E | O183: 4500 | P183: 1.1 | Q183: 2.79 | R183: 2.34 | S183: 9.96 | T183: 0.000085 | U183: 1.2e-06 | V183: 8.62e-05 | W183: 1.1 | X183: 70.6 | Y183: 8.36 | AB183: WM08Z | AC183: 170 | AJ183: MF06S10Z200_X | AK183: MF06S10Z_X | AL183: 200
L184: 4 | M184: AKM41C | O184: 3000 | P184: 0.56 | Q184: 1.95 | R184: 1.77 | S184: 6.12 | T184: 8.1e-05 | U184: 6.8e-06 | V184: 8.78e-05 | W184: 1.34 | X184: 86.3 | Y184: 21.7 | AJ184: MF06S20Z200_D | AK184: MF06S20Z_D | AL184: 200
L185: 5 | M185: AKM42E | O185: 3500 | P185: 1.03 | Q185: 3.42 | R185: 2.81 | S185: 11.3 | T185: 0.00015 | U185: 6.8e-06 | V185: 0.0001568 | W185: 1.26 | X185: 80.9 | Y185: 7.22 | AJ185: MF06S20Z200_S | AK185: MF06S20Z_S | AL185: 200
L186: 6 | M186: AKM43E | O186: 2500 | P186: 1.03 | Q186: 4.7 | R186: 3.92 | S186: 15.9 | T186: 0.00021 | U186: 6.8e-06 | V186: 0.0002168 | W186: 1.72 | X186: 111 | Y186: 8.04 | AF186: Used to be "M" carriage | AJ186: MF06S20Z200_X | AK186: MF06S20Z_X | AL186: 200
L187: 7 | M187: AKM44G | O187: 4000 | P187: 1.57 | Q187: 5.88 | R187: 3.76 | S187: 20.2 | T187: 0.00027 | U187: 6.8e-06 | V187: 0.0002768 | W187: 1.19 | X187: 76.6 | Y187: 2.65 | AB187: =AB134 -> MF10S | AC187: Type of Carriage | AJ187: MF07S20Z250_D | AK187: MF07S20Z_D | AL187: 250 | AN187: Carriages letter | AO187: description
L188: 8 | M188: AKM51E | O188: 2500 | P188: 1.04 | Q188: 4.7 | R188: 3.98 | S188: 11.6 | T188: 0.00034 | U188: 1.7e-05 | V188: 0.000357 | W188: 1.72 | X188: 110 | Y188: 8.47 | AB188: WM04S | AC188: N | AD188: Z | AJ188: MF07S20Z250_S | AK188: MF07S20Z_S | AL188: 250 | AN188: N | AO188: Single standard carriage
L189: 9 | M189: AKM52G | O189: 2500 | P189: 1.85 | Q189: 8.43 | R189: 7.06 | S189: 21.5 | T189: 0.00062 | U189: 1.7e-05 | V189: 0.000637 | W189: 1.79 | X189: 115 | Y189: 3.47 | AB189: WM04D | AC189: L | AD189: M | AJ189: MF07S20Z250_X | AK189: MF07S20Z_X | AL189: 250 | AN189: S | AO189: Single short carriage
L190: 10 | M190: AKM53K | O190: 4000 | P190: 3.2 | Q190: 11.6 | R190: 7.65 | S190: 30.1 | T190: 0.00091 | U190: 1.7e-05 | V190: 0.000927 | W190: 1.24 | X190: 79.8 | Y190: 1 | AB190: WM04N | AC190: N | AD190: L | AE190: Z | AJ190: MF07S05Z250_X | AK190: MF07S05Z_X | AL190: 250 | AN190: L | AO190: Single long carriage
L191: 11 | M191: AKM54K | O191: 3500 | P191: 3.68 | Q191: 14.4 | R191: 10.05 | S191: 38.4 | T191: 0.0012 | U191: 1.7e-05 | V191: 0.001217 | W191: 1.5 | X191: 96.6 | Y191: 1.02 | AB191: WM06S | AC191: S | AD191: Y | AJ191: MF07S05Z250_S | AK191: MF07S05Z_S | AL191: 250 | AN191: Z | AO191: Double standard carriages
L192: 12 | M192: AKM62K | O192: 3500 | P192: 3.3 | Q192: 12.2 | R192: 9 | S192: 30.1 | T192: 0.0017 | U192: 6.1e-05 | V192: 0.001761 | W192: 1.28 | X192: 82.1 | Y192: 1.05 | AB192: WM06D | AC192: N | AD192: L | AE192: Z | AJ192: MF07S05Z250_D | AK192: MF07S05Z_D | AL192: 250 | AN192: Y | AO192: Double short carriages
L193: 13 | M193: AKM63K | O193: 3000 | P193: 4.05 | Q193: 16.8 | R193: 12.9 | S193: 42.6 | T193: 0.0024 | U193: 6.1e-05 | V193: 0.002461 | W193: 1.71 | X193: 110 | Y193: 1.09 | AB193: WM06N | AC193: N | AD193: S | AE193: L | AF193: Z | AG193: Y | AJ193: MF07S12Z250_D | AK193: MF07S12Z_D | AL193: 250 | AN193: M | AO193: Double Long carriages
L194: 14 | M194: AKM64L | O194: 3000 | P194: 4.9 | Q194: 21 | R194: 15.6 | S194: 54.1 | T194: 0.0032 | U194: 6.1e-05 | V194: 0.003261 | W194: 1.66 | X194: 107 | Y194: 0.71 | AB194: WM06X | AC194: N | AD194: S | AE194: L | AJ194: MF07S12Z250_S | AK194: MF07S12Z_S | AL194: 250
L195: 15 | M195: AKM65M | O195: 2500 | P195: 5.03 | Q195: 25 | R195: 19.2 | S195: 65.2 | T195: 0.004 | U195: 6.1e-05 | V195: 0.004061 | W195: 1.85 | X195: 119 | Y195: 0.68 | AB195: WM08S | AC195: S | AD195: Y | AJ195: MF07S12Z250_X | AK195: MF07S12Z_X | AL195: 250
L196: 16 | AB196: WM08D | AC196: N | AD196: L | AE196: Z | AJ196: MF10S10Z350_D | AK196: MF10S10Z_D | AL196: 350
L197: 17 | AB197: WM08N | AC197: N | AD197: S | AE197: L | AF197: Z | AG197: Y | AJ197: MF10S10Z350_S | AK197: MF10S10Z_S | AL197: 350
L198: 18 | AB198: WM12N | AC198: N | AD198: L | AE198: Z | AJ198: MF10S10Z350_X | AK198: MF10S10Z_X | AL198: 350 | AN198: Screw Support | AO198: description
L199: 19 | AB199: WM12D | AC199: N | AD199: L | AE199: Z | AJ199: MF10S05Z350_X | AK199: MF10S05Z_X | AL199: 350 | AN199: X - No screw support
L200: 20 | AB200: WV06D | AC200: N | AJ200: MF10S05Z350_S | AK200: MF10S05Z_S | AL200: 350 | AN200: S - Single Screw support
L201: 21 | AB201: WV06X | AC201: N | AJ201: MF10S05Z350_D | AK201: MF10S05Z_D | AL201: 350 | AN201: D - Double Screw Support
L202: 22 | AB202: WV08D | AC202: N | AJ202: MF10S25Z350_D | AK202: MF10S25Z_D | AL202: 350
L203: 23 | AB203: WV12D | AC203: N | AJ203: MF10S25Z350_X | AK203: MF10S25Z_X | AL203: 350
L204: 24 | AB204: WM06Z | AC204: S | AD204: Y | AJ204: MF10S25Z350_S | AK204: MF10S25Z_S | AL204: 350
... 91 more rows

Sheet Information (hidden)
A1: Glossary
A3: Stroke | B3: This is the max theoretical stroke of the unit.
B4: Please note that it is important to stop the
B5: movement before reaching end of stroke.
A7: Speed | B7: This is the max speed used during the stroke
A9: Acceleration | B9: Rate of speed change going from a lower to a higher speed
B10: Typically meassured in m/s2
A12: Force / Mass | B12: Example: when you push a box on the floor, you are using a force.
B13: Mass is what you normally call "weight"
B14: The friction between the rolls and the floor is the force at constant speed
B15: When you accelarate the box you will need a bigger force but this will
B16: this software take care of.
F20: Force
G22: Force
B26: If you instead lift the box, you need a force
B27: doing that but don't forget that you are also
B28: moving a mass.
B29: Both force and mass must be inserted
B30: in the calculation.
B32: Example: When you push a car, the mass is about 1000 kg but
C33: the force is perhaps just 200 N.
C34: When you lift the same car, the mass is still 1000 kg but the force is about 10 000 N
C36: Compressing a spring requires a force but the mass is close to zero.
C38: Similar examples are punching holes, extruding, pumping and locking clamps.
A42: load factor fm | B42: Very often the force to the unit is not the same all the time during the stroke.
B43: If the load is lower during some part, this is positive for the life time of ball screw
B44: and ball bearings. The requested max motor power will still be the same.
C46: Guide for selection of fm factor
C47: fm = 1,0 ;The same load in both directions
C48: fm = 0,89 ;Load forward, 75% load back
C49: fm = 0,81 ;Load forward, 50% load back
C50: fm = 0,8 ;Load forward, no load back
C51: fm = 0,63 ;Load 50% of the stroke forward and no load back
B53: This can be calculated from formulas normally found in ball bearing catalogues.
A56: Please note:
A57: Fx, Fy, Fz, Mx, My and Mz are external forces and torques and are not connected with or caused by "Total mass to move"
A58: Forces and torques towards the carriage caused by the weight of mass and accelaration of the mass are
A59: taken care of by the calculations. The orientation of the linear unit and the location of the mass are important for correct answer.
A61: If the mass is carried by external guides or by the carriage/carriages, select correct No or Yes
A64: Calculations at a unit with two carraiges, two units with each one carriage or two units with each two carriages are made as if the carriages are connected with a solid block.
F66: connecing block
A68: One unit | L68: Two units in parallel with each one carriage
J74: Two units in parallel with each two carriages

Sheet MasterData (hidden)
A1: Slide_Type_Size | B1: Actuation | C1: Guide_Type | D1: Stroke_Max_mm | E1: Carr_mass_individual | F1: Mass_Screw_Support | G1: zero_Stroke_Mass | H1: Mass_per_100mm | I1: Lx_carr | J1: Ly_carr | K1: Lz_carr | L1: Inertia_coupling | M1: Screw_Belt_Efficency | N1: Idle_SP_1 | O1: Idle_SP_2 | P1: Idle_SP_3 | Q1: idle_T1 | R1: idle_T2 | S1: idle_T3 | T1: Friction_Carr | U1: Friction_factor | V1: Fx_max_speed(0) | W1: Fx_max_speed(1) | X1: Fx_max_speed(2) | Y1: Fx_max_B(0) | Z1: Fx_max_B(1) | AA1: Fx_max_B(2) | AB1: Fx_max_M(0) | AC1: Fx_max_M(1) | AD1: Fx_max_M(2) | AE1: Fy_max_individual | AF1: Fz_max_individual | AG1: Mx_max_individual | AH1: My_max_individual | AI1: Mz_max_individual | AJ1: My_max_z_fact | AK1: Mz_max_z_fact | AL1: Speed_max | AM1: Accel_max | AN1: Carr_Qty | AO1: Carr_dyn_C_each | AP1: PL_Carr | AQ1: TR_dyn_C | AR1: TR_dia | AS1: Pl_Wheel | AT1: x_R_great_A | AU1: x_R_less_A | AV1: y_R_great_A | AW1: y_R_less_A | AX1: Belt_pretension | AY1: Belt_mass | AZ1: DS_dyn_C | BA1: TS_dyn_C | BB1: DS_dia | BC1: TS_dia | BD1: DS_width(mm) | BE1: TS_width(mm) | BF1: Offset_Endcaps | BG1: Stroke_Offset(0) | BH1: Stroke_Offset(1) | BI1: Stroke_Offset(2) | BJ1: Stroke_Offset(3) | BK1: Stroke_Offset(4) | BL1: Stroke_Offset(5) | BM1: Stroke_Offset(6) | BN1: Stroke_Offset(7) | BO1: Stroke_Offset(8) | BP1: Stroke_Offset(9) | BQ1: Stroke_Offset(10) | BR1: Stroke_Offset(11) | BS1: Stroke_Offset(12) | BT1: Stroke_Offset(13) | BU1: Stroke_Offset(14) | BV1: Stroke_Offset(15) | BW1: Stroke_Offset(16) | BX1: Stroke_Offset(17) | BY1: Stroke_Offset(18) | BZ1: Stroke_Offset(19) | CA1: Stroke_Offset_at_Stroke(0) | CB1: Stroke_Offset_at_Stroke(1) | CC1: Stroke_Offset_at_Stroke(2) | CD1: Stroke_Offset_at_Stroke(3) | CE1: Stroke_Offset_at_Stroke(4) | CF1: Stroke_Offset_at_Stroke(5) | CG1: Stroke_Offset_at_Stroke(6) | CH1: Stroke_Offset_at_Stroke(7) | CI1: Stroke_Offset_at_Stroke(8) | CJ1: Stroke_Offset_at_Stroke(9) | CK1: Stroke_Offset_at_Stroke(10) | CL1: Stroke_Offset_at_Stroke(11) | CM1: Stroke_Offset_at_Stroke(12) | CN1: Stroke_Offset_at_Stroke(13) | CO1: Stroke_Offset_at_Stroke(14) | CP1: Stroke_Offset_at_Stroke(15) | CQ1: Stroke_Offset_at_Stroke(16) | CR1: Stroke_Offset_at_Stroke(17) | CS1: Stroke_Offset_at_Stroke(18) | CT1: Stroke_Offset_at_Stroke(19) | CU1: Lead,Advancein1rev | CV1: Screw_Dyn_C | CW1: Inertia_Screw | CX1: Screw_PL | CY1: Screw_Support_PL | CZ1: Screw_Support_Dyn_C | DA1: Max_Fr_driveshaft | DB1: Nom_TQ_Mx | DC1: BallScrewRootDiameter | DD1: Intermediate_Screw_Supports | DE1: Debug1 | DF1: Debug2 | DG1: BaseSystemId | DH1: Repeatability | DI1: Belt Type | DJ1: Profile size (width × height) | DK1: Screw Diameter | DL1: Profile_Length-Smax | DM1: Maximum Possible OAL | DN1: K_factor | DO1: Weak_side_faces
A2: =IFERROR(PIMExport!#REF!*1,IFERROR(SUBSTITUTE(PIMExport!#REF!,".",",")*1,PIMExport!#REF!)) ->  | B2: =IFERROR(PIMExport!#REF!*1,IFERROR(SUBSTITUTE(PIMExport!#REF!,".",",")*1,PIMExport!#REF!)) ->  | C2: =IFERROR(PIMExport!#REF!*1,IFERROR(SUBSTITUTE(PIMExport!#REF!,".",",")*1,PIMExport!#REF!)) ->  | D2: =IFERROR(PIMExport!#REF!*1,IFERROR(SUBSTITUTE(PIMExport!#REF!,".",",")*1,PIMExport!#REF!)) ->  | E2: =IFERROR(PIMExport!#REF!*1,IFERROR(SUBSTITUTE(PIMExport!#REF!,".",",")*1,PIMExport!#REF!)) ->  | F2: =IFERROR(PIMExport!#REF!*1,IFERROR(SUBSTITUTE(PIMExport!#REF!,".",",")*1,PIMExport!#REF!)) ->  | G2: =IFERROR(PIMExport!#REF!*1,IFERROR(SUBSTITUTE(PIMExport!#REF!,".",",")*1,PIMExport!#REF!)) ->  | H2: =IFERROR(PIMExport!#REF!*1,IFERROR(SUBSTITUTE(PIMExport!#REF!,".",",")*1,PIMExport!#REF!)) ->  | I2: =IFERROR(PIMExport!#REF!*1,IFERROR(SUBSTITUTE(PIMExport!#REF!,".",",")*1,PIMExport!#REF!)) ->  | J2: =IFERROR(PIMExport!#REF!*1,IFERROR(SUBSTITUTE(PIMExport!#REF!,".",",")*1,PIMExport!#REF!)) ->  | K2: =IFERROR(PIMExport!#REF!*1,IFERROR(SUBSTITUTE(PIMExport!#REF!,".",",")*1,PIMExport!#REF!)) ->  | L2: =IFERROR(PIMExport!#REF!*1,IFERROR(SUBSTITUTE(PIMExport!#REF!,".",",")*1,PIMExport!#REF!)) ->  | M2: =IFERROR(PIMExport!#REF!*1,IFERROR(SUBSTITUTE(PIMExport!#REF!,".",",")*1,PIMExport!#REF!)) ->  | N2: =IFERROR(PIMExport!#REF!*1,IFERROR(SUBSTITUTE(PIMExport!#REF!,".",",")*1,PIMExport!#REF!)) ->  | O2: =IFERROR(PIMExport!#REF!*1,IFERROR(SUBSTITUTE(PIMExport!#REF!,".",",")*1,PIMExport!#REF!)) ->  | P2: =IFERROR(PIMExport!#REF!*1,IFERROR(SUBSTITUTE(PIMExport!#REF!,".",",")*1,PIMExport!#REF!)) ->  | Q2: =IFERROR(PIMExport!#REF!*1,IFERROR(SUBSTITUTE(PIMExport!#REF!,".",",")*1,PIMExport!#REF!)) ->  | R2: =IFERROR(PIMExport!#REF!*1,IFERROR(SUBSTITUTE(PIMExport!#REF!,".",",")*1,PIMExport!#REF!)) ->  | S2: =IFERROR(PIMExport!#REF!*1,IFERROR(SUBSTITUTE(PIMExport!#REF!,".",",")*1,PIMExport!#REF!)) ->  | T2: =IFERROR(PIMExport!#REF!*1,IFERROR(SUBSTITUTE(PIMExport!#REF!,".",",")*1,PIMExport!#REF!)) ->  | U2: =IFERROR(PIMExport!#REF!*1,IFERROR(SUBSTITUTE(PIMExport!#REF!,".",",")*1,PIMExport!#REF!)) ->  | V2: =IFERROR(PIMExport!#REF!*1,IFERROR(SUBSTITUTE(PIMExport!#REF!,".",",")*1,PIMExport!#REF!)) ->  | W2: =IFERROR(PIMExport!#REF!*1,IFERROR(SUBSTITUTE(PIMExport!#REF!,".",",")*1,PIMExport!#REF!)) ->  | X2: =IFERROR(PIMExport!#REF!*1,IFERROR(SUBSTITUTE(PIMExport!#REF!,".",",")*1,PIMExport!#REF!)) ->  | Y2: =IFERROR(PIMExport!#REF!*1,IFERROR(SUBSTITUTE(PIMExport!#REF!,".",",")*1,PIMExport!#REF!)) ->  | Z2: =IFERROR(PIMExport!#REF!*1,IFERROR(SUBSTITUTE(PIMExport!#REF!,".",",")*1,PIMExport!#REF!)) ->  | AA2: =IFERROR(PIMExport!#REF!*1,IFERROR(SUBSTITUTE(PIMExport!#REF!,".",",")*1,PIMExport!#REF!)) ->  | AB2: =IFERROR(PIMExport!#REF!*1,IFERROR(SUBSTITUTE(PIMExport!#REF!,".",",")*1,PIMExport!#REF!)) ->  | AC2: =IFERROR(PIMExport!#REF!*1,IFERROR(SUBSTITUTE(PIMExport!#REF!,".",",")*1,PIMExport!#REF!)) ->  | AD2: =IFERROR(PIMExport!#REF!*1,IFERROR(SUBSTITUTE(PIMExport!#REF!,".",",")*1,PIMExport!#REF!)) ->  | AE2: =IFERROR(PIMExport!#REF!*1,IFERROR(SUBSTITUTE(PIMExport!#REF!,".",",")*1,PIMExport!#REF!)) ->  | AF2: =IFERROR(PIMExport!#REF!*1,IFERROR(SUBSTITUTE(PIMExport!#REF!,".",",")*1,PIMExport!#REF!)) ->  | AG2: =IFERROR(PIMExport!#REF!*1,IFERROR(SUBSTITUTE(PIMExport!#REF!,".",",")*1,PIMExport!#REF!)) ->  | AH2: =IFERROR(PIMExport!#REF!*1,IFERROR(SUBSTITUTE(PIMExport!#REF!,".",",")*1,PIMExport!#REF!)) ->  | AI2: =IFERROR(PIMExport!#REF!*1,IFERROR(SUBSTITUTE(PIMExport!#REF!,".",",")*1,PIMExport!#REF!)) ->  | AJ2: =IFERROR(PIMExport!#REF!*1,IFERROR(SUBSTITUTE(PIMExport!#REF!,".",",")*1,PIMExport!#REF!)) ->  | AK2: =IFERROR(PIMExport!#REF!*1,IFERROR(SUBSTITUTE(PIMExport!#REF!,".",",")*1,PIMExport!#REF!)) ->  | AL2: =IFERROR(PIMExport!#REF!*1,IFERROR(SUBSTITUTE(PIMExport!#REF!,".",",")*1,PIMExport!#REF!)) ->  | AM2: =IFERROR(PIMExport!#REF!*1,IFERROR(SUBSTITUTE(PIMExport!#REF!,".",",")*1,PIMExport!#REF!)) ->  | AN2: =IFERROR(PIMExport!#REF!*1,IFERROR(SUBSTITUTE(PIMExport!#REF!,".",",")*1,PIMExport!#REF!)) ->  | AO2: =IFERROR(PIMExport!#REF!*1,IFERROR(SUBSTITUTE(PIMExport!#REF!,".",",")*1,PIMExport!#REF!)) ->  | AP2: =IFERROR(PIMExport!#REF!*1,IFERROR(SUBSTITUTE(PIMExport!#REF!,".",",")*1,PIMExport!#REF!)) ->  | AQ2: =IFERROR(PIMExport!#REF!*1,IFERROR(SUBSTITUTE(PIMExport!#REF!,".",",")*1,PIMExport!#REF!)) ->  | AR2: =IFERROR(PIMExport!#REF!*1,IFERROR(SUBSTITUTE(PIMExport!#REF!,".",",")*1,PIMExport!#REF!)) ->  | AS2: =IFERROR(PIMExport!#REF!*1,IFERROR(SUBSTITUTE(PIMExport!#REF!,".",",")*1,PIMExport!#REF!)) ->  | AT2: =IFERROR(PIMExport!#REF!*1,IFERROR(SUBSTITUTE(PIMExport!#REF!,".",",")*1,PIMExport!#REF!)) ->  | AU2: =IFERROR(PIMExport!#REF!*1,IFERROR(SUBSTITUTE(PIMExport!#REF!,".",",")*1,PIMExport!#REF!)) ->  | AV2: =IFERROR(PIMExport!#REF!*1,IFERROR(SUBSTITUTE(PIMExport!#REF!,".",",")*1,PIMExport!#REF!)) ->  | AW2: =IFERROR(PIMExport!#REF!*1,IFERROR(SUBSTITUTE(PIMExport!#REF!,".",",")*1,PIMExport!#REF!)) ->  | AX2: =IFERROR(PIMExport!#REF!*1,IFERROR(SUBSTITUTE(PIMExport!#REF!,".",",")*1,PIMExport!#REF!)) ->  | AY2: =IFERROR(PIMExport!#REF!*1,IFERROR(SUBSTITUTE(PIMExport!#REF!,".",",")*1,PIMExport!#REF!)) ->  | AZ2: =IFERROR(PIMExport!#REF!*1,IFERROR(SUBSTITUTE(PIMExport!#REF!,".",",")*1,PIMExport!#REF!)) ->  | BA2: =IFERROR(PIMExport!#REF!*1,IFERROR(SUBSTITUTE(PIMExport!#REF!,".",",")*1,PIMExport!#REF!)) ->  | BB2: =IFERROR(PIMExport!#REF!*1,IFERROR(SUBSTITUTE(PIMExport!#REF!,".",",")*1,PIMExport!#REF!)) ->  | BC2: =IFERROR(PIMExport!#REF!*1,IFERROR(SUBSTITUTE(PIMExport!#REF!,".",",")*1,PIMExport!#REF!)) ->  | BD2: =IFERROR(PIMExport!#REF!*1,IFERROR(SUBSTITUTE(PIMExport!#REF!,".",",")*1,PIMExport!#REF!)) ->  | BE2: =IFERROR(PIMExport!#REF!*1,IFERROR(SUBSTITUTE(PIMExport!#REF!,".",",")*1,PIMExport!#REF!)) ->  | BF2: =IFERROR(PIMExport!#REF!*1,IFERROR(SUBSTITUTE(PIMExport!#REF!,".",",")*1,PIMExport!#REF!)) ->  | BG2: =IFERROR(PIMExport!#REF!*1,IFERROR(SUBSTITUTE(PIMExport!#REF!,".",",")*1,PIMExport!#REF!)) ->  | BH2: =IFERROR(PIMExport!#REF!*1,IFERROR(SUBSTITUTE(PIMExport!#REF!,".",",")*1,PIMExport!#REF!)) ->  | BI2: =IFERROR(PIMExport!#REF!*1,IFERROR(SUBSTITUTE(PIMExport!#REF!,".",",")*1,PIMExport!#REF!)) ->  | BJ2: =IFERROR(PIMExport!#REF!*1,IFERROR(SUBSTITUTE(PIMExport!#REF!,".",",")*1,PIMExport!#REF!)) ->  | BK2: =IFERROR(PIMExport!#REF!*1,IFERROR(SUBSTITUTE(PIMExport!#REF!,".",",")*1,PIMExport!#REF!)) ->  | BL2: =IFERROR(PIMExport!#REF!*1,IFERROR(SUBSTITUTE(PIMExport!#REF!,".",",")*1,PIMExport!#REF!)) ->  | BM2: =IFERROR(PIMExport!#REF!*1,IFERROR(SUBSTITUTE(PIMExport!#REF!,".",",")*1,PIMExport!#REF!)) ->  | BN2: =IFERROR(PIMExport!#REF!*1,IFERROR(SUBSTITUTE(PIMExport!#REF!,".",",")*1,PIMExport!#REF!)) ->  | BO2: =IFERROR(PIMExport!#REF!*1,IFERROR(SUBSTITUTE(PIMExport!#REF!,".",",")*1,PIMExport!#REF!)) ->  | BP2: =IFERROR(PIMExport!#REF!*1,IFERROR(SUBSTITUTE(PIMExport!#REF!,".",",")*1,PIMExport!#REF!)) ->  | BQ2: =IFERROR(PIMExport!#REF!*1,IFERROR(SUBSTITUTE(PIMExport!#REF!,".",",")*1,PIMExport!#REF!)) ->  | BR2: =IFERROR(PIMExport!#REF!*1,IFERROR(SUBSTITUTE(PIMExport!#REF!,".",",")*1,PIMExport!#REF!)) ->  | BS2: =IFERROR(PIMExport!#REF!*1,IFERROR(SUBSTITUTE(PIMExport!#REF!,".",",")*1,PIMExport!#REF!)) ->  | BT2: =IFERROR(PIMExport!#REF!*1,IFERROR(SUBSTITUTE(PIMExport!#REF!,".",",")*1,PIMExport!#REF!)) ->  | BU2: =IFERROR(PIMExport!#REF!*1,IFERROR(SUBSTITUTE(PIMExport!#REF!,".",",")*1,PIMExport!#REF!)) ->  | BV2: =IFERROR(PIMExport!#REF!*1,IFERROR(SUBSTITUTE(PIMExport!#REF!,".",",")*1,PIMExport!#REF!)) ->  | BW2: =IFERROR(PIMExport!#REF!*1,IFERROR(SUBSTITUTE(PIMExport!#REF!,".",",")*1,PIMExport!#REF!)) ->  | BX2: =IFERROR(PIMExport!#REF!*1,IFERROR(SUBSTITUTE(PIMExport!#REF!,".",",")*1,PIMExport!#REF!)) ->  | BY2: =IFERROR(PIMExport!#REF!*1,IFERROR(SUBSTITUTE(PIMExport!#REF!,".",",")*1,PIMExport!#REF!)) ->  | BZ2: =IFERROR(PIMExport!#REF!*1,IFERROR(SUBSTITUTE(PIMExport!#REF!,".",",")*1,PIMExport!#REF!)) ->  | CA2: =IFERROR(PIMExport!#REF!*1,IFERROR(SUBSTITUTE(PIMExport!#REF!,".",",")*1,PIMExport!#REF!)) ->  | CB2: =IFERROR(PIMExport!#REF!*1,IFERROR(SUBSTITUTE(PIMExport!#REF!,".",",")*1,PIMExport!#REF!)) ->  | CC2: =IFERROR(PIMExport!#REF!*1,IFERROR(SUBSTITUTE(PIMExport!#REF!,".",",")*1,PIMExport!#REF!)) ->  | CD2: =IFERROR(PIMExport!#REF!*1,IFERROR(SUBSTITUTE(PIMExport!#REF!,".",",")*1,PIMExport!#REF!)) ->  | CE2: =IFERROR(PIMExport!#REF!*1,IFERROR(SUBSTITUTE(PIMExport!#REF!,".",",")*1,PIMExport!#REF!)) ->  | CF2: =IFERROR(PIMExport!#REF!*1,IFERROR(SUBSTITUTE(PIMExport!#REF!,".",",")*1,PIMExport!#REF!)) ->  | CG2: =IFERROR(PIMExport!#REF!*1,IFERROR(SUBSTITUTE(PIMExport!#REF!,".",",")*1,PIMExport!#REF!)) ->  | CH2: =IFERROR(PIMExport!#REF!*1,IFERROR(SUBSTITUTE(PIMExport!#REF!,".",",")*1,PIMExport!#REF!)) ->  | CI2: =IFERROR(PIMExport!#REF!*1,IFERROR(SUBSTITUTE(PIMExport!#REF!,".",",")*1,PIMExport!#REF!)) ->  | CJ2: =IFERROR(PIMExport!#REF!*1,IFERROR(SUBSTITUTE(PIMExport!#REF!,".",",")*1,PIMExport!#REF!)) ->  | CK2: =IFERROR(PIMExport!#REF!*1,IFERROR(SUBSTITUTE(PIMExport!#REF!,".",",")*1,PIMExport!#REF!)) ->  | CL2: =IFERROR(PIMExport!#REF!*1,IFERROR(SUBSTITUTE(PIMExport!#REF!,".",",")*1,PIMExport!#REF!)) ->  | CM2: =IFERROR(PIMExport!#REF!*1,IFERROR(SUBSTITUTE(PIMExport!#REF!,".",",")*1,PIMExport!#REF!)) ->  | CN2: =IFERROR(PIMExport!#REF!*1,IFERROR(SUBSTITUTE(PIMExport!#REF!,".",",")*1,PIMExport!#REF!)) ->  | CO2: =IFERROR(PIMExport!#REF!*1,IFERROR(SUBSTITUTE(PIMExport!#REF!,".",",")*1,PIMExport!#REF!)) ->  | CP2: =IFERROR(PIMExport!#REF!*1,IFERROR(SUBSTITUTE(PIMExport!#REF!,".",",")*1,PIMExport!#REF!)) ->  | CQ2: =IFERROR(PIMExport!#REF!*1,IFERROR(SUBSTITUTE(PIMExport!#REF!,".",",")*1,PIMExport!#REF!)) ->  | CR2: =IFERROR(PIMExport!#REF!*1,IFERROR(SUBSTITUTE(PIMExport!#REF!,".",",")*1,PIMExport!#REF!)) ->  | CS2: =IFERROR(PIMExport!#REF!*1,IFERROR(SUBSTITUTE(PIMExport!#REF!,".",",")*1,PIMExport!#REF!)) ->  | CT2: =IFERROR(PIMExport!#REF!*1,IFERROR(SUBSTITUTE(PIMExport!#REF!,".",",")*1,PIMExport!#REF!)) ->  | CU2: =IFERROR(PIMExport!#REF!*1,IFERROR(SUBSTITUTE(PIMExport!#REF!,".",",")*1,PIMExport!#REF!)) ->  | CV2: =IFERROR(PIMExport!#REF!*1,IFERROR(SUBSTITUTE(PIMExport!#REF!,".",",")*1,PIMExport!#REF!)) ->  | CW2: =IFERROR(PIMExport!#REF!*1,IFERROR(SUBSTITUTE(PIMExport!#REF!,".",",")*1,PIMExport!#REF!)) ->  | CX2: =IFERROR(PIMExport!#REF!*1,IFERROR(SUBSTITUTE(PIMExport!#REF!,".",",")*1,PIMExport!#REF!)) ->  | CY2: =IFERROR(PIMExport!#REF!*1,IFERROR(SUBSTITUTE(PIMExport!#REF!,".",",")*1,PIMExport!#REF!)) ->  | CZ2: =IFERROR(PIMExport!#REF!*1,IFERROR(SUBSTITUTE(PIMExport!#REF!,".",",")*1,PIMExport!#REF!)) ->  | DA2: =IFERROR(PIMExport!#REF!*1,IFERROR(SUBSTITUTE(PIMExport!#REF!,".",",")*1,PIMExport!#REF!)) ->  | DB2: =IFERROR(PIMExport!#REF!*1,IFERROR(SUBSTITUTE(PIMExport!#REF!,".",",")*1,PIMExport!#REF!)) ->  | DC2: =IFERROR(PIMExport!#REF!*1,IFERROR(SUBSTITUTE(PIMExport!#REF!,".",",")*1,PIMExport!#REF!)) ->  | DD2: =IFERROR(PIMExport!#REF!*1,IFERROR(SUBSTITUTE(PIMExport!#REF!,".",",")*1,PIMExport!#REF!)) ->  | DE2: =IFERROR(PIMExport!#REF!*1,IFERROR(SUBSTITUTE(PIMExport!#REF!,".",",")*1,PIMExport!#REF!)) ->  | DF2: =IFERROR(PIMExport!#REF!*1,IFERROR(SUBSTITUTE(PIMExport!#REF!,".",",")*1,PIMExport!#REF!)) ->  | DG2: =IFERROR(PIMExport!#REF!*1,IFERROR(SUBSTITUTE(PIMExport!#REF!,".",",")*1,PIMExport!#REF!)) ->  | DH2: =IFERROR(PIMExport!#REF!*1,IFERROR(SUBSTITUTE(PIMExport!#REF!,".",",")*1,PIMExport!#REF!)) ->  | DI2: =IFERROR(PIMExport!#REF!*1,IFERROR(SUBSTITUTE(PIMExport!#REF!,".",",")*1,PIMExport!#REF!)) ->  | DJ2: =IFERROR(PIMExport!#REF!*1,IFERROR(SUBSTITUTE(PIMExport!#REF!,".",",")*1,PIMExport!#REF!)) ->  | DK2: =IFERROR(PIMExport!#REF!*1,IFERROR(SUBSTITUTE(PIMExport!#REF!,".",",")*1,PIMExport!#REF!)) ->  | DL2: =IFERROR(PIMExport!#REF!*1,IFERROR(SUBSTITUTE(PIMExport!#REF!,".",",")*1,PIMExport!#REF!)) ->  | DM2: =IFERROR(PIMExport!#REF!*1,IFERROR(SUBSTITUTE(PIMExport!#REF!,".",",")*1,PIMExport!#REF!)) ->  | DN2: =IFERROR(PIMExport!#REF!*1,IFERROR(SUBSTITUTE(PIMExport!#REF!,".",",")*1,PIMExport!#REF!)) ->  | DO2: =IFERROR(PIMExport!#REF!*1,IFERROR(SUBSTITUTE(PIMExport!#REF!,".",",")*1,PIMExport!#REF!)) -> 
A3: =IFERROR(PIMExport!#REF!*1,IFERROR(SUBSTITUTE(PIMExport!#REF!,".",",")*1,PIMExport!#REF!)) ->  | B3: =IFERROR(PIMExport!#REF!*1,IFERROR(SUBSTITUTE(PIMExport!#REF!,".",",")*1,PIMExport!#REF!)) ->  | C3: =IFERROR(PIMExport!#REF!*1,IFERROR(SUBSTITUTE(PIMExport!#REF!,".",",")*1,PIMExport!#REF!)) ->  | D3: =IFERROR(PIMExport!#REF!*1,IFERROR(SUBSTITUTE(PIMExport!#REF!,".",",")*1,PIMExport!#REF!)) ->  | E3: =IFERROR(PIMExport!#REF!*1,IFERROR(SUBSTITUTE(PIMExport!#REF!,".",",")*1,PIMExport!#REF!)) ->  | F3: =IFERROR(PIMExport!#REF!*1,IFERROR(SUBSTITUTE(PIMExport!#REF!,".",",")*1,PIMExport!#REF!)) ->  | G3: =IFERROR(PIMExport!#REF!*1,IFERROR(SUBSTITUTE(PIMExport!#REF!,".",",")*1,PIMExport!#REF!)) ->  | H3: =IFERROR(PIMExport!#REF!*1,IFERROR(SUBSTITUTE(PIMExport!#REF!,".",",")*1,PIMExport!#REF!)) ->  | I3: =IFERROR(PIMExport!#REF!*1,IFERROR(SUBSTITUTE(PIMExport!#REF!,".",",")*1,PIMExport!#REF!)) ->  | J3: =IFERROR(PIMExport!#REF!*1,IFERROR(SUBSTITUTE(PIMExport!#REF!,".",",")*1,PIMExport!#REF!)) ->  | K3: =IFERROR(PIMExport!#REF!*1,IFERROR(SUBSTITUTE(PIMExport!#REF!,".",",")*1,PIMExport!#REF!)) ->  | L3: =IFERROR(PIMExport!#REF!*1,IFERROR(SUBSTITUTE(PIMExport!#REF!,".",",")*1,PIMExport!#REF!)) ->  | M3: =IFERROR(PIMExport!#REF!*1,IFERROR(SUBSTITUTE(PIMExport!#REF!,".",",")*1,PIMExport!#REF!)) ->  | N3: =IFERROR(PIMExport!#REF!*1,IFERROR(SUBSTITUTE(PIMExport!#REF!,".",",")*1,PIMExport!#REF!)) ->  | O3: =IFERROR(PIMExport!#REF!*1,IFERROR(SUBSTITUTE(PIMExport!#REF!,".",",")*1,PIMExport!#REF!)) ->  | P3: =IFERROR(PIMExport!#REF!*1,IFERROR(SUBSTITUTE(PIMExport!#REF!,".",",")*1,PIMExport!#REF!)) ->  | Q3: =IFERROR(PIMExport!#REF!*1,IFERROR(SUBSTITUTE(PIMExport!#REF!,".",",")*1,PIMExport!#REF!)) ->  | R3: =IFERROR(PIMExport!#REF!*1,IFERROR(SUBSTITUTE(PIMExport!#REF!,".",",")*1,PIMExport!#REF!)) ->  | S3: =IFERROR(PIMExport!#REF!*1,IFERROR(SUBSTITUTE(PIMExport!#REF!,".",",")*1,PIMExport!#REF!)) ->  | T3: =IFERROR(PIMExport!#REF!*1,IFERROR(SUBSTITUTE(PIMExport!#REF!,".",",")*1,PIMExport!#REF!)) ->  | U3: =IFERROR(PIMExport!#REF!*1,IFERROR(SUBSTITUTE(PIMExport!#REF!,".",",")*1,PIMExport!#REF!)) ->  | V3: =IFERROR(PIMExport!#REF!*1,IFERROR(SUBSTITUTE(PIMExport!#REF!,".",",")*1,PIMExport!#REF!)) ->  | W3: =IFERROR(PIMExport!#REF!*1,IFERROR(SUBSTITUTE(PIMExport!#REF!,".",",")*1,PIMExport!#REF!)) ->  | X3: =IFERROR(PIMExport!#REF!*1,IFERROR(SUBSTITUTE(PIMExport!#REF!,".",",")*1,PIMExport!#REF!)) ->  | Y3: =IFERROR(PIMExport!#REF!*1,IFERROR(SUBSTITUTE(PIMExport!#REF!,".",",")*1,PIMExport!#REF!)) ->  | Z3: =IFERROR(PIMExport!#REF!*1,IFERROR(SUBSTITUTE(PIMExport!#REF!,".",",")*1,PIMExport!#REF!)) ->  | AA3: =IFERROR(PIMExport!#REF!*1,IFERROR(SUBSTITUTE(PIMExport!#REF!,".",",")*1,PIMExport!#REF!)) ->  | AB3: =IFERROR(PIMExport!#REF!*1,IFERROR(SUBSTITUTE(PIMExport!#REF!,".",",")*1,PIMExport!#REF!)) ->  | AC3: =IFERROR(PIMExport!#REF!*1,IFERROR(SUBSTITUTE(PIMExport!#REF!,".",",")*1,PIMExport!#REF!)) ->  | AD3: =IFERROR(PIMExport!#REF!*1,IFERROR(SUBSTITUTE(PIMExport!#REF!,".",",")*1,PIMExport!#REF!)) ->  | AE3: =IFERROR(PIMExport!#REF!*1,IFERROR(SUBSTITUTE(PIMExport!#REF!,".",",")*1,PIMExport!#REF!)) ->  | AF3: =IFERROR(PIMExport!#REF!*1,IFERROR(SUBSTITUTE(PIMExport!#REF!,".",",")*1,PIMExport!#REF!)) ->  | AG3: =IFERROR(PIMExport!#REF!*1,IFERROR(SUBSTITUTE(PIMExport!#REF!,".",",")*1,PIMExport!#REF!)) ->  | AH3: =IFERROR(PIMExport!#REF!*1,IFERROR(SUBSTITUTE(PIMExport!#REF!,".",",")*1,PIMExport!#REF!)) ->  | AI3: =IFERROR(PIMExport!#REF!*1,IFERROR(SUBSTITUTE(PIMExport!#REF!,".",",")*1,PIMExport!#REF!)) ->  | AJ3: =IFERROR(PIMExport!#REF!*1,IFERROR(SUBSTITUTE(PIMExport!#REF!,".",",")*1,PIMExport!#REF!)) ->  | AK3: =IFERROR(PIMExport!#REF!*1,IFERROR(SUBSTITUTE(PIMExport!#REF!,".",",")*1,PIMExport!#REF!)) ->  | AL3: =IFERROR(PIMExport!#REF!*1,IFERROR(SUBSTITUTE(PIMExport!#REF!,".",",")*1,PIMExport!#REF!)) ->  | AM3: =IFERROR(PIMExport!#REF!*1,IFERROR(SUBSTITUTE(PIMExport!#REF!,".",",")*1,PIMExport!#REF!)) ->  | AN3: =IFERROR(PIMExport!#REF!*1,IFERROR(SUBSTITUTE(PIMExport!#REF!,".",",")*1,PIMExport!#REF!)) ->  | AO3: =IFERROR(PIMExport!#REF!*1,IFERROR(SUBSTITUTE(PIMExport!#REF!,".",",")*1,PIMExport!#REF!)) ->  | AP3: =IFERROR(PIMExport!#REF!*1,IFERROR(SUBSTITUTE(PIMExport!#REF!,".",",")*1,PIMExport!#REF!)) ->  | AQ3: =IFERROR(PIMExport!#REF!*1,IFERROR(SUBSTITUTE(PIMExport!#REF!,".",",")*1,PIMExport!#REF!)) ->  | AR3: =IFERROR(PIMExport!#REF!*1,IFERROR(SUBSTITUTE(PIMExport!#REF!,".",",")*1,PIMExport!#REF!)) ->  | AS3: =IFERROR(PIMExport!#REF!*1,IFERROR(SUBSTITUTE(PIMExport!#REF!,".",",")*1,PIMExport!#REF!)) ->  | AT3: =IFERROR(PIMExport!#REF!*1,IFERROR(SUBSTITUTE(PIMExport!#REF!,".",",")*1,PIMExport!#REF!)) ->  | AU3: =IFERROR(PIMExport!#REF!*1,IFERROR(SUBSTITUTE(PIMExport!#REF!,".",",")*1,PIMExport!#REF!)) ->  | AV3: =IFERROR(PIMExport!#REF!*1,IFERROR(SUBSTITUTE(PIMExport!#REF!,".",",")*1,PIMExport!#REF!)) ->  | AW3: =IFERROR(PIMExport!#REF!*1,IFERROR(SUBSTITUTE(PIMExport!#REF!,".",",")*1,PIMExport!#REF!)) ->  | AX3: =IFERROR(PIMExport!#REF!*1,IFERROR(SUBSTITUTE(PIMExport!#REF!,".",",")*1,PIMExport!#REF!)) ->  | AY3: =IFERROR(PIMExport!#REF!*1,IFERROR(SUBSTITUTE(PIMExport!#REF!,".",",")*1,PIMExport!#REF!)) ->  | AZ3: =IFERROR(PIMExport!#REF!*1,IFERROR(SUBSTITUTE(PIMExport!#REF!,".",",")*1,PIMExport!#REF!)) ->  | BA3: =IFERROR(PIMExport!#REF!*1,IFERROR(SUBSTITUTE(PIMExport!#REF!,".",",")*1,PIMExport!#REF!)) ->  | BB3: =IFERROR(PIMExport!#REF!*1,IFERROR(SUBSTITUTE(PIMExport!#REF!,".",",")*1,PIMExport!#REF!)) ->  | BC3: =IFERROR(PIMExport!#REF!*1,IFERROR(SUBSTITUTE(PIMExport!#REF!,".",",")*1,PIMExport!#REF!)) ->  | BD3: =IFERROR(PIMExport!#REF!*1,IFERROR(SUBSTITUTE(PIMExport!#REF!,".",",")*1,PIMExport!#REF!)) ->  | BE3: =IFERROR(PIMExport!#REF!*1,IFERROR(SUBSTITUTE(PIMExport!#REF!,".",",")*1,PIMExport!#REF!)) ->  | BF3: =IFERROR(PIMExport!#REF!*1,IFERROR(SUBSTITUTE(PIMExport!#REF!,".",",")*1,PIMExport!#REF!)) ->  | BG3: =IFERROR(PIMExport!#REF!*1,IFERROR(SUBSTITUTE(PIMExport!#REF!,".",",")*1,PIMExport!#REF!)) ->  | BH3: =IFERROR(PIMExport!#REF!*1,IFERROR(SUBSTITUTE(PIMExport!#REF!,".",",")*1,PIMExport!#REF!)) ->  | BI3: =IFERROR(PIMExport!#REF!*1,IFERROR(SUBSTITUTE(PIMExport!#REF!,".",",")*1,PIMExport!#REF!)) ->  | BJ3: =IFERROR(PIMExport!#REF!*1,IFERROR(SUBSTITUTE(PIMExport!#REF!,".",",")*1,PIMExport!#REF!)) ->  | BK3: =IFERROR(PIMExport!#REF!*1,IFERROR(SUBSTITUTE(PIMExport!#REF!,".",",")*1,PIMExport!#REF!)) ->  | BL3: =IFERROR(PIMExport!#REF!*1,IFERROR(SUBSTITUTE(PIMExport!#REF!,".",",")*1,PIMExport!#REF!)) ->  | BM3: =IFERROR(PIMExport!#REF!*1,IFERROR(SUBSTITUTE(PIMExport!#REF!,".",",")*1,PIMExport!#REF!)) ->  | BN3: =IFERROR(PIMExport!#REF!*1,IFERROR(SUBSTITUTE(PIMExport!#REF!,".",",")*1,PIMExport!#REF!)) ->  | BO3: =IFERROR(PIMExport!#REF!*1,IFERROR(SUBSTITUTE(PIMExport!#REF!,".",",")*1,PIMExport!#REF!)) ->  | BP3: =IFERROR(PIMExport!#REF!*1,IFERROR(SUBSTITUTE(PIMExport!#REF!,".",",")*1,PIMExport!#REF!)) ->  | BQ3: =IFERROR(PIMExport!#REF!*1,IFERROR(SUBSTITUTE(PIMExport!#REF!,".",",")*1,PIMExport!#REF!)) ->  | BR3: =IFERROR(PIMExport!#REF!*1,IFERROR(SUBSTITUTE(PIMExport!#REF!,".",",")*1,PIMExport!#REF!)) ->  | BS3: =IFERROR(PIMExport!#REF!*1,IFERROR(SUBSTITUTE(PIMExport!#REF!,".",",")*1,PIMExport!#REF!)) ->  | BT3: =IFERROR(PIMExport!#REF!*1,IFERROR(SUBSTITUTE(PIMExport!#REF!,".",",")*1,PIMExport!#REF!)) ->  | BU3: =IFERROR(PIMExport!#REF!*1,IFERROR(SUBSTITUTE(PIMExport!#REF!,".",",")*1,PIMExport!#REF!)) ->  | BV3: =IFERROR(PIMExport!#REF!*1,IFERROR(SUBSTITUTE(PIMExport!#REF!,".",",")*1,PIMExport!#REF!)) ->  | BW3: =IFERROR(PIMExport!#REF!*1,IFERROR(SUBSTITUTE(PIMExport!#REF!,".",",")*1,PIMExport!#REF!)) ->  | BX3: =IFERROR(PIMExport!#REF!*1,IFERROR(SUBSTITUTE(PIMExport!#REF!,".",",")*1,PIMExport!#REF!)) ->  | BY3: =IFERROR(PIMExport!#REF!*1,IFERROR(SUBSTITUTE(PIMExport!#REF!,".",",")*1,PIMExport!#REF!)) ->  | BZ3: =IFERROR(PIMExport!#REF!*1,IFERROR(SUBSTITUTE(PIMExport!#REF!,".",",")*1,PIMExport!#REF!)) ->  | CA3: =IFERROR(PIMExport!#REF!*1,IFERROR(SUBSTITUTE(PIMExport!#REF!,".",",")*1,PIMExport!#REF!)) ->  | CB3: =IFERROR(PIMExport!#REF!*1,IFERROR(SUBSTITUTE(PIMExport!#REF!,".",",")*1,PIMExport!#REF!)) ->  | CC3: =IFERROR(PIMExport!#REF!*1,IFERROR(SUBSTITUTE(PIMExport!#REF!,".",",")*1,PIMExport!#REF!)) ->  | CD3: =IFERROR(PIMExport!#REF!*1,IFERROR(SUBSTITUTE(PIMExport!#REF!,".",",")*1,PIMExport!#REF!)) ->  | CE3: =IFERROR(PIMExport!#REF!*1,IFERROR(SUBSTITUTE(PIMExport!#REF!,".",",")*1,PIMExport!#REF!)) ->  | CF3: =IFERROR(PIMExport!#REF!*1,IFERROR(SUBSTITUTE(PIMExport!#REF!,".",",")*1,PIMExport!#REF!)) ->  | CG3: =IFERROR(PIMExport!#REF!*1,IFERROR(SUBSTITUTE(PIMExport!#REF!,".",",")*1,PIMExport!#REF!)) ->  | CH3: =IFERROR(PIMExport!#REF!*1,IFERROR(SUBSTITUTE(PIMExport!#REF!,".",",")*1,PIMExport!#REF!)) ->  | CI3: =IFERROR(PIMExport!#REF!*1,IFERROR(SUBSTITUTE(PIMExport!#REF!,".",",")*1,PIMExport!#REF!)) ->  | CJ3: =IFERROR(PIMExport!#REF!*1,IFERROR(SUBSTITUTE(PIMExport!#REF!,".",",")*1,PIMExport!#REF!)) ->  | CK3: =IFERROR(PIMExport!#REF!*1,IFERROR(SUBSTITUTE(PIMExport!#REF!,".",",")*1,PIMExport!#REF!)) ->  | CL3: =IFERROR(PIMExport!#REF!*1,IFERROR(SUBSTITUTE(PIMExport!#REF!,".",",")*1,PIMExport!#REF!)) ->  | CM3: =IFERROR(PIMExport!#REF!*1,IFERROR(SUBSTITUTE(PIMExport!#REF!,".",",")*1,PIMExport!#REF!)) ->  | CN3: =IFERROR(PIMExport!#REF!*1,IFERROR(SUBSTITUTE(PIMExport!#REF!,".",",")*1,PIMExport!#REF!)) ->  | CO3: =IFERROR(PIMExport!#REF!*1,IFERROR(SUBSTITUTE(PIMExport!#REF!,".",",")*1,PIMExport!#REF!)) ->  | CP3: =IFERROR(PIMExport!#REF!*1,IFERROR(SUBSTITUTE(PIMExport!#REF!,".",",")*1,PIMExport!#REF!)) ->  | CQ3: =IFERROR(PIMExport!#REF!*1,IFERROR(SUBSTITUTE(PIMExport!#REF!,".",",")*1,PIMExport!#REF!)) ->  | CR3: =IFERROR(PIMExport!#REF!*1,IFERROR(SUBSTITUTE(PIMExport!#REF!,".",",")*1,PIMExport!#REF!)) ->  | CS3: =IFERROR(PIMExport!#REF!*1,IFERROR(SUBSTITUTE(PIMExport!#REF!,".",",")*1,PIMExport!#REF!)) ->  | CT3: =IFERROR(PIMExport!#REF!*1,IFERROR(SUBSTITUTE(PIMExport!#REF!,".",",")*1,PIMExport!#REF!)) ->  | CU3: =IFERROR(PIMExport!#REF!*1,IFERROR(SUBSTITUTE(PIMExport!#REF!,".",",")*1,PIMExport!#REF!)) ->  | CV3: =IFERROR(PIMExport!#REF!*1,IFERROR(SUBSTITUTE(PIMExport!#REF!,".",",")*1,PIMExport!#REF!)) ->  | CW3: =IFERROR(PIMExport!#REF!*1,IFERROR(SUBSTITUTE(PIMExport!#REF!,".",",")*1,PIMExport!#REF!)) ->  | CX3: =IFERROR(PIMExport!#REF!*1,IFERROR(SUBSTITUTE(PIMExport!#REF!,".",",")*1,PIMExport!#REF!)) ->  | CY3: =IFERROR(PIMExport!#REF!*1,IFERROR(SUBSTITUTE(PIMExport!#REF!,".",",")*1,PIMExport!#REF!)) ->  | CZ3: =IFERROR(PIMExport!#REF!*1,IFERROR(SUBSTITUTE(PIMExport!#REF!,".",",")*1,PIMExport!#REF!)) ->  | DA3: =IFERROR(PIMExport!#REF!*1,IFERROR(SUBSTITUTE(PIMExport!#REF!,".",",")*1,PIMExport!#REF!)) ->  | DB3: =IFERROR(PIMExport!#REF!*1,IFERROR(SUBSTITUTE(PIMExport!#REF!,".",",")*1,PIMExport!#REF!)) ->  | DC3: =IFERROR(PIMExport!#REF!*1,IFERROR(SUBSTITUTE(PIMExport!#REF!,".",",")*1,PIMExport!#REF!)) ->  | DD3: =IFERROR(PIMExport!#REF!*1,IFERROR(SUBSTITUTE(PIMExport!#REF!,".",",")*1,PIMExport!#REF!)) ->  | DE3: =IFERROR(PIMExport!#REF!*1,IFERROR(SUBSTITUTE(PIMExport!#REF!,".",",")*1,PIMExport!#REF!)) ->  | DF3: =IFERROR(PIMExport!#REF!*1,IFERROR(SUBSTITUTE(PIMExport!#REF!,".",",")*1,PIMExport!#REF!)) ->  | DG3: =IFERROR(PIMExport!#REF!*1,IFERROR(SUBSTITUTE(PIMExport!#REF!,".",",")*1,PIMExport!#REF!)) ->  | DH3: =IFERROR(PIMExport!#REF!*1,IFERROR(SUBSTITUTE(PIMExport!#REF!,".",",")*1,PIMExport!#REF!)) ->  | DI3: =IFERROR(PIMExport!#REF!*1,IFERROR(SUBSTITUTE(PIMExport!#REF!,".",",")*1,PIMExport!#REF!)) ->  | DJ3: =IFERROR(PIMExport!#REF!*1,IFERROR(SUBSTITUTE(PIMExport!#REF!,".",",")*1,PIMExport!#REF!)) ->  | DK3: =IFERROR(PIMExport!#REF!*1,IFERROR(SUBSTITUTE(PIMExport!#REF!,".",",")*1,PIMExport!#REF!)) ->  | DL3: =IFERROR(PIMExport!#REF!*1,IFERROR(SUBSTITUTE(PIMExport!#REF!,".",",")*1,PIMExport!#REF!)) ->  | DM3: =IFERROR(PIMExport!#REF!*1,IFERROR(SUBSTITUTE(PIMExport!#REF!,".",",")*1,PIMExport!#REF!)) ->  | DN3: =IFERROR(PIMExport!#REF!*1,IFERROR(SUBSTITUTE(PIMExport!#REF!,".",",")*1,PIMExport!#REF!)) ->  | DO3: =IFERROR(PIMExport!#REF!*1,IFERROR(SUBSTITUTE(PIMExport!#REF!,".",",")*1,PIMExport!#REF!)) -> 
A4: =IFERROR(PIMExport!A2*1,IFERROR(SUBSTITUTE(PIMExport!A2,".",",")*1,PIMExport!A2)) -> MLSH06Z135-L | B4: =IFERROR(PIMExport!B2*1,IFERROR(SUBSTITUTE(PIMExport!B2,".",",")*1,PIMExport!B2)) -> Belt | C4: =IFERROR(PIMExport!C2*1,IFERROR(SUBSTITUTE(PIMExport!C2,".",",")*1,PIMExport!C2)) -> Wheel | D4: =IFERROR(PIMExport!D2*1,IFERROR(SUBSTITUTE(PIMExport!D2,".",",")*1,PIMExport!D2)) -> 5500 | E4: =IFERROR(PIMExport!E2*1,IFERROR(SUBSTITUTE(PIMExport!E2,".",",")*1,PIMExport!E2)) -> 6 | F4: =IFERROR(PIMExport!F2*1,IFERROR(SUBSTITUTE(PIMExport!F2,".",",")*1,PIMExport!F2)) -> 0 | G4: =IFERROR(PIMExport!G2*1,IFERROR(SUBSTITUTE(PIMExport!G2,".",",")*1,PIMExport!G2)) -> 12.6 | H4: =IFERROR(PIMExport!H2*1,IFERROR(SUBSTITUTE(PIMExport!H2,".",",")*1,PIMExport!H2)) -> 1.33 | I4: =IFERROR(PIMExport!I2*1,IFERROR(SUBSTITUTE(PIMExport!I2,".",",")*1,PIMExport!I2)) -> 349 | J4: =IFERROR(PIMExport!J2*1,IFERROR(SUBSTITUTE(PIMExport!J2,".",",")*1,PIMExport!J2)) -> 102.5 | K4: =IFERROR(PIMExport!K2*1,IFERROR(SUBSTITUTE(PIMExport!K2,".",",")*1,PIMExport!K2)) -> 0 | L4: =IFERROR(PIMExport!L2*1,IFERROR(SUBSTITUTE(PIMExport!L2,".",",")*1,PIMExport!L2)) -> 0.000163 | M4: =IFERROR(PIMExport!M2*1,IFERROR(SUBSTITUTE(PIMExport!M2,".",",")*1,PIMExport!M2)) -> 0.9 | N4: =IFERROR(PIMExport!N2*1,IFERROR(SUBSTITUTE(PIMExport!N2,".",",")*1,PIMExport!N2)) -> 150 | O4: =IFERROR(PIMExport!O2*1,IFERROR(SUBSTITUTE(PIMExport!O2,".",",")*1,PIMExport!O2)) -> 1500 | P4: =IFERROR(PIMExport!P2*1,IFERROR(SUBSTITUTE(PIMExport!P2,".",",")*1,PIMExport!P2)) -> 3000 | Q4: =IFERROR(PIMExport!Q2*1,IFERROR(SUBSTITUTE(PIMExport!Q2,".",",")*1,PIMExport!Q2)) -> 4.6 | R4: =IFERROR(PIMExport!R2*1,IFERROR(SUBSTITUTE(PIMExport!R2,".",",")*1,PIMExport!R2)) -> 9 | S4: =IFERROR(PIMExport!S2*1,IFERROR(SUBSTITUTE(PIMExport!S2,".",",")*1,PIMExport!S2)) -> 12 | T4: =IFERROR(PIMExport!T2*1,IFERROR(SUBSTITUTE(PIMExport!T2,".",",")*1,PIMExport!T2)) -> 10 | U4: =IFERROR(PIMExport!U2*1,IFERROR(SUBSTITUTE(PIMExport!U2,".",",")*1,PIMExport!U2)) -> 0.1 | V4: =IFERROR(PIMExport!V2*1,IFERROR(SUBSTITUTE(PIMExport!V2,".",",")*1,PIMExport!V2)) -> 0 | W4: =IFERROR(PIMExport!W2*1,IFERROR(SUBSTITUTE(PIMExport!W2,".",",")*1,PIMExport!W2)) -> 0.8 | X4: =IFERROR(PIMExport!X2*1,IFERROR(SUBSTITUTE(PIMExport!X2,".",",")*1,PIMExport!X2)) -> 0 | Y4: =IFERROR(PIMExport!Y2*1,IFERROR(SUBSTITUTE(PIMExport!Y2,".",",")*1,PIMExport!Y2)) -> 1480 | Z4: =IFERROR(PIMExport!Z2*1,IFERROR(SUBSTITUTE(PIMExport!Z2,".",",")*1,PIMExport!Z2)) -> 1554.39 | AA4: =IFERROR(PIMExport!AA2*1,IFERROR(SUBSTITUTE(PIMExport!AA2,".",",")*1,PIMExport!AA2)) -> 0 | AB4: =IFERROR(PIMExport!AB2*1,IFERROR(SUBSTITUTE(PIMExport!AB2,".",",")*1,PIMExport!AB2)) -> 0 | AC4: =IFERROR(PIMExport!AC2*1,IFERROR(SUBSTITUTE(PIMExport!AC2,".",",")*1,PIMExport!AC2)) -> 92.8925 | AD4: =IFERROR(PIMExport!AD2*1,IFERROR(SUBSTITUTE(PIMExport!AD2,".",",")*1,PIMExport!AD2)) -> 0 | AE4: =IFERROR(PIMExport!AE2*1,IFERROR(SUBSTITUTE(PIMExport!AE2,".",",")*1,PIMExport!AE2)) -> 3000 | AF4: =IFERROR(PIMExport!AF2*1,IFERROR(SUBSTITUTE(PIMExport!AF2,".",",")*1,PIMExport!AF2)) -> 3000 | AG4: =IFERROR(PIMExport!AG2*1,IFERROR(SUBSTITUTE(PIMExport!AG2,".",",")*1,PIMExport!AG2)) -> 165 | AH4: =IFERROR(PIMExport!AH2*1,IFERROR(SUBSTITUTE(PIMExport!AH2,".",",")*1,PIMExport!AH2)) -> 585 | AI4: =IFERROR(PIMExport!AI2*1,IFERROR(SUBSTITUTE(PIMExport!AI2,".",",")*1,PIMExport!AI2)) -> 585 | AJ4: =IFERROR(PIMExport!AJ2*1,IFERROR(SUBSTITUTE(PIMExport!AJ2,".",",")*1,PIMExport!AJ2)) -> 0 | AK4: =IFERROR(PIMExport!AK2*1,IFERROR(SUBSTITUTE(PIMExport!AK2,".",",")*1,PIMExport!AK2)) -> 0 | AL4: =IFERROR(PIMExport!AL2*1,IFERROR(SUBSTITUTE(PIMExport!AL2,".",",")*1,PIMExport!AL2)) -> 6.75 | AM4: =IFERROR(PIMExport!AM2*1,IFERROR(SUBSTITUTE(PIMExport!AM2,".",",")*1,PIMExport!AM2)) -> 20 | AN4: =IFERROR(PIMExport!AN2*1,IFERROR(SUBSTITUTE(PIMExport!AN2,".",",")*1,PIMExport!AN2)) -> 1 | AO4: =IFERROR(PIMExport!AO2*1,IFERROR(SUBSTITUTE(PIMExport!AO2,".",",")*1,PIMExport!AO2)) -> 0 | AP4: =IFERROR(PIMExport!AP2*1,IFERROR(SUBSTITUTE(PIMExport!AP2,".",",")*1,PIMExport!AP2)) -> 0 | AQ4: =IFERROR(PIMExport!AQ2*1,IFERROR(SUBSTITUTE(PIMExport!AQ2,".",",")*1,PIMExport!AQ2)) -> 4100 | AR4: =IFERROR(PIMExport!AR2*1,IFERROR(SUBSTITUTE(PIMExport!AR2,".",",")*1,PIMExport!AR2)) -> 22.8 | AS4: =IFERROR(PIMExport!AS2*1,IFERROR(SUBSTITUTE(PIMExport!AS2,".",",")*1,PIMExport!AS2)) -> 250 | AT4: =IFERROR(PIMExport!AT2*1,IFERROR(SUBSTITUTE(PIMExport!AT2,".",",")*1,PIMExport!AT2)) -> 1 | AU4: =IFERROR(PIMExport!AU2*1,IFERROR(SUBSTITUTE(PIMExport!AU2,".",",")*1,PIMExport!AU2)) -> 0.5 | AV4: =IFERROR(PIMExport!AV2*1,IFERROR(SUBSTITUTE(PIMExport!AV2,".",",")*1,PIMExport!AV2)) -> 3.1 | AW4: =IFERROR(PIMExport!AW2*1,IFERROR(SUBSTITUTE(PIMExport!AW2,".",",")*1,PIMExport!AW2)) -> 3.6 | AX4: =IFERROR(PIMExport!AX2*1,IFERROR(SUBSTITUTE(PIMExport!AX2,".",",")*1,PIMExport!AX2)) -> 1302 | AY4: =IFERROR(PIMExport!AY2*1,IFERROR(SUBSTITUTE(PIMExport!AY2,".",",")*1,PIMExport!AY2)) -> 0.119 | AZ4: =IFERROR(PIMExport!AZ2*1,IFERROR(SUBSTITUTE(PIMExport!AZ2,".",",")*1,PIMExport!AZ2)) -> 6700 | BA4: =IFERROR(PIMExport!BA2*1,IFERROR(SUBSTITUTE(PIMExport!BA2,".",",")*1,PIMExport!BA2)) -> 7800 | BB4: =IFERROR(PIMExport!BB2*1,IFERROR(SUBSTITUTE(PIMExport!BB2,".",",")*1,PIMExport!BB2)) -> 42.97 | BC4: =IFERROR(PIMExport!BC2*1,IFERROR(SUBSTITUTE(PIMExport!BC2,".",",")*1,PIMExport!BC2)) -> 42.97 | BD4: =IFERROR(PIMExport!BD2*1,IFERROR(SUBSTITUTE(PIMExport!BD2,".",",")*1,PIMExport!BD2)) -> 25.47 | BE4: =IFERROR(PIMExport!BE2*1,IFERROR(SUBSTITUTE(PIMExport!BE2,".",",")*1,PIMExport!BE2)) -> 25.47 | BF4: =IFERROR(PIMExport!BF2*1,IFERROR(SUBSTITUTE(PIMExport!BF2,".",",")*1,PIMExport!BF2)) -> 0 | BG4: =IFERROR(PIMExport!BG2*1,IFERROR(SUBSTITUTE(PIMExport!BG2,".",",")*1,PIMExport!BG2)) -> 650 | BH4: =IFERROR(PIMExport!BH2*1,IFERROR(SUBSTITUTE(PIMExport!BH2,".",",")*1,PIMExport!BH2)) -> 0 | BI4: =IFERROR(PIMExport!BI2*1,IFERROR(SUBSTITUTE(PIMExport!BI2,".",",")*1,PIMExport!BI2)) -> 0 | BJ4: =IFERROR(PIMExport!BJ2*1,IFERROR(SUBSTITUTE(PIMExport!BJ2,".",",")*1,PIMExport!BJ2)) -> 0 | BK4: =IFERROR(PIMExport!BK2*1,IFERROR(SUBSTITUTE(PIMExport!BK2,".",",")*1,PIMExport!BK2)) -> 0 | BL4: =IFERROR(PIMExport!BL2*1,IFERROR(SUBSTITUTE(PIMExport!BL2,".",",")*1,PIMExport!BL2)) -> 0 | BM4: =IFERROR(PIMExport!BM2*1,IFERROR(SUBSTITUTE(PIMExport!BM2,".",",")*1,PIMExport!BM2)) -> 0 | BN4: =IFERROR(PIMExport!BN2*1,IFERROR(SUBSTITUTE(PIMExport!BN2,".",",")*1,PIMExport!BN2)) -> 0 | BO4: =IFERROR(PIMExport!BO2*1,IFERROR(SUBSTITUTE(PIMExport!BO2,".",",")*1,PIMExport!BO2)) -> 0 | BP4: =IFERROR(PIMExport!BP2*1,IFERROR(SUBSTITUTE(PIMExport!BP2,".",",")*1,PIMExport!BP2)) -> 0 | BQ4: =IFERROR(PIMExport!BQ2*1,IFERROR(SUBSTITUTE(PIMExport!BQ2,".",",")*1,PIMExport!BQ2)) -> 0 | BR4: =IFERROR(PIMExport!BR2*1,IFERROR(SUBSTITUTE(PIMExport!BR2,".",",")*1,PIMExport!BR2)) -> 0 | BS4: =IFERROR(PIMExport!BS2*1,IFERROR(SUBSTITUTE(PIMExport!BS2,".",",")*1,PIMExport!BS2)) -> 0 | BT4: =IFERROR(PIMExport!BT2*1,IFERROR(SUBSTITUTE(PIMExport!BT2,".",",")*1,PIMExport!BT2)) -> 0 | BU4: =IFERROR(PIMExport!BU2*1,IFERROR(SUBSTITUTE(PIMExport!BU2,".",",")*1,PIMExport!BU2)) -> 0 | BV4: =IFERROR(PIMExport!BV2*1,IFERROR(SUBSTITUTE(PIMExport!BV2,".",",")*1,PIMExport!BV2)) -> 0 | BW4: =IFERROR(PIMExport!BW2*1,IFERROR(SUBSTITUTE(PIMExport!BW2,".",",")*1,PIMExport!BW2)) -> 0 | BX4: =IFERROR(PIMExport!BX2*1,IFERROR(SUBSTITUTE(PIMExport!BX2,".",",")*1,PIMExport!BX2)) -> 0 | BY4: =IFERROR(PIMExport!BY2*1,IFERROR(SUBSTITUTE(PIMExport!BY2,".",",")*1,PIMExport!BY2)) -> 0 | BZ4: =IFERROR(PIMExport!BZ2*1,IFERROR(SUBSTITUTE(PIMExport!BZ2,".",",")*1,PIMExport!BZ2)) -> 0 | CA4: =IFERROR(PIMExport!CA2*1,IFERROR(SUBSTITUTE(PIMExport!CA2,".",",")*1,PIMExport!CA2)) -> 0 | CB4: =IFERROR(PIMExport!CB2*1,IFERROR(SUBSTITUTE(PIMExport!CB2,".",",")*1,PIMExport!CB2)) -> 0 | CC4: =IFERROR(PIMExport!CC2*1,IFERROR(SUBSTITUTE(PIMExport!CC2,".",",")*1,PIMExport!CC2)) -> 0 | CD4: =IFERROR(PIMExport!CD2*1,IFERROR(SUBSTITUTE(PIMExport!CD2,".",",")*1,PIMExport!CD2)) -> 0 | CE4: =IFERROR(PIMExport!CE2*1,IFERROR(SUBSTITUTE(PIMExport!CE2,".",",")*1,PIMExport!CE2)) -> 0 | CF4: =IFERROR(PIMExport!CF2*1,IFERROR(SUBSTITUTE(PIMExport!CF2,".",",")*1,PIMExport!CF2)) -> 0 | CG4: =IFERROR(PIMExport!CG2*1,IFERROR(SUBSTITUTE(PIMExport!CG2,".",",")*1,PIMExport!CG2)) -> 0 | CH4: =IFERROR(PIMExport!CH2*1,IFERROR(SUBSTITUTE(PIMExport!CH2,".",",")*1,PIMExport!CH2)) -> 0 | CI4: =IFERROR(PIMExport!CI2*1,IFERROR(SUBSTITUTE(PIMExport!CI2,".",",")*1,PIMExport!CI2)) -> 0 | CJ4: =IFERROR(PIMExport!CJ2*1,IFERROR(SUBSTITUTE(PIMExport!CJ2,".",",")*1,PIMExport!CJ2)) -> 0 | CK4: =IFERROR(PIMExport!CK2*1,IFERROR(SUBSTITUTE(PIMExport!CK2,".",",")*1,PIMExport!CK2)) -> 0 | CL4: =IFERROR(PIMExport!CL2*1,IFERROR(SUBSTITUTE(PIMExport!CL2,".",",")*1,PIMExport!CL2)) -> 0 | CM4: =IFERROR(PIMExport!CM2*1,IFERROR(SUBSTITUTE(PIMExport!CM2,".",",")*1,PIMExport!CM2)) -> 0 | CN4: =IFERROR(PIMExport!CN2*1,IFERROR(SUBSTITUTE(PIMExport!CN2,".",",")*1,PIMExport!CN2)) -> 0 | CO4: =IFERROR(PIMExport!CO2*1,IFERROR(SUBSTITUTE(PIMExport!CO2,".",",")*1,PIMExport!CO2)) -> 0 | CP4: =IFERROR(PIMExport!CP2*1,IFERROR(SUBSTITUTE(PIMExport!CP2,".",",")*1,PIMExport!CP2)) -> 0 | CQ4: =IFERROR(PIMExport!CQ2*1,IFERROR(SUBSTITUTE(PIMExport!CQ2,".",",")*1,PIMExport!CQ2)) -> 0 | CR4: =IFERROR(PIMExport!CR2*1,IFERROR(SUBSTITUTE(PIMExport!CR2,".",",")*1,PIMExport!CR2)) -> 0 | CS4: =IFERROR(PIMExport!CS2*1,IFERROR(SUBSTITUTE(PIMExport!CS2,".",",")*1,PIMExport!CS2)) -> 0 | CT4: =IFERROR(PIMExport!CT2*1,IFERROR(SUBSTITUTE(PIMExport!CT2,".",",")*1,PIMExport!CT2)) -> 0 | CU4: =IFERROR(PIMExport!CU2*1,IFERROR(SUBSTITUTE(PIMExport!CU2,".",",")*1,PIMExport!CU2)) -> 135 | CV4: =IFERROR(PIMExport!CV2*1,IFERROR(SUBSTITUTE(PIMExport!CV2,".",",")*1,PIMExport!CV2)) -> 0 | CW4: =IFERROR(PIMExport!CW2*1,IFERROR(SUBSTITUTE(PIMExport!CW2,".",",")*1,PIMExport!CW2)) -> 0 | CX4: =IFERROR(PIMExport!CX2*1,IFERROR(SUBSTITUTE(PIMExport!CX2,".",",")*1,PIMExport!CX2)) -> 0 | CY4: =IFERROR(PIMExport!CY2*1,IFERROR(SUBSTITUTE(PIMExport!CY2,".",",")*1,PIMExport!CY2)) -> 0 | CZ4: =IFERROR(PIMExport!CZ2*1,IFERROR(SUBSTITUTE(PIMExport!CZ2,".",",")*1,PIMExport!CZ2)) -> 0 | DA4: =IFERROR(PIMExport!DA2*1,IFERROR(SUBSTITUTE(PIMExport!DA2,".",",")*1,PIMExport!DA2)) -> 200 | DB4: =IFERROR(PIMExport!DB2*1,IFERROR(SUBSTITUTE(PIMExport!DB2,".",",")*1,PIMExport!DB2)) -> 0 | DC4: =IFERROR(PIMExport!DC2*1,IFERROR(SUBSTITUTE(PIMExport!DC2,".",",")*1,PIMExport!DC2)) -> 0 | DD4: =IFERROR(PIMExport!DD2*1,IFERROR(SUBSTITUTE(PIMExport!DD2,".",",")*1,PIMExport!DD2)) -> 0 | DE4: =IFERROR(PIMExport!DE2*1,IFERROR(SUBSTITUTE(PIMExport!DE2,".",",")*1,PIMExport!DE2)) -> 0 | DF4: =IFERROR(PIMExport!DF2*1,IFERROR(SUBSTITUTE(PIMExport!DF2,".",",")*1,PIMExport!DF2)) -> 0 | DG4: =IFERROR(PIMExport!DG2*1,IFERROR(SUBSTITUTE(PIMExport!DG2,".",",")*1,PIMExport!DG2)) -> 0 | DH4: =IFERROR(PIMExport!DH2*1,IFERROR(SUBSTITUTE(PIMExport!DH2,".",",")*1,PIMExport!DH2)) -> Equal to or better than 0.100 mm | DI4: =IFERROR(PIMExport!DI2*1,IFERROR(SUBSTITUTE(PIMExport!DI2,".",",")*1,PIMExport!DI2)) -> 32ATL5 | DJ4: =IFERROR(PIMExport!DJ2*1,IFERROR(SUBSTITUTE(PIMExport!DJ2,".",",")*1,PIMExport!DJ2)) -> 160 x 65 mm | DK4: =IFERROR(PIMExport!DK2*1,IFERROR(SUBSTITUTE(PIMExport!DK2,".",",")*1,PIMExport!DK2)) -> 0 | DL4: =IFERROR(PIMExport!DL2*1,IFERROR(SUBSTITUTE(PIMExport!DL2,".",",")*1,PIMExport!DL2)) -> 460 | DM4: =IFERROR(PIMExport!DM2*1,IFERROR(SUBSTITUTE(PIMExport!DM2,".",",")*1,PIMExport!DM2)) -> 6150 | DN4: =IFERROR(PIMExport!DN2*1,IFERROR(SUBSTITUTE(PIMExport!DN2,".",",")*1,PIMExport!DN2)) -> 0 | DO4: =IFERROR(PIMExport!DO2*1,IFERROR(SUBSTITUTE(PIMExport!DO2,".",",")*1,PIMExport!DO2)) -> 0
A5: =IFERROR(PIMExport!A3*1,IFERROR(SUBSTITUTE(PIMExport!A3,".",",")*1,PIMExport!A3)) -> MLSH06Z135-N | B5: =IFERROR(PIMExport!B3*1,IFERROR(SUBSTITUTE(PIMExport!B3,".",",")*1,PIMExport!B3)) -> Belt | C5: =IFERROR(PIMExport!C3*1,IFERROR(SUBSTITUTE(PIMExport!C3,".",",")*1,PIMExport!C3)) -> Wheel | D5: =IFERROR(PIMExport!D3*1,IFERROR(SUBSTITUTE(PIMExport!D3,".",",")*1,PIMExport!D3)) -> 5500 | E5: =IFERROR(PIMExport!E3*1,IFERROR(SUBSTITUTE(PIMExport!E3,".",",")*1,PIMExport!E3)) -> 3.9 | F5: =IFERROR(PIMExport!F3*1,IFERROR(SUBSTITUTE(PIMExport!F3,".",",")*1,PIMExport!F3)) -> 0 | G5: =IFERROR(PIMExport!G3*1,IFERROR(SUBSTITUTE(PIMExport!G3,".",",")*1,PIMExport!G3)) -> 12.6 | H5: =IFERROR(PIMExport!H3*1,IFERROR(SUBSTITUTE(PIMExport!H3,".",",")*1,PIMExport!H3)) -> 1.33 | I5: =IFERROR(PIMExport!I3*1,IFERROR(SUBSTITUTE(PIMExport!I3,".",",")*1,PIMExport!I3)) -> 109 | J5: =IFERROR(PIMExport!J3*1,IFERROR(SUBSTITUTE(PIMExport!J3,".",",")*1,PIMExport!J3)) -> 102.5 | K5: =IFERROR(PIMExport!K3*1,IFERROR(SUBSTITUTE(PIMExport!K3,".",",")*1,PIMExport!K3)) -> 0 | L5: =IFERROR(PIMExport!L3*1,IFERROR(SUBSTITUTE(PIMExport!L3,".",",")*1,PIMExport!L3)) -> 0.000163 | M5: =IFERROR(PIMExport!M3*1,IFERROR(SUBSTITUTE(PIMExport!M3,".",",")*1,PIMExport!M3)) -> 0.9 | N5: =IFERROR(PIMExport!N3*1,IFERROR(SUBSTITUTE(PIMExport!N3,".",",")*1,PIMExport!N3)) -> 150 | O5: =IFERROR(PIMExport!O3*1,IFERROR(SUBSTITUTE(PIMExport!O3,".",",")*1,PIMExport!O3)) -> 1500 | P5: =IFERROR(PIMExport!P3*1,IFERROR(SUBSTITUTE(PIMExport!P3,".",",")*1,PIMExport!P3)) -> 3000 | Q5: =IFERROR(PIMExport!Q3*1,IFERROR(SUBSTITUTE(PIMExport!Q3,".",",")*1,PIMExport!Q3)) -> 4.6 | R5: =IFERROR(PIMExport!R3*1,IFERROR(SUBSTITUTE(PIMExport!R3,".",",")*1,PIMExport!R3)) -> 9 | S5: =IFERROR(PIMExport!S3*1,IFERROR(SUBSTITUTE(PIMExport!S3,".",",")*1,PIMExport!S3)) -> 12 | T5: =IFERROR(PIMExport!T3*1,IFERROR(SUBSTITUTE(PIMExport!T3,".",",")*1,PIMExport!T3)) -> 10 | U5: =IFERROR(PIMExport!U3*1,IFERROR(SUBSTITUTE(PIMExport!U3,".",",")*1,PIMExport!U3)) -> 0.1 | V5: =IFERROR(PIMExport!V3*1,IFERROR(SUBSTITUTE(PIMExport!V3,".",",")*1,PIMExport!V3)) -> 0 | W5: =IFERROR(PIMExport!W3*1,IFERROR(SUBSTITUTE(PIMExport!W3,".",",")*1,PIMExport!W3)) -> 0.8 | X5: =IFERROR(PIMExport!X3*1,IFERROR(SUBSTITUTE(PIMExport!X3,".",",")*1,PIMExport!X3)) -> 0 | Y5: =IFERROR(PIMExport!Y3*1,IFERROR(SUBSTITUTE(PIMExport!Y3,".",",")*1,PIMExport!Y3)) -> 1480 | Z5: =IFERROR(PIMExport!Z3*1,IFERROR(SUBSTITUTE(PIMExport!Z3,".",",")*1,PIMExport!Z3)) -> 1554.39 | AA5: =IFERROR(PIMExport!AA3*1,IFERROR(SUBSTITUTE(PIMExport!AA3,".",",")*1,PIMExport!AA3)) -> 0 | AB5: =IFERROR(PIMExport!AB3*1,IFERROR(SUBSTITUTE(PIMExport!AB3,".",",")*1,PIMExport!AB3)) -> 0 | AC5: =IFERROR(PIMExport!AC3*1,IFERROR(SUBSTITUTE(PIMExport!AC3,".",",")*1,PIMExport!AC3)) -> 92.8925 | AD5: =IFERROR(PIMExport!AD3*1,IFERROR(SUBSTITUTE(PIMExport!AD3,".",",")*1,PIMExport!AD3)) -> 0 | AE5: =IFERROR(PIMExport!AE3*1,IFERROR(SUBSTITUTE(PIMExport!AE3,".",",")*1,PIMExport!AE3)) -> 3000 | AF5: =IFERROR(PIMExport!AF3*1,IFERROR(SUBSTITUTE(PIMExport!AF3,".",",")*1,PIMExport!AF3)) -> 3000 | AG5: =IFERROR(PIMExport!AG3*1,IFERROR(SUBSTITUTE(PIMExport!AG3,".",",")*1,PIMExport!AG3)) -> 165 | AH5: =IFERROR(PIMExport!AH3*1,IFERROR(SUBSTITUTE(PIMExport!AH3,".",",")*1,PIMExport!AH3)) -> 310 | AI5: =IFERROR(PIMExport!AI3*1,IFERROR(SUBSTITUTE(PIMExport!AI3,".",",")*1,PIMExport!AI3)) -> 310 | AJ5: =IFERROR(PIMExport!AJ3*1,IFERROR(SUBSTITUTE(PIMExport!AJ3,".",",")*1,PIMExport!AJ3)) -> 0 | AK5: =IFERROR(PIMExport!AK3*1,IFERROR(SUBSTITUTE(PIMExport!AK3,".",",")*1,PIMExport!AK3)) -> 0 | AL5: =IFERROR(PIMExport!AL3*1,IFERROR(SUBSTITUTE(PIMExport!AL3,".",",")*1,PIMExport!AL3)) -> 6.75 | AM5: =IFERROR(PIMExport!AM3*1,IFERROR(SUBSTITUTE(PIMExport!AM3,".",",")*1,PIMExport!AM3)) -> 20 | AN5: =IFERROR(PIMExport!AN3*1,IFERROR(SUBSTITUTE(PIMExport!AN3,".",",")*1,PIMExport!AN3)) -> 1 | AO5: =IFERROR(PIMExport!AO3*1,IFERROR(SUBSTITUTE(PIMExport!AO3,".",",")*1,PIMExport!AO3)) -> 0 | AP5: =IFERROR(PIMExport!AP3*1,IFERROR(SUBSTITUTE(PIMExport!AP3,".",",")*1,PIMExport!AP3)) -> 0 | AQ5: =IFERROR(PIMExport!AQ3*1,IFERROR(SUBSTITUTE(PIMExport!AQ3,".",",")*1,PIMExport!AQ3)) -> 4100 | AR5: =IFERROR(PIMExport!AR3*1,IFERROR(SUBSTITUTE(PIMExport!AR3,".",",")*1,PIMExport!AR3)) -> 22.8 | AS5: =IFERROR(PIMExport!AS3*1,IFERROR(SUBSTITUTE(PIMExport!AS3,".",",")*1,PIMExport!AS3)) -> 250 | AT5: =IFERROR(PIMExport!AT3*1,IFERROR(SUBSTITUTE(PIMExport!AT3,".",",")*1,PIMExport!AT3)) -> 1 | AU5: =IFERROR(PIMExport!AU3*1,IFERROR(SUBSTITUTE(PIMExport!AU3,".",",")*1,PIMExport!AU3)) -> 0.5 | AV5: =IFERROR(PIMExport!AV3*1,IFERROR(SUBSTITUTE(PIMExport!AV3,".",",")*1,PIMExport!AV3)) -> 3.1 | AW5: =IFERROR(PIMExport!AW3*1,IFERROR(SUBSTITUTE(PIMExport!AW3,".",",")*1,PIMExport!AW3)) -> 3.6 | AX5: =IFERROR(PIMExport!AX3*1,IFERROR(SUBSTITUTE(PIMExport!AX3,".",",")*1,PIMExport!AX3)) -> 1302 | AY5: =IFERROR(PIMExport!AY3*1,IFERROR(SUBSTITUTE(PIMExport!AY3,".",",")*1,PIMExport!AY3)) -> 0.119 | AZ5: =IFERROR(PIMExport!AZ3*1,IFERROR(SUBSTITUTE(PIMExport!AZ3,".",",")*1,PIMExport!AZ3)) -> 6700 | BA5: =IFERROR(PIMExport!BA3*1,IFERROR(SUBSTITUTE(PIMExport!BA3,".",",")*1,PIMExport!BA3)) -> 7800 | BB5: =IFERROR(PIMExport!BB3*1,IFERROR(SUBSTITUTE(PIMExport!BB3,".",",")*1,PIMExport!BB3)) -> 42.97 | BC5: =IFERROR(PIMExport!BC3*1,IFERROR(SUBSTITUTE(PIMExport!BC3,".",",")*1,PIMExport!BC3)) -> 42.97 | BD5: =IFERROR(PIMExport!BD3*1,IFERROR(SUBSTITUTE(PIMExport!BD3,".",",")*1,PIMExport!BD3)) -> 25.47 | BE5: =IFERROR(PIMExport!BE3*1,IFERROR(SUBSTITUTE(PIMExport!BE3,".",",")*1,PIMExport!BE3)) -> 25.47 | BF5: =IFERROR(PIMExport!BF3*1,IFERROR(SUBSTITUTE(PIMExport!BF3,".",",")*1,PIMExport!BF3)) -> 0 | BG5: =IFERROR(PIMExport!BG3*1,IFERROR(SUBSTITUTE(PIMExport!BG3,".",",")*1,PIMExport!BG3)) -> 480 | BH5: =IFERROR(PIMExport!BH3*1,IFERROR(SUBSTITUTE(PIMExport!BH3,".",",")*1,PIMExport!BH3)) -> 0 | BI5: =IFERROR(PIMExport!BI3*1,IFERROR(SUBSTITUTE(PIMExport!BI3,".",",")*1,PIMExport!BI3)) -> 0 | BJ5: =IFERROR(PIMExport!BJ3*1,IFERROR(SUBSTITUTE(PIMExport!BJ3,".",",")*1,PIMExport!BJ3)) -> 0 | BK5: =IFERROR(PIMExport!BK3*1,IFERROR(SUBSTITUTE(PIMExport!BK3,".",",")*1,PIMExport!BK3)) -> 0 | BL5: =IFERROR(PIMExport!BL3*1,IFERROR(SUBSTITUTE(PIMExport!BL3,".",",")*1,PIMExport!BL3)) -> 0 | BM5: =IFERROR(PIMExport!BM3*1,IFERROR(SUBSTITUTE(PIMExport!BM3,".",",")*1,PIMExport!BM3)) -> 0 | BN5: =IFERROR(PIMExport!BN3*1,IFERROR(SUBSTITUTE(PIMExport!BN3,".",",")*1,PIMExport!BN3)) -> 0 | BO5: =IFERROR(PIMExport!BO3*1,IFERROR(SUBSTITUTE(PIMExport!BO3,".",",")*1,PIMExport!BO3)) -> 0 | BP5: =IFERROR(PIMExport!BP3*1,IFERROR(SUBSTITUTE(PIMExport!BP3,".",",")*1,PIMExport!BP3)) -> 0 | BQ5: =IFERROR(PIMExport!BQ3*1,IFERROR(SUBSTITUTE(PIMExport!BQ3,".",",")*1,PIMExport!BQ3)) -> 0 | BR5: =IFERROR(PIMExport!BR3*1,IFERROR(SUBSTITUTE(PIMExport!BR3,".",",")*1,PIMExport!BR3)) -> 0 | BS5: =IFERROR(PIMExport!BS3*1,IFERROR(SUBSTITUTE(PIMExport!BS3,".",",")*1,PIMExport!BS3)) -> 0 | BT5: =IFERROR(PIMExport!BT3*1,IFERROR(SUBSTITUTE(PIMExport!BT3,".",",")*1,PIMExport!BT3)) -> 0 | BU5: =IFERROR(PIMExport!BU3*1,IFERROR(SUBSTITUTE(PIMExport!BU3,".",",")*1,PIMExport!BU3)) -> 0 | BV5: =IFERROR(PIMExport!BV3*1,IFERROR(SUBSTITUTE(PIMExport!BV3,".",",")*1,PIMExport!BV3)) -> 0 | BW5: =IFERROR(PIMExport!BW3*1,IFERROR(SUBSTITUTE(PIMExport!BW3,".",",")*1,PIMExport!BW3)) -> 0 | BX5: =IFERROR(PIMExport!BX3*1,IFERROR(SUBSTITUTE(PIMExport!BX3,".",",")*1,PIMExport!BX3)) -> 0 | BY5: =IFERROR(PIMExport!BY3*1,IFERROR(SUBSTITUTE(PIMExport!BY3,".",",")*1,PIMExport!BY3)) -> 0 | BZ5: =IFERROR(PIMExport!BZ3*1,IFERROR(SUBSTITUTE(PIMExport!BZ3,".",",")*1,PIMExport!BZ3)) -> 0 | CA5: =IFERROR(PIMExport!CA3*1,IFERROR(SUBSTITUTE(PIMExport!CA3,".",",")*1,PIMExport!CA3)) -> 0 | CB5: =IFERROR(PIMExport!CB3*1,IFERROR(SUBSTITUTE(PIMExport!CB3,".",",")*1,PIMExport!CB3)) -> 0 | CC5: =IFERROR(PIMExport!CC3*1,IFERROR(SUBSTITUTE(PIMExport!CC3,".",",")*1,PIMExport!CC3)) -> 0 | CD5: =IFERROR(PIMExport!CD3*1,IFERROR(SUBSTITUTE(PIMExport!CD3,".",",")*1,PIMExport!CD3)) -> 0 | CE5: =IFERROR(PIMExport!CE3*1,IFERROR(SUBSTITUTE(PIMExport!CE3,".",",")*1,PIMExport!CE3)) -> 0 | CF5: =IFERROR(PIMExport!CF3*1,IFERROR(SUBSTITUTE(PIMExport!CF3,".",",")*1,PIMExport!CF3)) -> 0 | CG5: =IFERROR(PIMExport!CG3*1,IFERROR(SUBSTITUTE(PIMExport!CG3,".",",")*1,PIMExport!CG3)) -> 0 | CH5: =IFERROR(PIMExport!CH3*1,IFERROR(SUBSTITUTE(PIMExport!CH3,".",",")*1,PIMExport!CH3)) -> 0 | CI5: =IFERROR(PIMExport!CI3*1,IFERROR(SUBSTITUTE(PIMExport!CI3,".",",")*1,PIMExport!CI3)) -> 0 | CJ5: =IFERROR(PIMExport!CJ3*1,IFERROR(SUBSTITUTE(PIMExport!CJ3,".",",")*1,PIMExport!CJ3)) -> 0 | CK5: =IFERROR(PIMExport!CK3*1,IFERROR(SUBSTITUTE(PIMExport!CK3,".",",")*1,PIMExport!CK3)) -> 0 | CL5: =IFERROR(PIMExport!CL3*1,IFERROR(SUBSTITUTE(PIMExport!CL3,".",",")*1,PIMExport!CL3)) -> 0 | CM5: =IFERROR(PIMExport!CM3*1,IFERROR(SUBSTITUTE(PIMExport!CM3,".",",")*1,PIMExport!CM3)) -> 0 | CN5: =IFERROR(PIMExport!CN3*1,IFERROR(SUBSTITUTE(PIMExport!CN3,".",",")*1,PIMExport!CN3)) -> 0 | CO5: =IFERROR(PIMExport!CO3*1,IFERROR(SUBSTITUTE(PIMExport!CO3,".",",")*1,PIMExport!CO3)) -> 0 | CP5: =IFERROR(PIMExport!CP3*1,IFERROR(SUBSTITUTE(PIMExport!CP3,".",",")*1,PIMExport!CP3)) -> 0 | CQ5: =IFERROR(PIMExport!CQ3*1,IFERROR(SUBSTITUTE(PIMExport!CQ3,".",",")*1,PIMExport!CQ3)) -> 0 | CR5: =IFERROR(PIMExport!CR3*1,IFERROR(SUBSTITUTE(PIMExport!CR3,".",",")*1,PIMExport!CR3)) -> 0 | CS5: =IFERROR(PIMExport!CS3*1,IFERROR(SUBSTITUTE(PIMExport!CS3,".",",")*1,PIMExport!CS3)) -> 0 | CT5: =IFERROR(PIMExport!CT3*1,IFERROR(SUBSTITUTE(PIMExport!CT3,".",",")*1,PIMExport!CT3)) -> 0 | CU5: =IFERROR(PIMExport!CU3*1,IFERROR(SUBSTITUTE(PIMExport!CU3,".",",")*1,PIMExport!CU3)) -> 135 | CV5: =IFERROR(PIMExport!CV3*1,IFERROR(SUBSTITUTE(PIMExport!CV3,".",",")*1,PIMExport!CV3)) -> 0 | CW5: =IFERROR(PIMExport!CW3*1,IFERROR(SUBSTITUTE(PIMExport!CW3,".",",")*1,PIMExport!CW3)) -> 0 | CX5: =IFERROR(PIMExport!CX3*1,IFERROR(SUBSTITUTE(PIMExport!CX3,".",",")*1,PIMExport!CX3)) -> 0 | CY5: =IFERROR(PIMExport!CY3*1,IFERROR(SUBSTITUTE(PIMExport!CY3,".",",")*1,PIMExport!CY3)) -> 0 | CZ5: =IFERROR(PIMExport!CZ3*1,IFERROR(SUBSTITUTE(PIMExport!CZ3,".",",")*1,PIMExport!CZ3)) -> 0 | DA5: =IFERROR(PIMExport!DA3*1,IFERROR(SUBSTITUTE(PIMExport!DA3,".",",")*1,PIMExport!DA3)) -> 200 | DB5: =IFERROR(PIMExport!DB3*1,IFERROR(SUBSTITUTE(PIMExport!DB3,".",",")*1,PIMExport!DB3)) -> 0 | DC5: =IFERROR(PIMExport!DC3*1,IFERROR(SUBSTITUTE(PIMExport!DC3,".",",")*1,PIMExport!DC3)) -> 0 | DD5: =IFERROR(PIMExport!DD3*1,IFERROR(SUBSTITUTE(PIMExport!DD3,".",",")*1,PIMExport!DD3)) -> 0 | DE5: =IFERROR(PIMExport!DE3*1,IFERROR(SUBSTITUTE(PIMExport!DE3,".",",")*1,PIMExport!DE3)) -> 0 | DF5: =IFERROR(PIMExport!DF3*1,IFERROR(SUBSTITUTE(PIMExport!DF3,".",",")*1,PIMExport!DF3)) -> 0 | DG5: =IFERROR(PIMExport!DG3*1,IFERROR(SUBSTITUTE(PIMExport!DG3,".",",")*1,PIMExport!DG3)) -> 0 | DH5: =IFERROR(PIMExport!DH3*1,IFERROR(SUBSTITUTE(PIMExport!DH3,".",",")*1,PIMExport!DH3)) -> Equal to or better than 0.100 mm | DI5: =IFERROR(PIMExport!DI3*1,IFERROR(SUBSTITUTE(PIMExport!DI3,".",",")*1,PIMExport!DI3)) -> 32ATL5 | DJ5: =IFERROR(PIMExport!DJ3*1,IFERROR(SUBSTITUTE(PIMExport!DJ3,".",",")*1,PIMExport!DJ3)) -> 160 x 65 mm | DK5: =IFERROR(PIMExport!DK3*1,IFERROR(SUBSTITUTE(PIMExport!DK3,".",",")*1,PIMExport!DK3)) -> 0 | DL5: =IFERROR(PIMExport!DL3*1,IFERROR(SUBSTITUTE(PIMExport!DL3,".",",")*1,PIMExport!DL3)) -> 290 | DM5: =IFERROR(PIMExport!DM3*1,IFERROR(SUBSTITUTE(PIMExport!DM3,".",",")*1,PIMExport!DM3)) -> 5980 | DN5: =IFERROR(PIMExport!DN3*1,IFERROR(SUBSTITUTE(PIMExport!DN3,".",",")*1,PIMExport!DN3)) -> 0 | DO5: =IFERROR(PIMExport!DO3*1,IFERROR(SUBSTITUTE(PIMExport!DO3,".",",")*1,PIMExport!DO3)) -> 0
A6: =IFERROR(PIMExport!A4*1,IFERROR(SUBSTITUTE(PIMExport!A4,".",",")*1,PIMExport!A4)) -> MLSH06Z135-Z290 | B6: =IFERROR(PIMExport!B4*1,IFERROR(SUBSTITUTE(PIMExport!B4,".",",")*1,PIMExport!B4)) -> Belt | C6: =IFERROR(PIMExport!C4*1,IFERROR(SUBSTITUTE(PIMExport!C4,".",",")*1,PIMExport!C4)) -> Wheel | D6: =IFERROR(PIMExport!D4*1,IFERROR(SUBSTITUTE(PIMExport!D4,".",",")*1,PIMExport!D4)) -> 5380 | E6: =IFERROR(PIMExport!E4*1,IFERROR(SUBSTITUTE(PIMExport!E4,".",",")*1,PIMExport!E4)) -> 3.9 | F6: =IFERROR(PIMExport!F4*1,IFERROR(SUBSTITUTE(PIMExport!F4,".",",")*1,PIMExport!F4)) -> 0 | G6: =IFERROR(PIMExport!G4*1,IFERROR(SUBSTITUTE(PIMExport!G4,".",",")*1,PIMExport!G4)) -> 12.6 | H6: =IFERROR(PIMExport!H4*1,IFERROR(SUBSTITUTE(PIMExport!H4,".",",")*1,PIMExport!H4)) -> 1.33 | I6: =IFERROR(PIMExport!I4*1,IFERROR(SUBSTITUTE(PIMExport!I4,".",",")*1,PIMExport!I4)) -> 290 | J6: =IFERROR(PIMExport!J4*1,IFERROR(SUBSTITUTE(PIMExport!J4,".",",")*1,PIMExport!J4)) -> 102.5 | K6: =IFERROR(PIMExport!K4*1,IFERROR(SUBSTITUTE(PIMExport!K4,".",",")*1,PIMExport!K4)) -> 0 | L6: =IFERROR(PIMExport!L4*1,IFERROR(SUBSTITUTE(PIMExport!L4,".",",")*1,PIMExport!L4)) -> 0.000163 | M6: =IFERROR(PIMExport!M4*1,IFERROR(SUBSTITUTE(PIMExport!M4,".",",")*1,PIMExport!M4)) -> 0.9 | N6: =IFERROR(PIMExport!N4*1,IFERROR(SUBSTITUTE(PIMExport!N4,".",",")*1,PIMExport!N4)) -> 150 | O6: =IFERROR(PIMExport!O4*1,IFERROR(SUBSTITUTE(PIMExport!O4,".",",")*1,PIMExport!O4)) -> 1500 | P6: =IFERROR(PIMExport!P4*1,IFERROR(SUBSTITUTE(PIMExport!P4,".",",")*1,PIMExport!P4)) -> 3000 | Q6: =IFERROR(PIMExport!Q4*1,IFERROR(SUBSTITUTE(PIMExport!Q4,".",",")*1,PIMExport!Q4)) -> 4.6 | R6: =IFERROR(PIMExport!R4*1,IFERROR(SUBSTITUTE(PIMExport!R4,".",",")*1,PIMExport!R4)) -> 9 | S6: =IFERROR(PIMExport!S4*1,IFERROR(SUBSTITUTE(PIMExport!S4,".",",")*1,PIMExport!S4)) -> 12 | T6: =IFERROR(PIMExport!T4*1,IFERROR(SUBSTITUTE(PIMExport!T4,".",",")*1,PIMExport!T4)) -> 10 | U6: =IFERROR(PIMExport!U4*1,IFERROR(SUBSTITUTE(PIMExport!U4,".",",")*1,PIMExport!U4)) -> 0.1 | V6: =IFERROR(PIMExport!V4*1,IFERROR(SUBSTITUTE(PIMExport!V4,".",",")*1,PIMExport!V4)) -> 0 | W6: =IFERROR(PIMExport!W4*1,IFERROR(SUBSTITUTE(PIMExport!W4,".",",")*1,PIMExport!W4)) -> 0.8 | X6: =IFERROR(PIMExport!X4*1,IFERROR(SUBSTITUTE(PIMExport!X4,".",",")*1,PIMExport!X4)) -> 0 | Y6: =IFERROR(PIMExport!Y4*1,IFERROR(SUBSTITUTE(PIMExport!Y4,".",",")*1,PIMExport!Y4)) -> 1480 | Z6: =IFERROR(PIMExport!Z4*1,IFERROR(SUBSTITUTE(PIMExport!Z4,".",",")*1,PIMExport!Z4)) -> 1554.39 | AA6: =IFERROR(PIMExport!AA4*1,IFERROR(SUBSTITUTE(PIMExport!AA4,".",",")*1,PIMExport!AA4)) -> 0 | AB6: =IFERROR(PIMExport!AB4*1,IFERROR(SUBSTITUTE(PIMExport!AB4,".",",")*1,PIMExport!AB4)) -> 0 | AC6: =IFERROR(PIMExport!AC4*1,IFERROR(SUBSTITUTE(PIMExport!AC4,".",",")*1,PIMExport!AC4)) -> 92.8925 | AD6: =IFERROR(PIMExport!AD4*1,IFERROR(SUBSTITUTE(PIMExport!AD4,".",",")*1,PIMExport!AD4)) -> 0 | AE6: =IFERROR(PIMExport!AE4*1,IFERROR(SUBSTITUTE(PIMExport!AE4,".",",")*1,PIMExport!AE4)) -> 3000 | AF6: =IFERROR(PIMExport!AF4*1,IFERROR(SUBSTITUTE(PIMExport!AF4,".",",")*1,PIMExport!AF4)) -> 3000 | AG6: =IFERROR(PIMExport!AG4*1,IFERROR(SUBSTITUTE(PIMExport!AG4,".",",")*1,PIMExport!AG4)) -> 165 | AH6: =IFERROR(PIMExport!AH4*1,IFERROR(SUBSTITUTE(PIMExport!AH4,".",",")*1,PIMExport!AH4)) -> 0 | AI6: =IFERROR(PIMExport!AI4*1,IFERROR(SUBSTITUTE(PIMExport!AI4,".",",")*1,PIMExport!AI4)) -> 0 | AJ6: =IFERROR(PIMExport!AJ4*1,IFERROR(SUBSTITUTE(PIMExport!AJ4,".",",")*1,PIMExport!AJ4)) -> 3 | AK6: =IFERROR(PIMExport!AK4*1,IFERROR(SUBSTITUTE(PIMExport!AK4,".",",")*1,PIMExport!AK4)) -> 3 | AL6: =IFERROR(PIMExport!AL4*1,IFERROR(SUBSTITUTE(PIMExport!AL4,".",",")*1,PIMExport!AL4)) -> 6.75 | AM6: =IFERROR(PIMExport!AM4*1,IFERROR(SUBSTITUTE(PIMExport!AM4,".",",")*1,PIMExport!AM4)) -> 20 | AN6: =IFERROR(PIMExport!AN4*1,IFERROR(SUBSTITUTE(PIMExport!AN4,".",",")*1,PIMExport!AN4)) -> 2 | AO6: =IFERROR(PIMExport!AO4*1,IFERROR(SUBSTITUTE(PIMExport!AO4,".",",")*1,PIMExport!AO4)) -> 0 | AP6: =IFERROR(PIMExport!AP4*1,IFERROR(SUBSTITUTE(PIMExport!AP4,".",",")*1,PIMExport!AP4)) -> 0 | AQ6: =IFERROR(PIMExport!AQ4*1,IFERROR(SUBSTITUTE(PIMExport!AQ4,".",",")*1,PIMExport!AQ4)) -> 4100 | AR6: =IFERROR(PIMExport!AR4*1,IFERROR(SUBSTITUTE(PIMExport!AR4,".",",")*1,PIMExport!AR4)) -> 22.8 | AS6: =IFERROR(PIMExport!AS4*1,IFERROR(SUBSTITUTE(PIMExport!AS4,".",",")*1,PIMExport!AS4)) -> 250 | AT6: =IFERROR(PIMExport!AT4*1,IFERROR(SUBSTITUTE(PIMExport!AT4,".",",")*1,PIMExport!AT4)) -> 1 | AU6: =IFERROR(PIMExport!AU4*1,IFERROR(SUBSTITUTE(PIMExport!AU4,".",",")*1,PIMExport!AU4)) -> 0.5 | AV6: =IFERROR(PIMExport!AV4*1,IFERROR(SUBSTITUTE(PIMExport!AV4,".",",")*1,PIMExport!AV4)) -> 3.1 | AW6: =IFERROR(PIMExport!AW4*1,IFERROR(SUBSTITUTE(PIMExport!AW4,".",",")*1,PIMExport!AW4)) -> 3.6 | AX6: =IFERROR(PIMExport!AX4*1,IFERROR(SUBSTITUTE(PIMExport!AX4,".",",")*1,PIMExport!AX4)) -> 1302 | AY6: =IFERROR(PIMExport!AY4*1,IFERROR(SUBSTITUTE(PIMExport!AY4,".",",")*1,PIMExport!AY4)) -> 0.119 | AZ6: =IFERROR(PIMExport!AZ4*1,IFERROR(SUBSTITUTE(PIMExport!AZ4,".",",")*1,PIMExport!AZ4)) -> 6700 | BA6: =IFERROR(PIMExport!BA4*1,IFERROR(SUBSTITUTE(PIMExport!BA4,".",",")*1,PIMExport!BA4)) -> 7800 | BB6: =IFERROR(PIMExport!BB4*1,IFERROR(SUBSTITUTE(PIMExport!BB4,".",",")*1,PIMExport!BB4)) -> 42.97 | BC6: =IFERROR(PIMExport!BC4*1,IFERROR(SUBSTITUTE(PIMExport!BC4,".",",")*1,PIMExport!BC4)) -> 42.97 | BD6: =IFERROR(PIMExport!BD4*1,IFERROR(SUBSTITUTE(PIMExport!BD4,".",",")*1,PIMExport!BD4)) -> 25.47 | BE6: =IFERROR(PIMExport!BE4*1,IFERROR(SUBSTITUTE(PIMExport!BE4,".",",")*1,PIMExport!BE4)) -> 25.47 | BF6: =IFERROR(PIMExport!BF4*1,IFERROR(SUBSTITUTE(PIMExport!BF4,".",",")*1,PIMExport!BF4)) -> 0 | BG6: =IFERROR(PIMExport!BG4*1,IFERROR(SUBSTITUTE(PIMExport!BG4,".",",")*1,PIMExport!BG4)) -> 480 | BH6: =IFERROR(PIMExport!BH4*1,IFERROR(SUBSTITUTE(PIMExport!BH4,".",",")*1,PIMExport!BH4)) -> 0 | BI6: =IFERROR(PIMExport!BI4*1,IFERROR(SUBSTITUTE(PIMExport!BI4,".",",")*1,PIMExport!BI4)) -> 0 | BJ6: =IFERROR(PIMExport!BJ4*1,IFERROR(SUBSTITUTE(PIMExport!BJ4,".",",")*1,PIMExport!BJ4)) -> 0 | BK6: =IFERROR(PIMExport!BK4*1,IFERROR(SUBSTITUTE(PIMExport!BK4,".",",")*1,PIMExport!BK4)) -> 0 | BL6: =IFERROR(PIMExport!BL4*1,IFERROR(SUBSTITUTE(PIMExport!BL4,".",",")*1,PIMExport!BL4)) -> 0 | BM6: =IFERROR(PIMExport!BM4*1,IFERROR(SUBSTITUTE(PIMExport!BM4,".",",")*1,PIMExport!BM4)) -> 0 | BN6: =IFERROR(PIMExport!BN4*1,IFERROR(SUBSTITUTE(PIMExport!BN4,".",",")*1,PIMExport!BN4)) -> 0 | BO6: =IFERROR(PIMExport!BO4*1,IFERROR(SUBSTITUTE(PIMExport!BO4,".",",")*1,PIMExport!BO4)) -> 0 | BP6: =IFERROR(PIMExport!BP4*1,IFERROR(SUBSTITUTE(PIMExport!BP4,".",",")*1,PIMExport!BP4)) -> 0 | BQ6: =IFERROR(PIMExport!BQ4*1,IFERROR(SUBSTITUTE(PIMExport!BQ4,".",",")*1,PIMExport!BQ4)) -> 0 | BR6: =IFERROR(PIMExport!BR4*1,IFERROR(SUBSTITUTE(PIMExport!BR4,".",",")*1,PIMExport!BR4)) -> 0 | BS6: =IFERROR(PIMExport!BS4*1,IFERROR(SUBSTITUTE(PIMExport!BS4,".",",")*1,PIMExport!BS4)) -> 0 | BT6: =IFERROR(PIMExport!BT4*1,IFERROR(SUBSTITUTE(PIMExport!BT4,".",",")*1,PIMExport!BT4)) -> 0 | BU6: =IFERROR(PIMExport!BU4*1,IFERROR(SUBSTITUTE(PIMExport!BU4,".",",")*1,PIMExport!BU4)) -> 0 | BV6: =IFERROR(PIMExport!BV4*1,IFERROR(SUBSTITUTE(PIMExport!BV4,".",",")*1,PIMExport!BV4)) -> 0 | BW6: =IFERROR(PIMExport!BW4*1,IFERROR(SUBSTITUTE(PIMExport!BW4,".",",")*1,PIMExport!BW4)) -> 0 | BX6: =IFERROR(PIMExport!BX4*1,IFERROR(SUBSTITUTE(PIMExport!BX4,".",",")*1,PIMExport!BX4)) -> 0 | BY6: =IFERROR(PIMExport!BY4*1,IFERROR(SUBSTITUTE(PIMExport!BY4,".",",")*1,PIMExport!BY4)) -> 0 | BZ6: =IFERROR(PIMExport!BZ4*1,IFERROR(SUBSTITUTE(PIMExport!BZ4,".",",")*1,PIMExport!BZ4)) -> 0 | CA6: =IFERROR(PIMExport!CA4*1,IFERROR(SUBSTITUTE(PIMExport!CA4,".",",")*1,PIMExport!CA4)) -> 0 | CB6: =IFERROR(PIMExport!CB4*1,IFERROR(SUBSTITUTE(PIMExport!CB4,".",",")*1,PIMExport!CB4)) -> 0 | CC6: =IFERROR(PIMExport!CC4*1,IFERROR(SUBSTITUTE(PIMExport!CC4,".",",")*1,PIMExport!CC4)) -> 0 | CD6: =IFERROR(PIMExport!CD4*1,IFERROR(SUBSTITUTE(PIMExport!CD4,".",",")*1,PIMExport!CD4)) -> 0 | CE6: =IFERROR(PIMExport!CE4*1,IFERROR(SUBSTITUTE(PIMExport!CE4,".",",")*1,PIMExport!CE4)) -> 0 | CF6: =IFERROR(PIMExport!CF4*1,IFERROR(SUBSTITUTE(PIMExport!CF4,".",",")*1,PIMExport!CF4)) -> 0 | CG6: =IFERROR(PIMExport!CG4*1,IFERROR(SUBSTITUTE(PIMExport!CG4,".",",")*1,PIMExport!CG4)) -> 0 | CH6: =IFERROR(PIMExport!CH4*1,IFERROR(SUBSTITUTE(PIMExport!CH4,".",",")*1,PIMExport!CH4)) -> 0 | CI6: =IFERROR(PIMExport!CI4*1,IFERROR(SUBSTITUTE(PIMExport!CI4,".",",")*1,PIMExport!CI4)) -> 0 | CJ6: =IFERROR(PIMExport!CJ4*1,IFERROR(SUBSTITUTE(PIMExport!CJ4,".",",")*1,PIMExport!CJ4)) -> 0 | CK6: =IFERROR(PIMExport!CK4*1,IFERROR(SUBSTITUTE(PIMExport!CK4,".",",")*1,PIMExport!CK4)) -> 0 | CL6: =IFERROR(PIMExport!CL4*1,IFERROR(SUBSTITUTE(PIMExport!CL4,".",",")*1,PIMExport!CL4)) -> 0 | CM6: =IFERROR(PIMExport!CM4*1,IFERROR(SUBSTITUTE(PIMExport!CM4,".",",")*1,PIMExport!CM4)) -> 0 | CN6: =IFERROR(PIMExport!CN4*1,IFERROR(SUBSTITUTE(PIMExport!CN4,".",",")*1,PIMExport!CN4)) -> 0 | CO6: =IFERROR(PIMExport!CO4*1,IFERROR(SUBSTITUTE(PIMExport!CO4,".",",")*1,PIMExport!CO4)) -> 0 | CP6: =IFERROR(PIMExport!CP4*1,IFERROR(SUBSTITUTE(PIMExport!CP4,".",",")*1,PIMExport!CP4)) -> 0 | CQ6: =IFERROR(PIMExport!CQ4*1,IFERROR(SUBSTITUTE(PIMExport!CQ4,".",",")*1,PIMExport!CQ4)) -> 0 | CR6: =IFERROR(PIMExport!CR4*1,IFERROR(SUBSTITUTE(PIMExport!CR4,".",",")*1,PIMExport!CR4)) -> 0 | CS6: =IFERROR(PIMExport!CS4*1,IFERROR(SUBSTITUTE(PIMExport!CS4,".",",")*1,PIMExport!CS4)) -> 0 | CT6: =IFERROR(PIMExport!CT4*1,IFERROR(SUBSTITUTE(PIMExport!CT4,".",",")*1,PIMExport!CT4)) -> 0 | CU6: =IFERROR(PIMExport!CU4*1,IFERROR(SUBSTITUTE(PIMExport!CU4,".",",")*1,PIMExport!CU4)) -> 135 | CV6: =IFERROR(PIMExport!CV4*1,IFERROR(SUBSTITUTE(PIMExport!CV4,".",",")*1,PIMExport!CV4)) -> 0 | CW6: =IFERROR(PIMExport!CW4*1,IFERROR(SUBSTITUTE(PIMExport!CW4,".",",")*1,PIMExport!CW4)) -> 0 | CX6: =IFERROR(PIMExport!CX4*1,IFERROR(SUBSTITUTE(PIMExport!CX4,".",",")*1,PIMExport!CX4)) -> 0 | CY6: =IFERROR(PIMExport!CY4*1,IFERROR(SUBSTITUTE(PIMExport!CY4,".",",")*1,PIMExport!CY4)) -> 0 | CZ6: =IFERROR(PIMExport!CZ4*1,IFERROR(SUBSTITUTE(PIMExport!CZ4,".",",")*1,PIMExport!CZ4)) -> 0 | DA6: =IFERROR(PIMExport!DA4*1,IFERROR(SUBSTITUTE(PIMExport!DA4,".",",")*1,PIMExport!DA4)) -> 200 | DB6: =IFERROR(PIMExport!DB4*1,IFERROR(SUBSTITUTE(PIMExport!DB4,".",",")*1,PIMExport!DB4)) -> 0 | DC6: =IFERROR(PIMExport!DC4*1,IFERROR(SUBSTITUTE(PIMExport!DC4,".",",")*1,PIMExport!DC4)) -> 0 | DD6: =IFERROR(PIMExport!DD4*1,IFERROR(SUBSTITUTE(PIMExport!DD4,".",",")*1,PIMExport!DD4)) -> 0 | DE6: =IFERROR(PIMExport!DE4*1,IFERROR(SUBSTITUTE(PIMExport!DE4,".",",")*1,PIMExport!DE4)) -> 0 | DF6: =IFERROR(PIMExport!DF4*1,IFERROR(SUBSTITUTE(PIMExport!DF4,".",",")*1,PIMExport!DF4)) -> 0 | DG6: =IFERROR(PIMExport!DG4*1,IFERROR(SUBSTITUTE(PIMExport!DG4,".",",")*1,PIMExport!DG4)) -> 0 | DH6: =IFERROR(PIMExport!DH4*1,IFERROR(SUBSTITUTE(PIMExport!DH4,".",",")*1,PIMExport!DH4)) -> Equal to or better than 0.100 mm | DI6: =IFERROR(PIMExport!DI4*1,IFERROR(SUBSTITUTE(PIMExport!DI4,".",",")*1,PIMExport!DI4)) -> 32ATL5 | DJ6: =IFERROR(PIMExport!DJ4*1,IFERROR(SUBSTITUTE(PIMExport!DJ4,".",",")*1,PIMExport!DJ4)) -> 160 x 65 mm | DK6: =IFERROR(PIMExport!DK4*1,IFERROR(SUBSTITUTE(PIMExport!DK4,".",",")*1,PIMExport!DK4)) -> 0 | DL6: =IFERROR(PIMExport!DL4*1,IFERROR(SUBSTITUTE(PIMExport!DL4,".",",")*1,PIMExport!DL4)) -> 580 | DM6: =IFERROR(PIMExport!DM4*1,IFERROR(SUBSTITUTE(PIMExport!DM4,".",",")*1,PIMExport!DM4)) -> 6150 | DN6: =IFERROR(PIMExport!DN4*1,IFERROR(SUBSTITUTE(PIMExport!DN4,".",",")*1,PIMExport!DN4)) -> 0 | DO6: =IFERROR(PIMExport!DO4*1,IFERROR(SUBSTITUTE(PIMExport!DO4,".",",")*1,PIMExport!DO4)) -> 0
A7: =IFERROR(PIMExport!A5*1,IFERROR(SUBSTITUTE(PIMExport!A5,".",",")*1,PIMExport!A5)) -> MLSM06D05-N | B7: =IFERROR(PIMExport!B5*1,IFERROR(SUBSTITUTE(PIMExport!B5,".",",")*1,PIMExport!B5)) -> BallScrew | C7: =IFERROR(PIMExport!C5*1,IFERROR(SUBSTITUTE(PIMExport!C5,".",",")*1,PIMExport!C5)) -> Ball Guide | D7: =IFERROR(PIMExport!D5*1,IFERROR(SUBSTITUTE(PIMExport!D5,".",",")*1,PIMExport!D5)) -> 4985 | E7: =IFERROR(PIMExport!E5*1,IFERROR(SUBSTITUTE(PIMExport!E5,".",",")*1,PIMExport!E5)) -> 5.7 | F7: =IFERROR(PIMExport!F5*1,IFERROR(SUBSTITUTE(PIMExport!F5,".",",")*1,PIMExport!F5)) -> 0 | G7: =IFERROR(PIMExport!G5*1,IFERROR(SUBSTITUTE(PIMExport!G5,".",",")*1,PIMExport!G5)) -> 14.4 | H7: =IFERROR(PIMExport!H5*1,IFERROR(SUBSTITUTE(PIMExport!H5,".",",")*1,PIMExport!H5)) -> 1.65 | I7: =IFERROR(PIMExport!I5*1,IFERROR(SUBSTITUTE(PIMExport!I5,".",",")*1,PIMExport!I5)) -> 163 | J7: =IFERROR(PIMExport!J5*1,IFERROR(SUBSTITUTE(PIMExport!J5,".",",")*1,PIMExport!J5)) -> 105 | K7: =IFERROR(PIMExport!K5*1,IFERROR(SUBSTITUTE(PIMExport!K5,".",",")*1,PIMExport!K5)) -> 0 | L7: =IFERROR(PIMExport!L5*1,IFERROR(SUBSTITUTE(PIMExport!L5,".",",")*1,PIMExport!L5)) -> 3.9e-05 | M7: =IFERROR(PIMExport!M5*1,IFERROR(SUBSTITUTE(PIMExport!M5,".",",")*1,PIMExport!M5)) -> 0.9 | N7: =IFERROR(PIMExport!N5*1,IFERROR(SUBSTITUTE(PIMExport!N5,".",",")*1,PIMExport!N5)) -> 150 | O7: =IFERROR(PIMExport!O5*1,IFERROR(SUBSTITUTE(PIMExport!O5,".",",")*1,PIMExport!O5)) -> 1500 | P7: =IFERROR(PIMExport!P5*1,IFERROR(SUBSTITUTE(PIMExport!P5,".",",")*1,PIMExport!P5)) -> 3000 | Q7: =IFERROR(PIMExport!Q5*1,IFERROR(SUBSTITUTE(PIMExport!Q5,".",",")*1,PIMExport!Q5)) -> 1 | R7: =IFERROR(PIMExport!R5*1,IFERROR(SUBSTITUTE(PIMExport!R5,".",",")*1,PIMExport!R5)) -> 1.6 | S7: =IFERROR(PIMExport!S5*1,IFERROR(SUBSTITUTE(PIMExport!S5,".",",")*1,PIMExport!S5)) -> 2 | T7: =IFERROR(PIMExport!T5*1,IFERROR(SUBSTITUTE(PIMExport!T5,".",",")*1,PIMExport!T5)) -> 27 | U7: =IFERROR(PIMExport!U5*1,IFERROR(SUBSTITUTE(PIMExport!U5,".",",")*1,PIMExport!U5)) -> 0.1 | V7: =IFERROR(PIMExport!V5*1,IFERROR(SUBSTITUTE(PIMExport!V5,".",",")*1,PIMExport!V5)) -> 0 | W7: =IFERROR(PIMExport!W5*1,IFERROR(SUBSTITUTE(PIMExport!W5,".",",")*1,PIMExport!W5)) -> 0 | X7: =IFERROR(PIMExport!X5*1,IFERROR(SUBSTITUTE(PIMExport!X5,".",",")*1,PIMExport!X5)) -> 0 | Y7: =IFERROR(PIMExport!Y5*1,IFERROR(SUBSTITUTE(PIMExport!Y5,".",",")*1,PIMExport!Y5)) -> 5000 | Z7: =IFERROR(PIMExport!Z5*1,IFERROR(SUBSTITUTE(PIMExport!Z5,".",",")*1,PIMExport!Z5)) -> 0 | AA7: =IFERROR(PIMExport!AA5*1,IFERROR(SUBSTITUTE(PIMExport!AA5,".",",")*1,PIMExport!AA5)) -> 0 | AB7: =IFERROR(PIMExport!AB5*1,IFERROR(SUBSTITUTE(PIMExport!AB5,".",",")*1,PIMExport!AB5)) -> 0 | AC7: =IFERROR(PIMExport!AC5*1,IFERROR(SUBSTITUTE(PIMExport!AC5,".",",")*1,PIMExport!AC5)) -> 0 | AD7: =IFERROR(PIMExport!AD5*1,IFERROR(SUBSTITUTE(PIMExport!AD5,".",",")*1,PIMExport!AD5)) -> 0 | AE7: =IFERROR(PIMExport!AE5*1,IFERROR(SUBSTITUTE(PIMExport!AE5,".",",")*1,PIMExport!AE5)) -> 6000 | AF7: =IFERROR(PIMExport!AF5*1,IFERROR(SUBSTITUTE(PIMExport!AF5,".",",")*1,PIMExport!AF5)) -> 6000 | AG7: =IFERROR(PIMExport!AG5*1,IFERROR(SUBSTITUTE(PIMExport!AG5,".",",")*1,PIMExport!AG5)) -> 400 | AH7: =IFERROR(PIMExport!AH5*1,IFERROR(SUBSTITUTE(PIMExport!AH5,".",",")*1,PIMExport!AH5)) -> 460 | AI7: =IFERROR(PIMExport!AI5*1,IFERROR(SUBSTITUTE(PIMExport!AI5,".",",")*1,PIMExport!AI5)) -> 460 | AJ7: =IFERROR(PIMExport!AJ5*1,IFERROR(SUBSTITUTE(PIMExport!AJ5,".",",")*1,PIMExport!AJ5)) -> 0 | AK7: =IFERROR(PIMExport!AK5*1,IFERROR(SUBSTITUTE(PIMExport!AK5,".",",")*1,PIMExport!AK5)) -> 0 | AL7: =IFERROR(PIMExport!AL5*1,IFERROR(SUBSTITUTE(PIMExport!AL5,".",",")*1,PIMExport!AL5)) -> 0.25 | AM7: =IFERROR(PIMExport!AM5*1,IFERROR(SUBSTITUTE(PIMExport!AM5,".",",")*1,PIMExport!AM5)) -> 20 | AN7: =IFERROR(PIMExport!AN5*1,IFERROR(SUBSTITUTE(PIMExport!AN5,".",",")*1,PIMExport!AN5)) -> 1 | AO7: =IFERROR(PIMExport!AO5*1,IFERROR(SUBSTITUTE(PIMExport!AO5,".",",")*1,PIMExport!AO5)) -> 55080 | AP7: =IFERROR(PIMExport!AP5*1,IFERROR(SUBSTITUTE(PIMExport!AP5,".",",")*1,PIMExport!AP5)) -> 500 | AQ7: =IFERROR(PIMExport!AQ5*1,IFERROR(SUBSTITUTE(PIMExport!AQ5,".",",")*1,PIMExport!AQ5)) -> 0 | AR7: =IFERROR(PIMExport!AR5*1,IFERROR(SUBSTITUTE(PIMExport!AR5,".",",")*1,PIMExport!AR5)) -> 0 | AS7: =IFERROR(PIMExport!AS5*1,IFERROR(SUBSTITUTE(PIMExport!AS5,".",",")*1,PIMExport!AS5)) -> 0 | AT7: =IFERROR(PIMExport!AT5*1,IFERROR(SUBSTITUTE(PIMExport!AT5,".",",")*1,PIMExport!AT5)) -> 0 | AU7: =IFERROR(PIMExport!AU5*1,IFERROR(SUBSTITUTE(PIMExport!AU5,".",",")*1,PIMExport!AU5)) -> 0 | AV7: =IFERROR(PIMExport!AV5*1,IFERROR(SUBSTITUTE(PIMExport!AV5,".",",")*1,PIMExport!AV5)) -> 0 | AW7: =IFERROR(PIMExport!AW5*1,IFERROR(SUBSTITUTE(PIMExport!AW5,".",",")*1,PIMExport!AW5)) -> 0 | AX7: =IFERROR(PIMExport!AX5*1,IFERROR(SUBSTITUTE(PIMExport!AX5,".",",")*1,PIMExport!AX5)) -> 0 | AY7: =IFERROR(PIMExport!AY5*1,IFERROR(SUBSTITUTE(PIMExport!AY5,".",",")*1,PIMExport!AY5)) -> 0 | AZ7: =IFERROR(PIMExport!AZ5*1,IFERROR(SUBSTITUTE(PIMExport!AZ5,".",",")*1,PIMExport!AZ5)) -> 0 | BA7: =IFERROR(PIMExport!BA5*1,IFERROR(SUBSTITUTE(PIMExport!BA5,".",",")*1,PIMExport!BA5)) -> 0 | BB7: =IFERROR(PIMExport!BB5*1,IFERROR(SUBSTITUTE(PIMExport!BB5,".",",")*1,PIMExport!BB5)) -> 0 | BC7: =IFERROR(PIMExport!BC5*1,IFERROR(SUBSTITUTE(PIMExport!BC5,".",",")*1,PIMExport!BC5)) -> 0 | BD7: =IFERROR(PIMExport!BD5*1,IFERROR(SUBSTITUTE(PIMExport!BD5,".",",")*1,PIMExport!BD5)) -> 0 | BE7: =IFERROR(PIMExport!BE5*1,IFERROR(SUBSTITUTE(PIMExport!BE5,".",",")*1,PIMExport!BE5)) -> 0 | BF7: =IFERROR(PIMExport!BF5*1,IFERROR(SUBSTITUTE(PIMExport!BF5,".",",")*1,PIMExport!BF5)) -> 0 | BG7: =IFERROR(PIMExport!BG5*1,IFERROR(SUBSTITUTE(PIMExport!BG5,".",",")*1,PIMExport!BG5)) -> 435 | BH7: =IFERROR(PIMExport!BH5*1,IFERROR(SUBSTITUTE(PIMExport!BH5,".",",")*1,PIMExport!BH5)) -> 495 | BI7: =IFERROR(PIMExport!BI5*1,IFERROR(SUBSTITUTE(PIMExport!BI5,".",",")*1,PIMExport!BI5)) -> 535 | BJ7: =IFERROR(PIMExport!BJ5*1,IFERROR(SUBSTITUTE(PIMExport!BJ5,".",",")*1,PIMExport!BJ5)) -> 585 | BK7: =IFERROR(PIMExport!BK5*1,IFERROR(SUBSTITUTE(PIMExport!BK5,".",",")*1,PIMExport!BK5)) -> 625 | BL7: =IFERROR(PIMExport!BL5*1,IFERROR(SUBSTITUTE(PIMExport!BL5,".",",")*1,PIMExport!BL5)) -> 675 | BM7: =IFERROR(PIMExport!BM5*1,IFERROR(SUBSTITUTE(PIMExport!BM5,".",",")*1,PIMExport!BM5)) -> 715 | BN7: =IFERROR(PIMExport!BN5*1,IFERROR(SUBSTITUTE(PIMExport!BN5,".",",")*1,PIMExport!BN5)) -> 755 | BO7: =IFERROR(PIMExport!BO5*1,IFERROR(SUBSTITUTE(PIMExport!BO5,".",",")*1,PIMExport!BO5)) -> 0 | BP7: =IFERROR(PIMExport!BP5*1,IFERROR(SUBSTITUTE(PIMExport!BP5,".",",")*1,PIMExport!BP5)) -> 0 | BQ7: =IFERROR(PIMExport!BQ5*1,IFERROR(SUBSTITUTE(PIMExport!BQ5,".",",")*1,PIMExport!BQ5)) -> 0 | BR7: =IFERROR(PIMExport!BR5*1,IFERROR(SUBSTITUTE(PIMExport!BR5,".",",")*1,PIMExport!BR5)) -> 0 | BS7: =IFERROR(PIMExport!BS5*1,IFERROR(SUBSTITUTE(PIMExport!BS5,".",",")*1,PIMExport!BS5)) -> 0 | BT7: =IFERROR(PIMExport!BT5*1,IFERROR(SUBSTITUTE(PIMExport!BT5,".",",")*1,PIMExport!BT5)) -> 0 | BU7: =IFERROR(PIMExport!BU5*1,IFERROR(SUBSTITUTE(PIMExport!BU5,".",",")*1,PIMExport!BU5)) -> 0 | BV7: =IFERROR(PIMExport!BV5*1,IFERROR(SUBSTITUTE(PIMExport!BV5,".",",")*1,PIMExport!BV5)) -> 0 | BW7: =IFERROR(PIMExport!BW5*1,IFERROR(SUBSTITUTE(PIMExport!BW5,".",",")*1,PIMExport!BW5)) -> 0 | BX7: =IFERROR(PIMExport!BX5*1,IFERROR(SUBSTITUTE(PIMExport!BX5,".",",")*1,PIMExport!BX5)) -> 0 | BY7: =IFERROR(PIMExport!BY5*1,IFERROR(SUBSTITUTE(PIMExport!BY5,".",",")*1,PIMExport!BY5)) -> 0 | BZ7: =IFERROR(PIMExport!BZ5*1,IFERROR(SUBSTITUTE(PIMExport!BZ5,".",",")*1,PIMExport!BZ5)) -> 0 | CA7: =IFERROR(PIMExport!CA5*1,IFERROR(SUBSTITUTE(PIMExport!CA5,".",",")*1,PIMExport!CA5)) -> 0 | CB7: =IFERROR(PIMExport!CB5*1,IFERROR(SUBSTITUTE(PIMExport!CB5,".",",")*1,PIMExport!CB5)) -> 751 | CC7: =IFERROR(PIMExport!CC5*1,IFERROR(SUBSTITUTE(PIMExport!CC5,".",",")*1,PIMExport!CC5)) -> 1221 | CD7: =IFERROR(PIMExport!CD5*1,IFERROR(SUBSTITUTE(PIMExport!CD5,".",",")*1,PIMExport!CD5)) -> 1981 | CE7: =IFERROR(PIMExport!CE5*1,IFERROR(SUBSTITUTE(PIMExport!CE5,".",",")*1,PIMExport!CE5)) -> 2731 | CF7: =IFERROR(PIMExport!CF5*1,IFERROR(SUBSTITUTE(PIMExport!CF5,".",",")*1,PIMExport!CF5)) -> 3491 | CG7: =IFERROR(PIMExport!CG5*1,IFERROR(SUBSTITUTE(PIMExport!CG5,".",",")*1,PIMExport!CG5)) -> 4241 | CH7: =IFERROR(PIMExport!CH5*1,IFERROR(SUBSTITUTE(PIMExport!CH5,".",",")*1,PIMExport!CH5)) -> 5001 | CI7: =IFERROR(PIMExport!CI5*1,IFERROR(SUBSTITUTE(PIMExport!CI5,".",",")*1,PIMExport!CI5)) -> 0 | CJ7: =IFERROR(PIMExport!CJ5*1,IFERROR(SUBSTITUTE(PIMExport!CJ5,".",",")*1,PIMExport!CJ5)) -> 0 | CK7: =IFERROR(PIMExport!CK5*1,IFERROR(SUBSTITUTE(PIMExport!CK5,".",",")*1,PIMExport!CK5)) -> 0 | CL7: =IFERROR(PIMExport!CL5*1,IFERROR(SUBSTITUTE(PIMExport!CL5,".",",")*1,PIMExport!CL5)) -> 0 | CM7: =IFERROR(PIMExport!CM5*1,IFERROR(SUBSTITUTE(PIMExport!CM5,".",",")*1,PIMExport!CM5)) -> 0 | CN7: =IFERROR(PIMExport!CN5*1,IFERROR(SUBSTITUTE(PIMExport!CN5,".",",")*1,PIMExport!CN5)) -> 0 | CO7: =IFERROR(PIMExport!CO5*1,IFERROR(SUBSTITUTE(PIMExport!CO5,".",",")*1,PIMExport!CO5)) -> 0 | CP7: =IFERROR(PIMExport!CP5*1,IFERROR(SUBSTITUTE(PIMExport!CP5,".",",")*1,PIMExport!CP5)) -> 0 | CQ7: =IFERROR(PIMExport!CQ5*1,IFERROR(SUBSTITUTE(PIMExport!CQ5,".",",")*1,PIMExport!CQ5)) -> 0 | CR7: =IFERROR(PIMExport!CR5*1,IFERROR(SUBSTITUTE(PIMExport!CR5,".",",")*1,PIMExport!CR5)) -> 0 | CS7: =IFERROR(PIMExport!CS5*1,IFERROR(SUBSTITUTE(PIMExport!CS5,".",",")*1,PIMExport!CS5)) -> 0 | CT7: =IFERROR(PIMExport!CT5*1,IFERROR(SUBSTITUTE(PIMExport!CT5,".",",")*1,PIMExport!CT5)) -> 0 | CU7: =IFERROR(PIMExport!CU5*1,IFERROR(SUBSTITUTE(PIMExport!CU5,".",",")*1,PIMExport!CU5)) -> 5 | CV7: =IFERROR(PIMExport!CV5*1,IFERROR(SUBSTITUTE(PIMExport!CV5,".",",")*1,PIMExport!CV5)) -> 12300 | CW7: =IFERROR(PIMExport!CW5*1,IFERROR(SUBSTITUTE(PIMExport!CW5,".",",")*1,PIMExport!CW5)) -> 0.000225 | CX7: =IFERROR(PIMExport!CX5*1,IFERROR(SUBSTITUTE(PIMExport!CX5,".",",")*1,PIMExport!CX5)) -> 400 | CY7: =IFERROR(PIMExport!CY5*1,IFERROR(SUBSTITUTE(PIMExport!CY5,".",",")*1,PIMExport!CY5)) -> 500 | CZ7: =IFERROR(PIMExport!CZ5*1,IFERROR(SUBSTITUTE(PIMExport!CZ5,".",",")*1,PIMExport!CZ5)) -> 26000 | DA7: =IFERROR(PIMExport!DA5*1,IFERROR(SUBSTITUTE(PIMExport!DA5,".",",")*1,PIMExport!DA5)) -> 350 | DB7: =IFERROR(PIMExport!DB5*1,IFERROR(SUBSTITUTE(PIMExport!DB5,".",",")*1,PIMExport!DB5)) -> 0 | DC7: =IFERROR(PIMExport!DC5*1,IFERROR(SUBSTITUTE(PIMExport!DC5,".",",")*1,PIMExport!DC5)) -> 0 | DD7: =IFERROR(PIMExport!DD5*1,IFERROR(SUBSTITUTE(PIMExport!DD5,".",",")*1,PIMExport!DD5)) -> 0 | DE7: =IFERROR(PIMExport!DE5*1,IFERROR(SUBSTITUTE(PIMExport!DE5,".",",")*1,PIMExport!DE5)) -> 0 | DF7: =IFERROR(PIMExport!DF5*1,IFERROR(SUBSTITUTE(PIMExport!DF5,".",",")*1,PIMExport!DF5)) -> 0 | DG7: =IFERROR(PIMExport!DG5*1,IFERROR(SUBSTITUTE(PIMExport!DG5,".",",")*1,PIMExport!DG5)) -> 0 | DH7: =IFERROR(PIMExport!DH5*1,IFERROR(SUBSTITUTE(PIMExport!DH5,".",",")*1,PIMExport!DH5)) -> Equal to or better than 0.025 mm | DI7: =IFERROR(PIMExport!DI5*1,IFERROR(SUBSTITUTE(PIMExport!DI5,".",",")*1,PIMExport!DI5)) -> 0 | DJ7: =IFERROR(PIMExport!DJ5*1,IFERROR(SUBSTITUTE(PIMExport!DJ5,".",",")*1,PIMExport!DJ5)) -> 160 x 65 mm | DK7: =IFERROR(PIMExport!DK5*1,IFERROR(SUBSTITUTE(PIMExport!DK5,".",",")*1,PIMExport!DK5)) -> 25 mm | DL7: =IFERROR(PIMExport!DL5*1,IFERROR(SUBSTITUTE(PIMExport!DL5,".",",")*1,PIMExport!DL5)) -> 300 | DM7: =IFERROR(PIMExport!DM5*1,IFERROR(SUBSTITUTE(PIMExport!DM5,".",",")*1,PIMExport!DM5)) -> 5700 | DN7: =IFERROR(PIMExport!DN5*1,IFERROR(SUBSTITUTE(PIMExport!DN5,".",",")*1,PIMExport!DN5)) -> 0 | DO7: =IFERROR(PIMExport!DO5*1,IFERROR(SUBSTITUTE(PIMExport!DO5,".",",")*1,PIMExport!DO5)) -> 0
A8: =IFERROR(PIMExport!A6*1,IFERROR(SUBSTITUTE(PIMExport!A6,".",",")*1,PIMExport!A6)) -> MLSM06D10-N | B8: =IFERROR(PIMExport!B6*1,IFERROR(SUBSTITUTE(PIMExport!B6,".",",")*1,PIMExport!B6)) -> BallScrew | C8: =IFERROR(PIMExport!C6*1,IFERROR(SUBSTITUTE(PIMExport!C6,".",",")*1,PIMExport!C6)) -> Ball Guide | D8: =IFERROR(PIMExport!D6*1,IFERROR(SUBSTITUTE(PIMExport!D6,".",",")*1,PIMExport!D6)) -> 4985 | E8: =IFERROR(PIMExport!E6*1,IFERROR(SUBSTITUTE(PIMExport!E6,".",",")*1,PIMExport!E6)) -> 5.7 | F8: =IFERROR(PIMExport!F6*1,IFERROR(SUBSTITUTE(PIMExport!F6,".",",")*1,PIMExport!F6)) -> 0 | G8: =IFERROR(PIMExport!G6*1,IFERROR(SUBSTITUTE(PIMExport!G6,".",",")*1,PIMExport!G6)) -> 14.4 | H8: =IFERROR(PIMExport!H6*1,IFERROR(SUBSTITUTE(PIMExport!H6,".",",")*1,PIMExport!H6)) -> 1.65 | I8: =IFERROR(PIMExport!I6*1,IFERROR(SUBSTITUTE(PIMExport!I6,".",",")*1,PIMExport!I6)) -> 163 | J8: =IFERROR(PIMExport!J6*1,IFERROR(SUBSTITUTE(PIMExport!J6,".",",")*1,PIMExport!J6)) -> 105 | K8: =IFERROR(PIMExport!K6*1,IFERROR(SUBSTITUTE(PIMExport!K6,".",",")*1,PIMExport!K6)) -> 0 | L8: =IFERROR(PIMExport!L6*1,IFERROR(SUBSTITUTE(PIMExport!L6,".",",")*1,PIMExport!L6)) -> 3.9e-05 | M8: =IFERROR(PIMExport!M6*1,IFERROR(SUBSTITUTE(PIMExport!M6,".",",")*1,PIMExport!M6)) -> 0.9 | N8: =IFERROR(PIMExport!N6*1,IFERROR(SUBSTITUTE(PIMExport!N6,".",",")*1,PIMExport!N6)) -> 150 | O8: =IFERROR(PIMExport!O6*1,IFERROR(SUBSTITUTE(PIMExport!O6,".",",")*1,PIMExport!O6)) -> 1500 | P8: =IFERROR(PIMExport!P6*1,IFERROR(SUBSTITUTE(PIMExport!P6,".",",")*1,PIMExport!P6)) -> 3000 | Q8: =IFERROR(PIMExport!Q6*1,IFERROR(SUBSTITUTE(PIMExport!Q6,".",",")*1,PIMExport!Q6)) -> 1.6 | R8: =IFERROR(PIMExport!R6*1,IFERROR(SUBSTITUTE(PIMExport!R6,".",",")*1,PIMExport!R6)) -> 2.2 | S8: =IFERROR(PIMExport!S6*1,IFERROR(SUBSTITUTE(PIMExport!S6,".",",")*1,PIMExport!S6)) -> 2.6 | T8: =IFERROR(PIMExport!T6*1,IFERROR(SUBSTITUTE(PIMExport!T6,".",",")*1,PIMExport!T6)) -> 27 | U8: =IFERROR(PIMExport!U6*1,IFERROR(SUBSTITUTE(PIMExport!U6,".",",")*1,PIMExport!U6)) -> 0.1 | V8: =IFERROR(PIMExport!V6*1,IFERROR(SUBSTITUTE(PIMExport!V6,".",",")*1,PIMExport!V6)) -> 0 | W8: =IFERROR(PIMExport!W6*1,IFERROR(SUBSTITUTE(PIMExport!W6,".",",")*1,PIMExport!W6)) -> 0 | X8: =IFERROR(PIMExport!X6*1,IFERROR(SUBSTITUTE(PIMExport!X6,".",",")*1,PIMExport!X6)) -> 0 | Y8: =IFERROR(PIMExport!Y6*1,IFERROR(SUBSTITUTE(PIMExport!Y6,".",",")*1,PIMExport!Y6)) -> 5000 | Z8: =IFERROR(PIMExport!Z6*1,IFERROR(SUBSTITUTE(PIMExport!Z6,".",",")*1,PIMExport!Z6)) -> 0 | AA8: =IFERROR(PIMExport!AA6*1,IFERROR(SUBSTITUTE(PIMExport!AA6,".",",")*1,PIMExport!AA6)) -> 0 | AB8: =IFERROR(PIMExport!AB6*1,IFERROR(SUBSTITUTE(PIMExport!AB6,".",",")*1,PIMExport!AB6)) -> 0 | AC8: =IFERROR(PIMExport!AC6*1,IFERROR(SUBSTITUTE(PIMExport!AC6,".",",")*1,PIMExport!AC6)) -> 0 | AD8: =IFERROR(PIMExport!AD6*1,IFERROR(SUBSTITUTE(PIMExport!AD6,".",",")*1,PIMExport!AD6)) -> 0 | AE8: =IFERROR(PIMExport!AE6*1,IFERROR(SUBSTITUTE(PIMExport!AE6,".",",")*1,PIMExport!AE6)) -> 6000 | AF8: =IFERROR(PIMExport!AF6*1,IFERROR(SUBSTITUTE(PIMExport!AF6,".",",")*1,PIMExport!AF6)) -> 6000 | AG8: =IFERROR(PIMExport!AG6*1,IFERROR(SUBSTITUTE(PIMExport!AG6,".",",")*1,PIMExport!AG6)) -> 400 | AH8: =IFERROR(PIMExport!AH6*1,IFERROR(SUBSTITUTE(PIMExport!AH6,".",",")*1,PIMExport!AH6)) -> 460 | AI8: =IFERROR(PIMExport!AI6*1,IFERROR(SUBSTITUTE(PIMExport!AI6,".",",")*1,PIMExport!AI6)) -> 460 | AJ8: =IFERROR(PIMExport!AJ6*1,IFERROR(SUBSTITUTE(PIMExport!AJ6,".",",")*1,PIMExport!AJ6)) -> 0 | AK8: =IFERROR(PIMExport!AK6*1,IFERROR(SUBSTITUTE(PIMExport!AK6,".",",")*1,PIMExport!AK6)) -> 0 | AL8: =IFERROR(PIMExport!AL6*1,IFERROR(SUBSTITUTE(PIMExport!AL6,".",",")*1,PIMExport!AL6)) -> 0.5 | AM8: =IFERROR(PIMExport!AM6*1,IFERROR(SUBSTITUTE(PIMExport!AM6,".",",")*1,PIMExport!AM6)) -> 20 | AN8: =IFERROR(PIMExport!AN6*1,IFERROR(SUBSTITUTE(PIMExport!AN6,".",",")*1,PIMExport!AN6)) -> 1 | AO8: =IFERROR(PIMExport!AO6*1,IFERROR(SUBSTITUTE(PIMExport!AO6,".",",")*1,PIMExport!AO6)) -> 55080 | AP8: =IFERROR(PIMExport!AP6*1,IFERROR(SUBSTITUTE(PIMExport!AP6,".",",")*1,PIMExport!AP6)) -> 500 | AQ8: =IFERROR(PIMExport!AQ6*1,IFERROR(SUBSTITUTE(PIMExport!AQ6,".",",")*1,PIMExport!AQ6)) -> 0 | AR8: =IFERROR(PIMExport!AR6*1,IFERROR(SUBSTITUTE(PIMExport!AR6,".",",")*1,PIMExport!AR6)) -> 0 | AS8: =IFERROR(PIMExport!AS6*1,IFERROR(SUBSTITUTE(PIMExport!AS6,".",",")*1,PIMExport!AS6)) -> 0 | AT8: =IFERROR(PIMExport!AT6*1,IFERROR(SUBSTITUTE(PIMExport!AT6,".",",")*1,PIMExport!AT6)) -> 0 | AU8: =IFERROR(PIMExport!AU6*1,IFERROR(SUBSTITUTE(PIMExport!AU6,".",",")*1,PIMExport!AU6)) -> 0 | AV8: =IFERROR(PIMExport!AV6*1,IFERROR(SUBSTITUTE(PIMExport!AV6,".",",")*1,PIMExport!AV6)) -> 0 | AW8: =IFERROR(PIMExport!AW6*1,IFERROR(SUBSTITUTE(PIMExport!AW6,".",",")*1,PIMExport!AW6)) -> 0 | AX8: =IFERROR(PIMExport!AX6*1,IFERROR(SUBSTITUTE(PIMExport!AX6,".",",")*1,PIMExport!AX6)) -> 0 | AY8: =IFERROR(PIMExport!AY6*1,IFERROR(SUBSTITUTE(PIMExport!AY6,".",",")*1,PIMExport!AY6)) -> 0 | AZ8: =IFERROR(PIMExport!AZ6*1,IFERROR(SUBSTITUTE(PIMExport!AZ6,".",",")*1,PIMExport!AZ6)) -> 0 | BA8: =IFERROR(PIMExport!BA6*1,IFERROR(SUBSTITUTE(PIMExport!BA6,".",",")*1,PIMExport!BA6)) -> 0 | BB8: =IFERROR(PIMExport!BB6*1,IFERROR(SUBSTITUTE(PIMExport!BB6,".",",")*1,PIMExport!BB6)) -> 0 | BC8: =IFERROR(PIMExport!BC6*1,IFERROR(SUBSTITUTE(PIMExport!BC6,".",",")*1,PIMExport!BC6)) -> 0 | BD8: =IFERROR(PIMExport!BD6*1,IFERROR(SUBSTITUTE(PIMExport!BD6,".",",")*1,PIMExport!BD6)) -> 0 | BE8: =IFERROR(PIMExport!BE6*1,IFERROR(SUBSTITUTE(PIMExport!BE6,".",",")*1,PIMExport!BE6)) -> 0 | BF8: =IFERROR(PIMExport!BF6*1,IFERROR(SUBSTITUTE(PIMExport!BF6,".",",")*1,PIMExport!BF6)) -> 0 | BG8: =IFERROR(PIMExport!BG6*1,IFERROR(SUBSTITUTE(PIMExport!BG6,".",",")*1,PIMExport!BG6)) -> 435 | BH8: =IFERROR(PIMExport!BH6*1,IFERROR(SUBSTITUTE(PIMExport!BH6,".",",")*1,PIMExport!BH6)) -> 495 | BI8: =IFERROR(PIMExport!BI6*1,IFERROR(SUBSTITUTE(PIMExport!BI6,".",",")*1,PIMExport!BI6)) -> 535 | BJ8: =IFERROR(PIMExport!BJ6*1,IFERROR(SUBSTITUTE(PIMExport!BJ6,".",",")*1,PIMExport!BJ6)) -> 585 | BK8: =IFERROR(PIMExport!BK6*1,IFERROR(SUBSTITUTE(PIMExport!BK6,".",",")*1,PIMExport!BK6)) -> 625 | BL8: =IFERROR(PIMExport!BL6*1,IFERROR(SUBSTITUTE(PIMExport!BL6,".",",")*1,PIMExport!BL6)) -> 675 | BM8: =IFERROR(PIMExport!BM6*1,IFERROR(SUBSTITUTE(PIMExport!BM6,".",",")*1,PIMExport!BM6)) -> 715 | BN8: =IFERROR(PIMExport!BN6*1,IFERROR(SUBSTITUTE(PIMExport!BN6,".",",")*1,PIMExport!BN6)) -> 755 | BO8: =IFERROR(PIMExport!BO6*1,IFERROR(SUBSTITUTE(PIMExport!BO6,".",",")*1,PIMExport!BO6)) -> 0 | BP8: =IFERROR(PIMExport!BP6*1,IFERROR(SUBSTITUTE(PIMExport!BP6,".",",")*1,PIMExport!BP6)) -> 0 | BQ8: =IFERROR(PIMExport!BQ6*1,IFERROR(SUBSTITUTE(PIMExport!BQ6,".",",")*1,PIMExport!BQ6)) -> 0 | BR8: =IFERROR(PIMExport!BR6*1,IFERROR(SUBSTITUTE(PIMExport!BR6,".",",")*1,PIMExport!BR6)) -> 0 | BS8: =IFERROR(PIMExport!BS6*1,IFERROR(SUBSTITUTE(PIMExport!BS6,".",",")*1,PIMExport!BS6)) -> 0 | BT8: =IFERROR(PIMExport!BT6*1,IFERROR(SUBSTITUTE(PIMExport!BT6,".",",")*1,PIMExport!BT6)) -> 0 | BU8: =IFERROR(PIMExport!BU6*1,IFERROR(SUBSTITUTE(PIMExport!BU6,".",",")*1,PIMExport!BU6)) -> 0 | BV8: =IFERROR(PIMExport!BV6*1,IFERROR(SUBSTITUTE(PIMExport!BV6,".",",")*1,PIMExport!BV6)) -> 0 | BW8: =IFERROR(PIMExport!BW6*1,IFERROR(SUBSTITUTE(PIMExport!BW6,".",",")*1,PIMExport!BW6)) -> 0 | BX8: =IFERROR(PIMExport!BX6*1,IFERROR(SUBSTITUTE(PIMExport!BX6,".",",")*1,PIMExport!BX6)) -> 0 | BY8: =IFERROR(PIMExport!BY6*1,IFERROR(SUBSTITUTE(PIMExport!BY6,".",",")*1,PIMExport!BY6)) -> 0 | BZ8: =IFERROR(PIMExport!BZ6*1,IFERROR(SUBSTITUTE(PIMExport!BZ6,".",",")*1,PIMExport!BZ6)) -> 0 | CA8: =IFERROR(PIMExport!CA6*1,IFERROR(SUBSTITUTE(PIMExport!CA6,".",",")*1,PIMExport!CA6)) -> 0 | CB8: =IFERROR(PIMExport!CB6*1,IFERROR(SUBSTITUTE(PIMExport!CB6,".",",")*1,PIMExport!CB6)) -> 751 | CC8: =IFERROR(PIMExport!CC6*1,IFERROR(SUBSTITUTE(PIMExport!CC6,".",",")*1,PIMExport!CC6)) -> 1221 | CD8: =IFERROR(PIMExport!CD6*1,IFERROR(SUBSTITUTE(PIMExport!CD6,".",",")*1,PIMExport!CD6)) -> 1981 | CE8: =IFERROR(PIMExport!CE6*1,IFERROR(SUBSTITUTE(PIMExport!CE6,".",",")*1,PIMExport!CE6)) -> 2731 | CF8: =IFERROR(PIMExport!CF6*1,IFERROR(SUBSTITUTE(PIMExport!CF6,".",",")*1,PIMExport!CF6)) -> 3491 | CG8: =IFERROR(PIMExport!CG6*1,IFERROR(SUBSTITUTE(PIMExport!CG6,".",",")*1,PIMExport!CG6)) -> 4241 | CH8: =IFERROR(PIMExport!CH6*1,IFERROR(SUBSTITUTE(PIMExport!CH6,".",",")*1,PIMExport!CH6)) -> 5001 | CI8: =IFERROR(PIMExport!CI6*1,IFERROR(SUBSTITUTE(PIMExport!CI6,".",",")*1,PIMExport!CI6)) -> 0 | CJ8: =IFERROR(PIMExport!CJ6*1,IFERROR(SUBSTITUTE(PIMExport!CJ6,".",",")*1,PIMExport!CJ6)) -> 0 | CK8: =IFERROR(PIMExport!CK6*1,IFERROR(SUBSTITUTE(PIMExport!CK6,".",",")*1,PIMExport!CK6)) -> 0 | CL8: =IFERROR(PIMExport!CL6*1,IFERROR(SUBSTITUTE(PIMExport!CL6,".",",")*1,PIMExport!CL6)) -> 0 | CM8: =IFERROR(PIMExport!CM6*1,IFERROR(SUBSTITUTE(PIMExport!CM6,".",",")*1,PIMExport!CM6)) -> 0 | CN8: =IFERROR(PIMExport!CN6*1,IFERROR(SUBSTITUTE(PIMExport!CN6,".",",")*1,PIMExport!CN6)) -> 0 | CO8: =IFERROR(PIMExport!CO6*1,IFERROR(SUBSTITUTE(PIMExport!CO6,".",",")*1,PIMExport!CO6)) -> 0 | CP8: =IFERROR(PIMExport!CP6*1,IFERROR(SUBSTITUTE(PIMExport!CP6,".",",")*1,PIMExport!CP6)) -> 0 | CQ8: =IFERROR(PIMExport!CQ6*1,IFERROR(SUBSTITUTE(PIMExport!CQ6,".",",")*1,PIMExport!CQ6)) -> 0 | CR8: =IFERROR(PIMExport!CR6*1,IFERROR(SUBSTITUTE(PIMExport!CR6,".",",")*1,PIMExport!CR6)) -> 0 | CS8: =IFERROR(PIMExport!CS6*1,IFERROR(SUBSTITUTE(PIMExport!CS6,".",",")*1,PIMExport!CS6)) -> 0 | CT8: =IFERROR(PIMExport!CT6*1,IFERROR(SUBSTITUTE(PIMExport!CT6,".",",")*1,PIMExport!CT6)) -> 0 | CU8: =IFERROR(PIMExport!CU6*1,IFERROR(SUBSTITUTE(PIMExport!CU6,".",",")*1,PIMExport!CU6)) -> 10 | CV8: =IFERROR(PIMExport!CV6*1,IFERROR(SUBSTITUTE(PIMExport!CV6,".",",")*1,PIMExport!CV6)) -> 13200 | CW8: =IFERROR(PIMExport!CW6*1,IFERROR(SUBSTITUTE(PIMExport!CW6,".",",")*1,PIMExport!CW6)) -> 0.000225 | CX8: =IFERROR(PIMExport!CX6*1,IFERROR(SUBSTITUTE(PIMExport!CX6,".",",")*1,PIMExport!CX6)) -> 400 | CY8: =IFERROR(PIMExport!CY6*1,IFERROR(SUBSTITUTE(PIMExport!CY6,".",",")*1,PIMExport!CY6)) -> 500 | CZ8: =IFERROR(PIMExport!CZ6*1,IFERROR(SUBSTITUTE(PIMExport!CZ6,".",",")*1,PIMExport!CZ6)) -> 26000 | DA8: =IFERROR(PIMExport!DA6*1,IFERROR(SUBSTITUTE(PIMExport!DA6,".",",")*1,PIMExport!DA6)) -> 350 | DB8: =IFERROR(PIMExport!DB6*1,IFERROR(SUBSTITUTE(PIMExport!DB6,".",",")*1,PIMExport!DB6)) -> 0 | DC8: =IFERROR(PIMExport!DC6*1,IFERROR(SUBSTITUTE(PIMExport!DC6,".",",")*1,PIMExport!DC6)) -> 0 | DD8: =IFERROR(PIMExport!DD6*1,IFERROR(SUBSTITUTE(PIMExport!DD6,".",",")*1,PIMExport!DD6)) -> 0 | DE8: =IFERROR(PIMExport!DE6*1,IFERROR(SUBSTITUTE(PIMExport!DE6,".",",")*1,PIMExport!DE6)) -> 0 | DF8: =IFERROR(PIMExport!DF6*1,IFERROR(SUBSTITUTE(PIMExport!DF6,".",",")*1,PIMExport!DF6)) -> 0 | DG8: =IFERROR(PIMExport!DG6*1,IFERROR(SUBSTITUTE(PIMExport!DG6,".",",")*1,PIMExport!DG6)) -> 0 | DH8: =IFERROR(PIMExport!DH6*1,IFERROR(SUBSTITUTE(PIMExport!DH6,".",",")*1,PIMExport!DH6)) -> Equal to or better than 0.025 mm | DI8: =IFERROR(PIMExport!DI6*1,IFERROR(SUBSTITUTE(PIMExport!DI6,".",",")*1,PIMExport!DI6)) -> 0 | DJ8: =IFERROR(PIMExport!DJ6*1,IFERROR(SUBSTITUTE(PIMExport!DJ6,".",",")*1,PIMExport!DJ6)) -> 160 x 65 mm | DK8: =IFERROR(PIMExport!DK6*1,IFERROR(SUBSTITUTE(PIMExport!DK6,".",",")*1,PIMExport!DK6)) -> 25 mm | DL8: =IFERROR(PIMExport!DL6*1,IFERROR(SUBSTITUTE(PIMExport!DL6,".",",")*1,PIMExport!DL6)) -> 300 | DM8: =IFERROR(PIMExport!DM6*1,IFERROR(SUBSTITUTE(PIMExport!DM6,".",",")*1,PIMExport!DM6)) -> 5700 | DN8: =IFERROR(PIMExport!DN6*1,IFERROR(SUBSTITUTE(PIMExport!DN6,".",",")*1,PIMExport!DN6)) -> 0 | DO8: =IFERROR(PIMExport!DO6*1,IFERROR(SUBSTITUTE(PIMExport!DO6,".",",")*1,PIMExport!DO6)) -> 0
A9: =IFERROR(PIMExport!A7*1,IFERROR(SUBSTITUTE(PIMExport!A7,".",",")*1,PIMExport!A7)) -> MLSM06D20-N | B9: =IFERROR(PIMExport!B7*1,IFERROR(SUBSTITUTE(PIMExport!B7,".",",")*1,PIMExport!B7)) -> BallScrew | C9: =IFERROR(PIMExport!C7*1,IFERROR(SUBSTITUTE(PIMExport!C7,".",",")*1,PIMExport!C7)) -> Ball Guide | D9: =IFERROR(PIMExport!D7*1,IFERROR(SUBSTITUTE(PIMExport!D7,".",",")*1,PIMExport!D7)) -> 4985 | E9: =IFERROR(PIMExport!E7*1,IFERROR(SUBSTITUTE(PIMExport!E7,".",",")*1,PIMExport!E7)) -> 5.7 | F9: =IFERROR(PIMExport!F7*1,IFERROR(SUBSTITUTE(PIMExport!F7,".",",")*1,PIMExport!F7)) -> 0 | G9: =IFERROR(PIMExport!G7*1,IFERROR(SUBSTITUTE(PIMExport!G7,".",",")*1,PIMExport!G7)) -> 14.4 | H9: =IFERROR(PIMExport!H7*1,IFERROR(SUBSTITUTE(PIMExport!H7,".",",")*1,PIMExport!H7)) -> 1.65 | I9: =IFERROR(PIMExport!I7*1,IFERROR(SUBSTITUTE(PIMExport!I7,".",",")*1,PIMExport!I7)) -> 163 | J9: =IFERROR(PIMExport!J7*1,IFERROR(SUBSTITUTE(PIMExport!J7,".",",")*1,PIMExport!J7)) -> 105 | K9: =IFERROR(PIMExport!K7*1,IFERROR(SUBSTITUTE(PIMExport!K7,".",",")*1,PIMExport!K7)) -> 0 | L9: =IFERROR(PIMExport!L7*1,IFERROR(SUBSTITUTE(PIMExport!L7,".",",")*1,PIMExport!L7)) -> 3.9e-05 | M9: =IFERROR(PIMExport!M7*1,IFERROR(SUBSTITUTE(PIMExport!M7,".",",")*1,PIMExport!M7)) -> 0.9 | N9: =IFERROR(PIMExport!N7*1,IFERROR(SUBSTITUTE(PIMExport!N7,".",",")*1,PIMExport!N7)) -> 150 | O9: =IFERROR(PIMExport!O7*1,IFERROR(SUBSTITUTE(PIMExport!O7,".",",")*1,PIMExport!O7)) -> 1500 | P9: =IFERROR(PIMExport!P7*1,IFERROR(SUBSTITUTE(PIMExport!P7,".",",")*1,PIMExport!P7)) -> 3000 | Q9: =IFERROR(PIMExport!Q7*1,IFERROR(SUBSTITUTE(PIMExport!Q7,".",",")*1,PIMExport!Q7)) -> 1.9 | R9: =IFERROR(PIMExport!R7*1,IFERROR(SUBSTITUTE(PIMExport!R7,".",",")*1,PIMExport!R7)) -> 2.3 | S9: =IFERROR(PIMExport!S7*1,IFERROR(SUBSTITUTE(PIMExport!S7,".",",")*1,PIMExport!S7)) -> 2.6 | T9: =IFERROR(PIMExport!T7*1,IFERROR(SUBSTITUTE(PIMExport!T7,".",",")*1,PIMExport!T7)) -> 27 | U9: =IFERROR(PIMExport!U7*1,IFERROR(SUBSTITUTE(PIMExport!U7,".",",")*1,PIMExport!U7)) -> 0.1 | V9: =IFERROR(PIMExport!V7*1,IFERROR(SUBSTITUTE(PIMExport!V7,".",",")*1,PIMExport!V7)) -> 0 | W9: =IFERROR(PIMExport!W7*1,IFERROR(SUBSTITUTE(PIMExport!W7,".",",")*1,PIMExport!W7)) -> 0 | X9: =IFERROR(PIMExport!X7*1,IFERROR(SUBSTITUTE(PIMExport!X7,".",",")*1,PIMExport!X7)) -> 0 | Y9: =IFERROR(PIMExport!Y7*1,IFERROR(SUBSTITUTE(PIMExport!Y7,".",",")*1,PIMExport!Y7)) -> 5000 | Z9: =IFERROR(PIMExport!Z7*1,IFERROR(SUBSTITUTE(PIMExport!Z7,".",",")*1,PIMExport!Z7)) -> 0 | AA9: =IFERROR(PIMExport!AA7*1,IFERROR(SUBSTITUTE(PIMExport!AA7,".",",")*1,PIMExport!AA7)) -> 0 | AB9: =IFERROR(PIMExport!AB7*1,IFERROR(SUBSTITUTE(PIMExport!AB7,".",",")*1,PIMExport!AB7)) -> 0 | AC9: =IFERROR(PIMExport!AC7*1,IFERROR(SUBSTITUTE(PIMExport!AC7,".",",")*1,PIMExport!AC7)) -> 0 | AD9: =IFERROR(PIMExport!AD7*1,IFERROR(SUBSTITUTE(PIMExport!AD7,".",",")*1,PIMExport!AD7)) -> 0 | AE9: =IFERROR(PIMExport!AE7*1,IFERROR(SUBSTITUTE(PIMExport!AE7,".",",")*1,PIMExport!AE7)) -> 6000 | AF9: =IFERROR(PIMExport!AF7*1,IFERROR(SUBSTITUTE(PIMExport!AF7,".",",")*1,PIMExport!AF7)) -> 6000 | AG9: =IFERROR(PIMExport!AG7*1,IFERROR(SUBSTITUTE(PIMExport!AG7,".",",")*1,PIMExport!AG7)) -> 400 | AH9: =IFERROR(PIMExport!AH7*1,IFERROR(SUBSTITUTE(PIMExport!AH7,".",",")*1,PIMExport!AH7)) -> 460 | AI9: =IFERROR(PIMExport!AI7*1,IFERROR(SUBSTITUTE(PIMExport!AI7,".",",")*1,PIMExport!AI7)) -> 460 | AJ9: =IFERROR(PIMExport!AJ7*1,IFERROR(SUBSTITUTE(PIMExport!AJ7,".",",")*1,PIMExport!AJ7)) -> 0 | AK9: =IFERROR(PIMExport!AK7*1,IFERROR(SUBSTITUTE(PIMExport!AK7,".",",")*1,PIMExport!AK7)) -> 0 | AL9: =IFERROR(PIMExport!AL7*1,IFERROR(SUBSTITUTE(PIMExport!AL7,".",",")*1,PIMExport!AL7)) -> 1 | AM9: =IFERROR(PIMExport!AM7*1,IFERROR(SUBSTITUTE(PIMExport!AM7,".",",")*1,PIMExport!AM7)) -> 20 | AN9: =IFERROR(PIMExport!AN7*1,IFERROR(SUBSTITUTE(PIMExport!AN7,".",",")*1,PIMExport!AN7)) -> 1 | AO9: =IFERROR(PIMExport!AO7*1,IFERROR(SUBSTITUTE(PIMExport!AO7,".",",")*1,PIMExport!AO7)) -> 55080 | AP9: =IFERROR(PIMExport!AP7*1,IFERROR(SUBSTITUTE(PIMExport!AP7,".",",")*1,PIMExport!AP7)) -> 500 | AQ9: =IFERROR(PIMExport!AQ7*1,IFERROR(SUBSTITUTE(PIMExport!AQ7,".",",")*1,PIMExport!AQ7)) -> 0 | AR9: =IFERROR(PIMExport!AR7*1,IFERROR(SUBSTITUTE(PIMExport!AR7,".",",")*1,PIMExport!AR7)) -> 0 | AS9: =IFERROR(PIMExport!AS7*1,IFERROR(SUBSTITUTE(PIMExport!AS7,".",",")*1,PIMExport!AS7)) -> 0 | AT9: =IFERROR(PIMExport!AT7*1,IFERROR(SUBSTITUTE(PIMExport!AT7,".",",")*1,PIMExport!AT7)) -> 0 | AU9: =IFERROR(PIMExport!AU7*1,IFERROR(SUBSTITUTE(PIMExport!AU7,".",",")*1,PIMExport!AU7)) -> 0 | AV9: =IFERROR(PIMExport!AV7*1,IFERROR(SUBSTITUTE(PIMExport!AV7,".",",")*1,PIMExport!AV7)) -> 0 | AW9: =IFERROR(PIMExport!AW7*1,IFERROR(SUBSTITUTE(PIMExport!AW7,".",",")*1,PIMExport!AW7)) -> 0 | AX9: =IFERROR(PIMExport!AX7*1,IFERROR(SUBSTITUTE(PIMExport!AX7,".",",")*1,PIMExport!AX7)) -> 0 | AY9: =IFERROR(PIMExport!AY7*1,IFERROR(SUBSTITUTE(PIMExport!AY7,".",",")*1,PIMExport!AY7)) -> 0 | AZ9: =IFERROR(PIMExport!AZ7*1,IFERROR(SUBSTITUTE(PIMExport!AZ7,".",",")*1,PIMExport!AZ7)) -> 0 | BA9: =IFERROR(PIMExport!BA7*1,IFERROR(SUBSTITUTE(PIMExport!BA7,".",",")*1,PIMExport!BA7)) -> 0 | BB9: =IFERROR(PIMExport!BB7*1,IFERROR(SUBSTITUTE(PIMExport!BB7,".",",")*1,PIMExport!BB7)) -> 0 | BC9: =IFERROR(PIMExport!BC7*1,IFERROR(SUBSTITUTE(PIMExport!BC7,".",",")*1,PIMExport!BC7)) -> 0 | BD9: =IFERROR(PIMExport!BD7*1,IFERROR(SUBSTITUTE(PIMExport!BD7,".",",")*1,PIMExport!BD7)) -> 0 | BE9: =IFERROR(PIMExport!BE7*1,IFERROR(SUBSTITUTE(PIMExport!BE7,".",",")*1,PIMExport!BE7)) -> 0 | BF9: =IFERROR(PIMExport!BF7*1,IFERROR(SUBSTITUTE(PIMExport!BF7,".",",")*1,PIMExport!BF7)) -> 0 | BG9: =IFERROR(PIMExport!BG7*1,IFERROR(SUBSTITUTE(PIMExport!BG7,".",",")*1,PIMExport!BG7)) -> 435 | BH9: =IFERROR(PIMExport!BH7*1,IFERROR(SUBSTITUTE(PIMExport!BH7,".",",")*1,PIMExport!BH7)) -> 495 | BI9: =IFERROR(PIMExport!BI7*1,IFERROR(SUBSTITUTE(PIMExport!BI7,".",",")*1,PIMExport!BI7)) -> 535 | BJ9: =IFERROR(PIMExport!BJ7*1,IFERROR(SUBSTITUTE(PIMExport!BJ7,".",",")*1,PIMExport!BJ7)) -> 585 | BK9: =IFERROR(PIMExport!BK7*1,IFERROR(SUBSTITUTE(PIMExport!BK7,".",",")*1,PIMExport!BK7)) -> 625 | BL9: =IFERROR(PIMExport!BL7*1,IFERROR(SUBSTITUTE(PIMExport!BL7,".",",")*1,PIMExport!BL7)) -> 675 | BM9: =IFERROR(PIMExport!BM7*1,IFERROR(SUBSTITUTE(PIMExport!BM7,".",",")*1,PIMExport!BM7)) -> 715 | BN9: =IFERROR(PIMExport!BN7*1,IFERROR(SUBSTITUTE(PIMExport!BN7,".",",")*1,PIMExport!BN7)) -> 755 | BO9: =IFERROR(PIMExport!BO7*1,IFERROR(SUBSTITUTE(PIMExport!BO7,".",",")*1,PIMExport!BO7)) -> 0 | BP9: =IFERROR(PIMExport!BP7*1,IFERROR(SUBSTITUTE(PIMExport!BP7,".",",")*1,PIMExport!BP7)) -> 0 | BQ9: =IFERROR(PIMExport!BQ7*1,IFERROR(SUBSTITUTE(PIMExport!BQ7,".",",")*1,PIMExport!BQ7)) -> 0 | BR9: =IFERROR(PIMExport!BR7*1,IFERROR(SUBSTITUTE(PIMExport!BR7,".",",")*1,PIMExport!BR7)) -> 0 | BS9: =IFERROR(PIMExport!BS7*1,IFERROR(SUBSTITUTE(PIMExport!BS7,".",",")*1,PIMExport!BS7)) -> 0 | BT9: =IFERROR(PIMExport!BT7*1,IFERROR(SUBSTITUTE(PIMExport!BT7,".",",")*1,PIMExport!BT7)) -> 0 | BU9: =IFERROR(PIMExport!BU7*1,IFERROR(SUBSTITUTE(PIMExport!BU7,".",",")*1,PIMExport!BU7)) -> 0 | BV9: =IFERROR(PIMExport!BV7*1,IFERROR(SUBSTITUTE(PIMExport!BV7,".",",")*1,PIMExport!BV7)) -> 0 | BW9: =IFERROR(PIMExport!BW7*1,IFERROR(SUBSTITUTE(PIMExport!BW7,".",",")*1,PIMExport!BW7)) -> 0 | BX9: =IFERROR(PIMExport!BX7*1,IFERROR(SUBSTITUTE(PIMExport!BX7,".",",")*1,PIMExport!BX7)) -> 0 | BY9: =IFERROR(PIMExport!BY7*1,IFERROR(SUBSTITUTE(PIMExport!BY7,".",",")*1,PIMExport!BY7)) -> 0 | BZ9: =IFERROR(PIMExport!BZ7*1,IFERROR(SUBSTITUTE(PIMExport!BZ7,".",",")*1,PIMExport!BZ7)) -> 0 | CA9: =IFERROR(PIMExport!CA7*1,IFERROR(SUBSTITUTE(PIMExport!CA7,".",",")*1,PIMExport!CA7)) -> 0 | CB9: =IFERROR(PIMExport!CB7*1,IFERROR(SUBSTITUTE(PIMExport!CB7,".",",")*1,PIMExport!CB7)) -> 751 | CC9: =IFERROR(PIMExport!CC7*1,IFERROR(SUBSTITUTE(PIMExport!CC7,".",",")*1,PIMExport!CC7)) -> 1221 | CD9: =IFERROR(PIMExport!CD7*1,IFERROR(SUBSTITUTE(PIMExport!CD7,".",",")*1,PIMExport!CD7)) -> 1981 | CE9: =IFERROR(PIMExport!CE7*1,IFERROR(SUBSTITUTE(PIMExport!CE7,".",",")*1,PIMExport!CE7)) -> 2731 | CF9: =IFERROR(PIMExport!CF7*1,IFERROR(SUBSTITUTE(PIMExport!CF7,".",",")*1,PIMExport!CF7)) -> 3491 | CG9: =IFERROR(PIMExport!CG7*1,IFERROR(SUBSTITUTE(PIMExport!CG7,".",",")*1,PIMExport!CG7)) -> 4241 | CH9: =IFERROR(PIMExport!CH7*1,IFERROR(SUBSTITUTE(PIMExport!CH7,".",",")*1,PIMExport!CH7)) -> 5001 | CI9: =IFERROR(PIMExport!CI7*1,IFERROR(SUBSTITUTE(PIMExport!CI7,".",",")*1,PIMExport!CI7)) -> 0 | CJ9: =IFERROR(PIMExport!CJ7*1,IFERROR(SUBSTITUTE(PIMExport!CJ7,".",",")*1,PIMExport!CJ7)) -> 0 | CK9: =IFERROR(PIMExport!CK7*1,IFERROR(SUBSTITUTE(PIMExport!CK7,".",",")*1,PIMExport!CK7)) -> 0 | CL9: =IFERROR(PIMExport!CL7*1,IFERROR(SUBSTITUTE(PIMExport!CL7,".",",")*1,PIMExport!CL7)) -> 0 | CM9: =IFERROR(PIMExport!CM7*1,IFERROR(SUBSTITUTE(PIMExport!CM7,".",",")*1,PIMExport!CM7)) -> 0 | CN9: =IFERROR(PIMExport!CN7*1,IFERROR(SUBSTITUTE(PIMExport!CN7,".",",")*1,PIMExport!CN7)) -> 0 | CO9: =IFERROR(PIMExport!CO7*1,IFERROR(SUBSTITUTE(PIMExport!CO7,".",",")*1,PIMExport!CO7)) -> 0 | CP9: =IFERROR(PIMExport!CP7*1,IFERROR(SUBSTITUTE(PIMExport!CP7,".",",")*1,PIMExport!CP7)) -> 0 | CQ9: =IFERROR(PIMExport!CQ7*1,IFERROR(SUBSTITUTE(PIMExport!CQ7,".",",")*1,PIMExport!CQ7)) -> 0 | CR9: =IFERROR(PIMExport!CR7*1,IFERROR(SUBSTITUTE(PIMExport!CR7,".",",")*1,PIMExport!CR7)) -> 0 | CS9: =IFERROR(PIMExport!CS7*1,IFERROR(SUBSTITUTE(PIMExport!CS7,".",",")*1,PIMExport!CS7)) -> 0 | CT9: =IFERROR(PIMExport!CT7*1,IFERROR(SUBSTITUTE(PIMExport!CT7,".",",")*1,PIMExport!CT7)) -> 0 | CU9: =IFERROR(PIMExport!CU7*1,IFERROR(SUBSTITUTE(PIMExport!CU7,".",",")*1,PIMExport!CU7)) -> 20 | CV9: =IFERROR(PIMExport!CV7*1,IFERROR(SUBSTITUTE(PIMExport!CV7,".",",")*1,PIMExport!CV7)) -> 13000 | CW9: =IFERROR(PIMExport!CW7*1,IFERROR(SUBSTITUTE(PIMExport!CW7,".",",")*1,PIMExport!CW7)) -> 0.000225 | CX9: =IFERROR(PIMExport!CX7*1,IFERROR(SUBSTITUTE(PIMExport!CX7,".",",")*1,PIMExport!CX7)) -> 400 | CY9: =IFERROR(PIMExport!CY7*1,IFERROR(SUBSTITUTE(PIMExport!CY7,".",",")*1,PIMExport!CY7)) -> 500 | CZ9: =IFERROR(PIMExport!CZ7*1,IFERROR(SUBSTITUTE(PIMExport!CZ7,".",",")*1,PIMExport!CZ7)) -> 26000 | DA9: =IFERROR(PIMExport!DA7*1,IFERROR(SUBSTITUTE(PIMExport!DA7,".",",")*1,PIMExport!DA7)) -> 350 | DB9: =IFERROR(PIMExport!DB7*1,IFERROR(SUBSTITUTE(PIMExport!DB7,".",",")*1,PIMExport!DB7)) -> 0 | DC9: =IFERROR(PIMExport!DC7*1,IFERROR(SUBSTITUTE(PIMExport!DC7,".",",")*1,PIMExport!DC7)) -> 0 | DD9: =IFERROR(PIMExport!DD7*1,IFERROR(SUBSTITUTE(PIMExport!DD7,".",",")*1,PIMExport!DD7)) -> 0 | DE9: =IFERROR(PIMExport!DE7*1,IFERROR(SUBSTITUTE(PIMExport!DE7,".",",")*1,PIMExport!DE7)) -> 0 | DF9: =IFERROR(PIMExport!DF7*1,IFERROR(SUBSTITUTE(PIMExport!DF7,".",",")*1,PIMExport!DF7)) -> 0 | DG9: =IFERROR(PIMExport!DG7*1,IFERROR(SUBSTITUTE(PIMExport!DG7,".",",")*1,PIMExport!DG7)) -> 0 | DH9: =IFERROR(PIMExport!DH7*1,IFERROR(SUBSTITUTE(PIMExport!DH7,".",",")*1,PIMExport!DH7)) -> Equal to or better than 0.025 mm | DI9: =IFERROR(PIMExport!DI7*1,IFERROR(SUBSTITUTE(PIMExport!DI7,".",",")*1,PIMExport!DI7)) -> 0 | DJ9: =IFERROR(PIMExport!DJ7*1,IFERROR(SUBSTITUTE(PIMExport!DJ7,".",",")*1,PIMExport!DJ7)) -> 160 x 65 mm | DK9: =IFERROR(PIMExport!DK7*1,IFERROR(SUBSTITUTE(PIMExport!DK7,".",",")*1,PIMExport!DK7)) -> 25 mm | DL9: =IFERROR(PIMExport!DL7*1,IFERROR(SUBSTITUTE(PIMExport!DL7,".",",")*1,PIMExport!DL7)) -> 300 | DM9: =IFERROR(PIMExport!DM7*1,IFERROR(SUBSTITUTE(PIMExport!DM7,".",",")*1,PIMExport!DM7)) -> 5700 | DN9: =IFERROR(PIMExport!DN7*1,IFERROR(SUBSTITUTE(PIMExport!DN7,".",",")*1,PIMExport!DN7)) -> 0 | DO9: =IFERROR(PIMExport!DO7*1,IFERROR(SUBSTITUTE(PIMExport!DO7,".",",")*1,PIMExport!DO7)) -> 0
A10: =IFERROR(PIMExport!A8*1,IFERROR(SUBSTITUTE(PIMExport!A8,".",",")*1,PIMExport!A8)) -> MLSM06D50-N | B10: =IFERROR(PIMExport!B8*1,IFERROR(SUBSTITUTE(PIMExport!B8,".",",")*1,PIMExport!B8)) -> BallScrew | C10: =IFERROR(PIMExport!C8*1,IFERROR(SUBSTITUTE(PIMExport!C8,".",",")*1,PIMExport!C8)) -> Ball Guide | D10: =IFERROR(PIMExport!D8*1,IFERROR(SUBSTITUTE(PIMExport!D8,".",",")*1,PIMExport!D8)) -> 4985 | E10: =IFERROR(PIMExport!E8*1,IFERROR(SUBSTITUTE(PIMExport!E8,".",",")*1,PIMExport!E8)) -> 5.7 | F10: =IFERROR(PIMExport!F8*1,IFERROR(SUBSTITUTE(PIMExport!F8,".",",")*1,PIMExport!F8)) -> 0 | G10: =IFERROR(PIMExport!G8*1,IFERROR(SUBSTITUTE(PIMExport!G8,".",",")*1,PIMExport!G8)) -> 14.4 | H10: =IFERROR(PIMExport!H8*1,IFERROR(SUBSTITUTE(PIMExport!H8,".",",")*1,PIMExport!H8)) -> 1.65 | I10: =IFERROR(PIMExport!I8*1,IFERROR(SUBSTITUTE(PIMExport!I8,".",",")*1,PIMExport!I8)) -> 163 | J10: =IFERROR(PIMExport!J8*1,IFERROR(SUBSTITUTE(PIMExport!J8,".",",")*1,PIMExport!J8)) -> 105 | K10: =IFERROR(PIMExport!K8*1,IFERROR(SUBSTITUTE(PIMExport!K8,".",",")*1,PIMExport!K8)) -> 0 | L10: =IFERROR(PIMExport!L8*1,IFERROR(SUBSTITUTE(PIMExport!L8,".",",")*1,PIMExport!L8)) -> 3.9e-05 | M10: =IFERROR(PIMExport!M8*1,IFERROR(SUBSTITUTE(PIMExport!M8,".",",")*1,PIMExport!M8)) -> 0.9 | N10: =IFERROR(PIMExport!N8*1,IFERROR(SUBSTITUTE(PIMExport!N8,".",",")*1,PIMExport!N8)) -> 150 | O10: =IFERROR(PIMExport!O8*1,IFERROR(SUBSTITUTE(PIMExport!O8,".",",")*1,PIMExport!O8)) -> 1500 | P10: =IFERROR(PIMExport!P8*1,IFERROR(SUBSTITUTE(PIMExport!P8,".",",")*1,PIMExport!P8)) -> 3000 | Q10: =IFERROR(PIMExport!Q8*1,IFERROR(SUBSTITUTE(PIMExport!Q8,".",",")*1,PIMExport!Q8)) -> 2.7 | R10: =IFERROR(PIMExport!R8*1,IFERROR(SUBSTITUTE(PIMExport!R8,".",",")*1,PIMExport!R8)) -> 3.4 | S10: =IFERROR(PIMExport!S8*1,IFERROR(SUBSTITUTE(PIMExport!S8,".",",")*1,PIMExport!S8)) -> 4 | T10: =IFERROR(PIMExport!T8*1,IFERROR(SUBSTITUTE(PIMExport!T8,".",",")*1,PIMExport!T8)) -> 27 | U10: =IFERROR(PIMExport!U8*1,IFERROR(SUBSTITUTE(PIMExport!U8,".",",")*1,PIMExport!U8)) -> 0.1 | V10: =IFERROR(PIMExport!V8*1,IFERROR(SUBSTITUTE(PIMExport!V8,".",",")*1,PIMExport!V8)) -> 0 | W10: =IFERROR(PIMExport!W8*1,IFERROR(SUBSTITUTE(PIMExport!W8,".",",")*1,PIMExport!W8)) -> 0 | X10: =IFERROR(PIMExport!X8*1,IFERROR(SUBSTITUTE(PIMExport!X8,".",",")*1,PIMExport!X8)) -> 0 | Y10: =IFERROR(PIMExport!Y8*1,IFERROR(SUBSTITUTE(PIMExport!Y8,".",",")*1,PIMExport!Y8)) -> 5000 | Z10: =IFERROR(PIMExport!Z8*1,IFERROR(SUBSTITUTE(PIMExport!Z8,".",",")*1,PIMExport!Z8)) -> 0 | AA10: =IFERROR(PIMExport!AA8*1,IFERROR(SUBSTITUTE(PIMExport!AA8,".",",")*1,PIMExport!AA8)) -> 0 | AB10: =IFERROR(PIMExport!AB8*1,IFERROR(SUBSTITUTE(PIMExport!AB8,".",",")*1,PIMExport!AB8)) -> 0 | AC10: =IFERROR(PIMExport!AC8*1,IFERROR(SUBSTITUTE(PIMExport!AC8,".",",")*1,PIMExport!AC8)) -> 0 | AD10: =IFERROR(PIMExport!AD8*1,IFERROR(SUBSTITUTE(PIMExport!AD8,".",",")*1,PIMExport!AD8)) -> 0 | AE10: =IFERROR(PIMExport!AE8*1,IFERROR(SUBSTITUTE(PIMExport!AE8,".",",")*1,PIMExport!AE8)) -> 6000 | AF10: =IFERROR(PIMExport!AF8*1,IFERROR(SUBSTITUTE(PIMExport!AF8,".",",")*1,PIMExport!AF8)) -> 6000 | AG10: =IFERROR(PIMExport!AG8*1,IFERROR(SUBSTITUTE(PIMExport!AG8,".",",")*1,PIMExport!AG8)) -> 400 | AH10: =IFERROR(PIMExport!AH8*1,IFERROR(SUBSTITUTE(PIMExport!AH8,".",",")*1,PIMExport!AH8)) -> 460 | AI10: =IFERROR(PIMExport!AI8*1,IFERROR(SUBSTITUTE(PIMExport!AI8,".",",")*1,PIMExport!AI8)) -> 460 | AJ10: =IFERROR(PIMExport!AJ8*1,IFERROR(SUBSTITUTE(PIMExport!AJ8,".",",")*1,PIMExport!AJ8)) -> 0 | AK10: =IFERROR(PIMExport!AK8*1,IFERROR(SUBSTITUTE(PIMExport!AK8,".",",")*1,PIMExport!AK8)) -> 0 | AL10: =IFERROR(PIMExport!AL8*1,IFERROR(SUBSTITUTE(PIMExport!AL8,".",",")*1,PIMExport!AL8)) -> 2.5 | AM10: =IFERROR(PIMExport!AM8*1,IFERROR(SUBSTITUTE(PIMExport!AM8,".",",")*1,PIMExport!AM8)) -> 20 | AN10: =IFERROR(PIMExport!AN8*1,IFERROR(SUBSTITUTE(PIMExport!AN8,".",",")*1,PIMExport!AN8)) -> 1 | AO10: =IFERROR(PIMExport!AO8*1,IFERROR(SUBSTITUTE(PIMExport!AO8,".",",")*1,PIMExport!AO8)) -> 55080 | AP10: =IFERROR(PIMExport!AP8*1,IFERROR(SUBSTITUTE(PIMExport!AP8,".",",")*1,PIMExport!AP8)) -> 500 | AQ10: =IFERROR(PIMExport!AQ8*1,IFERROR(SUBSTITUTE(PIMExport!AQ8,".",",")*1,PIMExport!AQ8)) -> 0 | AR10: =IFERROR(PIMExport!AR8*1,IFERROR(SUBSTITUTE(PIMExport!AR8,".",",")*1,PIMExport!AR8)) -> 0 | AS10: =IFERROR(PIMExport!AS8*1,IFERROR(SUBSTITUTE(PIMExport!AS8,".",",")*1,PIMExport!AS8)) -> 0 | AT10: =IFERROR(PIMExport!AT8*1,IFERROR(SUBSTITUTE(PIMExport!AT8,".",",")*1,PIMExport!AT8)) -> 0 | AU10: =IFERROR(PIMExport!AU8*1,IFERROR(SUBSTITUTE(PIMExport!AU8,".",",")*1,PIMExport!AU8)) -> 0 | AV10: =IFERROR(PIMExport!AV8*1,IFERROR(SUBSTITUTE(PIMExport!AV8,".",",")*1,PIMExport!AV8)) -> 0 | AW10: =IFERROR(PIMExport!AW8*1,IFERROR(SUBSTITUTE(PIMExport!AW8,".",",")*1,PIMExport!AW8)) -> 0 | AX10: =IFERROR(PIMExport!AX8*1,IFERROR(SUBSTITUTE(PIMExport!AX8,".",",")*1,PIMExport!AX8)) -> 0 | AY10: =IFERROR(PIMExport!AY8*1,IFERROR(SUBSTITUTE(PIMExport!AY8,".",",")*1,PIMExport!AY8)) -> 0 | AZ10: =IFERROR(PIMExport!AZ8*1,IFERROR(SUBSTITUTE(PIMExport!AZ8,".",",")*1,PIMExport!AZ8)) -> 0 | BA10: =IFERROR(PIMExport!BA8*1,IFERROR(SUBSTITUTE(PIMExport!BA8,".",",")*1,PIMExport!BA8)) -> 0 | BB10: =IFERROR(PIMExport!BB8*1,IFERROR(SUBSTITUTE(PIMExport!BB8,".",",")*1,PIMExport!BB8)) -> 0 | BC10: =IFERROR(PIMExport!BC8*1,IFERROR(SUBSTITUTE(PIMExport!BC8,".",",")*1,PIMExport!BC8)) -> 0 | BD10: =IFERROR(PIMExport!BD8*1,IFERROR(SUBSTITUTE(PIMExport!BD8,".",",")*1,PIMExport!BD8)) -> 0 | BE10: =IFERROR(PIMExport!BE8*1,IFERROR(SUBSTITUTE(PIMExport!BE8,".",",")*1,PIMExport!BE8)) -> 0 | BF10: =IFERROR(PIMExport!BF8*1,IFERROR(SUBSTITUTE(PIMExport!BF8,".",",")*1,PIMExport!BF8)) -> 0 | BG10: =IFERROR(PIMExport!BG8*1,IFERROR(SUBSTITUTE(PIMExport!BG8,".",",")*1,PIMExport!BG8)) -> 435 | BH10: =IFERROR(PIMExport!BH8*1,IFERROR(SUBSTITUTE(PIMExport!BH8,".",",")*1,PIMExport!BH8)) -> 495 | BI10: =IFERROR(PIMExport!BI8*1,IFERROR(SUBSTITUTE(PIMExport!BI8,".",",")*1,PIMExport!BI8)) -> 535 | BJ10: =IFERROR(PIMExport!BJ8*1,IFERROR(SUBSTITUTE(PIMExport!BJ8,".",",")*1,PIMExport!BJ8)) -> 585 | BK10: =IFERROR(PIMExport!BK8*1,IFERROR(SUBSTITUTE(PIMExport!BK8,".",",")*1,PIMExport!BK8)) -> 625 | BL10: =IFERROR(PIMExport!BL8*1,IFERROR(SUBSTITUTE(PIMExport!BL8,".",",")*1,PIMExport!BL8)) -> 675 | BM10: =IFERROR(PIMExport!BM8*1,IFERROR(SUBSTITUTE(PIMExport!BM8,".",",")*1,PIMExport!BM8)) -> 715 | BN10: =IFERROR(PIMExport!BN8*1,IFERROR(SUBSTITUTE(PIMExport!BN8,".",",")*1,PIMExport!BN8)) -> 755 | BO10: =IFERROR(PIMExport!BO8*1,IFERROR(SUBSTITUTE(PIMExport!BO8,".",",")*1,PIMExport!BO8)) -> 0 | BP10: =IFERROR(PIMExport!BP8*1,IFERROR(SUBSTITUTE(PIMExport!BP8,".",",")*1,PIMExport!BP8)) -> 0 | BQ10: =IFERROR(PIMExport!BQ8*1,IFERROR(SUBSTITUTE(PIMExport!BQ8,".",",")*1,PIMExport!BQ8)) -> 0 | BR10: =IFERROR(PIMExport!BR8*1,IFERROR(SUBSTITUTE(PIMExport!BR8,".",",")*1,PIMExport!BR8)) -> 0 | BS10: =IFERROR(PIMExport!BS8*1,IFERROR(SUBSTITUTE(PIMExport!BS8,".",",")*1,PIMExport!BS8)) -> 0 | BT10: =IFERROR(PIMExport!BT8*1,IFERROR(SUBSTITUTE(PIMExport!BT8,".",",")*1,PIMExport!BT8)) -> 0 | BU10: =IFERROR(PIMExport!BU8*1,IFERROR(SUBSTITUTE(PIMExport!BU8,".",",")*1,PIMExport!BU8)) -> 0 | BV10: =IFERROR(PIMExport!BV8*1,IFERROR(SUBSTITUTE(PIMExport!BV8,".",",")*1,PIMExport!BV8)) -> 0 | BW10: =IFERROR(PIMExport!BW8*1,IFERROR(SUBSTITUTE(PIMExport!BW8,".",",")*1,PIMExport!BW8)) -> 0 | BX10: =IFERROR(PIMExport!BX8*1,IFERROR(SUBSTITUTE(PIMExport!BX8,".",",")*1,PIMExport!BX8)) -> 0 | BY10: =IFERROR(PIMExport!BY8*1,IFERROR(SUBSTITUTE(PIMExport!BY8,".",",")*1,PIMExport!BY8)) -> 0 | BZ10: =IFERROR(PIMExport!BZ8*1,IFERROR(SUBSTITUTE(PIMExport!BZ8,".",",")*1,PIMExport!BZ8)) -> 0 | CA10: =IFERROR(PIMExport!CA8*1,IFERROR(SUBSTITUTE(PIMExport!CA8,".",",")*1,PIMExport!CA8)) -> 0 | CB10: =IFERROR(PIMExport!CB8*1,IFERROR(SUBSTITUTE(PIMExport!CB8,".",",")*1,PIMExport!CB8)) -> 751 | CC10: =IFERROR(PIMExport!CC8*1,IFERROR(SUBSTITUTE(PIMExport!CC8,".",",")*1,PIMExport!CC8)) -> 1221 | CD10: =IFERROR(PIMExport!CD8*1,IFERROR(SUBSTITUTE(PIMExport!CD8,".",",")*1,PIMExport!CD8)) -> 1981 | CE10: =IFERROR(PIMExport!CE8*1,IFERROR(SUBSTITUTE(PIMExport!CE8,".",",")*1,PIMExport!CE8)) -> 2731 | CF10: =IFERROR(PIMExport!CF8*1,IFERROR(SUBSTITUTE(PIMExport!CF8,".",",")*1,PIMExport!CF8)) -> 3491 | CG10: =IFERROR(PIMExport!CG8*1,IFERROR(SUBSTITUTE(PIMExport!CG8,".",",")*1,PIMExport!CG8)) -> 4241 | CH10: =IFERROR(PIMExport!CH8*1,IFERROR(SUBSTITUTE(PIMExport!CH8,".",",")*1,PIMExport!CH8)) -> 5001 | CI10: =IFERROR(PIMExport!CI8*1,IFERROR(SUBSTITUTE(PIMExport!CI8,".",",")*1,PIMExport!CI8)) -> 0 | CJ10: =IFERROR(PIMExport!CJ8*1,IFERROR(SUBSTITUTE(PIMExport!CJ8,".",",")*1,PIMExport!CJ8)) -> 0 | CK10: =IFERROR(PIMExport!CK8*1,IFERROR(SUBSTITUTE(PIMExport!CK8,".",",")*1,PIMExport!CK8)) -> 0 | CL10: =IFERROR(PIMExport!CL8*1,IFERROR(SUBSTITUTE(PIMExport!CL8,".",",")*1,PIMExport!CL8)) -> 0 | CM10: =IFERROR(PIMExport!CM8*1,IFERROR(SUBSTITUTE(PIMExport!CM8,".",",")*1,PIMExport!CM8)) -> 0 | CN10: =IFERROR(PIMExport!CN8*1,IFERROR(SUBSTITUTE(PIMExport!CN8,".",",")*1,PIMExport!CN8)) -> 0 | CO10: =IFERROR(PIMExport!CO8*1,IFERROR(SUBSTITUTE(PIMExport!CO8,".",",")*1,PIMExport!CO8)) -> 0 | CP10: =IFERROR(PIMExport!CP8*1,IFERROR(SUBSTITUTE(PIMExport!CP8,".",",")*1,PIMExport!CP8)) -> 0 | CQ10: =IFERROR(PIMExport!CQ8*1,IFERROR(SUBSTITUTE(PIMExport!CQ8,".",",")*1,PIMExport!CQ8)) -> 0 | CR10: =IFERROR(PIMExport!CR8*1,IFERROR(SUBSTITUTE(PIMExport!CR8,".",",")*1,PIMExport!CR8)) -> 0 | CS10: =IFERROR(PIMExport!CS8*1,IFERROR(SUBSTITUTE(PIMExport!CS8,".",",")*1,PIMExport!CS8)) -> 0 | CT10: =IFERROR(PIMExport!CT8*1,IFERROR(SUBSTITUTE(PIMExport!CT8,".",",")*1,PIMExport!CT8)) -> 0 | CU10: =IFERROR(PIMExport!CU8*1,IFERROR(SUBSTITUTE(PIMExport!CU8,".",",")*1,PIMExport!CU8)) -> 50 | CV10: =IFERROR(PIMExport!CV8*1,IFERROR(SUBSTITUTE(PIMExport!CV8,".",",")*1,PIMExport!CV8)) -> 15400 | CW10: =IFERROR(PIMExport!CW8*1,IFERROR(SUBSTITUTE(PIMExport!CW8,".",",")*1,PIMExport!CW8)) -> 0.000225 | CX10: =IFERROR(PIMExport!CX8*1,IFERROR(SUBSTITUTE(PIMExport!CX8,".",",")*1,PIMExport!CX8)) -> 400 | CY10: =IFERROR(PIMExport!CY8*1,IFERROR(SUBSTITUTE(PIMExport!CY8,".",",")*1,PIMExport!CY8)) -> 500 | CZ10: =IFERROR(PIMExport!CZ8*1,IFERROR(SUBSTITUTE(PIMExport!CZ8,".",",")*1,PIMExport!CZ8)) -> 26000 | DA10: =IFERROR(PIMExport!DA8*1,IFERROR(SUBSTITUTE(PIMExport!DA8,".",",")*1,PIMExport!DA8)) -> 350 | DB10: =IFERROR(PIMExport!DB8*1,IFERROR(SUBSTITUTE(PIMExport!DB8,".",",")*1,PIMExport!DB8)) -> 0 | DC10: =IFERROR(PIMExport!DC8*1,IFERROR(SUBSTITUTE(PIMExport!DC8,".",",")*1,PIMExport!DC8)) -> 0 | DD10: =IFERROR(PIMExport!DD8*1,IFERROR(SUBSTITUTE(PIMExport!DD8,".",",")*1,PIMExport!DD8)) -> 0 | DE10: =IFERROR(PIMExport!DE8*1,IFERROR(SUBSTITUTE(PIMExport!DE8,".",",")*1,PIMExport!DE8)) -> 0 | DF10: =IFERROR(PIMExport!DF8*1,IFERROR(SUBSTITUTE(PIMExport!DF8,".",",")*1,PIMExport!DF8)) -> 0 | DG10: =IFERROR(PIMExport!DG8*1,IFERROR(SUBSTITUTE(PIMExport!DG8,".",",")*1,PIMExport!DG8)) -> 0 | DH10: =IFERROR(PIMExport!DH8*1,IFERROR(SUBSTITUTE(PIMExport!DH8,".",",")*1,PIMExport!DH8)) -> Equal to or better than 0.025 mm | DI10: =IFERROR(PIMExport!DI8*1,IFERROR(SUBSTITUTE(PIMExport!DI8,".",",")*1,PIMExport!DI8)) -> 0 | DJ10: =IFERROR(PIMExport!DJ8*1,IFERROR(SUBSTITUTE(PIMExport!DJ8,".",",")*1,PIMExport!DJ8)) -> 160 x 65 mm | DK10: =IFERROR(PIMExport!DK8*1,IFERROR(SUBSTITUTE(PIMExport!DK8,".",",")*1,PIMExport!DK8)) -> 25 mm | DL10: =IFERROR(PIMExport!DL8*1,IFERROR(SUBSTITUTE(PIMExport!DL8,".",",")*1,PIMExport!DL8)) -> 300 | DM10: =IFERROR(PIMExport!DM8*1,IFERROR(SUBSTITUTE(PIMExport!DM8,".",",")*1,PIMExport!DM8)) -> 5700 | DN10: =IFERROR(PIMExport!DN8*1,IFERROR(SUBSTITUTE(PIMExport!DN8,".",",")*1,PIMExport!DN8)) -> 0 | DO10: =IFERROR(PIMExport!DO8*1,IFERROR(SUBSTITUTE(PIMExport!DO8,".",",")*1,PIMExport!DO8)) -> 0
A11: =IFERROR(PIMExport!A9*1,IFERROR(SUBSTITUTE(PIMExport!A9,".",",")*1,PIMExport!A9)) -> MLSM06D05-L | B11: =IFERROR(PIMExport!B9*1,IFERROR(SUBSTITUTE(PIMExport!B9,".",",")*1,PIMExport!B9)) -> BallScrew | C11: =IFERROR(PIMExport!C9*1,IFERROR(SUBSTITUTE(PIMExport!C9,".",",")*1,PIMExport!C9)) -> Ball Guide | D11: =IFERROR(PIMExport!D9*1,IFERROR(SUBSTITUTE(PIMExport!D9,".",",")*1,PIMExport!D9)) -> 4815 | E11: =IFERROR(PIMExport!E9*1,IFERROR(SUBSTITUTE(PIMExport!E9,".",",")*1,PIMExport!E9)) -> 6.5 | F11: =IFERROR(PIMExport!F9*1,IFERROR(SUBSTITUTE(PIMExport!F9,".",",")*1,PIMExport!F9)) -> 0 | G11: =IFERROR(PIMExport!G9*1,IFERROR(SUBSTITUTE(PIMExport!G9,".",",")*1,PIMExport!G9)) -> 14.4 | H11: =IFERROR(PIMExport!H9*1,IFERROR(SUBSTITUTE(PIMExport!H9,".",",")*1,PIMExport!H9)) -> 1.65 | I11: =IFERROR(PIMExport!I9*1,IFERROR(SUBSTITUTE(PIMExport!I9,".",",")*1,PIMExport!I9)) -> 333 | J11: =IFERROR(PIMExport!J9*1,IFERROR(SUBSTITUTE(PIMExport!J9,".",",")*1,PIMExport!J9)) -> 105 | K11: =IFERROR(PIMExport!K9*1,IFERROR(SUBSTITUTE(PIMExport!K9,".",",")*1,PIMExport!K9)) -> 0 | L11: =IFERROR(PIMExport!L9*1,IFERROR(SUBSTITUTE(PIMExport!L9,".",",")*1,PIMExport!L9)) -> 3.9e-05 | M11: =IFERROR(PIMExport!M9*1,IFERROR(SUBSTITUTE(PIMExport!M9,".",",")*1,PIMExport!M9)) -> 0.9 | N11: =IFERROR(PIMExport!N9*1,IFERROR(SUBSTITUTE(PIMExport!N9,".",",")*1,PIMExport!N9)) -> 150 | O11: =IFERROR(PIMExport!O9*1,IFERROR(SUBSTITUTE(PIMExport!O9,".",",")*1,PIMExport!O9)) -> 1500 | P11: =IFERROR(PIMExport!P9*1,IFERROR(SUBSTITUTE(PIMExport!P9,".",",")*1,PIMExport!P9)) -> 3000 | Q11: =IFERROR(PIMExport!Q9*1,IFERROR(SUBSTITUTE(PIMExport!Q9,".",",")*1,PIMExport!Q9)) -> 1 | R11: =IFERROR(PIMExport!R9*1,IFERROR(SUBSTITUTE(PIMExport!R9,".",",")*1,PIMExport!R9)) -> 1.6 | S11: =IFERROR(PIMExport!S9*1,IFERROR(SUBSTITUTE(PIMExport!S9,".",",")*1,PIMExport!S9)) -> 2 | T11: =IFERROR(PIMExport!T9*1,IFERROR(SUBSTITUTE(PIMExport!T9,".",",")*1,PIMExport!T9)) -> 27 | U11: =IFERROR(PIMExport!U9*1,IFERROR(SUBSTITUTE(PIMExport!U9,".",",")*1,PIMExport!U9)) -> 0.1 | V11: =IFERROR(PIMExport!V9*1,IFERROR(SUBSTITUTE(PIMExport!V9,".",",")*1,PIMExport!V9)) -> 0 | W11: =IFERROR(PIMExport!W9*1,IFERROR(SUBSTITUTE(PIMExport!W9,".",",")*1,PIMExport!W9)) -> 0 | X11: =IFERROR(PIMExport!X9*1,IFERROR(SUBSTITUTE(PIMExport!X9,".",",")*1,PIMExport!X9)) -> 0 | Y11: =IFERROR(PIMExport!Y9*1,IFERROR(SUBSTITUTE(PIMExport!Y9,".",",")*1,PIMExport!Y9)) -> 5000 | Z11: =IFERROR(PIMExport!Z9*1,IFERROR(SUBSTITUTE(PIMExport!Z9,".",",")*1,PIMExport!Z9)) -> 0 | AA11: =IFERROR(PIMExport!AA9*1,IFERROR(SUBSTITUTE(PIMExport!AA9,".",",")*1,PIMExport!AA9)) -> 0 | AB11: =IFERROR(PIMExport!AB9*1,IFERROR(SUBSTITUTE(PIMExport!AB9,".",",")*1,PIMExport!AB9)) -> 0 | AC11: =IFERROR(PIMExport!AC9*1,IFERROR(SUBSTITUTE(PIMExport!AC9,".",",")*1,PIMExport!AC9)) -> 0 | AD11: =IFERROR(PIMExport!AD9*1,IFERROR(SUBSTITUTE(PIMExport!AD9,".",",")*1,PIMExport!AD9)) -> 0 | AE11: =IFERROR(PIMExport!AE9*1,IFERROR(SUBSTITUTE(PIMExport!AE9,".",",")*1,PIMExport!AE9)) -> 6000 | AF11: =IFERROR(PIMExport!AF9*1,IFERROR(SUBSTITUTE(PIMExport!AF9,".",",")*1,PIMExport!AF9)) -> 6000 | AG11: =IFERROR(PIMExport!AG9*1,IFERROR(SUBSTITUTE(PIMExport!AG9,".",",")*1,PIMExport!AG9)) -> 450 | AH11: =IFERROR(PIMExport!AH9*1,IFERROR(SUBSTITUTE(PIMExport!AH9,".",",")*1,PIMExport!AH9)) -> 940 | AI11: =IFERROR(PIMExport!AI9*1,IFERROR(SUBSTITUTE(PIMExport!AI9,".",",")*1,PIMExport!AI9)) -> 940 | AJ11: =IFERROR(PIMExport!AJ9*1,IFERROR(SUBSTITUTE(PIMExport!AJ9,".",",")*1,PIMExport!AJ9)) -> 0 | AK11: =IFERROR(PIMExport!AK9*1,IFERROR(SUBSTITUTE(PIMExport!AK9,".",",")*1,PIMExport!AK9)) -> 0 | AL11: =IFERROR(PIMExport!AL9*1,IFERROR(SUBSTITUTE(PIMExport!AL9,".",",")*1,PIMExport!AL9)) -> 0.25 | AM11: =IFERROR(PIMExport!AM9*1,IFERROR(SUBSTITUTE(PIMExport!AM9,".",",")*1,PIMExport!AM9)) -> 20 | AN11: =IFERROR(PIMExport!AN9*1,IFERROR(SUBSTITUTE(PIMExport!AN9,".",",")*1,PIMExport!AN9)) -> 1 | AO11: =IFERROR(PIMExport!AO9*1,IFERROR(SUBSTITUTE(PIMExport!AO9,".",",")*1,PIMExport!AO9)) -> 55080 | AP11: =IFERROR(PIMExport!AP9*1,IFERROR(SUBSTITUTE(PIMExport!AP9,".",",")*1,PIMExport!AP9)) -> 500 | AQ11: =IFERROR(PIMExport!AQ9*1,IFERROR(SUBSTITUTE(PIMExport!AQ9,".",",")*1,PIMExport!AQ9)) -> 0 | AR11: =IFERROR(PIMExport!AR9*1,IFERROR(SUBSTITUTE(PIMExport!AR9,".",",")*1,PIMExport!AR9)) -> 0 | AS11: =IFERROR(PIMExport!AS9*1,IFERROR(SUBSTITUTE(PIMExport!AS9,".",",")*1,PIMExport!AS9)) -> 0 | AT11: =IFERROR(PIMExport!AT9*1,IFERROR(SUBSTITUTE(PIMExport!AT9,".",",")*1,PIMExport!AT9)) -> 0 | AU11: =IFERROR(PIMExport!AU9*1,IFERROR(SUBSTITUTE(PIMExport!AU9,".",",")*1,PIMExport!AU9)) -> 0 | AV11: =IFERROR(PIMExport!AV9*1,IFERROR(SUBSTITUTE(PIMExport!AV9,".",",")*1,PIMExport!AV9)) -> 0 | AW11: =IFERROR(PIMExport!AW9*1,IFERROR(SUBSTITUTE(PIMExport!AW9,".",",")*1,PIMExport!AW9)) -> 0 | AX11: =IFERROR(PIMExport!AX9*1,IFERROR(SUBSTITUTE(PIMExport!AX9,".",",")*1,PIMExport!AX9)) -> 0 | AY11: =IFERROR(PIMExport!AY9*1,IFERROR(SUBSTITUTE(PIMExport!AY9,".",",")*1,PIMExport!AY9)) -> 0 | AZ11: =IFERROR(PIMExport!AZ9*1,IFERROR(SUBSTITUTE(PIMExport!AZ9,".",",")*1,PIMExport!AZ9)) -> 0 | BA11: =IFERROR(PIMExport!BA9*1,IFERROR(SUBSTITUTE(PIMExport!BA9,".",",")*1,PIMExport!BA9)) -> 0 | BB11: =IFERROR(PIMExport!BB9*1,IFERROR(SUBSTITUTE(PIMExport!BB9,".",",")*1,PIMExport!BB9)) -> 0 | BC11: =IFERROR(PIMExport!BC9*1,IFERROR(SUBSTITUTE(PIMExport!BC9,".",",")*1,PIMExport!BC9)) -> 0 | BD11: =IFERROR(PIMExport!BD9*1,IFERROR(SUBSTITUTE(PIMExport!BD9,".",",")*1,PIMExport!BD9)) -> 0 | BE11: =IFERROR(PIMExport!BE9*1,IFERROR(SUBSTITUTE(PIMExport!BE9,".",",")*1,PIMExport!BE9)) -> 0 | BF11: =IFERROR(PIMExport!BF9*1,IFERROR(SUBSTITUTE(PIMExport!BF9,".",",")*1,PIMExport!BF9)) -> 0 | BG11: =IFERROR(PIMExport!BG9*1,IFERROR(SUBSTITUTE(PIMExport!BG9,".",",")*1,PIMExport!BG9)) -> 605 | BH11: =IFERROR(PIMExport!BH9*1,IFERROR(SUBSTITUTE(PIMExport!BH9,".",",")*1,PIMExport!BH9)) -> 665 | BI11: =IFERROR(PIMExport!BI9*1,IFERROR(SUBSTITUTE(PIMExport!BI9,".",",")*1,PIMExport!BI9)) -> 705 | BJ11: =IFERROR(PIMExport!BJ9*1,IFERROR(SUBSTITUTE(PIMExport!BJ9,".",",")*1,PIMExport!BJ9)) -> 765 | BK11: =IFERROR(PIMExport!BK9*1,IFERROR(SUBSTITUTE(PIMExport!BK9,".",",")*1,PIMExport!BK9)) -> 795 | BL11: =IFERROR(PIMExport!BL9*1,IFERROR(SUBSTITUTE(PIMExport!BL9,".",",")*1,PIMExport!BL9)) -> 845 | BM11: =IFERROR(PIMExport!BM9*1,IFERROR(SUBSTITUTE(PIMExport!BM9,".",",")*1,PIMExport!BM9)) -> 885 | BN11: =IFERROR(PIMExport!BN9*1,IFERROR(SUBSTITUTE(PIMExport!BN9,".",",")*1,PIMExport!BN9)) -> 925 | BO11: =IFERROR(PIMExport!BO9*1,IFERROR(SUBSTITUTE(PIMExport!BO9,".",",")*1,PIMExport!BO9)) -> 965 | BP11: =IFERROR(PIMExport!BP9*1,IFERROR(SUBSTITUTE(PIMExport!BP9,".",",")*1,PIMExport!BP9)) -> 0 | BQ11: =IFERROR(PIMExport!BQ9*1,IFERROR(SUBSTITUTE(PIMExport!BQ9,".",",")*1,PIMExport!BQ9)) -> 0 | BR11: =IFERROR(PIMExport!BR9*1,IFERROR(SUBSTITUTE(PIMExport!BR9,".",",")*1,PIMExport!BR9)) -> 0 | BS11: =IFERROR(PIMExport!BS9*1,IFERROR(SUBSTITUTE(PIMExport!BS9,".",",")*1,PIMExport!BS9)) -> 0 | BT11: =IFERROR(PIMExport!BT9*1,IFERROR(SUBSTITUTE(PIMExport!BT9,".",",")*1,PIMExport!BT9)) -> 0 | BU11: =IFERROR(PIMExport!BU9*1,IFERROR(SUBSTITUTE(PIMExport!BU9,".",",")*1,PIMExport!BU9)) -> 0 | BV11: =IFERROR(PIMExport!BV9*1,IFERROR(SUBSTITUTE(PIMExport!BV9,".",",")*1,PIMExport!BV9)) -> 0 | BW11: =IFERROR(PIMExport!BW9*1,IFERROR(SUBSTITUTE(PIMExport!BW9,".",",")*1,PIMExport!BW9)) -> 0 | BX11: =IFERROR(PIMExport!BX9*1,IFERROR(SUBSTITUTE(PIMExport!BX9,".",",")*1,PIMExport!BX9)) -> 0 | BY11: =IFERROR(PIMExport!BY9*1,IFERROR(SUBSTITUTE(PIMExport!BY9,".",",")*1,PIMExport!BY9)) -> 0 | BZ11: =IFERROR(PIMExport!BZ9*1,IFERROR(SUBSTITUTE(PIMExport!BZ9,".",",")*1,PIMExport!BZ9)) -> 0 | CA11: =IFERROR(PIMExport!CA9*1,IFERROR(SUBSTITUTE(PIMExport!CA9,".",",")*1,PIMExport!CA9)) -> 0 | CB11: =IFERROR(PIMExport!CB9*1,IFERROR(SUBSTITUTE(PIMExport!CB9,".",",")*1,PIMExport!CB9)) -> 581 | CC11: =IFERROR(PIMExport!CC9*1,IFERROR(SUBSTITUTE(PIMExport!CC9,".",",")*1,PIMExport!CC9)) -> 1051 | CD11: =IFERROR(PIMExport!CD9*1,IFERROR(SUBSTITUTE(PIMExport!CD9,".",",")*1,PIMExport!CD9)) -> 1811 | CE11: =IFERROR(PIMExport!CE9*1,IFERROR(SUBSTITUTE(PIMExport!CE9,".",",")*1,PIMExport!CE9)) -> 2561 | CF11: =IFERROR(PIMExport!CF9*1,IFERROR(SUBSTITUTE(PIMExport!CF9,".",",")*1,PIMExport!CF9)) -> 3321 | CG11: =IFERROR(PIMExport!CG9*1,IFERROR(SUBSTITUTE(PIMExport!CG9,".",",")*1,PIMExport!CG9)) -> 4071 | CH11: =IFERROR(PIMExport!CH9*1,IFERROR(SUBSTITUTE(PIMExport!CH9,".",",")*1,PIMExport!CH9)) -> 4831 | CI11: =IFERROR(PIMExport!CI9*1,IFERROR(SUBSTITUTE(PIMExport!CI9,".",",")*1,PIMExport!CI9)) -> 5331 | CJ11: =IFERROR(PIMExport!CJ9*1,IFERROR(SUBSTITUTE(PIMExport!CJ9,".",",")*1,PIMExport!CJ9)) -> 0 | CK11: =IFERROR(PIMExport!CK9*1,IFERROR(SUBSTITUTE(PIMExport!CK9,".",",")*1,PIMExport!CK9)) -> 0 | CL11: =IFERROR(PIMExport!CL9*1,IFERROR(SUBSTITUTE(PIMExport!CL9,".",",")*1,PIMExport!CL9)) -> 0 | CM11: =IFERROR(PIMExport!CM9*1,IFERROR(SUBSTITUTE(PIMExport!CM9,".",",")*1,PIMExport!CM9)) -> 0 | CN11: =IFERROR(PIMExport!CN9*1,IFERROR(SUBSTITUTE(PIMExport!CN9,".",",")*1,PIMExport!CN9)) -> 0 | CO11: =IFERROR(PIMExport!CO9*1,IFERROR(SUBSTITUTE(PIMExport!CO9,".",",")*1,PIMExport!CO9)) -> 0 | CP11: =IFERROR(PIMExport!CP9*1,IFERROR(SUBSTITUTE(PIMExport!CP9,".",",")*1,PIMExport!CP9)) -> 0 | CQ11: =IFERROR(PIMExport!CQ9*1,IFERROR(SUBSTITUTE(PIMExport!CQ9,".",",")*1,PIMExport!CQ9)) -> 0 | CR11: =IFERROR(PIMExport!CR9*1,IFERROR(SUBSTITUTE(PIMExport!CR9,".",",")*1,PIMExport!CR9)) -> 0 | CS11: =IFERROR(PIMExport!CS9*1,IFERROR(SUBSTITUTE(PIMExport!CS9,".",",")*1,PIMExport!CS9)) -> 0 | CT11: =IFERROR(PIMExport!CT9*1,IFERROR(SUBSTITUTE(PIMExport!CT9,".",",")*1,PIMExport!CT9)) -> 0 | CU11: =IFERROR(PIMExport!CU9*1,IFERROR(SUBSTITUTE(PIMExport!CU9,".",",")*1,PIMExport!CU9)) -> 5 | CV11: =IFERROR(PIMExport!CV9*1,IFERROR(SUBSTITUTE(PIMExport!CV9,".",",")*1,PIMExport!CV9)) -> 12300 | CW11: =IFERROR(PIMExport!CW9*1,IFERROR(SUBSTITUTE(PIMExport!CW9,".",",")*1,PIMExport!CW9)) -> 0.000225 | CX11: =IFERROR(PIMExport!CX9*1,IFERROR(SUBSTITUTE(PIMExport!CX9,".",",")*1,PIMExport!CX9)) -> 400 | CY11: =IFERROR(PIMExport!CY9*1,IFERROR(SUBSTITUTE(PIMExport!CY9,".",",")*1,PIMExport!CY9)) -> 500 | CZ11: =IFERROR(PIMExport!CZ9*1,IFERROR(SUBSTITUTE(PIMExport!CZ9,".",",")*1,PIMExport!CZ9)) -> 26000 | DA11: =IFERROR(PIMExport!DA9*1,IFERROR(SUBSTITUTE(PIMExport!DA9,".",",")*1,PIMExport!DA9)) -> 350 | DB11: =IFERROR(PIMExport!DB9*1,IFERROR(SUBSTITUTE(PIMExport!DB9,".",",")*1,PIMExport!DB9)) -> 0 | DC11: =IFERROR(PIMExport!DC9*1,IFERROR(SUBSTITUTE(PIMExport!DC9,".",",")*1,PIMExport!DC9)) -> 0 | DD11: =IFERROR(PIMExport!DD9*1,IFERROR(SUBSTITUTE(PIMExport!DD9,".",",")*1,PIMExport!DD9)) -> 0 | DE11: =IFERROR(PIMExport!DE9*1,IFERROR(SUBSTITUTE(PIMExport!DE9,".",",")*1,PIMExport!DE9)) -> 0 | DF11: =IFERROR(PIMExport!DF9*1,IFERROR(SUBSTITUTE(PIMExport!DF9,".",",")*1,PIMExport!DF9)) -> 0 | DG11: =IFERROR(PIMExport!DG9*1,IFERROR(SUBSTITUTE(PIMExport!DG9,".",",")*1,PIMExport!DG9)) -> 0 | DH11: =IFERROR(PIMExport!DH9*1,IFERROR(SUBSTITUTE(PIMExport!DH9,".",",")*1,PIMExport!DH9)) -> Equal to or better than 0.025 mm | DI11: =IFERROR(PIMExport!DI9*1,IFERROR(SUBSTITUTE(PIMExport!DI9,".",",")*1,PIMExport!DI9)) -> 0 | DJ11: =IFERROR(PIMExport!DJ9*1,IFERROR(SUBSTITUTE(PIMExport!DJ9,".",",")*1,PIMExport!DJ9)) -> 160 x 65 mm | DK11: =IFERROR(PIMExport!DK9*1,IFERROR(SUBSTITUTE(PIMExport!DK9,".",",")*1,PIMExport!DK9)) -> 25 mm | DL11: =IFERROR(PIMExport!DL9*1,IFERROR(SUBSTITUTE(PIMExport!DL9,".",",")*1,PIMExport!DL9)) -> 470 | DM11: =IFERROR(PIMExport!DM9*1,IFERROR(SUBSTITUTE(PIMExport!DM9,".",",")*1,PIMExport!DM9)) -> 5700 | DN11: =IFERROR(PIMExport!DN9*1,IFERROR(SUBSTITUTE(PIMExport!DN9,".",",")*1,PIMExport!DN9)) -> 0 | DO11: =IFERROR(PIMExport!DO9*1,IFERROR(SUBSTITUTE(PIMExport!DO9,".",",")*1,PIMExport!DO9)) -> 0
A12: =IFERROR(PIMExport!A10*1,IFERROR(SUBSTITUTE(PIMExport!A10,".",",")*1,PIMExport!A10)) -> MLSM06D10-L | B12: =IFERROR(PIMExport!B10*1,IFERROR(SUBSTITUTE(PIMExport!B10,".",",")*1,PIMExport!B10)) -> BallScrew | C12: =IFERROR(PIMExport!C10*1,IFERROR(SUBSTITUTE(PIMExport!C10,".",",")*1,PIMExport!C10)) -> Ball Guide | D12: =IFERROR(PIMExport!D10*1,IFERROR(SUBSTITUTE(PIMExport!D10,".",",")*1,PIMExport!D10)) -> 4815 | E12: =IFERROR(PIMExport!E10*1,IFERROR(SUBSTITUTE(PIMExport!E10,".",",")*1,PIMExport!E10)) -> 6.5 | F12: =IFERROR(PIMExport!F10*1,IFERROR(SUBSTITUTE(PIMExport!F10,".",",")*1,PIMExport!F10)) -> 0 | G12: =IFERROR(PIMExport!G10*1,IFERROR(SUBSTITUTE(PIMExport!G10,".",",")*1,PIMExport!G10)) -> 14.4 | H12: =IFERROR(PIMExport!H10*1,IFERROR(SUBSTITUTE(PIMExport!H10,".",",")*1,PIMExport!H10)) -> 1.65 | I12: =IFERROR(PIMExport!I10*1,IFERROR(SUBSTITUTE(PIMExport!I10,".",",")*1,PIMExport!I10)) -> 333 | J12: =IFERROR(PIMExport!J10*1,IFERROR(SUBSTITUTE(PIMExport!J10,".",",")*1,PIMExport!J10)) -> 105 | K12: =IFERROR(PIMExport!K10*1,IFERROR(SUBSTITUTE(PIMExport!K10,".",",")*1,PIMExport!K10)) -> 0 | L12: =IFERROR(PIMExport!L10*1,IFERROR(SUBSTITUTE(PIMExport!L10,".",",")*1,PIMExport!L10)) -> 3.9e-05 | M12: =IFERROR(PIMExport!M10*1,IFERROR(SUBSTITUTE(PIMExport!M10,".",",")*1,PIMExport!M10)) -> 0.9 | N12: =IFERROR(PIMExport!N10*1,IFERROR(SUBSTITUTE(PIMExport!N10,".",",")*1,PIMExport!N10)) -> 150 | O12: =IFERROR(PIMExport!O10*1,IFERROR(SUBSTITUTE(PIMExport!O10,".",",")*1,PIMExport!O10)) -> 1500 | P12: =IFERROR(PIMExport!P10*1,IFERROR(SUBSTITUTE(PIMExport!P10,".",",")*1,PIMExport!P10)) -> 3000 | Q12: =IFERROR(PIMExport!Q10*1,IFERROR(SUBSTITUTE(PIMExport!Q10,".",",")*1,PIMExport!Q10)) -> 1.6 | R12: =IFERROR(PIMExport!R10*1,IFERROR(SUBSTITUTE(PIMExport!R10,".",",")*1,PIMExport!R10)) -> 2.2 | S12: =IFERROR(PIMExport!S10*1,IFERROR(SUBSTITUTE(PIMExport!S10,".",",")*1,PIMExport!S10)) -> 2.6 | T12: =IFERROR(PIMExport!T10*1,IFERROR(SUBSTITUTE(PIMExport!T10,".",",")*1,PIMExport!T10)) -> 27 | U12: =IFERROR(PIMExport!U10*1,IFERROR(SUBSTITUTE(PIMExport!U10,".",",")*1,PIMExport!U10)) -> 0.1 | V12: =IFERROR(PIMExport!V10*1,IFERROR(SUBSTITUTE(PIMExport!V10,".",",")*1,PIMExport!V10)) -> 0 | W12: =IFERROR(PIMExport!W10*1,IFERROR(SUBSTITUTE(PIMExport!W10,".",",")*1,PIMExport!W10)) -> 0 | X12: =IFERROR(PIMExport!X10*1,IFERROR(SUBSTITUTE(PIMExport!X10,".",",")*1,PIMExport!X10)) -> 0 | Y12: =IFERROR(PIMExport!Y10*1,IFERROR(SUBSTITUTE(PIMExport!Y10,".",",")*1,PIMExport!Y10)) -> 5000 | Z12: =IFERROR(PIMExport!Z10*1,IFERROR(SUBSTITUTE(PIMExport!Z10,".",",")*1,PIMExport!Z10)) -> 0 | AA12: =IFERROR(PIMExport!AA10*1,IFERROR(SUBSTITUTE(PIMExport!AA10,".",",")*1,PIMExport!AA10)) -> 0 | AB12: =IFERROR(PIMExport!AB10*1,IFERROR(SUBSTITUTE(PIMExport!AB10,".",",")*1,PIMExport!AB10)) -> 0 | AC12: =IFERROR(PIMExport!AC10*1,IFERROR(SUBSTITUTE(PIMExport!AC10,".",",")*1,PIMExport!AC10)) -> 0 | AD12: =IFERROR(PIMExport!AD10*1,IFERROR(SUBSTITUTE(PIMExport!AD10,".",",")*1,PIMExport!AD10)) -> 0 | AE12: =IFERROR(PIMExport!AE10*1,IFERROR(SUBSTITUTE(PIMExport!AE10,".",",")*1,PIMExport!AE10)) -> 6000 | AF12: =IFERROR(PIMExport!AF10*1,IFERROR(SUBSTITUTE(PIMExport!AF10,".",",")*1,PIMExport!AF10)) -> 6000 | AG12: =IFERROR(PIMExport!AG10*1,IFERROR(SUBSTITUTE(PIMExport!AG10,".",",")*1,PIMExport!AG10)) -> 450 | AH12: =IFERROR(PIMExport!AH10*1,IFERROR(SUBSTITUTE(PIMExport!AH10,".",",")*1,PIMExport!AH10)) -> 940 | AI12: =IFERROR(PIMExport!AI10*1,IFERROR(SUBSTITUTE(PIMExport!AI10,".",",")*1,PIMExport!AI10)) -> 940 | AJ12: =IFERROR(PIMExport!AJ10*1,IFERROR(SUBSTITUTE(PIMExport!AJ10,".",",")*1,PIMExport!AJ10)) -> 0 | AK12: =IFERROR(PIMExport!AK10*1,IFERROR(SUBSTITUTE(PIMExport!AK10,".",",")*1,PIMExport!AK10)) -> 0 | AL12: =IFERROR(PIMExport!AL10*1,IFERROR(SUBSTITUTE(PIMExport!AL10,".",",")*1,PIMExport!AL10)) -> 0.5 | AM12: =IFERROR(PIMExport!AM10*1,IFERROR(SUBSTITUTE(PIMExport!AM10,".",",")*1,PIMExport!AM10)) -> 20 | AN12: =IFERROR(PIMExport!AN10*1,IFERROR(SUBSTITUTE(PIMExport!AN10,".",",")*1,PIMExport!AN10)) -> 1 | AO12: =IFERROR(PIMExport!AO10*1,IFERROR(SUBSTITUTE(PIMExport!AO10,".",",")*1,PIMExport!AO10)) -> 55080 | AP12: =IFERROR(PIMExport!AP10*1,IFERROR(SUBSTITUTE(PIMExport!AP10,".",",")*1,PIMExport!AP10)) -> 500 | AQ12: =IFERROR(PIMExport!AQ10*1,IFERROR(SUBSTITUTE(PIMExport!AQ10,".",",")*1,PIMExport!AQ10)) -> 0 | AR12: =IFERROR(PIMExport!AR10*1,IFERROR(SUBSTITUTE(PIMExport!AR10,".",",")*1,PIMExport!AR10)) -> 0 | AS12: =IFERROR(PIMExport!AS10*1,IFERROR(SUBSTITUTE(PIMExport!AS10,".",",")*1,PIMExport!AS10)) -> 0 | AT12: =IFERROR(PIMExport!AT10*1,IFERROR(SUBSTITUTE(PIMExport!AT10,".",",")*1,PIMExport!AT10)) -> 0 | AU12: =IFERROR(PIMExport!AU10*1,IFERROR(SUBSTITUTE(PIMExport!AU10,".",",")*1,PIMExport!AU10)) -> 0 | AV12: =IFERROR(PIMExport!AV10*1,IFERROR(SUBSTITUTE(PIMExport!AV10,".",",")*1,PIMExport!AV10)) -> 0 | AW12: =IFERROR(PIMExport!AW10*1,IFERROR(SUBSTITUTE(PIMExport!AW10,".",",")*1,PIMExport!AW10)) -> 0 | AX12: =IFERROR(PIMExport!AX10*1,IFERROR(SUBSTITUTE(PIMExport!AX10,".",",")*1,PIMExport!AX10)) -> 0 | AY12: =IFERROR(PIMExport!AY10*1,IFERROR(SUBSTITUTE(PIMExport!AY10,".",",")*1,PIMExport!AY10)) -> 0 | AZ12: =IFERROR(PIMExport!AZ10*1,IFERROR(SUBSTITUTE(PIMExport!AZ10,".",",")*1,PIMExport!AZ10)) -> 0 | BA12: =IFERROR(PIMExport!BA10*1,IFERROR(SUBSTITUTE(PIMExport!BA10,".",",")*1,PIMExport!BA10)) -> 0 | BB12: =IFERROR(PIMExport!BB10*1,IFERROR(SUBSTITUTE(PIMExport!BB10,".",",")*1,PIMExport!BB10)) -> 0 | BC12: =IFERROR(PIMExport!BC10*1,IFERROR(SUBSTITUTE(PIMExport!BC10,".",",")*1,PIMExport!BC10)) -> 0 | BD12: =IFERROR(PIMExport!BD10*1,IFERROR(SUBSTITUTE(PIMExport!BD10,".",",")*1,PIMExport!BD10)) -> 0 | BE12: =IFERROR(PIMExport!BE10*1,IFERROR(SUBSTITUTE(PIMExport!BE10,".",",")*1,PIMExport!BE10)) -> 0 | BF12: =IFERROR(PIMExport!BF10*1,IFERROR(SUBSTITUTE(PIMExport!BF10,".",",")*1,PIMExport!BF10)) -> 0 | BG12: =IFERROR(PIMExport!BG10*1,IFERROR(SUBSTITUTE(PIMExport!BG10,".",",")*1,PIMExport!BG10)) -> 605 | BH12: =IFERROR(PIMExport!BH10*1,IFERROR(SUBSTITUTE(PIMExport!BH10,".",",")*1,PIMExport!BH10)) -> 665 | BI12: =IFERROR(PIMExport!BI10*1,IFERROR(SUBSTITUTE(PIMExport!BI10,".",",")*1,PIMExport!BI10)) -> 705 | BJ12: =IFERROR(PIMExport!BJ10*1,IFERROR(SUBSTITUTE(PIMExport!BJ10,".",",")*1,PIMExport!BJ10)) -> 765 | BK12: =IFERROR(PIMExport!BK10*1,IFERROR(SUBSTITUTE(PIMExport!BK10,".",",")*1,PIMExport!BK10)) -> 795 | BL12: =IFERROR(PIMExport!BL10*1,IFERROR(SUBSTITUTE(PIMExport!BL10,".",",")*1,PIMExport!BL10)) -> 845 | BM12: =IFERROR(PIMExport!BM10*1,IFERROR(SUBSTITUTE(PIMExport!BM10,".",",")*1,PIMExport!BM10)) -> 885 | BN12: =IFERROR(PIMExport!BN10*1,IFERROR(SUBSTITUTE(PIMExport!BN10,".",",")*1,PIMExport!BN10)) -> 925 | BO12: =IFERROR(PIMExport!BO10*1,IFERROR(SUBSTITUTE(PIMExport!BO10,".",",")*1,PIMExport!BO10)) -> 965 | BP12: =IFERROR(PIMExport!BP10*1,IFERROR(SUBSTITUTE(PIMExport!BP10,".",",")*1,PIMExport!BP10)) -> 0 | BQ12: =IFERROR(PIMExport!BQ10*1,IFERROR(SUBSTITUTE(PIMExport!BQ10,".",",")*1,PIMExport!BQ10)) -> 0 | BR12: =IFERROR(PIMExport!BR10*1,IFERROR(SUBSTITUTE(PIMExport!BR10,".",",")*1,PIMExport!BR10)) -> 0 | BS12: =IFERROR(PIMExport!BS10*1,IFERROR(SUBSTITUTE(PIMExport!BS10,".",",")*1,PIMExport!BS10)) -> 0 | BT12: =IFERROR(PIMExport!BT10*1,IFERROR(SUBSTITUTE(PIMExport!BT10,".",",")*1,PIMExport!BT10)) -> 0 | BU12: =IFERROR(PIMExport!BU10*1,IFERROR(SUBSTITUTE(PIMExport!BU10,".",",")*1,PIMExport!BU10)) -> 0 | BV12: =IFERROR(PIMExport!BV10*1,IFERROR(SUBSTITUTE(PIMExport!BV10,".",",")*1,PIMExport!BV10)) -> 0 | BW12: =IFERROR(PIMExport!BW10*1,IFERROR(SUBSTITUTE(PIMExport!BW10,".",",")*1,PIMExport!BW10)) -> 0 | BX12: =IFERROR(PIMExport!BX10*1,IFERROR(SUBSTITUTE(PIMExport!BX10,".",",")*1,PIMExport!BX10)) -> 0 | BY12: =IFERROR(PIMExport!BY10*1,IFERROR(SUBSTITUTE(PIMExport!BY10,".",",")*1,PIMExport!BY10)) -> 0 | BZ12: =IFERROR(PIMExport!BZ10*1,IFERROR(SUBSTITUTE(PIMExport!BZ10,".",",")*1,PIMExport!BZ10)) -> 0 | CA12: =IFERROR(PIMExport!CA10*1,IFERROR(SUBSTITUTE(PIMExport!CA10,".",",")*1,PIMExport!CA10)) -> 0 | CB12: =IFERROR(PIMExport!CB10*1,IFERROR(SUBSTITUTE(PIMExport!CB10,".",",")*1,PIMExport!CB10)) -> 581 | CC12: =IFERROR(PIMExport!CC10*1,IFERROR(SUBSTITUTE(PIMExport!CC10,".",",")*1,PIMExport!CC10)) -> 1051 | CD12: =IFERROR(PIMExport!CD10*1,IFERROR(SUBSTITUTE(PIMExport!CD10,".",",")*1,PIMExport!CD10)) -> 1811 | CE12: =IFERROR(PIMExport!CE10*1,IFERROR(SUBSTITUTE(PIMExport!CE10,".",",")*1,PIMExport!CE10)) -> 2561 | CF12: =IFERROR(PIMExport!CF10*1,IFERROR(SUBSTITUTE(PIMExport!CF10,".",",")*1,PIMExport!CF10)) -> 3321 | CG12: =IFERROR(PIMExport!CG10*1,IFERROR(SUBSTITUTE(PIMExport!CG10,".",",")*1,PIMExport!CG10)) -> 4071 | CH12: =IFERROR(PIMExport!CH10*1,IFERROR(SUBSTITUTE(PIMExport!CH10,".",",")*1,PIMExport!CH10)) -> 4831 | CI12: =IFERROR(PIMExport!CI10*1,IFERROR(SUBSTITUTE(PIMExport!CI10,".",",")*1,PIMExport!CI10)) -> 5331 | CJ12: =IFERROR(PIMExport!CJ10*1,IFERROR(SUBSTITUTE(PIMExport!CJ10,".",",")*1,PIMExport!CJ10)) -> 0 | CK12: =IFERROR(PIMExport!CK10*1,IFERROR(SUBSTITUTE(PIMExport!CK10,".",",")*1,PIMExport!CK10)) -> 0 | CL12: =IFERROR(PIMExport!CL10*1,IFERROR(SUBSTITUTE(PIMExport!CL10,".",",")*1,PIMExport!CL10)) -> 0 | CM12: =IFERROR(PIMExport!CM10*1,IFERROR(SUBSTITUTE(PIMExport!CM10,".",",")*1,PIMExport!CM10)) -> 0 | CN12: =IFERROR(PIMExport!CN10*1,IFERROR(SUBSTITUTE(PIMExport!CN10,".",",")*1,PIMExport!CN10)) -> 0 | CO12: =IFERROR(PIMExport!CO10*1,IFERROR(SUBSTITUTE(PIMExport!CO10,".",",")*1,PIMExport!CO10)) -> 0 | CP12: =IFERROR(PIMExport!CP10*1,IFERROR(SUBSTITUTE(PIMExport!CP10,".",",")*1,PIMExport!CP10)) -> 0 | CQ12: =IFERROR(PIMExport!CQ10*1,IFERROR(SUBSTITUTE(PIMExport!CQ10,".",",")*1,PIMExport!CQ10)) -> 0 | CR12: =IFERROR(PIMExport!CR10*1,IFERROR(SUBSTITUTE(PIMExport!CR10,".",",")*1,PIMExport!CR10)) -> 0 | CS12: =IFERROR(PIMExport!CS10*1,IFERROR(SUBSTITUTE(PIMExport!CS10,".",",")*1,PIMExport!CS10)) -> 0 | CT12: =IFERROR(PIMExport!CT10*1,IFERROR(SUBSTITUTE(PIMExport!CT10,".",",")*1,PIMExport!CT10)) -> 0 | CU12: =IFERROR(PIMExport!CU10*1,IFERROR(SUBSTITUTE(PIMExport!CU10,".",",")*1,PIMExport!CU10)) -> 10 | CV12: =IFERROR(PIMExport!CV10*1,IFERROR(SUBSTITUTE(PIMExport!CV10,".",",")*1,PIMExport!CV10)) -> 13200 | CW12: =IFERROR(PIMExport!CW10*1,IFERROR(SUBSTITUTE(PIMExport!CW10,".",",")*1,PIMExport!CW10)) -> 0.000225 | CX12: =IFERROR(PIMExport!CX10*1,IFERROR(SUBSTITUTE(PIMExport!CX10,".",",")*1,PIMExport!CX10)) -> 400 | CY12: =IFERROR(PIMExport!CY10*1,IFERROR(SUBSTITUTE(PIMExport!CY10,".",",")*1,PIMExport!CY10)) -> 500 | CZ12: =IFERROR(PIMExport!CZ10*1,IFERROR(SUBSTITUTE(PIMExport!CZ10,".",",")*1,PIMExport!CZ10)) -> 26000 | DA12: =IFERROR(PIMExport!DA10*1,IFERROR(SUBSTITUTE(PIMExport!DA10,".",",")*1,PIMExport!DA10)) -> 350 | DB12: =IFERROR(PIMExport!DB10*1,IFERROR(SUBSTITUTE(PIMExport!DB10,".",",")*1,PIMExport!DB10)) -> 0 | DC12: =IFERROR(PIMExport!DC10*1,IFERROR(SUBSTITUTE(PIMExport!DC10,".",",")*1,PIMExport!DC10)) -> 0 | DD12: =IFERROR(PIMExport!DD10*1,IFERROR(SUBSTITUTE(PIMExport!DD10,".",",")*1,PIMExport!DD10)) -> 0 | DE12: =IFERROR(PIMExport!DE10*1,IFERROR(SUBSTITUTE(PIMExport!DE10,".",",")*1,PIMExport!DE10)) -> 0 | DF12: =IFERROR(PIMExport!DF10*1,IFERROR(SUBSTITUTE(PIMExport!DF10,".",",")*1,PIMExport!DF10)) -> 0 | DG12: =IFERROR(PIMExport!DG10*1,IFERROR(SUBSTITUTE(PIMExport!DG10,".",",")*1,PIMExport!DG10)) -> 0 | DH12: =IFERROR(PIMExport!DH10*1,IFERROR(SUBSTITUTE(PIMExport!DH10,".",",")*1,PIMExport!DH10)) -> Equal to or better than 0.025 mm | DI12: =IFERROR(PIMExport!DI10*1,IFERROR(SUBSTITUTE(PIMExport!DI10,".",",")*1,PIMExport!DI10)) -> 0 | DJ12: =IFERROR(PIMExport!DJ10*1,IFERROR(SUBSTITUTE(PIMExport!DJ10,".",",")*1,PIMExport!DJ10)) -> 160 x 65 mm | DK12: =IFERROR(PIMExport!DK10*1,IFERROR(SUBSTITUTE(PIMExport!DK10,".",",")*1,PIMExport!DK10)) -> 25 mm | DL12: =IFERROR(PIMExport!DL10*1,IFERROR(SUBSTITUTE(PIMExport!DL10,".",",")*1,PIMExport!DL10)) -> 470 | DM12: =IFERROR(PIMExport!DM10*1,IFERROR(SUBSTITUTE(PIMExport!DM10,".",",")*1,PIMExport!DM10)) -> 5700 | DN12: =IFERROR(PIMExport!DN10*1,IFERROR(SUBSTITUTE(PIMExport!DN10,".",",")*1,PIMExport!DN10)) -> 0 | DO12: =IFERROR(PIMExport!DO10*1,IFERROR(SUBSTITUTE(PIMExport!DO10,".",",")*1,PIMExport!DO10)) -> 0
A13: =IFERROR(PIMExport!A11*1,IFERROR(SUBSTITUTE(PIMExport!A11,".",",")*1,PIMExport!A11)) -> MLSM06D20-L | B13: =IFERROR(PIMExport!B11*1,IFERROR(SUBSTITUTE(PIMExport!B11,".",",")*1,PIMExport!B11)) -> BallScrew | C13: =IFERROR(PIMExport!C11*1,IFERROR(SUBSTITUTE(PIMExport!C11,".",",")*1,PIMExport!C11)) -> Ball Guide | D13: =IFERROR(PIMExport!D11*1,IFERROR(SUBSTITUTE(PIMExport!D11,".",",")*1,PIMExport!D11)) -> 4815 | E13: =IFERROR(PIMExport!E11*1,IFERROR(SUBSTITUTE(PIMExport!E11,".",",")*1,PIMExport!E11)) -> 6.5 | F13: =IFERROR(PIMExport!F11*1,IFERROR(SUBSTITUTE(PIMExport!F11,".",",")*1,PIMExport!F11)) -> 0 | G13: =IFERROR(PIMExport!G11*1,IFERROR(SUBSTITUTE(PIMExport!G11,".",",")*1,PIMExport!G11)) -> 14.4 | H13: =IFERROR(PIMExport!H11*1,IFERROR(SUBSTITUTE(PIMExport!H11,".",",")*1,PIMExport!H11)) -> 1.65 | I13: =IFERROR(PIMExport!I11*1,IFERROR(SUBSTITUTE(PIMExport!I11,".",",")*1,PIMExport!I11)) -> 333 | J13: =IFERROR(PIMExport!J11*1,IFERROR(SUBSTITUTE(PIMExport!J11,".",",")*1,PIMExport!J11)) -> 105 | K13: =IFERROR(PIMExport!K11*1,IFERROR(SUBSTITUTE(PIMExport!K11,".",",")*1,PIMExport!K11)) -> 0 | L13: =IFERROR(PIMExport!L11*1,IFERROR(SUBSTITUTE(PIMExport!L11,".",",")*1,PIMExport!L11)) -> 3.9e-05 | M13: =IFERROR(PIMExport!M11*1,IFERROR(SUBSTITUTE(PIMExport!M11,".",",")*1,PIMExport!M11)) -> 0.9 | N13: =IFERROR(PIMExport!N11*1,IFERROR(SUBSTITUTE(PIMExport!N11,".",",")*1,PIMExport!N11)) -> 150 | O13: =IFERROR(PIMExport!O11*1,IFERROR(SUBSTITUTE(PIMExport!O11,".",",")*1,PIMExport!O11)) -> 1500 | P13: =IFERROR(PIMExport!P11*1,IFERROR(SUBSTITUTE(PIMExport!P11,".",",")*1,PIMExport!P11)) -> 3000 | Q13: =IFERROR(PIMExport!Q11*1,IFERROR(SUBSTITUTE(PIMExport!Q11,".",",")*1,PIMExport!Q11)) -> 1.9 | R13: =IFERROR(PIMExport!R11*1,IFERROR(SUBSTITUTE(PIMExport!R11,".",",")*1,PIMExport!R11)) -> 2.3 | S13: =IFERROR(PIMExport!S11*1,IFERROR(SUBSTITUTE(PIMExport!S11,".",",")*1,PIMExport!S11)) -> 2.6 | T13: =IFERROR(PIMExport!T11*1,IFERROR(SUBSTITUTE(PIMExport!T11,".",",")*1,PIMExport!T11)) -> 27 | U13: =IFERROR(PIMExport!U11*1,IFERROR(SUBSTITUTE(PIMExport!U11,".",",")*1,PIMExport!U11)) -> 0.1 | V13: =IFERROR(PIMExport!V11*1,IFERROR(SUBSTITUTE(PIMExport!V11,".",",")*1,PIMExport!V11)) -> 0 | W13: =IFERROR(PIMExport!W11*1,IFERROR(SUBSTITUTE(PIMExport!W11,".",",")*1,PIMExport!W11)) -> 0 | X13: =IFERROR(PIMExport!X11*1,IFERROR(SUBSTITUTE(PIMExport!X11,".",",")*1,PIMExport!X11)) -> 0 | Y13: =IFERROR(PIMExport!Y11*1,IFERROR(SUBSTITUTE(PIMExport!Y11,".",",")*1,PIMExport!Y11)) -> 5000 | Z13: =IFERROR(PIMExport!Z11*1,IFERROR(SUBSTITUTE(PIMExport!Z11,".",",")*1,PIMExport!Z11)) -> 0 | AA13: =IFERROR(PIMExport!AA11*1,IFERROR(SUBSTITUTE(PIMExport!AA11,".",",")*1,PIMExport!AA11)) -> 0 | AB13: =IFERROR(PIMExport!AB11*1,IFERROR(SUBSTITUTE(PIMExport!AB11,".",",")*1,PIMExport!AB11)) -> 0 | AC13: =IFERROR(PIMExport!AC11*1,IFERROR(SUBSTITUTE(PIMExport!AC11,".",",")*1,PIMExport!AC11)) -> 0 | AD13: =IFERROR(PIMExport!AD11*1,IFERROR(SUBSTITUTE(PIMExport!AD11,".",",")*1,PIMExport!AD11)) -> 0 | AE13: =IFERROR(PIMExport!AE11*1,IFERROR(SUBSTITUTE(PIMExport!AE11,".",",")*1,PIMExport!AE11)) -> 6000 | AF13: =IFERROR(PIMExport!AF11*1,IFERROR(SUBSTITUTE(PIMExport!AF11,".",",")*1,PIMExport!AF11)) -> 6000 | AG13: =IFERROR(PIMExport!AG11*1,IFERROR(SUBSTITUTE(PIMExport!AG11,".",",")*1,PIMExport!AG11)) -> 450 | AH13: =IFERROR(PIMExport!AH11*1,IFERROR(SUBSTITUTE(PIMExport!AH11,".",",")*1,PIMExport!AH11)) -> 940 | AI13: =IFERROR(PIMExport!AI11*1,IFERROR(SUBSTITUTE(PIMExport!AI11,".",",")*1,PIMExport!AI11)) -> 940 | AJ13: =IFERROR(PIMExport!AJ11*1,IFERROR(SUBSTITUTE(PIMExport!AJ11,".",",")*1,PIMExport!AJ11)) -> 0 | AK13: =IFERROR(PIMExport!AK11*1,IFERROR(SUBSTITUTE(PIMExport!AK11,".",",")*1,PIMExport!AK11)) -> 0 | AL13: =IFERROR(PIMExport!AL11*1,IFERROR(SUBSTITUTE(PIMExport!AL11,".",",")*1,PIMExport!AL11)) -> 1 | AM13: =IFERROR(PIMExport!AM11*1,IFERROR(SUBSTITUTE(PIMExport!AM11,".",",")*1,PIMExport!AM11)) -> 20 | AN13: =IFERROR(PIMExport!AN11*1,IFERROR(SUBSTITUTE(PIMExport!AN11,".",",")*1,PIMExport!AN11)) -> 1 | AO13: =IFERROR(PIMExport!AO11*1,IFERROR(SUBSTITUTE(PIMExport!AO11,".",",")*1,PIMExport!AO11)) -> 55080 | AP13: =IFERROR(PIMExport!AP11*1,IFERROR(SUBSTITUTE(PIMExport!AP11,".",",")*1,PIMExport!AP11)) -> 500 | AQ13: =IFERROR(PIMExport!AQ11*1,IFERROR(SUBSTITUTE(PIMExport!AQ11,".",",")*1,PIMExport!AQ11)) -> 0 | AR13: =IFERROR(PIMExport!AR11*1,IFERROR(SUBSTITUTE(PIMExport!AR11,".",",")*1,PIMExport!AR11)) -> 0 | AS13: =IFERROR(PIMExport!AS11*1,IFERROR(SUBSTITUTE(PIMExport!AS11,".",",")*1,PIMExport!AS11)) -> 0 | AT13: =IFERROR(PIMExport!AT11*1,IFERROR(SUBSTITUTE(PIMExport!AT11,".",",")*1,PIMExport!AT11)) -> 0 | AU13: =IFERROR(PIMExport!AU11*1,IFERROR(SUBSTITUTE(PIMExport!AU11,".",",")*1,PIMExport!AU11)) -> 0 | AV13: =IFERROR(PIMExport!AV11*1,IFERROR(SUBSTITUTE(PIMExport!AV11,".",",")*1,PIMExport!AV11)) -> 0 | AW13: =IFERROR(PIMExport!AW11*1,IFERROR(SUBSTITUTE(PIMExport!AW11,".",",")*1,PIMExport!AW11)) -> 0 | AX13: =IFERROR(PIMExport!AX11*1,IFERROR(SUBSTITUTE(PIMExport!AX11,".",",")*1,PIMExport!AX11)) -> 0 | AY13: =IFERROR(PIMExport!AY11*1,IFERROR(SUBSTITUTE(PIMExport!AY11,".",",")*1,PIMExport!AY11)) -> 0 | AZ13: =IFERROR(PIMExport!AZ11*1,IFERROR(SUBSTITUTE(PIMExport!AZ11,".",",")*1,PIMExport!AZ11)) -> 0 | BA13: =IFERROR(PIMExport!BA11*1,IFERROR(SUBSTITUTE(PIMExport!BA11,".",",")*1,PIMExport!BA11)) -> 0 | BB13: =IFERROR(PIMExport!BB11*1,IFERROR(SUBSTITUTE(PIMExport!BB11,".",",")*1,PIMExport!BB11)) -> 0 | BC13: =IFERROR(PIMExport!BC11*1,IFERROR(SUBSTITUTE(PIMExport!BC11,".",",")*1,PIMExport!BC11)) -> 0 | BD13: =IFERROR(PIMExport!BD11*1,IFERROR(SUBSTITUTE(PIMExport!BD11,".",",")*1,PIMExport!BD11)) -> 0 | BE13: =IFERROR(PIMExport!BE11*1,IFERROR(SUBSTITUTE(PIMExport!BE11,".",",")*1,PIMExport!BE11)) -> 0 | BF13: =IFERROR(PIMExport!BF11*1,IFERROR(SUBSTITUTE(PIMExport!BF11,".",",")*1,PIMExport!BF11)) -> 0 | BG13: =IFERROR(PIMExport!BG11*1,IFERROR(SUBSTITUTE(PIMExport!BG11,".",",")*1,PIMExport!BG11)) -> 605 | BH13: =IFERROR(PIMExport!BH11*1,IFERROR(SUBSTITUTE(PIMExport!BH11,".",",")*1,PIMExport!BH11)) -> 665 | BI13: =IFERROR(PIMExport!BI11*1,IFERROR(SUBSTITUTE(PIMExport!BI11,".",",")*1,PIMExport!BI11)) -> 705 | BJ13: =IFERROR(PIMExport!BJ11*1,IFERROR(SUBSTITUTE(PIMExport!BJ11,".",",")*1,PIMExport!BJ11)) -> 765 | BK13: =IFERROR(PIMExport!BK11*1,IFERROR(SUBSTITUTE(PIMExport!BK11,".",",")*1,PIMExport!BK11)) -> 795 | BL13: =IFERROR(PIMExport!BL11*1,IFERROR(SUBSTITUTE(PIMExport!BL11,".",",")*1,PIMExport!BL11)) -> 845 | BM13: =IFERROR(PIMExport!BM11*1,IFERROR(SUBSTITUTE(PIMExport!BM11,".",",")*1,PIMExport!BM11)) -> 885 | BN13: =IFERROR(PIMExport!BN11*1,IFERROR(SUBSTITUTE(PIMExport!BN11,".",",")*1,PIMExport!BN11)) -> 925 | BO13: =IFERROR(PIMExport!BO11*1,IFERROR(SUBSTITUTE(PIMExport!BO11,".",",")*1,PIMExport!BO11)) -> 965 | BP13: =IFERROR(PIMExport!BP11*1,IFERROR(SUBSTITUTE(PIMExport!BP11,".",",")*1,PIMExport!BP11)) -> 0 | BQ13: =IFERROR(PIMExport!BQ11*1,IFERROR(SUBSTITUTE(PIMExport!BQ11,".",",")*1,PIMExport!BQ11)) -> 0 | BR13: =IFERROR(PIMExport!BR11*1,IFERROR(SUBSTITUTE(PIMExport!BR11,".",",")*1,PIMExport!BR11)) -> 0 | BS13: =IFERROR(PIMExport!BS11*1,IFERROR(SUBSTITUTE(PIMExport!BS11,".",",")*1,PIMExport!BS11)) -> 0 | BT13: =IFERROR(PIMExport!BT11*1,IFERROR(SUBSTITUTE(PIMExport!BT11,".",",")*1,PIMExport!BT11)) -> 0 | BU13: =IFERROR(PIMExport!BU11*1,IFERROR(SUBSTITUTE(PIMExport!BU11,".",",")*1,PIMExport!BU11)) -> 0 | BV13: =IFERROR(PIMExport!BV11*1,IFERROR(SUBSTITUTE(PIMExport!BV11,".",",")*1,PIMExport!BV11)) -> 0 | BW13: =IFERROR(PIMExport!BW11*1,IFERROR(SUBSTITUTE(PIMExport!BW11,".",",")*1,PIMExport!BW11)) -> 0 | BX13: =IFERROR(PIMExport!BX11*1,IFERROR(SUBSTITUTE(PIMExport!BX11,".",",")*1,PIMExport!BX11)) -> 0 | BY13: =IFERROR(PIMExport!BY11*1,IFERROR(SUBSTITUTE(PIMExport!BY11,".",",")*1,PIMExport!BY11)) -> 0 | BZ13: =IFERROR(PIMExport!BZ11*1,IFERROR(SUBSTITUTE(PIMExport!BZ11,".",",")*1,PIMExport!BZ11)) -> 0 | CA13: =IFERROR(PIMExport!CA11*1,IFERROR(SUBSTITUTE(PIMExport!CA11,".",",")*1,PIMExport!CA11)) -> 0 | CB13: =IFERROR(PIMExport!CB11*1,IFERROR(SUBSTITUTE(PIMExport!CB11,".",",")*1,PIMExport!CB11)) -> 581 | CC13: =IFERROR(PIMExport!CC11*1,IFERROR(SUBSTITUTE(PIMExport!CC11,".",",")*1,PIMExport!CC11)) -> 1051 | CD13: =IFERROR(PIMExport!CD11*1,IFERROR(SUBSTITUTE(PIMExport!CD11,".",",")*1,PIMExport!CD11)) -> 1811 | CE13: =IFERROR(PIMExport!CE11*1,IFERROR(SUBSTITUTE(PIMExport!CE11,".",",")*1,PIMExport!CE11)) -> 2561 | CF13: =IFERROR(PIMExport!CF11*1,IFERROR(SUBSTITUTE(PIMExport!CF11,".",",")*1,PIMExport!CF11)) -> 3321 | CG13: =IFERROR(PIMExport!CG11*1,IFERROR(SUBSTITUTE(PIMExport!CG11,".",",")*1,PIMExport!CG11)) -> 4071 | CH13: =IFERROR(PIMExport!CH11*1,IFERROR(SUBSTITUTE(PIMExport!CH11,".",",")*1,PIMExport!CH11)) -> 4831 | CI13: =IFERROR(PIMExport!CI11*1,IFERROR(SUBSTITUTE(PIMExport!CI11,".",",")*1,PIMExport!CI11)) -> 5331 | CJ13: =IFERROR(PIMExport!CJ11*1,IFERROR(SUBSTITUTE(PIMExport!CJ11,".",",")*1,PIMExport!CJ11)) -> 0 | CK13: =IFERROR(PIMExport!CK11*1,IFERROR(SUBSTITUTE(PIMExport!CK11,".",",")*1,PIMExport!CK11)) -> 0 | CL13: =IFERROR(PIMExport!CL11*1,IFERROR(SUBSTITUTE(PIMExport!CL11,".",",")*1,PIMExport!CL11)) -> 0 | CM13: =IFERROR(PIMExport!CM11*1,IFERROR(SUBSTITUTE(PIMExport!CM11,".",",")*1,PIMExport!CM11)) -> 0 | CN13: =IFERROR(PIMExport!CN11*1,IFERROR(SUBSTITUTE(PIMExport!CN11,".",",")*1,PIMExport!CN11)) -> 0 | CO13: =IFERROR(PIMExport!CO11*1,IFERROR(SUBSTITUTE(PIMExport!CO11,".",",")*1,PIMExport!CO11)) -> 0 | CP13: =IFERROR(PIMExport!CP11*1,IFERROR(SUBSTITUTE(PIMExport!CP11,".",",")*1,PIMExport!CP11)) -> 0 | CQ13: =IFERROR(PIMExport!CQ11*1,IFERROR(SUBSTITUTE(PIMExport!CQ11,".",",")*1,PIMExport!CQ11)) -> 0 | CR13: =IFERROR(PIMExport!CR11*1,IFERROR(SUBSTITUTE(PIMExport!CR11,".",",")*1,PIMExport!CR11)) -> 0 | CS13: =IFERROR(PIMExport!CS11*1,IFERROR(SUBSTITUTE(PIMExport!CS11,".",",")*1,PIMExport!CS11)) -> 0 | CT13: =IFERROR(PIMExport!CT11*1,IFERROR(SUBSTITUTE(PIMExport!CT11,".",",")*1,PIMExport!CT11)) -> 0 | CU13: =IFERROR(PIMExport!CU11*1,IFERROR(SUBSTITUTE(PIMExport!CU11,".",",")*1,PIMExport!CU11)) -> 20 | CV13: =IFERROR(PIMExport!CV11*1,IFERROR(SUBSTITUTE(PIMExport!CV11,".",",")*1,PIMExport!CV11)) -> 13000 | CW13: =IFERROR(PIMExport!CW11*1,IFERROR(SUBSTITUTE(PIMExport!CW11,".",",")*1,PIMExport!CW11)) -> 0.000225 | CX13: =IFERROR(PIMExport!CX11*1,IFERROR(SUBSTITUTE(PIMExport!CX11,".",",")*1,PIMExport!CX11)) -> 400 | CY13: =IFERROR(PIMExport!CY11*1,IFERROR(SUBSTITUTE(PIMExport!CY11,".",",")*1,PIMExport!CY11)) -> 500 | CZ13: =IFERROR(PIMExport!CZ11*1,IFERROR(SUBSTITUTE(PIMExport!CZ11,".",",")*1,PIMExport!CZ11)) -> 26000 | DA13: =IFERROR(PIMExport!DA11*1,IFERROR(SUBSTITUTE(PIMExport!DA11,".",",")*1,PIMExport!DA11)) -> 350 | DB13: =IFERROR(PIMExport!DB11*1,IFERROR(SUBSTITUTE(PIMExport!DB11,".",",")*1,PIMExport!DB11)) -> 0 | DC13: =IFERROR(PIMExport!DC11*1,IFERROR(SUBSTITUTE(PIMExport!DC11,".",",")*1,PIMExport!DC11)) -> 0 | DD13: =IFERROR(PIMExport!DD11*1,IFERROR(SUBSTITUTE(PIMExport!DD11,".",",")*1,PIMExport!DD11)) -> 0 | DE13: =IFERROR(PIMExport!DE11*1,IFERROR(SUBSTITUTE(PIMExport!DE11,".",",")*1,PIMExport!DE11)) -> 0 | DF13: =IFERROR(PIMExport!DF11*1,IFERROR(SUBSTITUTE(PIMExport!DF11,".",",")*1,PIMExport!DF11)) -> 0 | DG13: =IFERROR(PIMExport!DG11*1,IFERROR(SUBSTITUTE(PIMExport!DG11,".",",")*1,PIMExport!DG11)) -> 0 | DH13: =IFERROR(PIMExport!DH11*1,IFERROR(SUBSTITUTE(PIMExport!DH11,".",",")*1,PIMExport!DH11)) -> Equal to or better than 0.025 mm | DI13: =IFERROR(PIMExport!DI11*1,IFERROR(SUBSTITUTE(PIMExport!DI11,".",",")*1,PIMExport!DI11)) -> 0 | DJ13: =IFERROR(PIMExport!DJ11*1,IFERROR(SUBSTITUTE(PIMExport!DJ11,".",",")*1,PIMExport!DJ11)) -> 160 x 65 mm | DK13: =IFERROR(PIMExport!DK11*1,IFERROR(SUBSTITUTE(PIMExport!DK11,".",",")*1,PIMExport!DK11)) -> 25 mm | DL13: =IFERROR(PIMExport!DL11*1,IFERROR(SUBSTITUTE(PIMExport!DL11,".",",")*1,PIMExport!DL11)) -> 470 | DM13: =IFERROR(PIMExport!DM11*1,IFERROR(SUBSTITUTE(PIMExport!DM11,".",",")*1,PIMExport!DM11)) -> 5700 | DN13: =IFERROR(PIMExport!DN11*1,IFERROR(SUBSTITUTE(PIMExport!DN11,".",",")*1,PIMExport!DN11)) -> 0 | DO13: =IFERROR(PIMExport!DO11*1,IFERROR(SUBSTITUTE(PIMExport!DO11,".",",")*1,PIMExport!DO11)) -> 0
A14: =IFERROR(PIMExport!A12*1,IFERROR(SUBSTITUTE(PIMExport!A12,".",",")*1,PIMExport!A12)) -> MLSM06D50-L | B14: =IFERROR(PIMExport!B12*1,IFERROR(SUBSTITUTE(PIMExport!B12,".",",")*1,PIMExport!B12)) -> BallScrew | C14: =IFERROR(PIMExport!C12*1,IFERROR(SUBSTITUTE(PIMExport!C12,".",",")*1,PIMExport!C12)) -> Ball Guide | D14: =IFERROR(PIMExport!D12*1,IFERROR(SUBSTITUTE(PIMExport!D12,".",",")*1,PIMExport!D12)) -> 4815 | E14: =IFERROR(PIMExport!E12*1,IFERROR(SUBSTITUTE(PIMExport!E12,".",",")*1,PIMExport!E12)) -> 6.5 | F14: =IFERROR(PIMExport!F12*1,IFERROR(SUBSTITUTE(PIMExport!F12,".",",")*1,PIMExport!F12)) -> 0 | G14: =IFERROR(PIMExport!G12*1,IFERROR(SUBSTITUTE(PIMExport!G12,".",",")*1,PIMExport!G12)) -> 14.4 | H14: =IFERROR(PIMExport!H12*1,IFERROR(SUBSTITUTE(PIMExport!H12,".",",")*1,PIMExport!H12)) -> 1.65 | I14: =IFERROR(PIMExport!I12*1,IFERROR(SUBSTITUTE(PIMExport!I12,".",",")*1,PIMExport!I12)) -> 333 | J14: =IFERROR(PIMExport!J12*1,IFERROR(SUBSTITUTE(PIMExport!J12,".",",")*1,PIMExport!J12)) -> 105 | K14: =IFERROR(PIMExport!K12*1,IFERROR(SUBSTITUTE(PIMExport!K12,".",",")*1,PIMExport!K12)) -> 0 | L14: =IFERROR(PIMExport!L12*1,IFERROR(SUBSTITUTE(PIMExport!L12,".",",")*1,PIMExport!L12)) -> 3.9e-05 | M14: =IFERROR(PIMExport!M12*1,IFERROR(SUBSTITUTE(PIMExport!M12,".",",")*1,PIMExport!M12)) -> 0.9 | N14: =IFERROR(PIMExport!N12*1,IFERROR(SUBSTITUTE(PIMExport!N12,".",",")*1,PIMExport!N12)) -> 150 | O14: =IFERROR(PIMExport!O12*1,IFERROR(SUBSTITUTE(PIMExport!O12,".",",")*1,PIMExport!O12)) -> 1500 | P14: =IFERROR(PIMExport!P12*1,IFERROR(SUBSTITUTE(PIMExport!P12,".",",")*1,PIMExport!P12)) -> 3000 | Q14: =IFERROR(PIMExport!Q12*1,IFERROR(SUBSTITUTE(PIMExport!Q12,".",",")*1,PIMExport!Q12)) -> 2.7 | R14: =IFERROR(PIMExport!R12*1,IFERROR(SUBSTITUTE(PIMExport!R12,".",",")*1,PIMExport!R12)) -> 3.4 | S14: =IFERROR(PIMExport!S12*1,IFERROR(SUBSTITUTE(PIMExport!S12,".",",")*1,PIMExport!S12)) -> 4 | T14: =IFERROR(PIMExport!T12*1,IFERROR(SUBSTITUTE(PIMExport!T12,".",",")*1,PIMExport!T12)) -> 27 | U14: =IFERROR(PIMExport!U12*1,IFERROR(SUBSTITUTE(PIMExport!U12,".",",")*1,PIMExport!U12)) -> 0.1 | V14: =IFERROR(PIMExport!V12*1,IFERROR(SUBSTITUTE(PIMExport!V12,".",",")*1,PIMExport!V12)) -> 0 | W14: =IFERROR(PIMExport!W12*1,IFERROR(SUBSTITUTE(PIMExport!W12,".",",")*1,PIMExport!W12)) -> 0 | X14: =IFERROR(PIMExport!X12*1,IFERROR(SUBSTITUTE(PIMExport!X12,".",",")*1,PIMExport!X12)) -> 0 | Y14: =IFERROR(PIMExport!Y12*1,IFERROR(SUBSTITUTE(PIMExport!Y12,".",",")*1,PIMExport!Y12)) -> 5000 | Z14: =IFERROR(PIMExport!Z12*1,IFERROR(SUBSTITUTE(PIMExport!Z12,".",",")*1,PIMExport!Z12)) -> 0 | AA14: =IFERROR(PIMExport!AA12*1,IFERROR(SUBSTITUTE(PIMExport!AA12,".",",")*1,PIMExport!AA12)) -> 0 | AB14: =IFERROR(PIMExport!AB12*1,IFERROR(SUBSTITUTE(PIMExport!AB12,".",",")*1,PIMExport!AB12)) -> 0 | AC14: =IFERROR(PIMExport!AC12*1,IFERROR(SUBSTITUTE(PIMExport!AC12,".",",")*1,PIMExport!AC12)) -> 0 | AD14: =IFERROR(PIMExport!AD12*1,IFERROR(SUBSTITUTE(PIMExport!AD12,".",",")*1,PIMExport!AD12)) -> 0 | AE14: =IFERROR(PIMExport!AE12*1,IFERROR(SUBSTITUTE(PIMExport!AE12,".",",")*1,PIMExport!AE12)) -> 6000 | AF14: =IFERROR(PIMExport!AF12*1,IFERROR(SUBSTITUTE(PIMExport!AF12,".",",")*1,PIMExport!AF12)) -> 6000 | AG14: =IFERROR(PIMExport!AG12*1,IFERROR(SUBSTITUTE(PIMExport!AG12,".",",")*1,PIMExport!AG12)) -> 450 | AH14: =IFERROR(PIMExport!AH12*1,IFERROR(SUBSTITUTE(PIMExport!AH12,".",",")*1,PIMExport!AH12)) -> 940 | AI14: =IFERROR(PIMExport!AI12*1,IFERROR(SUBSTITUTE(PIMExport!AI12,".",",")*1,PIMExport!AI12)) -> 940 | AJ14: =IFERROR(PIMExport!AJ12*1,IFERROR(SUBSTITUTE(PIMExport!AJ12,".",",")*1,PIMExport!AJ12)) -> 0 | AK14: =IFERROR(PIMExport!AK12*1,IFERROR(SUBSTITUTE(PIMExport!AK12,".",",")*1,PIMExport!AK12)) -> 0 | AL14: =IFERROR(PIMExport!AL12*1,IFERROR(SUBSTITUTE(PIMExport!AL12,".",",")*1,PIMExport!AL12)) -> 2.5 | AM14: =IFERROR(PIMExport!AM12*1,IFERROR(SUBSTITUTE(PIMExport!AM12,".",",")*1,PIMExport!AM12)) -> 20 | AN14: =IFERROR(PIMExport!AN12*1,IFERROR(SUBSTITUTE(PIMExport!AN12,".",",")*1,PIMExport!AN12)) -> 1 | AO14: =IFERROR(PIMExport!AO12*1,IFERROR(SUBSTITUTE(PIMExport!AO12,".",",")*1,PIMExport!AO12)) -> 55080 | AP14: =IFERROR(PIMExport!AP12*1,IFERROR(SUBSTITUTE(PIMExport!AP12,".",",")*1,PIMExport!AP12)) -> 500 | AQ14: =IFERROR(PIMExport!AQ12*1,IFERROR(SUBSTITUTE(PIMExport!AQ12,".",",")*1,PIMExport!AQ12)) -> 0 | AR14: =IFERROR(PIMExport!AR12*1,IFERROR(SUBSTITUTE(PIMExport!AR12,".",",")*1,PIMExport!AR12)) -> 0 | AS14: =IFERROR(PIMExport!AS12*1,IFERROR(SUBSTITUTE(PIMExport!AS12,".",",")*1,PIMExport!AS12)) -> 0 | AT14: =IFERROR(PIMExport!AT12*1,IFERROR(SUBSTITUTE(PIMExport!AT12,".",",")*1,PIMExport!AT12)) -> 0 | AU14: =IFERROR(PIMExport!AU12*1,IFERROR(SUBSTITUTE(PIMExport!AU12,".",",")*1,PIMExport!AU12)) -> 0 | AV14: =IFERROR(PIMExport!AV12*1,IFERROR(SUBSTITUTE(PIMExport!AV12,".",",")*1,PIMExport!AV12)) -> 0 | AW14: =IFERROR(PIMExport!AW12*1,IFERROR(SUBSTITUTE(PIMExport!AW12,".",",")*1,PIMExport!AW12)) -> 0 | AX14: =IFERROR(PIMExport!AX12*1,IFERROR(SUBSTITUTE(PIMExport!AX12,".",",")*1,PIMExport!AX12)) -> 0 | AY14: =IFERROR(PIMExport!AY12*1,IFERROR(SUBSTITUTE(PIMExport!AY12,".",",")*1,PIMExport!AY12)) -> 0 | AZ14: =IFERROR(PIMExport!AZ12*1,IFERROR(SUBSTITUTE(PIMExport!AZ12,".",",")*1,PIMExport!AZ12)) -> 0 | BA14: =IFERROR(PIMExport!BA12*1,IFERROR(SUBSTITUTE(PIMExport!BA12,".",",")*1,PIMExport!BA12)) -> 0 | BB14: =IFERROR(PIMExport!BB12*1,IFERROR(SUBSTITUTE(PIMExport!BB12,".",",")*1,PIMExport!BB12)) -> 0 | BC14: =IFERROR(PIMExport!BC12*1,IFERROR(SUBSTITUTE(PIMExport!BC12,".",",")*1,PIMExport!BC12)) -> 0 | BD14: =IFERROR(PIMExport!BD12*1,IFERROR(SUBSTITUTE(PIMExport!BD12,".",",")*1,PIMExport!BD12)) -> 0 | BE14: =IFERROR(PIMExport!BE12*1,IFERROR(SUBSTITUTE(PIMExport!BE12,".",",")*1,PIMExport!BE12)) -> 0 | BF14: =IFERROR(PIMExport!BF12*1,IFERROR(SUBSTITUTE(PIMExport!BF12,".",",")*1,PIMExport!BF12)) -> 0 | BG14: =IFERROR(PIMExport!BG12*1,IFERROR(SUBSTITUTE(PIMExport!BG12,".",",")*1,PIMExport!BG12)) -> 605 | BH14: =IFERROR(PIMExport!BH12*1,IFERROR(SUBSTITUTE(PIMExport!BH12,".",",")*1,PIMExport!BH12)) -> 665 | BI14: =IFERROR(PIMExport!BI12*1,IFERROR(SUBSTITUTE(PIMExport!BI12,".",",")*1,PIMExport!BI12)) -> 705 | BJ14: =IFERROR(PIMExport!BJ12*1,IFERROR(SUBSTITUTE(PIMExport!BJ12,".",",")*1,PIMExport!BJ12)) -> 765 | BK14: =IFERROR(PIMExport!BK12*1,IFERROR(SUBSTITUTE(PIMExport!BK12,".",",")*1,PIMExport!BK12)) -> 795 | BL14: =IFERROR(PIMExport!BL12*1,IFERROR(SUBSTITUTE(PIMExport!BL12,".",",")*1,PIMExport!BL12)) -> 845 | BM14: =IFERROR(PIMExport!BM12*1,IFERROR(SUBSTITUTE(PIMExport!BM12,".",",")*1,PIMExport!BM12)) -> 885 | BN14: =IFERROR(PIMExport!BN12*1,IFERROR(SUBSTITUTE(PIMExport!BN12,".",",")*1,PIMExport!BN12)) -> 925 | BO14: =IFERROR(PIMExport!BO12*1,IFERROR(SUBSTITUTE(PIMExport!BO12,".",",")*1,PIMExport!BO12)) -> 965 | BP14: =IFERROR(PIMExport!BP12*1,IFERROR(SUBSTITUTE(PIMExport!BP12,".",",")*1,PIMExport!BP12)) -> 0 | BQ14: =IFERROR(PIMExport!BQ12*1,IFERROR(SUBSTITUTE(PIMExport!BQ12,".",",")*1,PIMExport!BQ12)) -> 0 | BR14: =IFERROR(PIMExport!BR12*1,IFERROR(SUBSTITUTE(PIMExport!BR12,".",",")*1,PIMExport!BR12)) -> 0 | BS14: =IFERROR(PIMExport!BS12*1,IFERROR(SUBSTITUTE(PIMExport!BS12,".",",")*1,PIMExport!BS12)) -> 0 | BT14: =IFERROR(PIMExport!BT12*1,IFERROR(SUBSTITUTE(PIMExport!BT12,".",",")*1,PIMExport!BT12)) -> 0 | BU14: =IFERROR(PIMExport!BU12*1,IFERROR(SUBSTITUTE(PIMExport!BU12,".",",")*1,PIMExport!BU12)) -> 0 | BV14: =IFERROR(PIMExport!BV12*1,IFERROR(SUBSTITUTE(PIMExport!BV12,".",",")*1,PIMExport!BV12)) -> 0 | BW14: =IFERROR(PIMExport!BW12*1,IFERROR(SUBSTITUTE(PIMExport!BW12,".",",")*1,PIMExport!BW12)) -> 0 | BX14: =IFERROR(PIMExport!BX12*1,IFERROR(SUBSTITUTE(PIMExport!BX12,".",",")*1,PIMExport!BX12)) -> 0 | BY14: =IFERROR(PIMExport!BY12*1,IFERROR(SUBSTITUTE(PIMExport!BY12,".",",")*1,PIMExport!BY12)) -> 0 | BZ14: =IFERROR(PIMExport!BZ12*1,IFERROR(SUBSTITUTE(PIMExport!BZ12,".",",")*1,PIMExport!BZ12)) -> 0 | CA14: =IFERROR(PIMExport!CA12*1,IFERROR(SUBSTITUTE(PIMExport!CA12,".",",")*1,PIMExport!CA12)) -> 0 | CB14: =IFERROR(PIMExport!CB12*1,IFERROR(SUBSTITUTE(PIMExport!CB12,".",",")*1,PIMExport!CB12)) -> 581 | CC14: =IFERROR(PIMExport!CC12*1,IFERROR(SUBSTITUTE(PIMExport!CC12,".",",")*1,PIMExport!CC12)) -> 1051 | CD14: =IFERROR(PIMExport!CD12*1,IFERROR(SUBSTITUTE(PIMExport!CD12,".",",")*1,PIMExport!CD12)) -> 1811 | CE14: =IFERROR(PIMExport!CE12*1,IFERROR(SUBSTITUTE(PIMExport!CE12,".",",")*1,PIMExport!CE12)) -> 2561 | CF14: =IFERROR(PIMExport!CF12*1,IFERROR(SUBSTITUTE(PIMExport!CF12,".",",")*1,PIMExport!CF12)) -> 3321 | CG14: =IFERROR(PIMExport!CG12*1,IFERROR(SUBSTITUTE(PIMExport!CG12,".",",")*1,PIMExport!CG12)) -> 4071 | CH14: =IFERROR(PIMExport!CH12*1,IFERROR(SUBSTITUTE(PIMExport!CH12,".",",")*1,PIMExport!CH12)) -> 4831 | CI14: =IFERROR(PIMExport!CI12*1,IFERROR(SUBSTITUTE(PIMExport!CI12,".",",")*1,PIMExport!CI12)) -> 5331 | CJ14: =IFERROR(PIMExport!CJ12*1,IFERROR(SUBSTITUTE(PIMExport!CJ12,".",",")*1,PIMExport!CJ12)) -> 0 | CK14: =IFERROR(PIMExport!CK12*1,IFERROR(SUBSTITUTE(PIMExport!CK12,".",",")*1,PIMExport!CK12)) -> 0 | CL14: =IFERROR(PIMExport!CL12*1,IFERROR(SUBSTITUTE(PIMExport!CL12,".",",")*1,PIMExport!CL12)) -> 0 | CM14: =IFERROR(PIMExport!CM12*1,IFERROR(SUBSTITUTE(PIMExport!CM12,".",",")*1,PIMExport!CM12)) -> 0 | CN14: =IFERROR(PIMExport!CN12*1,IFERROR(SUBSTITUTE(PIMExport!CN12,".",",")*1,PIMExport!CN12)) -> 0 | CO14: =IFERROR(PIMExport!CO12*1,IFERROR(SUBSTITUTE(PIMExport!CO12,".",",")*1,PIMExport!CO12)) -> 0 | CP14: =IFERROR(PIMExport!CP12*1,IFERROR(SUBSTITUTE(PIMExport!CP12,".",",")*1,PIMExport!CP12)) -> 0 | CQ14: =IFERROR(PIMExport!CQ12*1,IFERROR(SUBSTITUTE(PIMExport!CQ12,".",",")*1,PIMExport!CQ12)) -> 0 | CR14: =IFERROR(PIMExport!CR12*1,IFERROR(SUBSTITUTE(PIMExport!CR12,".",",")*1,PIMExport!CR12)) -> 0 | CS14: =IFERROR(PIMExport!CS12*1,IFERROR(SUBSTITUTE(PIMExport!CS12,".",",")*1,PIMExport!CS12)) -> 0 | CT14: =IFERROR(PIMExport!CT12*1,IFERROR(SUBSTITUTE(PIMExport!CT12,".",",")*1,PIMExport!CT12)) -> 0 | CU14: =IFERROR(PIMExport!CU12*1,IFERROR(SUBSTITUTE(PIMExport!CU12,".",",")*1,PIMExport!CU12)) -> 50 | CV14: =IFERROR(PIMExport!CV12*1,IFERROR(SUBSTITUTE(PIMExport!CV12,".",",")*1,PIMExport!CV12)) -> 15400 | CW14: =IFERROR(PIMExport!CW12*1,IFERROR(SUBSTITUTE(PIMExport!CW12,".",",")*1,PIMExport!CW12)) -> 0.000225 | CX14: =IFERROR(PIMExport!CX12*1,IFERROR(SUBSTITUTE(PIMExport!CX12,".",",")*1,PIMExport!CX12)) -> 400 | CY14: =IFERROR(PIMExport!CY12*1,IFERROR(SUBSTITUTE(PIMExport!CY12,".",",")*1,PIMExport!CY12)) -> 500 | CZ14: =IFERROR(PIMExport!CZ12*1,IFERROR(SUBSTITUTE(PIMExport!CZ12,".",",")*1,PIMExport!CZ12)) -> 26000 | DA14: =IFERROR(PIMExport!DA12*1,IFERROR(SUBSTITUTE(PIMExport!DA12,".",",")*1,PIMExport!DA12)) -> 350 | DB14: =IFERROR(PIMExport!DB12*1,IFERROR(SUBSTITUTE(PIMExport!DB12,".",",")*1,PIMExport!DB12)) -> 0 | DC14: =IFERROR(PIMExport!DC12*1,IFERROR(SUBSTITUTE(PIMExport!DC12,".",",")*1,PIMExport!DC12)) -> 0 | DD14: =IFERROR(PIMExport!DD12*1,IFERROR(SUBSTITUTE(PIMExport!DD12,".",",")*1,PIMExport!DD12)) -> 0 | DE14: =IFERROR(PIMExport!DE12*1,IFERROR(SUBSTITUTE(PIMExport!DE12,".",",")*1,PIMExport!DE12)) -> 0 | DF14: =IFERROR(PIMExport!DF12*1,IFERROR(SUBSTITUTE(PIMExport!DF12,".",",")*1,PIMExport!DF12)) -> 0 | DG14: =IFERROR(PIMExport!DG12*1,IFERROR(SUBSTITUTE(PIMExport!DG12,".",",")*1,PIMExport!DG12)) -> 0 | DH14: =IFERROR(PIMExport!DH12*1,IFERROR(SUBSTITUTE(PIMExport!DH12,".",",")*1,PIMExport!DH12)) -> Equal to or better than 0.025 mm | DI14: =IFERROR(PIMExport!DI12*1,IFERROR(SUBSTITUTE(PIMExport!DI12,".",",")*1,PIMExport!DI12)) -> 0 | DJ14: =IFERROR(PIMExport!DJ12*1,IFERROR(SUBSTITUTE(PIMExport!DJ12,".",",")*1,PIMExport!DJ12)) -> 160 x 65 mm | DK14: =IFERROR(PIMExport!DK12*1,IFERROR(SUBSTITUTE(PIMExport!DK12,".",",")*1,PIMExport!DK12)) -> 25 mm | DL14: =IFERROR(PIMExport!DL12*1,IFERROR(SUBSTITUTE(PIMExport!DL12,".",",")*1,PIMExport!DL12)) -> 470 | DM14: =IFERROR(PIMExport!DM12*1,IFERROR(SUBSTITUTE(PIMExport!DM12,".",",")*1,PIMExport!DM12)) -> 5700 | DN14: =IFERROR(PIMExport!DN12*1,IFERROR(SUBSTITUTE(PIMExport!DN12,".",",")*1,PIMExport!DN12)) -> 0 | DO14: =IFERROR(PIMExport!DO12*1,IFERROR(SUBSTITUTE(PIMExport!DO12,".",",")*1,PIMExport!DO12)) -> 0
A15: =IFERROR(PIMExport!A13*1,IFERROR(SUBSTITUTE(PIMExport!A13,".",",")*1,PIMExport!A13)) -> MLSM06D10-Z320 | B15: =IFERROR(PIMExport!B13*1,IFERROR(SUBSTITUTE(PIMExport!B13,".",",")*1,PIMExport!B13)) -> BallScrew | C15: =IFERROR(PIMExport!C13*1,IFERROR(SUBSTITUTE(PIMExport!C13,".",",")*1,PIMExport!C13)) -> Ball Guide | D15: =IFERROR(PIMExport!D13*1,IFERROR(SUBSTITUTE(PIMExport!D13,".",",")*1,PIMExport!D13)) -> 4665 | E15: =IFERROR(PIMExport!E13*1,IFERROR(SUBSTITUTE(PIMExport!E13,".",",")*1,PIMExport!E13)) -> 5.7 | F15: =IFERROR(PIMExport!F13*1,IFERROR(SUBSTITUTE(PIMExport!F13,".",",")*1,PIMExport!F13)) -> 0 | G15: =IFERROR(PIMExport!G13*1,IFERROR(SUBSTITUTE(PIMExport!G13,".",",")*1,PIMExport!G13)) -> 14.4 | H15: =IFERROR(PIMExport!H13*1,IFERROR(SUBSTITUTE(PIMExport!H13,".",",")*1,PIMExport!H13)) -> 1.65 | I15: =IFERROR(PIMExport!I13*1,IFERROR(SUBSTITUTE(PIMExport!I13,".",",")*1,PIMExport!I13)) -> 320 | J15: =IFERROR(PIMExport!J13*1,IFERROR(SUBSTITUTE(PIMExport!J13,".",",")*1,PIMExport!J13)) -> 105 | K15: =IFERROR(PIMExport!K13*1,IFERROR(SUBSTITUTE(PIMExport!K13,".",",")*1,PIMExport!K13)) -> 0 | L15: =IFERROR(PIMExport!L13*1,IFERROR(SUBSTITUTE(PIMExport!L13,".",",")*1,PIMExport!L13)) -> 3.9e-05 | M15: =IFERROR(PIMExport!M13*1,IFERROR(SUBSTITUTE(PIMExport!M13,".",",")*1,PIMExport!M13)) -> 0.9 | N15: =IFERROR(PIMExport!N13*1,IFERROR(SUBSTITUTE(PIMExport!N13,".",",")*1,PIMExport!N13)) -> 150 | O15: =IFERROR(PIMExport!O13*1,IFERROR(SUBSTITUTE(PIMExport!O13,".",",")*1,PIMExport!O13)) -> 1500 | P15: =IFERROR(PIMExport!P13*1,IFERROR(SUBSTITUTE(PIMExport!P13,".",",")*1,PIMExport!P13)) -> 3000 | Q15: =IFERROR(PIMExport!Q13*1,IFERROR(SUBSTITUTE(PIMExport!Q13,".",",")*1,PIMExport!Q13)) -> 1.6 | R15: =IFERROR(PIMExport!R13*1,IFERROR(SUBSTITUTE(PIMExport!R13,".",",")*1,PIMExport!R13)) -> 2.2 | S15: =IFERROR(PIMExport!S13*1,IFERROR(SUBSTITUTE(PIMExport!S13,".",",")*1,PIMExport!S13)) -> 2.6 | T15: =IFERROR(PIMExport!T13*1,IFERROR(SUBSTITUTE(PIMExport!T13,".",",")*1,PIMExport!T13)) -> 27 | U15: =IFERROR(PIMExport!U13*1,IFERROR(SUBSTITUTE(PIMExport!U13,".",",")*1,PIMExport!U13)) -> 0.1 | V15: =IFERROR(PIMExport!V13*1,IFERROR(SUBSTITUTE(PIMExport!V13,".",",")*1,PIMExport!V13)) -> 0 | W15: =IFERROR(PIMExport!W13*1,IFERROR(SUBSTITUTE(PIMExport!W13,".",",")*1,PIMExport!W13)) -> 0 | X15: =IFERROR(PIMExport!X13*1,IFERROR(SUBSTITUTE(PIMExport!X13,".",",")*1,PIMExport!X13)) -> 0 | Y15: =IFERROR(PIMExport!Y13*1,IFERROR(SUBSTITUTE(PIMExport!Y13,".",",")*1,PIMExport!Y13)) -> 5000 | Z15: =IFERROR(PIMExport!Z13*1,IFERROR(SUBSTITUTE(PIMExport!Z13,".",",")*1,PIMExport!Z13)) -> 0 | AA15: =IFERROR(PIMExport!AA13*1,IFERROR(SUBSTITUTE(PIMExport!AA13,".",",")*1,PIMExport!AA13)) -> 0 | AB15: =IFERROR(PIMExport!AB13*1,IFERROR(SUBSTITUTE(PIMExport!AB13,".",",")*1,PIMExport!AB13)) -> 0 | AC15: =IFERROR(PIMExport!AC13*1,IFERROR(SUBSTITUTE(PIMExport!AC13,".",",")*1,PIMExport!AC13)) -> 0 | AD15: =IFERROR(PIMExport!AD13*1,IFERROR(SUBSTITUTE(PIMExport!AD13,".",",")*1,PIMExport!AD13)) -> 0 | AE15: =IFERROR(PIMExport!AE13*1,IFERROR(SUBSTITUTE(PIMExport!AE13,".",",")*1,PIMExport!AE13)) -> 6000 | AF15: =IFERROR(PIMExport!AF13*1,IFERROR(SUBSTITUTE(PIMExport!AF13,".",",")*1,PIMExport!AF13)) -> 6000 | AG15: =IFERROR(PIMExport!AG13*1,IFERROR(SUBSTITUTE(PIMExport!AG13,".",",")*1,PIMExport!AG13)) -> 400 | AH15: =IFERROR(PIMExport!AH13*1,IFERROR(SUBSTITUTE(PIMExport!AH13,".",",")*1,PIMExport!AH13)) -> 0 | AI15: =IFERROR(PIMExport!AI13*1,IFERROR(SUBSTITUTE(PIMExport!AI13,".",",")*1,PIMExport!AI13)) -> 0 | AJ15: =IFERROR(PIMExport!AJ13*1,IFERROR(SUBSTITUTE(PIMExport!AJ13,".",",")*1,PIMExport!AJ13)) -> 6 | AK15: =IFERROR(PIMExport!AK13*1,IFERROR(SUBSTITUTE(PIMExport!AK13,".",",")*1,PIMExport!AK13)) -> 6 | AL15: =IFERROR(PIMExport!AL13*1,IFERROR(SUBSTITUTE(PIMExport!AL13,".",",")*1,PIMExport!AL13)) -> 0.5 | AM15: =IFERROR(PIMExport!AM13*1,IFERROR(SUBSTITUTE(PIMExport!AM13,".",",")*1,PIMExport!AM13)) -> 20 | AN15: =IFERROR(PIMExport!AN13*1,IFERROR(SUBSTITUTE(PIMExport!AN13,".",",")*1,PIMExport!AN13)) -> 2 | AO15: =IFERROR(PIMExport!AO13*1,IFERROR(SUBSTITUTE(PIMExport!AO13,".",",")*1,PIMExport!AO13)) -> 55080 | AP15: =IFERROR(PIMExport!AP13*1,IFERROR(SUBSTITUTE(PIMExport!AP13,".",",")*1,PIMExport!AP13)) -> 500 | AQ15: =IFERROR(PIMExport!AQ13*1,IFERROR(SUBSTITUTE(PIMExport!AQ13,".",",")*1,PIMExport!AQ13)) -> 0 | AR15: =IFERROR(PIMExport!AR13*1,IFERROR(SUBSTITUTE(PIMExport!AR13,".",",")*1,PIMExport!AR13)) -> 0 | AS15: =IFERROR(PIMExport!AS13*1,IFERROR(SUBSTITUTE(PIMExport!AS13,".",",")*1,PIMExport!AS13)) -> 0 | AT15: =IFERROR(PIMExport!AT13*1,IFERROR(SUBSTITUTE(PIMExport!AT13,".",",")*1,PIMExport!AT13)) -> 0 | AU15: =IFERROR(PIMExport!AU13*1,IFERROR(SUBSTITUTE(PIMExport!AU13,".",",")*1,PIMExport!AU13)) -> 0 | AV15: =IFERROR(PIMExport!AV13*1,IFERROR(SUBSTITUTE(PIMExport!AV13,".",",")*1,PIMExport!AV13)) -> 0 | AW15: =IFERROR(PIMExport!AW13*1,IFERROR(SUBSTITUTE(PIMExport!AW13,".",",")*1,PIMExport!AW13)) -> 0 | AX15: =IFERROR(PIMExport!AX13*1,IFERROR(SUBSTITUTE(PIMExport!AX13,".",",")*1,PIMExport!AX13)) -> 0 | AY15: =IFERROR(PIMExport!AY13*1,IFERROR(SUBSTITUTE(PIMExport!AY13,".",",")*1,PIMExport!AY13)) -> 0 | AZ15: =IFERROR(PIMExport!AZ13*1,IFERROR(SUBSTITUTE(PIMExport!AZ13,".",",")*1,PIMExport!AZ13)) -> 0 | BA15: =IFERROR(PIMExport!BA13*1,IFERROR(SUBSTITUTE(PIMExport!BA13,".",",")*1,PIMExport!BA13)) -> 0 | BB15: =IFERROR(PIMExport!BB13*1,IFERROR(SUBSTITUTE(PIMExport!BB13,".",",")*1,PIMExport!BB13)) -> 0 | BC15: =IFERROR(PIMExport!BC13*1,IFERROR(SUBSTITUTE(PIMExport!BC13,".",",")*1,PIMExport!BC13)) -> 0 | BD15: =IFERROR(PIMExport!BD13*1,IFERROR(SUBSTITUTE(PIMExport!BD13,".",",")*1,PIMExport!BD13)) -> 0 | BE15: =IFERROR(PIMExport!BE13*1,IFERROR(SUBSTITUTE(PIMExport!BE13,".",",")*1,PIMExport!BE13)) -> 0 | BF15: =IFERROR(PIMExport!BF13*1,IFERROR(SUBSTITUTE(PIMExport!BF13,".",",")*1,PIMExport!BF13)) -> 0 | BG15: =IFERROR(PIMExport!BG13*1,IFERROR(SUBSTITUTE(PIMExport!BG13,".",",")*1,PIMExport!BG13)) -> 435 | BH15: =IFERROR(PIMExport!BH13*1,IFERROR(SUBSTITUTE(PIMExport!BH13,".",",")*1,PIMExport!BH13)) -> 495 | BI15: =IFERROR(PIMExport!BI13*1,IFERROR(SUBSTITUTE(PIMExport!BI13,".",",")*1,PIMExport!BI13)) -> 535 | BJ15: =IFERROR(PIMExport!BJ13*1,IFERROR(SUBSTITUTE(PIMExport!BJ13,".",",")*1,PIMExport!BJ13)) -> 585 | BK15: =IFERROR(PIMExport!BK13*1,IFERROR(SUBSTITUTE(PIMExport!BK13,".",",")*1,PIMExport!BK13)) -> 625 | BL15: =IFERROR(PIMExport!BL13*1,IFERROR(SUBSTITUTE(PIMExport!BL13,".",",")*1,PIMExport!BL13)) -> 675 | BM15: =IFERROR(PIMExport!BM13*1,IFERROR(SUBSTITUTE(PIMExport!BM13,".",",")*1,PIMExport!BM13)) -> 715 | BN15: =IFERROR(PIMExport!BN13*1,IFERROR(SUBSTITUTE(PIMExport!BN13,".",",")*1,PIMExport!BN13)) -> 755 | BO15: =IFERROR(PIMExport!BO13*1,IFERROR(SUBSTITUTE(PIMExport!BO13,".",",")*1,PIMExport!BO13)) -> 0 | BP15: =IFERROR(PIMExport!BP13*1,IFERROR(SUBSTITUTE(PIMExport!BP13,".",",")*1,PIMExport!BP13)) -> 0 | BQ15: =IFERROR(PIMExport!BQ13*1,IFERROR(SUBSTITUTE(PIMExport!BQ13,".",",")*1,PIMExport!BQ13)) -> 0 | BR15: =IFERROR(PIMExport!BR13*1,IFERROR(SUBSTITUTE(PIMExport!BR13,".",",")*1,PIMExport!BR13)) -> 0 | BS15: =IFERROR(PIMExport!BS13*1,IFERROR(SUBSTITUTE(PIMExport!BS13,".",",")*1,PIMExport!BS13)) -> 0 | BT15: =IFERROR(PIMExport!BT13*1,IFERROR(SUBSTITUTE(PIMExport!BT13,".",",")*1,PIMExport!BT13)) -> 0 | BU15: =IFERROR(PIMExport!BU13*1,IFERROR(SUBSTITUTE(PIMExport!BU13,".",",")*1,PIMExport!BU13)) -> 0 | BV15: =IFERROR(PIMExport!BV13*1,IFERROR(SUBSTITUTE(PIMExport!BV13,".",",")*1,PIMExport!BV13)) -> 0 | BW15: =IFERROR(PIMExport!BW13*1,IFERROR(SUBSTITUTE(PIMExport!BW13,".",",")*1,PIMExport!BW13)) -> 0 | BX15: =IFERROR(PIMExport!BX13*1,IFERROR(SUBSTITUTE(PIMExport!BX13,".",",")*1,PIMExport!BX13)) -> 0 | BY15: =IFERROR(PIMExport!BY13*1,IFERROR(SUBSTITUTE(PIMExport!BY13,".",",")*1,PIMExport!BY13)) -> 0 | BZ15: =IFERROR(PIMExport!BZ13*1,IFERROR(SUBSTITUTE(PIMExport!BZ13,".",",")*1,PIMExport!BZ13)) -> 0 | CA15: =IFERROR(PIMExport!CA13*1,IFERROR(SUBSTITUTE(PIMExport!CA13,".",",")*1,PIMExport!CA13)) -> 0 | CB15: =IFERROR(PIMExport!CB13*1,IFERROR(SUBSTITUTE(PIMExport!CB13,".",",")*1,PIMExport!CB13)) -> 751 | CC15: =IFERROR(PIMExport!CC13*1,IFERROR(SUBSTITUTE(PIMExport!CC13,".",",")*1,PIMExport!CC13)) -> 1221 | CD15: =IFERROR(PIMExport!CD13*1,IFERROR(SUBSTITUTE(PIMExport!CD13,".",",")*1,PIMExport!CD13)) -> 1981 | CE15: =IFERROR(PIMExport!CE13*1,IFERROR(SUBSTITUTE(PIMExport!CE13,".",",")*1,PIMExport!CE13)) -> 2731 | CF15: =IFERROR(PIMExport!CF13*1,IFERROR(SUBSTITUTE(PIMExport!CF13,".",",")*1,PIMExport!CF13)) -> 3491 | CG15: =IFERROR(PIMExport!CG13*1,IFERROR(SUBSTITUTE(PIMExport!CG13,".",",")*1,PIMExport!CG13)) -> 4241 | CH15: =IFERROR(PIMExport!CH13*1,IFERROR(SUBSTITUTE(PIMExport!CH13,".",",")*1,PIMExport!CH13)) -> 5001 | CI15: =IFERROR(PIMExport!CI13*1,IFERROR(SUBSTITUTE(PIMExport!CI13,".",",")*1,PIMExport!CI13)) -> 0 | CJ15: =IFERROR(PIMExport!CJ13*1,IFERROR(SUBSTITUTE(PIMExport!CJ13,".",",")*1,PIMExport!CJ13)) -> 0 | CK15: =IFERROR(PIMExport!CK13*1,IFERROR(SUBSTITUTE(PIMExport!CK13,".",",")*1,PIMExport!CK13)) -> 0 | CL15: =IFERROR(PIMExport!CL13*1,IFERROR(SUBSTITUTE(PIMExport!CL13,".",",")*1,PIMExport!CL13)) -> 0 | CM15: =IFERROR(PIMExport!CM13*1,IFERROR(SUBSTITUTE(PIMExport!CM13,".",",")*1,PIMExport!CM13)) -> 0 | CN15: =IFERROR(PIMExport!CN13*1,IFERROR(SUBSTITUTE(PIMExport!CN13,".",",")*1,PIMExport!CN13)) -> 0 | CO15: =IFERROR(PIMExport!CO13*1,IFERROR(SUBSTITUTE(PIMExport!CO13,".",",")*1,PIMExport!CO13)) -> 0 | CP15: =IFERROR(PIMExport!CP13*1,IFERROR(SUBSTITUTE(PIMExport!CP13,".",",")*1,PIMExport!CP13)) -> 0 | CQ15: =IFERROR(PIMExport!CQ13*1,IFERROR(SUBSTITUTE(PIMExport!CQ13,".",",")*1,PIMExport!CQ13)) -> 0 | CR15: =IFERROR(PIMExport!CR13*1,IFERROR(SUBSTITUTE(PIMExport!CR13,".",",")*1,PIMExport!CR13)) -> 0 | CS15: =IFERROR(PIMExport!CS13*1,IFERROR(SUBSTITUTE(PIMExport!CS13,".",",")*1,PIMExport!CS13)) -> 0 | CT15: =IFERROR(PIMExport!CT13*1,IFERROR(SUBSTITUTE(PIMExport!CT13,".",",")*1,PIMExport!CT13)) -> 0 | CU15: =IFERROR(PIMExport!CU13*1,IFERROR(SUBSTITUTE(PIMExport!CU13,".",",")*1,PIMExport!CU13)) -> 10 | CV15: =IFERROR(PIMExport!CV13*1,IFERROR(SUBSTITUTE(PIMExport!CV13,".",",")*1,PIMExport!CV13)) -> 13200 | CW15: =IFERROR(PIMExport!CW13*1,IFERROR(SUBSTITUTE(PIMExport!CW13,".",",")*1,PIMExport!CW13)) -> 0.000225 | CX15: =IFERROR(PIMExport!CX13*1,IFERROR(SUBSTITUTE(PIMExport!CX13,".",",")*1,PIMExport!CX13)) -> 400 | CY15: =IFERROR(PIMExport!CY13*1,IFERROR(SUBSTITUTE(PIMExport!CY13,".",",")*1,PIMExport!CY13)) -> 500 | CZ15: =IFERROR(PIMExport!CZ13*1,IFERROR(SUBSTITUTE(PIMExport!CZ13,".",",")*1,PIMExport!CZ13)) -> 26000 | DA15: =IFERROR(PIMExport!DA13*1,IFERROR(SUBSTITUTE(PIMExport!DA13,".",",")*1,PIMExport!DA13)) -> 350 | DB15: =IFERROR(PIMExport!DB13*1,IFERROR(SUBSTITUTE(PIMExport!DB13,".",",")*1,PIMExport!DB13)) -> 0 | DC15: =IFERROR(PIMExport!DC13*1,IFERROR(SUBSTITUTE(PIMExport!DC13,".",",")*1,PIMExport!DC13)) -> 0 | DD15: =IFERROR(PIMExport!DD13*1,IFERROR(SUBSTITUTE(PIMExport!DD13,".",",")*1,PIMExport!DD13)) -> 0 | DE15: =IFERROR(PIMExport!DE13*1,IFERROR(SUBSTITUTE(PIMExport!DE13,".",",")*1,PIMExport!DE13)) -> 0 | DF15: =IFERROR(PIMExport!DF13*1,IFERROR(SUBSTITUTE(PIMExport!DF13,".",",")*1,PIMExport!DF13)) -> 0 | DG15: =IFERROR(PIMExport!DG13*1,IFERROR(SUBSTITUTE(PIMExport!DG13,".",",")*1,PIMExport!DG13)) -> 0 | DH15: =IFERROR(PIMExport!DH13*1,IFERROR(SUBSTITUTE(PIMExport!DH13,".",",")*1,PIMExport!DH13)) -> Equal to or better than 0.025 mm | DI15: =IFERROR(PIMExport!DI13*1,IFERROR(SUBSTITUTE(PIMExport!DI13,".",",")*1,PIMExport!DI13)) -> 0 | DJ15: =IFERROR(PIMExport!DJ13*1,IFERROR(SUBSTITUTE(PIMExport!DJ13,".",",")*1,PIMExport!DJ13)) -> 160 x 65 mm | DK15: =IFERROR(PIMExport!DK13*1,IFERROR(SUBSTITUTE(PIMExport!DK13,".",",")*1,PIMExport!DK13)) -> 25 mm | DL15: =IFERROR(PIMExport!DL13*1,IFERROR(SUBSTITUTE(PIMExport!DL13,".",",")*1,PIMExport!DL13)) -> 620 | DM15: =IFERROR(PIMExport!DM13*1,IFERROR(SUBSTITUTE(PIMExport!DM13,".",",")*1,PIMExport!DM13)) -> 5700 | DN15: =IFERROR(PIMExport!DN13*1,IFERROR(SUBSTITUTE(PIMExport!DN13,".",",")*1,PIMExport!DN13)) -> 0 | DO15: =IFERROR(PIMExport!DO13*1,IFERROR(SUBSTITUTE(PIMExport!DO13,".",",")*1,PIMExport!DO13)) -> 0
A16: =IFERROR(PIMExport!A14*1,IFERROR(SUBSTITUTE(PIMExport!A14,".",",")*1,PIMExport!A14)) -> MLSM06D05-Z320 | B16: =IFERROR(PIMExport!B14*1,IFERROR(SUBSTITUTE(PIMExport!B14,".",",")*1,PIMExport!B14)) -> BallScrew | C16: =IFERROR(PIMExport!C14*1,IFERROR(SUBSTITUTE(PIMExport!C14,".",",")*1,PIMExport!C14)) -> Ball Guide | D16: =IFERROR(PIMExport!D14*1,IFERROR(SUBSTITUTE(PIMExport!D14,".",",")*1,PIMExport!D14)) -> 4665 | E16: =IFERROR(PIMExport!E14*1,IFERROR(SUBSTITUTE(PIMExport!E14,".",",")*1,PIMExport!E14)) -> 5.7 | F16: =IFERROR(PIMExport!F14*1,IFERROR(SUBSTITUTE(PIMExport!F14,".",",")*1,PIMExport!F14)) -> 0 | G16: =IFERROR(PIMExport!G14*1,IFERROR(SUBSTITUTE(PIMExport!G14,".",",")*1,PIMExport!G14)) -> 14.4 | H16: =IFERROR(PIMExport!H14*1,IFERROR(SUBSTITUTE(PIMExport!H14,".",",")*1,PIMExport!H14)) -> 1.65 | I16: =IFERROR(PIMExport!I14*1,IFERROR(SUBSTITUTE(PIMExport!I14,".",",")*1,PIMExport!I14)) -> 320 | J16: =IFERROR(PIMExport!J14*1,IFERROR(SUBSTITUTE(PIMExport!J14,".",",")*1,PIMExport!J14)) -> 105 | K16: =IFERROR(PIMExport!K14*1,IFERROR(SUBSTITUTE(PIMExport!K14,".",",")*1,PIMExport!K14)) -> 0 | L16: =IFERROR(PIMExport!L14*1,IFERROR(SUBSTITUTE(PIMExport!L14,".",",")*1,PIMExport!L14)) -> 3.9e-05 | M16: =IFERROR(PIMExport!M14*1,IFERROR(SUBSTITUTE(PIMExport!M14,".",",")*1,PIMExport!M14)) -> 0.9 | N16: =IFERROR(PIMExport!N14*1,IFERROR(SUBSTITUTE(PIMExport!N14,".",",")*1,PIMExport!N14)) -> 150 | O16: =IFERROR(PIMExport!O14*1,IFERROR(SUBSTITUTE(PIMExport!O14,".",",")*1,PIMExport!O14)) -> 1500 | P16: =IFERROR(PIMExport!P14*1,IFERROR(SUBSTITUTE(PIMExport!P14,".",",")*1,PIMExport!P14)) -> 3000 | Q16: =IFERROR(PIMExport!Q14*1,IFERROR(SUBSTITUTE(PIMExport!Q14,".",",")*1,PIMExport!Q14)) -> 1 | R16: =IFERROR(PIMExport!R14*1,IFERROR(SUBSTITUTE(PIMExport!R14,".",",")*1,PIMExport!R14)) -> 1.6 | S16: =IFERROR(PIMExport!S14*1,IFERROR(SUBSTITUTE(PIMExport!S14,".",",")*1,PIMExport!S14)) -> 2 | T16: =IFERROR(PIMExport!T14*1,IFERROR(SUBSTITUTE(PIMExport!T14,".",",")*1,PIMExport!T14)) -> 27 | U16: =IFERROR(PIMExport!U14*1,IFERROR(SUBSTITUTE(PIMExport!U14,".",",")*1,PIMExport!U14)) -> 0.1 | V16: =IFERROR(PIMExport!V14*1,IFERROR(SUBSTITUTE(PIMExport!V14,".",",")*1,PIMExport!V14)) -> 0 | W16: =IFERROR(PIMExport!W14*1,IFERROR(SUBSTITUTE(PIMExport!W14,".",",")*1,PIMExport!W14)) -> 0 | X16: =IFERROR(PIMExport!X14*1,IFERROR(SUBSTITUTE(PIMExport!X14,".",",")*1,PIMExport!X14)) -> 0 | Y16: =IFERROR(PIMExport!Y14*1,IFERROR(SUBSTITUTE(PIMExport!Y14,".",",")*1,PIMExport!Y14)) -> 5000 | Z16: =IFERROR(PIMExport!Z14*1,IFERROR(SUBSTITUTE(PIMExport!Z14,".",",")*1,PIMExport!Z14)) -> 0 | AA16: =IFERROR(PIMExport!AA14*1,IFERROR(SUBSTITUTE(PIMExport!AA14,".",",")*1,PIMExport!AA14)) -> 0 | AB16: =IFERROR(PIMExport!AB14*1,IFERROR(SUBSTITUTE(PIMExport!AB14,".",",")*1,PIMExport!AB14)) -> 0 | AC16: =IFERROR(PIMExport!AC14*1,IFERROR(SUBSTITUTE(PIMExport!AC14,".",",")*1,PIMExport!AC14)) -> 0 | AD16: =IFERROR(PIMExport!AD14*1,IFERROR(SUBSTITUTE(PIMExport!AD14,".",",")*1,PIMExport!AD14)) -> 0 | AE16: =IFERROR(PIMExport!AE14*1,IFERROR(SUBSTITUTE(PIMExport!AE14,".",",")*1,PIMExport!AE14)) -> 6000 | AF16: =IFERROR(PIMExport!AF14*1,IFERROR(SUBSTITUTE(PIMExport!AF14,".",",")*1,PIMExport!AF14)) -> 6000 | AG16: =IFERROR(PIMExport!AG14*1,IFERROR(SUBSTITUTE(PIMExport!AG14,".",",")*1,PIMExport!AG14)) -> 400 | AH16: =IFERROR(PIMExport!AH14*1,IFERROR(SUBSTITUTE(PIMExport!AH14,".",",")*1,PIMExport!AH14)) -> 0 | AI16: =IFERROR(PIMExport!AI14*1,IFERROR(SUBSTITUTE(PIMExport!AI14,".",",")*1,PIMExport!AI14)) -> 0 | AJ16: =IFERROR(PIMExport!AJ14*1,IFERROR(SUBSTITUTE(PIMExport!AJ14,".",",")*1,PIMExport!AJ14)) -> 6 | AK16: =IFERROR(PIMExport!AK14*1,IFERROR(SUBSTITUTE(PIMExport!AK14,".",",")*1,PIMExport!AK14)) -> 6 | AL16: =IFERROR(PIMExport!AL14*1,IFERROR(SUBSTITUTE(PIMExport!AL14,".",",")*1,PIMExport!AL14)) -> 0.25 | AM16: =IFERROR(PIMExport!AM14*1,IFERROR(SUBSTITUTE(PIMExport!AM14,".",",")*1,PIMExport!AM14)) -> 20 | AN16: =IFERROR(PIMExport!AN14*1,IFERROR(SUBSTITUTE(PIMExport!AN14,".",",")*1,PIMExport!AN14)) -> 2 | AO16: =IFERROR(PIMExport!AO14*1,IFERROR(SUBSTITUTE(PIMExport!AO14,".",",")*1,PIMExport!AO14)) -> 55080 | AP16: =IFERROR(PIMExport!AP14*1,IFERROR(SUBSTITUTE(PIMExport!AP14,".",",")*1,PIMExport!AP14)) -> 500 | AQ16: =IFERROR(PIMExport!AQ14*1,IFERROR(SUBSTITUTE(PIMExport!AQ14,".",",")*1,PIMExport!AQ14)) -> 0 | AR16: =IFERROR(PIMExport!AR14*1,IFERROR(SUBSTITUTE(PIMExport!AR14,".",",")*1,PIMExport!AR14)) -> 0 | AS16: =IFERROR(PIMExport!AS14*1,IFERROR(SUBSTITUTE(PIMExport!AS14,".",",")*1,PIMExport!AS14)) -> 0 | AT16: =IFERROR(PIMExport!AT14*1,IFERROR(SUBSTITUTE(PIMExport!AT14,".",",")*1,PIMExport!AT14)) -> 0 | AU16: =IFERROR(PIMExport!AU14*1,IFERROR(SUBSTITUTE(PIMExport!AU14,".",",")*1,PIMExport!AU14)) -> 0 | AV16: =IFERROR(PIMExport!AV14*1,IFERROR(SUBSTITUTE(PIMExport!AV14,".",",")*1,PIMExport!AV14)) -> 0 | AW16: =IFERROR(PIMExport!AW14*1,IFERROR(SUBSTITUTE(PIMExport!AW14,".",",")*1,PIMExport!AW14)) -> 0 | AX16: =IFERROR(PIMExport!AX14*1,IFERROR(SUBSTITUTE(PIMExport!AX14,".",",")*1,PIMExport!AX14)) -> 0 | AY16: =IFERROR(PIMExport!AY14*1,IFERROR(SUBSTITUTE(PIMExport!AY14,".",",")*1,PIMExport!AY14)) -> 0 | AZ16: =IFERROR(PIMExport!AZ14*1,IFERROR(SUBSTITUTE(PIMExport!AZ14,".",",")*1,PIMExport!AZ14)) -> 0 | BA16: =IFERROR(PIMExport!BA14*1,IFERROR(SUBSTITUTE(PIMExport!BA14,".",",")*1,PIMExport!BA14)) -> 0 | BB16: =IFERROR(PIMExport!BB14*1,IFERROR(SUBSTITUTE(PIMExport!BB14,".",",")*1,PIMExport!BB14)) -> 0 | BC16: =IFERROR(PIMExport!BC14*1,IFERROR(SUBSTITUTE(PIMExport!BC14,".",",")*1,PIMExport!BC14)) -> 0 | BD16: =IFERROR(PIMExport!BD14*1,IFERROR(SUBSTITUTE(PIMExport!BD14,".",",")*1,PIMExport!BD14)) -> 0 | BE16: =IFERROR(PIMExport!BE14*1,IFERROR(SUBSTITUTE(PIMExport!BE14,".",",")*1,PIMExport!BE14)) -> 0 | BF16: =IFERROR(PIMExport!BF14*1,IFERROR(SUBSTITUTE(PIMExport!BF14,".",",")*1,PIMExport!BF14)) -> 0 | BG16: =IFERROR(PIMExport!BG14*1,IFERROR(SUBSTITUTE(PIMExport!BG14,".",",")*1,PIMExport!BG14)) -> 435 | BH16: =IFERROR(PIMExport!BH14*1,IFERROR(SUBSTITUTE(PIMExport!BH14,".",",")*1,PIMExport!BH14)) -> 495 | BI16: =IFERROR(PIMExport!BI14*1,IFERROR(SUBSTITUTE(PIMExport!BI14,".",",")*1,PIMExport!BI14)) -> 535 | BJ16: =IFERROR(PIMExport!BJ14*1,IFERROR(SUBSTITUTE(PIMExport!BJ14,".",",")*1,PIMExport!BJ14)) -> 585 | BK16: =IFERROR(PIMExport!BK14*1,IFERROR(SUBSTITUTE(PIMExport!BK14,".",",")*1,PIMExport!BK14)) -> 625 | BL16: =IFERROR(PIMExport!BL14*1,IFERROR(SUBSTITUTE(PIMExport!BL14,".",",")*1,PIMExport!BL14)) -> 675 | BM16: =IFERROR(PIMExport!BM14*1,IFERROR(SUBSTITUTE(PIMExport!BM14,".",",")*1,PIMExport!BM14)) -> 715 | BN16: =IFERROR(PIMExport!BN14*1,IFERROR(SUBSTITUTE(PIMExport!BN14,".",",")*1,PIMExport!BN14)) -> 755 | BO16: =IFERROR(PIMExport!BO14*1,IFERROR(SUBSTITUTE(PIMExport!BO14,".",",")*1,PIMExport!BO14)) -> 0 | BP16: =IFERROR(PIMExport!BP14*1,IFERROR(SUBSTITUTE(PIMExport!BP14,".",",")*1,PIMExport!BP14)) -> 0 | BQ16: =IFERROR(PIMExport!BQ14*1,IFERROR(SUBSTITUTE(PIMExport!BQ14,".",",")*1,PIMExport!BQ14)) -> 0 | BR16: =IFERROR(PIMExport!BR14*1,IFERROR(SUBSTITUTE(PIMExport!BR14,".",",")*1,PIMExport!BR14)) -> 0 | BS16: =IFERROR(PIMExport!BS14*1,IFERROR(SUBSTITUTE(PIMExport!BS14,".",",")*1,PIMExport!BS14)) -> 0 | BT16: =IFERROR(PIMExport!BT14*1,IFERROR(SUBSTITUTE(PIMExport!BT14,".",",")*1,PIMExport!BT14)) -> 0 | BU16: =IFERROR(PIMExport!BU14*1,IFERROR(SUBSTITUTE(PIMExport!BU14,".",",")*1,PIMExport!BU14)) -> 0 | BV16: =IFERROR(PIMExport!BV14*1,IFERROR(SUBSTITUTE(PIMExport!BV14,".",",")*1,PIMExport!BV14)) -> 0 | BW16: =IFERROR(PIMExport!BW14*1,IFERROR(SUBSTITUTE(PIMExport!BW14,".",",")*1,PIMExport!BW14)) -> 0 | BX16: =IFERROR(PIMExport!BX14*1,IFERROR(SUBSTITUTE(PIMExport!BX14,".",",")*1,PIMExport!BX14)) -> 0 | BY16: =IFERROR(PIMExport!BY14*1,IFERROR(SUBSTITUTE(PIMExport!BY14,".",",")*1,PIMExport!BY14)) -> 0 | BZ16: =IFERROR(PIMExport!BZ14*1,IFERROR(SUBSTITUTE(PIMExport!BZ14,".",",")*1,PIMExport!BZ14)) -> 0 | CA16: =IFERROR(PIMExport!CA14*1,IFERROR(SUBSTITUTE(PIMExport!CA14,".",",")*1,PIMExport!CA14)) -> 0 | CB16: =IFERROR(PIMExport!CB14*1,IFERROR(SUBSTITUTE(PIMExport!CB14,".",",")*1,PIMExport!CB14)) -> 751 | CC16: =IFERROR(PIMExport!CC14*1,IFERROR(SUBSTITUTE(PIMExport!CC14,".",",")*1,PIMExport!CC14)) -> 1221 | CD16: =IFERROR(PIMExport!CD14*1,IFERROR(SUBSTITUTE(PIMExport!CD14,".",",")*1,PIMExport!CD14)) -> 1981 | CE16: =IFERROR(PIMExport!CE14*1,IFERROR(SUBSTITUTE(PIMExport!CE14,".",",")*1,PIMExport!CE14)) -> 2731 | CF16: =IFERROR(PIMExport!CF14*1,IFERROR(SUBSTITUTE(PIMExport!CF14,".",",")*1,PIMExport!CF14)) -> 3491 | CG16: =IFERROR(PIMExport!CG14*1,IFERROR(SUBSTITUTE(PIMExport!CG14,".",",")*1,PIMExport!CG14)) -> 4241 | CH16: =IFERROR(PIMExport!CH14*1,IFERROR(SUBSTITUTE(PIMExport!CH14,".",",")*1,PIMExport!CH14)) -> 5001 | CI16: =IFERROR(PIMExport!CI14*1,IFERROR(SUBSTITUTE(PIMExport!CI14,".",",")*1,PIMExport!CI14)) -> 0 | CJ16: =IFERROR(PIMExport!CJ14*1,IFERROR(SUBSTITUTE(PIMExport!CJ14,".",",")*1,PIMExport!CJ14)) -> 0 | CK16: =IFERROR(PIMExport!CK14*1,IFERROR(SUBSTITUTE(PIMExport!CK14,".",",")*1,PIMExport!CK14)) -> 0 | CL16: =IFERROR(PIMExport!CL14*1,IFERROR(SUBSTITUTE(PIMExport!CL14,".",",")*1,PIMExport!CL14)) -> 0 | CM16: =IFERROR(PIMExport!CM14*1,IFERROR(SUBSTITUTE(PIMExport!CM14,".",",")*1,PIMExport!CM14)) -> 0 | CN16: =IFERROR(PIMExport!CN14*1,IFERROR(SUBSTITUTE(PIMExport!CN14,".",",")*1,PIMExport!CN14)) -> 0 | CO16: =IFERROR(PIMExport!CO14*1,IFERROR(SUBSTITUTE(PIMExport!CO14,".",",")*1,PIMExport!CO14)) -> 0 | CP16: =IFERROR(PIMExport!CP14*1,IFERROR(SUBSTITUTE(PIMExport!CP14,".",",")*1,PIMExport!CP14)) -> 0 | CQ16: =IFERROR(PIMExport!CQ14*1,IFERROR(SUBSTITUTE(PIMExport!CQ14,".",",")*1,PIMExport!CQ14)) -> 0 | CR16: =IFERROR(PIMExport!CR14*1,IFERROR(SUBSTITUTE(PIMExport!CR14,".",",")*1,PIMExport!CR14)) -> 0 | CS16: =IFERROR(PIMExport!CS14*1,IFERROR(SUBSTITUTE(PIMExport!CS14,".",",")*1,PIMExport!CS14)) -> 0 | CT16: =IFERROR(PIMExport!CT14*1,IFERROR(SUBSTITUTE(PIMExport!CT14,".",",")*1,PIMExport!CT14)) -> 0 | CU16: =IFERROR(PIMExport!CU14*1,IFERROR(SUBSTITUTE(PIMExport!CU14,".",",")*1,PIMExport!CU14)) -> 5 | CV16: =IFERROR(PIMExport!CV14*1,IFERROR(SUBSTITUTE(PIMExport!CV14,".",",")*1,PIMExport!CV14)) -> 12300 | CW16: =IFERROR(PIMExport!CW14*1,IFERROR(SUBSTITUTE(PIMExport!CW14,".",",")*1,PIMExport!CW14)) -> 0.000225 | CX16: =IFERROR(PIMExport!CX14*1,IFERROR(SUBSTITUTE(PIMExport!CX14,".",",")*1,PIMExport!CX14)) -> 400 | CY16: =IFERROR(PIMExport!CY14*1,IFERROR(SUBSTITUTE(PIMExport!CY14,".",",")*1,PIMExport!CY14)) -> 500 | CZ16: =IFERROR(PIMExport!CZ14*1,IFERROR(SUBSTITUTE(PIMExport!CZ14,".",",")*1,PIMExport!CZ14)) -> 26000 | DA16: =IFERROR(PIMExport!DA14*1,IFERROR(SUBSTITUTE(PIMExport!DA14,".",",")*1,PIMExport!DA14)) -> 350 | DB16: =IFERROR(PIMExport!DB14*1,IFERROR(SUBSTITUTE(PIMExport!DB14,".",",")*1,PIMExport!DB14)) -> 0 | DC16: =IFERROR(PIMExport!DC14*1,IFERROR(SUBSTITUTE(PIMExport!DC14,".",",")*1,PIMExport!DC14)) -> 0 | DD16: =IFERROR(PIMExport!DD14*1,IFERROR(SUBSTITUTE(PIMExport!DD14,".",",")*1,PIMExport!DD14)) -> 0 | DE16: =IFERROR(PIMExport!DE14*1,IFERROR(SUBSTITUTE(PIMExport!DE14,".",",")*1,PIMExport!DE14)) -> 0 | DF16: =IFERROR(PIMExport!DF14*1,IFERROR(SUBSTITUTE(PIMExport!DF14,".",",")*1,PIMExport!DF14)) -> 0 | DG16: =IFERROR(PIMExport!DG14*1,IFERROR(SUBSTITUTE(PIMExport!DG14,".",",")*1,PIMExport!DG14)) -> 0 | DH16: =IFERROR(PIMExport!DH14*1,IFERROR(SUBSTITUTE(PIMExport!DH14,".",",")*1,PIMExport!DH14)) -> Equal to or better than 0.025 mm | DI16: =IFERROR(PIMExport!DI14*1,IFERROR(SUBSTITUTE(PIMExport!DI14,".",",")*1,PIMExport!DI14)) -> 0 | DJ16: =IFERROR(PIMExport!DJ14*1,IFERROR(SUBSTITUTE(PIMExport!DJ14,".",",")*1,PIMExport!DJ14)) -> 160 x 65 mm | DK16: =IFERROR(PIMExport!DK14*1,IFERROR(SUBSTITUTE(PIMExport!DK14,".",",")*1,PIMExport!DK14)) -> 25 mm | DL16: =IFERROR(PIMExport!DL14*1,IFERROR(SUBSTITUTE(PIMExport!DL14,".",",")*1,PIMExport!DL14)) -> 620 | DM16: =IFERROR(PIMExport!DM14*1,IFERROR(SUBSTITUTE(PIMExport!DM14,".",",")*1,PIMExport!DM14)) -> 5700 | DN16: =IFERROR(PIMExport!DN14*1,IFERROR(SUBSTITUTE(PIMExport!DN14,".",",")*1,PIMExport!DN14)) -> 0 | DO16: =IFERROR(PIMExport!DO14*1,IFERROR(SUBSTITUTE(PIMExport!DO14,".",",")*1,PIMExport!DO14)) -> 0
A17: =IFERROR(PIMExport!A15*1,IFERROR(SUBSTITUTE(PIMExport!A15,".",",")*1,PIMExport!A15)) -> MLSM06D20-Z320 | B17: =IFERROR(PIMExport!B15*1,IFERROR(SUBSTITUTE(PIMExport!B15,".",",")*1,PIMExport!B15)) -> BallScrew | C17: =IFERROR(PIMExport!C15*1,IFERROR(SUBSTITUTE(PIMExport!C15,".",",")*1,PIMExport!C15)) -> Ball Guide | D17: =IFERROR(PIMExport!D15*1,IFERROR(SUBSTITUTE(PIMExport!D15,".",",")*1,PIMExport!D15)) -> 4665 | E17: =IFERROR(PIMExport!E15*1,IFERROR(SUBSTITUTE(PIMExport!E15,".",",")*1,PIMExport!E15)) -> 5.7 | F17: =IFERROR(PIMExport!F15*1,IFERROR(SUBSTITUTE(PIMExport!F15,".",",")*1,PIMExport!F15)) -> 0 | G17: =IFERROR(PIMExport!G15*1,IFERROR(SUBSTITUTE(PIMExport!G15,".",",")*1,PIMExport!G15)) -> 14.4 | H17: =IFERROR(PIMExport!H15*1,IFERROR(SUBSTITUTE(PIMExport!H15,".",",")*1,PIMExport!H15)) -> 1.65 | I17: =IFERROR(PIMExport!I15*1,IFERROR(SUBSTITUTE(PIMExport!I15,".",",")*1,PIMExport!I15)) -> 320 | J17: =IFERROR(PIMExport!J15*1,IFERROR(SUBSTITUTE(PIMExport!J15,".",",")*1,PIMExport!J15)) -> 105 | K17: =IFERROR(PIMExport!K15*1,IFERROR(SUBSTITUTE(PIMExport!K15,".",",")*1,PIMExport!K15)) -> 0 | L17: =IFERROR(PIMExport!L15*1,IFERROR(SUBSTITUTE(PIMExport!L15,".",",")*1,PIMExport!L15)) -> 3.9e-05 | M17: =IFERROR(PIMExport!M15*1,IFERROR(SUBSTITUTE(PIMExport!M15,".",",")*1,PIMExport!M15)) -> 0.9 | N17: =IFERROR(PIMExport!N15*1,IFERROR(SUBSTITUTE(PIMExport!N15,".",",")*1,PIMExport!N15)) -> 150 | O17: =IFERROR(PIMExport!O15*1,IFERROR(SUBSTITUTE(PIMExport!O15,".",",")*1,PIMExport!O15)) -> 1500 | P17: =IFERROR(PIMExport!P15*1,IFERROR(SUBSTITUTE(PIMExport!P15,".",",")*1,PIMExport!P15)) -> 3000 | Q17: =IFERROR(PIMExport!Q15*1,IFERROR(SUBSTITUTE(PIMExport!Q15,".",",")*1,PIMExport!Q15)) -> 1.9 | R17: =IFERROR(PIMExport!R15*1,IFERROR(SUBSTITUTE(PIMExport!R15,".",",")*1,PIMExport!R15)) -> 2.3 | S17: =IFERROR(PIMExport!S15*1,IFERROR(SUBSTITUTE(PIMExport!S15,".",",")*1,PIMExport!S15)) -> 2.6 | T17: =IFERROR(PIMExport!T15*1,IFERROR(SUBSTITUTE(PIMExport!T15,".",",")*1,PIMExport!T15)) -> 27 | U17: =IFERROR(PIMExport!U15*1,IFERROR(SUBSTITUTE(PIMExport!U15,".",",")*1,PIMExport!U15)) -> 0.1 | V17: =IFERROR(PIMExport!V15*1,IFERROR(SUBSTITUTE(PIMExport!V15,".",",")*1,PIMExport!V15)) -> 0 | W17: =IFERROR(PIMExport!W15*1,IFERROR(SUBSTITUTE(PIMExport!W15,".",",")*1,PIMExport!W15)) -> 0 | X17: =IFERROR(PIMExport!X15*1,IFERROR(SUBSTITUTE(PIMExport!X15,".",",")*1,PIMExport!X15)) -> 0 | Y17: =IFERROR(PIMExport!Y15*1,IFERROR(SUBSTITUTE(PIMExport!Y15,".",",")*1,PIMExport!Y15)) -> 5000 | Z17: =IFERROR(PIMExport!Z15*1,IFERROR(SUBSTITUTE(PIMExport!Z15,".",",")*1,PIMExport!Z15)) -> 0 | AA17: =IFERROR(PIMExport!AA15*1,IFERROR(SUBSTITUTE(PIMExport!AA15,".",",")*1,PIMExport!AA15)) -> 0 | AB17: =IFERROR(PIMExport!AB15*1,IFERROR(SUBSTITUTE(PIMExport!AB15,".",",")*1,PIMExport!AB15)) -> 0 | AC17: =IFERROR(PIMExport!AC15*1,IFERROR(SUBSTITUTE(PIMExport!AC15,".",",")*1,PIMExport!AC15)) -> 0 | AD17: =IFERROR(PIMExport!AD15*1,IFERROR(SUBSTITUTE(PIMExport!AD15,".",",")*1,PIMExport!AD15)) -> 0 | AE17: =IFERROR(PIMExport!AE15*1,IFERROR(SUBSTITUTE(PIMExport!AE15,".",",")*1,PIMExport!AE15)) -> 6000 | AF17: =IFERROR(PIMExport!AF15*1,IFERROR(SUBSTITUTE(PIMExport!AF15,".",",")*1,PIMExport!AF15)) -> 6000 | AG17: =IFERROR(PIMExport!AG15*1,IFERROR(SUBSTITUTE(PIMExport!AG15,".",",")*1,PIMExport!AG15)) -> 400 | AH17: =IFERROR(PIMExport!AH15*1,IFERROR(SUBSTITUTE(PIMExport!AH15,".",",")*1,PIMExport!AH15)) -> 0 | AI17: =IFERROR(PIMExport!AI15*1,IFERROR(SUBSTITUTE(PIMExport!AI15,".",",")*1,PIMExport!AI15)) -> 0 | AJ17: =IFERROR(PIMExport!AJ15*1,IFERROR(SUBSTITUTE(PIMExport!AJ15,".",",")*1,PIMExport!AJ15)) -> 6 | AK17: =IFERROR(PIMExport!AK15*1,IFERROR(SUBSTITUTE(PIMExport!AK15,".",",")*1,PIMExport!AK15)) -> 6 | AL17: =IFERROR(PIMExport!AL15*1,IFERROR(SUBSTITUTE(PIMExport!AL15,".",",")*1,PIMExport!AL15)) -> 1 | AM17: =IFERROR(PIMExport!AM15*1,IFERROR(SUBSTITUTE(PIMExport!AM15,".",",")*1,PIMExport!AM15)) -> 20 | AN17: =IFERROR(PIMExport!AN15*1,IFERROR(SUBSTITUTE(PIMExport!AN15,".",",")*1,PIMExport!AN15)) -> 2 | AO17: =IFERROR(PIMExport!AO15*1,IFERROR(SUBSTITUTE(PIMExport!AO15,".",",")*1,PIMExport!AO15)) -> 55080 | AP17: =IFERROR(PIMExport!AP15*1,IFERROR(SUBSTITUTE(PIMExport!AP15,".",",")*1,PIMExport!AP15)) -> 500 | AQ17: =IFERROR(PIMExport!AQ15*1,IFERROR(SUBSTITUTE(PIMExport!AQ15,".",",")*1,PIMExport!AQ15)) -> 0 | AR17: =IFERROR(PIMExport!AR15*1,IFERROR(SUBSTITUTE(PIMExport!AR15,".",",")*1,PIMExport!AR15)) -> 0 | AS17: =IFERROR(PIMExport!AS15*1,IFERROR(SUBSTITUTE(PIMExport!AS15,".",",")*1,PIMExport!AS15)) -> 0 | AT17: =IFERROR(PIMExport!AT15*1,IFERROR(SUBSTITUTE(PIMExport!AT15,".",",")*1,PIMExport!AT15)) -> 0 | AU17: =IFERROR(PIMExport!AU15*1,IFERROR(SUBSTITUTE(PIMExport!AU15,".",",")*1,PIMExport!AU15)) -> 0 | AV17: =IFERROR(PIMExport!AV15*1,IFERROR(SUBSTITUTE(PIMExport!AV15,".",",")*1,PIMExport!AV15)) -> 0 | AW17: =IFERROR(PIMExport!AW15*1,IFERROR(SUBSTITUTE(PIMExport!AW15,".",",")*1,PIMExport!AW15)) -> 0 | AX17: =IFERROR(PIMExport!AX15*1,IFERROR(SUBSTITUTE(PIMExport!AX15,".",",")*1,PIMExport!AX15)) -> 0 | AY17: =IFERROR(PIMExport!AY15*1,IFERROR(SUBSTITUTE(PIMExport!AY15,".",",")*1,PIMExport!AY15)) -> 0 | AZ17: =IFERROR(PIMExport!AZ15*1,IFERROR(SUBSTITUTE(PIMExport!AZ15,".",",")*1,PIMExport!AZ15)) -> 0 | BA17: =IFERROR(PIMExport!BA15*1,IFERROR(SUBSTITUTE(PIMExport!BA15,".",",")*1,PIMExport!BA15)) -> 0 | BB17: =IFERROR(PIMExport!BB15*1,IFERROR(SUBSTITUTE(PIMExport!BB15,".",",")*1,PIMExport!BB15)) -> 0 | BC17: =IFERROR(PIMExport!BC15*1,IFERROR(SUBSTITUTE(PIMExport!BC15,".",",")*1,PIMExport!BC15)) -> 0 | BD17: =IFERROR(PIMExport!BD15*1,IFERROR(SUBSTITUTE(PIMExport!BD15,".",",")*1,PIMExport!BD15)) -> 0 | BE17: =IFERROR(PIMExport!BE15*1,IFERROR(SUBSTITUTE(PIMExport!BE15,".",",")*1,PIMExport!BE15)) -> 0 | BF17: =IFERROR(PIMExport!BF15*1,IFERROR(SUBSTITUTE(PIMExport!BF15,".",",")*1,PIMExport!BF15)) -> 0 | BG17: =IFERROR(PIMExport!BG15*1,IFERROR(SUBSTITUTE(PIMExport!BG15,".",",")*1,PIMExport!BG15)) -> 435 | BH17: =IFERROR(PIMExport!BH15*1,IFERROR(SUBSTITUTE(PIMExport!BH15,".",",")*1,PIMExport!BH15)) -> 495 | BI17: =IFERROR(PIMExport!BI15*1,IFERROR(SUBSTITUTE(PIMExport!BI15,".",",")*1,PIMExport!BI15)) -> 535 | BJ17: =IFERROR(PIMExport!BJ15*1,IFERROR(SUBSTITUTE(PIMExport!BJ15,".",",")*1,PIMExport!BJ15)) -> 585 | BK17: =IFERROR(PIMExport!BK15*1,IFERROR(SUBSTITUTE(PIMExport!BK15,".",",")*1,PIMExport!BK15)) -> 625 | BL17: =IFERROR(PIMExport!BL15*1,IFERROR(SUBSTITUTE(PIMExport!BL15,".",",")*1,PIMExport!BL15)) -> 675 | BM17: =IFERROR(PIMExport!BM15*1,IFERROR(SUBSTITUTE(PIMExport!BM15,".",",")*1,PIMExport!BM15)) -> 715 | BN17: =IFERROR(PIMExport!BN15*1,IFERROR(SUBSTITUTE(PIMExport!BN15,".",",")*1,PIMExport!BN15)) -> 755 | BO17: =IFERROR(PIMExport!BO15*1,IFERROR(SUBSTITUTE(PIMExport!BO15,".",",")*1,PIMExport!BO15)) -> 0 | BP17: =IFERROR(PIMExport!BP15*1,IFERROR(SUBSTITUTE(PIMExport!BP15,".",",")*1,PIMExport!BP15)) -> 0 | BQ17: =IFERROR(PIMExport!BQ15*1,IFERROR(SUBSTITUTE(PIMExport!BQ15,".",",")*1,PIMExport!BQ15)) -> 0 | BR17: =IFERROR(PIMExport!BR15*1,IFERROR(SUBSTITUTE(PIMExport!BR15,".",",")*1,PIMExport!BR15)) -> 0 | BS17: =IFERROR(PIMExport!BS15*1,IFERROR(SUBSTITUTE(PIMExport!BS15,".",",")*1,PIMExport!BS15)) -> 0 | BT17: =IFERROR(PIMExport!BT15*1,IFERROR(SUBSTITUTE(PIMExport!BT15,".",",")*1,PIMExport!BT15)) -> 0 | BU17: =IFERROR(PIMExport!BU15*1,IFERROR(SUBSTITUTE(PIMExport!BU15,".",",")*1,PIMExport!BU15)) -> 0 | BV17: =IFERROR(PIMExport!BV15*1,IFERROR(SUBSTITUTE(PIMExport!BV15,".",",")*1,PIMExport!BV15)) -> 0 | BW17: =IFERROR(PIMExport!BW15*1,IFERROR(SUBSTITUTE(PIMExport!BW15,".",",")*1,PIMExport!BW15)) -> 0 | BX17: =IFERROR(PIMExport!BX15*1,IFERROR(SUBSTITUTE(PIMExport!BX15,".",",")*1,PIMExport!BX15)) -> 0 | BY17: =IFERROR(PIMExport!BY15*1,IFERROR(SUBSTITUTE(PIMExport!BY15,".",",")*1,PIMExport!BY15)) -> 0 | BZ17: =IFERROR(PIMExport!BZ15*1,IFERROR(SUBSTITUTE(PIMExport!BZ15,".",",")*1,PIMExport!BZ15)) -> 0 | CA17: =IFERROR(PIMExport!CA15*1,IFERROR(SUBSTITUTE(PIMExport!CA15,".",",")*1,PIMExport!CA15)) -> 0 | CB17: =IFERROR(PIMExport!CB15*1,IFERROR(SUBSTITUTE(PIMExport!CB15,".",",")*1,PIMExport!CB15)) -> 751 | CC17: =IFERROR(PIMExport!CC15*1,IFERROR(SUBSTITUTE(PIMExport!CC15,".",",")*1,PIMExport!CC15)) -> 1221 | CD17: =IFERROR(PIMExport!CD15*1,IFERROR(SUBSTITUTE(PIMExport!CD15,".",",")*1,PIMExport!CD15)) -> 1981 | CE17: =IFERROR(PIMExport!CE15*1,IFERROR(SUBSTITUTE(PIMExport!CE15,".",",")*1,PIMExport!CE15)) -> 2731 | CF17: =IFERROR(PIMExport!CF15*1,IFERROR(SUBSTITUTE(PIMExport!CF15,".",",")*1,PIMExport!CF15)) -> 3491 | CG17: =IFERROR(PIMExport!CG15*1,IFERROR(SUBSTITUTE(PIMExport!CG15,".",",")*1,PIMExport!CG15)) -> 4241 | CH17: =IFERROR(PIMExport!CH15*1,IFERROR(SUBSTITUTE(PIMExport!CH15,".",",")*1,PIMExport!CH15)) -> 5001 | CI17: =IFERROR(PIMExport!CI15*1,IFERROR(SUBSTITUTE(PIMExport!CI15,".",",")*1,PIMExport!CI15)) -> 0 | CJ17: =IFERROR(PIMExport!CJ15*1,IFERROR(SUBSTITUTE(PIMExport!CJ15,".",",")*1,PIMExport!CJ15)) -> 0 | CK17: =IFERROR(PIMExport!CK15*1,IFERROR(SUBSTITUTE(PIMExport!CK15,".",",")*1,PIMExport!CK15)) -> 0 | CL17: =IFERROR(PIMExport!CL15*1,IFERROR(SUBSTITUTE(PIMExport!CL15,".",",")*1,PIMExport!CL15)) -> 0 | CM17: =IFERROR(PIMExport!CM15*1,IFERROR(SUBSTITUTE(PIMExport!CM15,".",",")*1,PIMExport!CM15)) -> 0 | CN17: =IFERROR(PIMExport!CN15*1,IFERROR(SUBSTITUTE(PIMExport!CN15,".",",")*1,PIMExport!CN15)) -> 0 | CO17: =IFERROR(PIMExport!CO15*1,IFERROR(SUBSTITUTE(PIMExport!CO15,".",",")*1,PIMExport!CO15)) -> 0 | CP17: =IFERROR(PIMExport!CP15*1,IFERROR(SUBSTITUTE(PIMExport!CP15,".",",")*1,PIMExport!CP15)) -> 0 | CQ17: =IFERROR(PIMExport!CQ15*1,IFERROR(SUBSTITUTE(PIMExport!CQ15,".",",")*1,PIMExport!CQ15)) -> 0 | CR17: =IFERROR(PIMExport!CR15*1,IFERROR(SUBSTITUTE(PIMExport!CR15,".",",")*1,PIMExport!CR15)) -> 0 | CS17: =IFERROR(PIMExport!CS15*1,IFERROR(SUBSTITUTE(PIMExport!CS15,".",",")*1,PIMExport!CS15)) -> 0 | CT17: =IFERROR(PIMExport!CT15*1,IFERROR(SUBSTITUTE(PIMExport!CT15,".",",")*1,PIMExport!CT15)) -> 0 | CU17: =IFERROR(PIMExport!CU15*1,IFERROR(SUBSTITUTE(PIMExport!CU15,".",",")*1,PIMExport!CU15)) -> 20 | CV17: =IFERROR(PIMExport!CV15*1,IFERROR(SUBSTITUTE(PIMExport!CV15,".",",")*1,PIMExport!CV15)) -> 13000 | CW17: =IFERROR(PIMExport!CW15*1,IFERROR(SUBSTITUTE(PIMExport!CW15,".",",")*1,PIMExport!CW15)) -> 0.000225 | CX17: =IFERROR(PIMExport!CX15*1,IFERROR(SUBSTITUTE(PIMExport!CX15,".",",")*1,PIMExport!CX15)) -> 400 | CY17: =IFERROR(PIMExport!CY15*1,IFERROR(SUBSTITUTE(PIMExport!CY15,".",",")*1,PIMExport!CY15)) -> 500 | CZ17: =IFERROR(PIMExport!CZ15*1,IFERROR(SUBSTITUTE(PIMExport!CZ15,".",",")*1,PIMExport!CZ15)) -> 26000 | DA17: =IFERROR(PIMExport!DA15*1,IFERROR(SUBSTITUTE(PIMExport!DA15,".",",")*1,PIMExport!DA15)) -> 350 | DB17: =IFERROR(PIMExport!DB15*1,IFERROR(SUBSTITUTE(PIMExport!DB15,".",",")*1,PIMExport!DB15)) -> 0 | DC17: =IFERROR(PIMExport!DC15*1,IFERROR(SUBSTITUTE(PIMExport!DC15,".",",")*1,PIMExport!DC15)) -> 0 | DD17: =IFERROR(PIMExport!DD15*1,IFERROR(SUBSTITUTE(PIMExport!DD15,".",",")*1,PIMExport!DD15)) -> 0 | DE17: =IFERROR(PIMExport!DE15*1,IFERROR(SUBSTITUTE(PIMExport!DE15,".",",")*1,PIMExport!DE15)) -> 0 | DF17: =IFERROR(PIMExport!DF15*1,IFERROR(SUBSTITUTE(PIMExport!DF15,".",",")*1,PIMExport!DF15)) -> 0 | DG17: =IFERROR(PIMExport!DG15*1,IFERROR(SUBSTITUTE(PIMExport!DG15,".",",")*1,PIMExport!DG15)) -> 0 | DH17: =IFERROR(PIMExport!DH15*1,IFERROR(SUBSTITUTE(PIMExport!DH15,".",",")*1,PIMExport!DH15)) -> Equal to or better than 0.025 mm | DI17: =IFERROR(PIMExport!DI15*1,IFERROR(SUBSTITUTE(PIMExport!DI15,".",",")*1,PIMExport!DI15)) -> 0 | DJ17: =IFERROR(PIMExport!DJ15*1,IFERROR(SUBSTITUTE(PIMExport!DJ15,".",",")*1,PIMExport!DJ15)) -> 160 x 65 mm | DK17: =IFERROR(PIMExport!DK15*1,IFERROR(SUBSTITUTE(PIMExport!DK15,".",",")*1,PIMExport!DK15)) -> 25 mm | DL17: =IFERROR(PIMExport!DL15*1,IFERROR(SUBSTITUTE(PIMExport!DL15,".",",")*1,PIMExport!DL15)) -> 620 | DM17: =IFERROR(PIMExport!DM15*1,IFERROR(SUBSTITUTE(PIMExport!DM15,".",",")*1,PIMExport!DM15)) -> 5700 | DN17: =IFERROR(PIMExport!DN15*1,IFERROR(SUBSTITUTE(PIMExport!DN15,".",",")*1,PIMExport!DN15)) -> 0 | DO17: =IFERROR(PIMExport!DO15*1,IFERROR(SUBSTITUTE(PIMExport!DO15,".",",")*1,PIMExport!DO15)) -> 0
A18: =IFERROR(PIMExport!A16*1,IFERROR(SUBSTITUTE(PIMExport!A16,".",",")*1,PIMExport!A16)) -> MLSM06D50-Z320 | B18: =IFERROR(PIMExport!B16*1,IFERROR(SUBSTITUTE(PIMExport!B16,".",",")*1,PIMExport!B16)) -> BallScrew | C18: =IFERROR(PIMExport!C16*1,IFERROR(SUBSTITUTE(PIMExport!C16,".",",")*1,PIMExport!C16)) -> Ball Guide | D18: =IFERROR(PIMExport!D16*1,IFERROR(SUBSTITUTE(PIMExport!D16,".",",")*1,PIMExport!D16)) -> 4665 | E18: =IFERROR(PIMExport!E16*1,IFERROR(SUBSTITUTE(PIMExport!E16,".",",")*1,PIMExport!E16)) -> 5.7 | F18: =IFERROR(PIMExport!F16*1,IFERROR(SUBSTITUTE(PIMExport!F16,".",",")*1,PIMExport!F16)) -> 0 | G18: =IFERROR(PIMExport!G16*1,IFERROR(SUBSTITUTE(PIMExport!G16,".",",")*1,PIMExport!G16)) -> 14.4 | H18: =IFERROR(PIMExport!H16*1,IFERROR(SUBSTITUTE(PIMExport!H16,".",",")*1,PIMExport!H16)) -> 1.65 | I18: =IFERROR(PIMExport!I16*1,IFERROR(SUBSTITUTE(PIMExport!I16,".",",")*1,PIMExport!I16)) -> 320 | J18: =IFERROR(PIMExport!J16*1,IFERROR(SUBSTITUTE(PIMExport!J16,".",",")*1,PIMExport!J16)) -> 105 | K18: =IFERROR(PIMExport!K16*1,IFERROR(SUBSTITUTE(PIMExport!K16,".",",")*1,PIMExport!K16)) -> 0 | L18: =IFERROR(PIMExport!L16*1,IFERROR(SUBSTITUTE(PIMExport!L16,".",",")*1,PIMExport!L16)) -> 3.9e-05 | M18: =IFERROR(PIMExport!M16*1,IFERROR(SUBSTITUTE(PIMExport!M16,".",",")*1,PIMExport!M16)) -> 0.9 | N18: =IFERROR(PIMExport!N16*1,IFERROR(SUBSTITUTE(PIMExport!N16,".",",")*1,PIMExport!N16)) -> 150 | O18: =IFERROR(PIMExport!O16*1,IFERROR(SUBSTITUTE(PIMExport!O16,".",",")*1,PIMExport!O16)) -> 1500 | P18: =IFERROR(PIMExport!P16*1,IFERROR(SUBSTITUTE(PIMExport!P16,".",",")*1,PIMExport!P16)) -> 3000 | Q18: =IFERROR(PIMExport!Q16*1,IFERROR(SUBSTITUTE(PIMExport!Q16,".",",")*1,PIMExport!Q16)) -> 2.7 | R18: =IFERROR(PIMExport!R16*1,IFERROR(SUBSTITUTE(PIMExport!R16,".",",")*1,PIMExport!R16)) -> 3.4 | S18: =IFERROR(PIMExport!S16*1,IFERROR(SUBSTITUTE(PIMExport!S16,".",",")*1,PIMExport!S16)) -> 4 | T18: =IFERROR(PIMExport!T16*1,IFERROR(SUBSTITUTE(PIMExport!T16,".",",")*1,PIMExport!T16)) -> 27 | U18: =IFERROR(PIMExport!U16*1,IFERROR(SUBSTITUTE(PIMExport!U16,".",",")*1,PIMExport!U16)) -> 0.1 | V18: =IFERROR(PIMExport!V16*1,IFERROR(SUBSTITUTE(PIMExport!V16,".",",")*1,PIMExport!V16)) -> 0 | W18: =IFERROR(PIMExport!W16*1,IFERROR(SUBSTITUTE(PIMExport!W16,".",",")*1,PIMExport!W16)) -> 0 | X18: =IFERROR(PIMExport!X16*1,IFERROR(SUBSTITUTE(PIMExport!X16,".",",")*1,PIMExport!X16)) -> 0 | Y18: =IFERROR(PIMExport!Y16*1,IFERROR(SUBSTITUTE(PIMExport!Y16,".",",")*1,PIMExport!Y16)) -> 5000 | Z18: =IFERROR(PIMExport!Z16*1,IFERROR(SUBSTITUTE(PIMExport!Z16,".",",")*1,PIMExport!Z16)) -> 0 | AA18: =IFERROR(PIMExport!AA16*1,IFERROR(SUBSTITUTE(PIMExport!AA16,".",",")*1,PIMExport!AA16)) -> 0 | AB18: =IFERROR(PIMExport!AB16*1,IFERROR(SUBSTITUTE(PIMExport!AB16,".",",")*1,PIMExport!AB16)) -> 0 | AC18: =IFERROR(PIMExport!AC16*1,IFERROR(SUBSTITUTE(PIMExport!AC16,".",",")*1,PIMExport!AC16)) -> 0 | AD18: =IFERROR(PIMExport!AD16*1,IFERROR(SUBSTITUTE(PIMExport!AD16,".",",")*1,PIMExport!AD16)) -> 0 | AE18: =IFERROR(PIMExport!AE16*1,IFERROR(SUBSTITUTE(PIMExport!AE16,".",",")*1,PIMExport!AE16)) -> 6000 | AF18: =IFERROR(PIMExport!AF16*1,IFERROR(SUBSTITUTE(PIMExport!AF16,".",",")*1,PIMExport!AF16)) -> 6000 | AG18: =IFERROR(PIMExport!AG16*1,IFERROR(SUBSTITUTE(PIMExport!AG16,".",",")*1,PIMExport!AG16)) -> 400 | AH18: =IFERROR(PIMExport!AH16*1,IFERROR(SUBSTITUTE(PIMExport!AH16,".",",")*1,PIMExport!AH16)) -> 0 | AI18: =IFERROR(PIMExport!AI16*1,IFERROR(SUBSTITUTE(PIMExport!AI16,".",",")*1,PIMExport!AI16)) -> 0 | AJ18: =IFERROR(PIMExport!AJ16*1,IFERROR(SUBSTITUTE(PIMExport!AJ16,".",",")*1,PIMExport!AJ16)) -> 6 | AK18: =IFERROR(PIMExport!AK16*1,IFERROR(SUBSTITUTE(PIMExport!AK16,".",",")*1,PIMExport!AK16)) -> 6 | AL18: =IFERROR(PIMExport!AL16*1,IFERROR(SUBSTITUTE(PIMExport!AL16,".",",")*1,PIMExport!AL16)) -> 2.5 | AM18: =IFERROR(PIMExport!AM16*1,IFERROR(SUBSTITUTE(PIMExport!AM16,".",",")*1,PIMExport!AM16)) -> 20 | AN18: =IFERROR(PIMExport!AN16*1,IFERROR(SUBSTITUTE(PIMExport!AN16,".",",")*1,PIMExport!AN16)) -> 2 | AO18: =IFERROR(PIMExport!AO16*1,IFERROR(SUBSTITUTE(PIMExport!AO16,".",",")*1,PIMExport!AO16)) -> 55080 | AP18: =IFERROR(PIMExport!AP16*1,IFERROR(SUBSTITUTE(PIMExport!AP16,".",",")*1,PIMExport!AP16)) -> 500 | AQ18: =IFERROR(PIMExport!AQ16*1,IFERROR(SUBSTITUTE(PIMExport!AQ16,".",",")*1,PIMExport!AQ16)) -> 0 | AR18: =IFERROR(PIMExport!AR16*1,IFERROR(SUBSTITUTE(PIMExport!AR16,".",",")*1,PIMExport!AR16)) -> 0 | AS18: =IFERROR(PIMExport!AS16*1,IFERROR(SUBSTITUTE(PIMExport!AS16,".",",")*1,PIMExport!AS16)) -> 0 | AT18: =IFERROR(PIMExport!AT16*1,IFERROR(SUBSTITUTE(PIMExport!AT16,".",",")*1,PIMExport!AT16)) -> 0 | AU18: =IFERROR(PIMExport!AU16*1,IFERROR(SUBSTITUTE(PIMExport!AU16,".",",")*1,PIMExport!AU16)) -> 0 | AV18: =IFERROR(PIMExport!AV16*1,IFERROR(SUBSTITUTE(PIMExport!AV16,".",",")*1,PIMExport!AV16)) -> 0 | AW18: =IFERROR(PIMExport!AW16*1,IFERROR(SUBSTITUTE(PIMExport!AW16,".",",")*1,PIMExport!AW16)) -> 0 | AX18: =IFERROR(PIMExport!AX16*1,IFERROR(SUBSTITUTE(PIMExport!AX16,".",",")*1,PIMExport!AX16)) -> 0 | AY18: =IFERROR(PIMExport!AY16*1,IFERROR(SUBSTITUTE(PIMExport!AY16,".",",")*1,PIMExport!AY16)) -> 0 | AZ18: =IFERROR(PIMExport!AZ16*1,IFERROR(SUBSTITUTE(PIMExport!AZ16,".",",")*1,PIMExport!AZ16)) -> 0 | BA18: =IFERROR(PIMExport!BA16*1,IFERROR(SUBSTITUTE(PIMExport!BA16,".",",")*1,PIMExport!BA16)) -> 0 | BB18: =IFERROR(PIMExport!BB16*1,IFERROR(SUBSTITUTE(PIMExport!BB16,".",",")*1,PIMExport!BB16)) -> 0 | BC18: =IFERROR(PIMExport!BC16*1,IFERROR(SUBSTITUTE(PIMExport!BC16,".",",")*1,PIMExport!BC16)) -> 0 | BD18: =IFERROR(PIMExport!BD16*1,IFERROR(SUBSTITUTE(PIMExport!BD16,".",",")*1,PIMExport!BD16)) -> 0 | BE18: =IFERROR(PIMExport!BE16*1,IFERROR(SUBSTITUTE(PIMExport!BE16,".",",")*1,PIMExport!BE16)) -> 0 | BF18: =IFERROR(PIMExport!BF16*1,IFERROR(SUBSTITUTE(PIMExport!BF16,".",",")*1,PIMExport!BF16)) -> 0 | BG18: =IFERROR(PIMExport!BG16*1,IFERROR(SUBSTITUTE(PIMExport!BG16,".",",")*1,PIMExport!BG16)) -> 435 | BH18: =IFERROR(PIMExport!BH16*1,IFERROR(SUBSTITUTE(PIMExport!BH16,".",",")*1,PIMExport!BH16)) -> 495 | BI18: =IFERROR(PIMExport!BI16*1,IFERROR(SUBSTITUTE(PIMExport!BI16,".",",")*1,PIMExport!BI16)) -> 535 | BJ18: =IFERROR(PIMExport!BJ16*1,IFERROR(SUBSTITUTE(PIMExport!BJ16,".",",")*1,PIMExport!BJ16)) -> 585 | BK18: =IFERROR(PIMExport!BK16*1,IFERROR(SUBSTITUTE(PIMExport!BK16,".",",")*1,PIMExport!BK16)) -> 625 | BL18: =IFERROR(PIMExport!BL16*1,IFERROR(SUBSTITUTE(PIMExport!BL16,".",",")*1,PIMExport!BL16)) -> 675 | BM18: =IFERROR(PIMExport!BM16*1,IFERROR(SUBSTITUTE(PIMExport!BM16,".",",")*1,PIMExport!BM16)) -> 715 | BN18: =IFERROR(PIMExport!BN16*1,IFERROR(SUBSTITUTE(PIMExport!BN16,".",",")*1,PIMExport!BN16)) -> 755 | BO18: =IFERROR(PIMExport!BO16*1,IFERROR(SUBSTITUTE(PIMExport!BO16,".",",")*1,PIMExport!BO16)) -> 0 | BP18: =IFERROR(PIMExport!BP16*1,IFERROR(SUBSTITUTE(PIMExport!BP16,".",",")*1,PIMExport!BP16)) -> 0 | BQ18: =IFERROR(PIMExport!BQ16*1,IFERROR(SUBSTITUTE(PIMExport!BQ16,".",",")*1,PIMExport!BQ16)) -> 0 | BR18: =IFERROR(PIMExport!BR16*1,IFERROR(SUBSTITUTE(PIMExport!BR16,".",",")*1,PIMExport!BR16)) -> 0 | BS18: =IFERROR(PIMExport!BS16*1,IFERROR(SUBSTITUTE(PIMExport!BS16,".",",")*1,PIMExport!BS16)) -> 0 | BT18: =IFERROR(PIMExport!BT16*1,IFERROR(SUBSTITUTE(PIMExport!BT16,".",",")*1,PIMExport!BT16)) -> 0 | BU18: =IFERROR(PIMExport!BU16*1,IFERROR(SUBSTITUTE(PIMExport!BU16,".",",")*1,PIMExport!BU16)) -> 0 | BV18: =IFERROR(PIMExport!BV16*1,IFERROR(SUBSTITUTE(PIMExport!BV16,".",",")*1,PIMExport!BV16)) -> 0 | BW18: =IFERROR(PIMExport!BW16*1,IFERROR(SUBSTITUTE(PIMExport!BW16,".",",")*1,PIMExport!BW16)) -> 0 | BX18: =IFERROR(PIMExport!BX16*1,IFERROR(SUBSTITUTE(PIMExport!BX16,".",",")*1,PIMExport!BX16)) -> 0 | BY18: =IFERROR(PIMExport!BY16*1,IFERROR(SUBSTITUTE(PIMExport!BY16,".",",")*1,PIMExport!BY16)) -> 0 | BZ18: =IFERROR(PIMExport!BZ16*1,IFERROR(SUBSTITUTE(PIMExport!BZ16,".",",")*1,PIMExport!BZ16)) -> 0 | CA18: =IFERROR(PIMExport!CA16*1,IFERROR(SUBSTITUTE(PIMExport!CA16,".",",")*1,PIMExport!CA16)) -> 0 | CB18: =IFERROR(PIMExport!CB16*1,IFERROR(SUBSTITUTE(PIMExport!CB16,".",",")*1,PIMExport!CB16)) -> 751 | CC18: =IFERROR(PIMExport!CC16*1,IFERROR(SUBSTITUTE(PIMExport!CC16,".",",")*1,PIMExport!CC16)) -> 1221 | CD18: =IFERROR(PIMExport!CD16*1,IFERROR(SUBSTITUTE(PIMExport!CD16,".",",")*1,PIMExport!CD16)) -> 1981 | CE18: =IFERROR(PIMExport!CE16*1,IFERROR(SUBSTITUTE(PIMExport!CE16,".",",")*1,PIMExport!CE16)) -> 2731 | CF18: =IFERROR(PIMExport!CF16*1,IFERROR(SUBSTITUTE(PIMExport!CF16,".",",")*1,PIMExport!CF16)) -> 3491 | CG18: =IFERROR(PIMExport!CG16*1,IFERROR(SUBSTITUTE(PIMExport!CG16,".",",")*1,PIMExport!CG16)) -> 4241 | CH18: =IFERROR(PIMExport!CH16*1,IFERROR(SUBSTITUTE(PIMExport!CH16,".",",")*1,PIMExport!CH16)) -> 5001 | CI18: =IFERROR(PIMExport!CI16*1,IFERROR(SUBSTITUTE(PIMExport!CI16,".",",")*1,PIMExport!CI16)) -> 0 | CJ18: =IFERROR(PIMExport!CJ16*1,IFERROR(SUBSTITUTE(PIMExport!CJ16,".",",")*1,PIMExport!CJ16)) -> 0 | CK18: =IFERROR(PIMExport!CK16*1,IFERROR(SUBSTITUTE(PIMExport!CK16,".",",")*1,PIMExport!CK16)) -> 0 | CL18: =IFERROR(PIMExport!CL16*1,IFERROR(SUBSTITUTE(PIMExport!CL16,".",",")*1,PIMExport!CL16)) -> 0 | CM18: =IFERROR(PIMExport!CM16*1,IFERROR(SUBSTITUTE(PIMExport!CM16,".",",")*1,PIMExport!CM16)) -> 0 | CN18: =IFERROR(PIMExport!CN16*1,IFERROR(SUBSTITUTE(PIMExport!CN16,".",",")*1,PIMExport!CN16)) -> 0 | CO18: =IFERROR(PIMExport!CO16*1,IFERROR(SUBSTITUTE(PIMExport!CO16,".",",")*1,PIMExport!CO16)) -> 0 | CP18: =IFERROR(PIMExport!CP16*1,IFERROR(SUBSTITUTE(PIMExport!CP16,".",",")*1,PIMExport!CP16)) -> 0 | CQ18: =IFERROR(PIMExport!CQ16*1,IFERROR(SUBSTITUTE(PIMExport!CQ16,".",",")*1,PIMExport!CQ16)) -> 0 | CR18: =IFERROR(PIMExport!CR16*1,IFERROR(SUBSTITUTE(PIMExport!CR16,".",",")*1,PIMExport!CR16)) -> 0 | CS18: =IFERROR(PIMExport!CS16*1,IFERROR(SUBSTITUTE(PIMExport!CS16,".",",")*1,PIMExport!CS16)) -> 0 | CT18: =IFERROR(PIMExport!CT16*1,IFERROR(SUBSTITUTE(PIMExport!CT16,".",",")*1,PIMExport!CT16)) -> 0 | CU18: =IFERROR(PIMExport!CU16*1,IFERROR(SUBSTITUTE(PIMExport!CU16,".",",")*1,PIMExport!CU16)) -> 50 | CV18: =IFERROR(PIMExport!CV16*1,IFERROR(SUBSTITUTE(PIMExport!CV16,".",",")*1,PIMExport!CV16)) -> 15400 | CW18: =IFERROR(PIMExport!CW16*1,IFERROR(SUBSTITUTE(PIMExport!CW16,".",",")*1,PIMExport!CW16)) -> 0.000225 | CX18: =IFERROR(PIMExport!CX16*1,IFERROR(SUBSTITUTE(PIMExport!CX16,".",",")*1,PIMExport!CX16)) -> 400 | CY18: =IFERROR(PIMExport!CY16*1,IFERROR(SUBSTITUTE(PIMExport!CY16,".",",")*1,PIMExport!CY16)) -> 500 | CZ18: =IFERROR(PIMExport!CZ16*1,IFERROR(SUBSTITUTE(PIMExport!CZ16,".",",")*1,PIMExport!CZ16)) -> 26000 | DA18: =IFERROR(PIMExport!DA16*1,IFERROR(SUBSTITUTE(PIMExport!DA16,".",",")*1,PIMExport!DA16)) -> 350 | DB18: =IFERROR(PIMExport!DB16*1,IFERROR(SUBSTITUTE(PIMExport!DB16,".",",")*1,PIMExport!DB16)) -> 0 | DC18: =IFERROR(PIMExport!DC16*1,IFERROR(SUBSTITUTE(PIMExport!DC16,".",",")*1,PIMExport!DC16)) -> 0 | DD18: =IFERROR(PIMExport!DD16*1,IFERROR(SUBSTITUTE(PIMExport!DD16,".",",")*1,PIMExport!DD16)) -> 0 | DE18: =IFERROR(PIMExport!DE16*1,IFERROR(SUBSTITUTE(PIMExport!DE16,".",",")*1,PIMExport!DE16)) -> 0 | DF18: =IFERROR(PIMExport!DF16*1,IFERROR(SUBSTITUTE(PIMExport!DF16,".",",")*1,PIMExport!DF16)) -> 0 | DG18: =IFERROR(PIMExport!DG16*1,IFERROR(SUBSTITUTE(PIMExport!DG16,".",",")*1,PIMExport!DG16)) -> 0 | DH18: =IFERROR(PIMExport!DH16*1,IFERROR(SUBSTITUTE(PIMExport!DH16,".",",")*1,PIMExport!DH16)) -> Equal to or better than 0.025 mm | DI18: =IFERROR(PIMExport!DI16*1,IFERROR(SUBSTITUTE(PIMExport!DI16,".",",")*1,PIMExport!DI16)) -> 0 | DJ18: =IFERROR(PIMExport!DJ16*1,IFERROR(SUBSTITUTE(PIMExport!DJ16,".",",")*1,PIMExport!DJ16)) -> 160 x 65 mm | DK18: =IFERROR(PIMExport!DK16*1,IFERROR(SUBSTITUTE(PIMExport!DK16,".",",")*1,PIMExport!DK16)) -> 25 mm | DL18: =IFERROR(PIMExport!DL16*1,IFERROR(SUBSTITUTE(PIMExport!DL16,".",",")*1,PIMExport!DL16)) -> 620 | DM18: =IFERROR(PIMExport!DM16*1,IFERROR(SUBSTITUTE(PIMExport!DM16,".",",")*1,PIMExport!DM16)) -> 5700 | DN18: =IFERROR(PIMExport!DN16*1,IFERROR(SUBSTITUTE(PIMExport!DN16,".",",")*1,PIMExport!DN16)) -> 0 | DO18: =IFERROR(PIMExport!DO16*1,IFERROR(SUBSTITUTE(PIMExport!DO16,".",",")*1,PIMExport!DO16)) -> 0
A19: =IFERROR(PIMExport!A17*1,IFERROR(SUBSTITUTE(PIMExport!A17,".",",")*1,PIMExport!A17)) -> MLSM08D05-L | B19: =IFERROR(PIMExport!B17*1,IFERROR(SUBSTITUTE(PIMExport!B17,".",",")*1,PIMExport!B17)) -> BallScrew | C19: =IFERROR(PIMExport!C17*1,IFERROR(SUBSTITUTE(PIMExport!C17,".",",")*1,PIMExport!C17)) -> Ball Guide | D19: =IFERROR(PIMExport!D17*1,IFERROR(SUBSTITUTE(PIMExport!D17,".",",")*1,PIMExport!D17)) -> 4630 | E19: =IFERROR(PIMExport!E17*1,IFERROR(SUBSTITUTE(PIMExport!E17,".",",")*1,PIMExport!E17)) -> 16 | F19: =IFERROR(PIMExport!F17*1,IFERROR(SUBSTITUTE(PIMExport!F17,".",",")*1,PIMExport!F17)) -> 0 | G19: =IFERROR(PIMExport!G17*1,IFERROR(SUBSTITUTE(PIMExport!G17,".",",")*1,PIMExport!G17)) -> 29.5 | H19: =IFERROR(PIMExport!H17*1,IFERROR(SUBSTITUTE(PIMExport!H17,".",",")*1,PIMExport!H17)) -> 2.7 | I19: =IFERROR(PIMExport!I17*1,IFERROR(SUBSTITUTE(PIMExport!I17,".",",")*1,PIMExport!I17)) -> 365 | J19: =IFERROR(PIMExport!J17*1,IFERROR(SUBSTITUTE(PIMExport!J17,".",",")*1,PIMExport!J17)) -> 164 | K19: =IFERROR(PIMExport!K17*1,IFERROR(SUBSTITUTE(PIMExport!K17,".",",")*1,PIMExport!K17)) -> 0 | L19: =IFERROR(PIMExport!L17*1,IFERROR(SUBSTITUTE(PIMExport!L17,".",",")*1,PIMExport!L17)) -> 3.9e-05 | M19: =IFERROR(PIMExport!M17*1,IFERROR(SUBSTITUTE(PIMExport!M17,".",",")*1,PIMExport!M17)) -> 0.9 | N19: =IFERROR(PIMExport!N17*1,IFERROR(SUBSTITUTE(PIMExport!N17,".",",")*1,PIMExport!N17)) -> 150 | O19: =IFERROR(PIMExport!O17*1,IFERROR(SUBSTITUTE(PIMExport!O17,".",",")*1,PIMExport!O17)) -> 1500 | P19: =IFERROR(PIMExport!P17*1,IFERROR(SUBSTITUTE(PIMExport!P17,".",",")*1,PIMExport!P17)) -> 3000 | Q19: =IFERROR(PIMExport!Q17*1,IFERROR(SUBSTITUTE(PIMExport!Q17,".",",")*1,PIMExport!Q17)) -> 1.6 | R19: =IFERROR(PIMExport!R17*1,IFERROR(SUBSTITUTE(PIMExport!R17,".",",")*1,PIMExport!R17)) -> 2.7 | S19: =IFERROR(PIMExport!S17*1,IFERROR(SUBSTITUTE(PIMExport!S17,".",",")*1,PIMExport!S17)) -> 3.2 | T19: =IFERROR(PIMExport!T17*1,IFERROR(SUBSTITUTE(PIMExport!T17,".",",")*1,PIMExport!T17)) -> 35 | U19: =IFERROR(PIMExport!U17*1,IFERROR(SUBSTITUTE(PIMExport!U17,".",",")*1,PIMExport!U17)) -> 0.1 | V19: =IFERROR(PIMExport!V17*1,IFERROR(SUBSTITUTE(PIMExport!V17,".",",")*1,PIMExport!V17)) -> 0 | W19: =IFERROR(PIMExport!W17*1,IFERROR(SUBSTITUTE(PIMExport!W17,".",",")*1,PIMExport!W17)) -> 0 | X19: =IFERROR(PIMExport!X17*1,IFERROR(SUBSTITUTE(PIMExport!X17,".",",")*1,PIMExport!X17)) -> 0 | Y19: =IFERROR(PIMExport!Y17*1,IFERROR(SUBSTITUTE(PIMExport!Y17,".",",")*1,PIMExport!Y17)) -> 12000 | Z19: =IFERROR(PIMExport!Z17*1,IFERROR(SUBSTITUTE(PIMExport!Z17,".",",")*1,PIMExport!Z17)) -> 8000 | AA19: =IFERROR(PIMExport!AA17*1,IFERROR(SUBSTITUTE(PIMExport!AA17,".",",")*1,PIMExport!AA17)) -> 0 | AB19: =IFERROR(PIMExport!AB17*1,IFERROR(SUBSTITUTE(PIMExport!AB17,".",",")*1,PIMExport!AB17)) -> 0 | AC19: =IFERROR(PIMExport!AC17*1,IFERROR(SUBSTITUTE(PIMExport!AC17,".",",")*1,PIMExport!AC17)) -> 0 | AD19: =IFERROR(PIMExport!AD17*1,IFERROR(SUBSTITUTE(PIMExport!AD17,".",",")*1,PIMExport!AD17)) -> 0 | AE19: =IFERROR(PIMExport!AE17*1,IFERROR(SUBSTITUTE(PIMExport!AE17,".",",")*1,PIMExport!AE17)) -> 8000 | AF19: =IFERROR(PIMExport!AF17*1,IFERROR(SUBSTITUTE(PIMExport!AF17,".",",")*1,PIMExport!AF17)) -> 8000 | AG19: =IFERROR(PIMExport!AG17*1,IFERROR(SUBSTITUTE(PIMExport!AG17,".",",")*1,PIMExport!AG17)) -> 780 | AH19: =IFERROR(PIMExport!AH17*1,IFERROR(SUBSTITUTE(PIMExport!AH17,".",",")*1,PIMExport!AH17)) -> 1750 | AI19: =IFERROR(PIMExport!AI17*1,IFERROR(SUBSTITUTE(PIMExport!AI17,".",",")*1,PIMExport!AI17)) -> 1750 | AJ19: =IFERROR(PIMExport!AJ17*1,IFERROR(SUBSTITUTE(PIMExport!AJ17,".",",")*1,PIMExport!AJ17)) -> 0 | AK19: =IFERROR(PIMExport!AK17*1,IFERROR(SUBSTITUTE(PIMExport!AK17,".",",")*1,PIMExport!AK17)) -> 0 | AL19: =IFERROR(PIMExport!AL17*1,IFERROR(SUBSTITUTE(PIMExport!AL17,".",",")*1,PIMExport!AL17)) -> 0.25 | AM19: =IFERROR(PIMExport!AM17*1,IFERROR(SUBSTITUTE(PIMExport!AM17,".",",")*1,PIMExport!AM17)) -> 20 | AN19: =IFERROR(PIMExport!AN17*1,IFERROR(SUBSTITUTE(PIMExport!AN17,".",",")*1,PIMExport!AN17)) -> 1 | AO19: =IFERROR(PIMExport!AO17*1,IFERROR(SUBSTITUTE(PIMExport!AO17,".",",")*1,PIMExport!AO17)) -> 71860 | AP19: =IFERROR(PIMExport!AP17*1,IFERROR(SUBSTITUTE(PIMExport!AP17,".",",")*1,PIMExport!AP17)) -> 600 | AQ19: =IFERROR(PIMExport!AQ17*1,IFERROR(SUBSTITUTE(PIMExport!AQ17,".",",")*1,PIMExport!AQ17)) -> 0 | AR19: =IFERROR(PIMExport!AR17*1,IFERROR(SUBSTITUTE(PIMExport!AR17,".",",")*1,PIMExport!AR17)) -> 0 | AS19: =IFERROR(PIMExport!AS17*1,IFERROR(SUBSTITUTE(PIMExport!AS17,".",",")*1,PIMExport!AS17)) -> 0 | AT19: =IFERROR(PIMExport!AT17*1,IFERROR(SUBSTITUTE(PIMExport!AT17,".",",")*1,PIMExport!AT17)) -> 0 | AU19: =IFERROR(PIMExport!AU17*1,IFERROR(SUBSTITUTE(PIMExport!AU17,".",",")*1,PIMExport!AU17)) -> 0 | AV19: =IFERROR(PIMExport!AV17*1,IFERROR(SUBSTITUTE(PIMExport!AV17,".",",")*1,PIMExport!AV17)) -> 0 | AW19: =IFERROR(PIMExport!AW17*1,IFERROR(SUBSTITUTE(PIMExport!AW17,".",",")*1,PIMExport!AW17)) -> 0 | AX19: =IFERROR(PIMExport!AX17*1,IFERROR(SUBSTITUTE(PIMExport!AX17,".",",")*1,PIMExport!AX17)) -> 0 | AY19: =IFERROR(PIMExport!AY17*1,IFERROR(SUBSTITUTE(PIMExport!AY17,".",",")*1,PIMExport!AY17)) -> 0 | AZ19: =IFERROR(PIMExport!AZ17*1,IFERROR(SUBSTITUTE(PIMExport!AZ17,".",",")*1,PIMExport!AZ17)) -> 0 | BA19: =IFERROR(PIMExport!BA17*1,IFERROR(SUBSTITUTE(PIMExport!BA17,".",",")*1,PIMExport!BA17)) -> 0 | BB19: =IFERROR(PIMExport!BB17*1,IFERROR(SUBSTITUTE(PIMExport!BB17,".",",")*1,PIMExport!BB17)) -> 0 | BC19: =IFERROR(PIMExport!BC17*1,IFERROR(SUBSTITUTE(PIMExport!BC17,".",",")*1,PIMExport!BC17)) -> 0 | BD19: =IFERROR(PIMExport!BD17*1,IFERROR(SUBSTITUTE(PIMExport!BD17,".",",")*1,PIMExport!BD17)) -> 0 | BE19: =IFERROR(PIMExport!BE17*1,IFERROR(SUBSTITUTE(PIMExport!BE17,".",",")*1,PIMExport!BE17)) -> 0 | BF19: =IFERROR(PIMExport!BF17*1,IFERROR(SUBSTITUTE(PIMExport!BF17,".",",")*1,PIMExport!BF17)) -> 0 | BG19: =IFERROR(PIMExport!BG17*1,IFERROR(SUBSTITUTE(PIMExport!BG17,".",",")*1,PIMExport!BG17)) -> 530 | BH19: =IFERROR(PIMExport!BH17*1,IFERROR(SUBSTITUTE(PIMExport!BH17,".",",")*1,PIMExport!BH17)) -> 770 | BI19: =IFERROR(PIMExport!BI17*1,IFERROR(SUBSTITUTE(PIMExport!BI17,".",",")*1,PIMExport!BI17)) -> 830 | BJ19: =IFERROR(PIMExport!BJ17*1,IFERROR(SUBSTITUTE(PIMExport!BJ17,".",",")*1,PIMExport!BJ17)) -> 890 | BK19: =IFERROR(PIMExport!BK17*1,IFERROR(SUBSTITUTE(PIMExport!BK17,".",",")*1,PIMExport!BK17)) -> 950 | BL19: =IFERROR(PIMExport!BL17*1,IFERROR(SUBSTITUTE(PIMExport!BL17,".",",")*1,PIMExport!BL17)) -> 1010 | BM19: =IFERROR(PIMExport!BM17*1,IFERROR(SUBSTITUTE(PIMExport!BM17,".",",")*1,PIMExport!BM17)) -> 1070 | BN19: =IFERROR(PIMExport!BN17*1,IFERROR(SUBSTITUTE(PIMExport!BN17,".",",")*1,PIMExport!BN17)) -> 1130 | BO19: =IFERROR(PIMExport!BO17*1,IFERROR(SUBSTITUTE(PIMExport!BO17,".",",")*1,PIMExport!BO17)) -> 1190 | BP19: =IFERROR(PIMExport!BP17*1,IFERROR(SUBSTITUTE(PIMExport!BP17,".",",")*1,PIMExport!BP17)) -> 0 | BQ19: =IFERROR(PIMExport!BQ17*1,IFERROR(SUBSTITUTE(PIMExport!BQ17,".",",")*1,PIMExport!BQ17)) -> 0 | BR19: =IFERROR(PIMExport!BR17*1,IFERROR(SUBSTITUTE(PIMExport!BR17,".",",")*1,PIMExport!BR17)) -> 0 | BS19: =IFERROR(PIMExport!BS17*1,IFERROR(SUBSTITUTE(PIMExport!BS17,".",",")*1,PIMExport!BS17)) -> 0 | BT19: =IFERROR(PIMExport!BT17*1,IFERROR(SUBSTITUTE(PIMExport!BT17,".",",")*1,PIMExport!BT17)) -> 0 | BU19: =IFERROR(PIMExport!BU17*1,IFERROR(SUBSTITUTE(PIMExport!BU17,".",",")*1,PIMExport!BU17)) -> 0 | BV19: =IFERROR(PIMExport!BV17*1,IFERROR(SUBSTITUTE(PIMExport!BV17,".",",")*1,PIMExport!BV17)) -> 0 | BW19: =IFERROR(PIMExport!BW17*1,IFERROR(SUBSTITUTE(PIMExport!BW17,".",",")*1,PIMExport!BW17)) -> 0 | BX19: =IFERROR(PIMExport!BX17*1,IFERROR(SUBSTITUTE(PIMExport!BX17,".",",")*1,PIMExport!BX17)) -> 0 | BY19: =IFERROR(PIMExport!BY17*1,IFERROR(SUBSTITUTE(PIMExport!BY17,".",",")*1,PIMExport!BY17)) -> 0 | BZ19: =IFERROR(PIMExport!BZ17*1,IFERROR(SUBSTITUTE(PIMExport!BZ17,".",",")*1,PIMExport!BZ17)) -> 0 | CA19: =IFERROR(PIMExport!CA17*1,IFERROR(SUBSTITUTE(PIMExport!CA17,".",",")*1,PIMExport!CA17)) -> 0 | CB19: =IFERROR(PIMExport!CB17*1,IFERROR(SUBSTITUTE(PIMExport!CB17,".",",")*1,PIMExport!CB17)) -> 571 | CC19: =IFERROR(PIMExport!CC17*1,IFERROR(SUBSTITUTE(PIMExport!CC17,".",",")*1,PIMExport!CC17)) -> 961 | CD19: =IFERROR(PIMExport!CD17*1,IFERROR(SUBSTITUTE(PIMExport!CD17,".",",")*1,PIMExport!CD17)) -> 1701 | CE19: =IFERROR(PIMExport!CE17*1,IFERROR(SUBSTITUTE(PIMExport!CE17,".",",")*1,PIMExport!CE17)) -> 2441 | CF19: =IFERROR(PIMExport!CF17*1,IFERROR(SUBSTITUTE(PIMExport!CF17,".",",")*1,PIMExport!CF17)) -> 3181 | CG19: =IFERROR(PIMExport!CG17*1,IFERROR(SUBSTITUTE(PIMExport!CG17,".",",")*1,PIMExport!CG17)) -> 3921 | CH19: =IFERROR(PIMExport!CH17*1,IFERROR(SUBSTITUTE(PIMExport!CH17,".",",")*1,PIMExport!CH17)) -> 4661 | CI19: =IFERROR(PIMExport!CI17*1,IFERROR(SUBSTITUTE(PIMExport!CI17,".",",")*1,PIMExport!CI17)) -> 4821 | CJ19: =IFERROR(PIMExport!CJ17*1,IFERROR(SUBSTITUTE(PIMExport!CJ17,".",",")*1,PIMExport!CJ17)) -> 0 | CK19: =IFERROR(PIMExport!CK17*1,IFERROR(SUBSTITUTE(PIMExport!CK17,".",",")*1,PIMExport!CK17)) -> 0 | CL19: =IFERROR(PIMExport!CL17*1,IFERROR(SUBSTITUTE(PIMExport!CL17,".",",")*1,PIMExport!CL17)) -> 0 | CM19: =IFERROR(PIMExport!CM17*1,IFERROR(SUBSTITUTE(PIMExport!CM17,".",",")*1,PIMExport!CM17)) -> 0 | CN19: =IFERROR(PIMExport!CN17*1,IFERROR(SUBSTITUTE(PIMExport!CN17,".",",")*1,PIMExport!CN17)) -> 0 | CO19: =IFERROR(PIMExport!CO17*1,IFERROR(SUBSTITUTE(PIMExport!CO17,".",",")*1,PIMExport!CO17)) -> 0 | CP19: =IFERROR(PIMExport!CP17*1,IFERROR(SUBSTITUTE(PIMExport!CP17,".",",")*1,PIMExport!CP17)) -> 0 | CQ19: =IFERROR(PIMExport!CQ17*1,IFERROR(SUBSTITUTE(PIMExport!CQ17,".",",")*1,PIMExport!CQ17)) -> 0 | CR19: =IFERROR(PIMExport!CR17*1,IFERROR(SUBSTITUTE(PIMExport!CR17,".",",")*1,PIMExport!CR17)) -> 0 | CS19: =IFERROR(PIMExport!CS17*1,IFERROR(SUBSTITUTE(PIMExport!CS17,".",",")*1,PIMExport!CS17)) -> 0 | CT19: =IFERROR(PIMExport!CT17*1,IFERROR(SUBSTITUTE(PIMExport!CT17,".",",")*1,PIMExport!CT17)) -> 0 | CU19: =IFERROR(PIMExport!CU17*1,IFERROR(SUBSTITUTE(PIMExport!CU17,".",",")*1,PIMExport!CU17)) -> 5 | CV19: =IFERROR(PIMExport!CV17*1,IFERROR(SUBSTITUTE(PIMExport!CV17,".",",")*1,PIMExport!CV17)) -> 21500 | CW19: =IFERROR(PIMExport!CW17*1,IFERROR(SUBSTITUTE(PIMExport!CW17,".",",")*1,PIMExport!CW17)) -> 0.000634 | CX19: =IFERROR(PIMExport!CX17*1,IFERROR(SUBSTITUTE(PIMExport!CX17,".",",")*1,PIMExport!CX17)) -> 500 | CY19: =IFERROR(PIMExport!CY17*1,IFERROR(SUBSTITUTE(PIMExport!CY17,".",",")*1,PIMExport!CY17)) -> 700 | CZ19: =IFERROR(PIMExport!CZ17*1,IFERROR(SUBSTITUTE(PIMExport!CZ17,".",",")*1,PIMExport!CZ17)) -> 42300 | DA19: =IFERROR(PIMExport!DA17*1,IFERROR(SUBSTITUTE(PIMExport!DA17,".",",")*1,PIMExport!DA17)) -> 700 | DB19: =IFERROR(PIMExport!DB17*1,IFERROR(SUBSTITUTE(PIMExport!DB17,".",",")*1,PIMExport!DB17)) -> 0 | DC19: =IFERROR(PIMExport!DC17*1,IFERROR(SUBSTITUTE(PIMExport!DC17,".",",")*1,PIMExport!DC17)) -> 0 | DD19: =IFERROR(PIMExport!DD17*1,IFERROR(SUBSTITUTE(PIMExport!DD17,".",",")*1,PIMExport!DD17)) -> 0 | DE19: =IFERROR(PIMExport!DE17*1,IFERROR(SUBSTITUTE(PIMExport!DE17,".",",")*1,PIMExport!DE17)) -> 0 | DF19: =IFERROR(PIMExport!DF17*1,IFERROR(SUBSTITUTE(PIMExport!DF17,".",",")*1,PIMExport!DF17)) -> 0 | DG19: =IFERROR(PIMExport!DG17*1,IFERROR(SUBSTITUTE(PIMExport!DG17,".",",")*1,PIMExport!DG17)) -> 0 | DH19: =IFERROR(PIMExport!DH17*1,IFERROR(SUBSTITUTE(PIMExport!DH17,".",",")*1,PIMExport!DH17)) -> Equal to or better than 0.025 mm | DI19: =IFERROR(PIMExport!DI17*1,IFERROR(SUBSTITUTE(PIMExport!DI17,".",",")*1,PIMExport!DI17)) -> 0 | DJ19: =IFERROR(PIMExport!DJ17*1,IFERROR(SUBSTITUTE(PIMExport!DJ17,".",",")*1,PIMExport!DJ17)) -> 240 x 85 mm | DK19: =IFERROR(PIMExport!DK17*1,IFERROR(SUBSTITUTE(PIMExport!DK17,".",",")*1,PIMExport!DK17)) -> 32 mm | DL19: =IFERROR(PIMExport!DL17*1,IFERROR(SUBSTITUTE(PIMExport!DL17,".",",")*1,PIMExport!DL17)) -> 520 | DM19: =IFERROR(PIMExport!DM17*1,IFERROR(SUBSTITUTE(PIMExport!DM17,".",",")*1,PIMExport!DM17)) -> 5700 | DN19: =IFERROR(PIMExport!DN17*1,IFERROR(SUBSTITUTE(PIMExport!DN17,".",",")*1,PIMExport!DN17)) -> 0 | DO19: =IFERROR(PIMExport!DO17*1,IFERROR(SUBSTITUTE(PIMExport!DO17,".",",")*1,PIMExport!DO17)) -> 0
A20: =IFERROR(PIMExport!A18*1,IFERROR(SUBSTITUTE(PIMExport!A18,".",",")*1,PIMExport!A18)) -> MLSM08D10-L | B20: =IFERROR(PIMExport!B18*1,IFERROR(SUBSTITUTE(PIMExport!B18,".",",")*1,PIMExport!B18)) -> BallScrew | C20: =IFERROR(PIMExport!C18*1,IFERROR(SUBSTITUTE(PIMExport!C18,".",",")*1,PIMExport!C18)) -> Ball Guide | D20: =IFERROR(PIMExport!D18*1,IFERROR(SUBSTITUTE(PIMExport!D18,".",",")*1,PIMExport!D18)) -> 4630 | E20: =IFERROR(PIMExport!E18*1,IFERROR(SUBSTITUTE(PIMExport!E18,".",",")*1,PIMExport!E18)) -> 16 | F20: =IFERROR(PIMExport!F18*1,IFERROR(SUBSTITUTE(PIMExport!F18,".",",")*1,PIMExport!F18)) -> 0 | G20: =IFERROR(PIMExport!G18*1,IFERROR(SUBSTITUTE(PIMExport!G18,".",",")*1,PIMExport!G18)) -> 29.5 | H20: =IFERROR(PIMExport!H18*1,IFERROR(SUBSTITUTE(PIMExport!H18,".",",")*1,PIMExport!H18)) -> 2.7 | I20: =IFERROR(PIMExport!I18*1,IFERROR(SUBSTITUTE(PIMExport!I18,".",",")*1,PIMExport!I18)) -> 365 | J20: =IFERROR(PIMExport!J18*1,IFERROR(SUBSTITUTE(PIMExport!J18,".",",")*1,PIMExport!J18)) -> 164 | K20: =IFERROR(PIMExport!K18*1,IFERROR(SUBSTITUTE(PIMExport!K18,".",",")*1,PIMExport!K18)) -> 0 | L20: =IFERROR(PIMExport!L18*1,IFERROR(SUBSTITUTE(PIMExport!L18,".",",")*1,PIMExport!L18)) -> 3.9e-05 | M20: =IFERROR(PIMExport!M18*1,IFERROR(SUBSTITUTE(PIMExport!M18,".",",")*1,PIMExport!M18)) -> 0.9 | N20: =IFERROR(PIMExport!N18*1,IFERROR(SUBSTITUTE(PIMExport!N18,".",",")*1,PIMExport!N18)) -> 150 | O20: =IFERROR(PIMExport!O18*1,IFERROR(SUBSTITUTE(PIMExport!O18,".",",")*1,PIMExport!O18)) -> 1500 | P20: =IFERROR(PIMExport!P18*1,IFERROR(SUBSTITUTE(PIMExport!P18,".",",")*1,PIMExport!P18)) -> 3000 | Q20: =IFERROR(PIMExport!Q18*1,IFERROR(SUBSTITUTE(PIMExport!Q18,".",",")*1,PIMExport!Q18)) -> 2.2 | R20: =IFERROR(PIMExport!R18*1,IFERROR(SUBSTITUTE(PIMExport!R18,".",",")*1,PIMExport!R18)) -> 3.2 | S20: =IFERROR(PIMExport!S18*1,IFERROR(SUBSTITUTE(PIMExport!S18,".",",")*1,PIMExport!S18)) -> 4 | T20: =IFERROR(PIMExport!T18*1,IFERROR(SUBSTITUTE(PIMExport!T18,".",",")*1,PIMExport!T18)) -> 35 | U20: =IFERROR(PIMExport!U18*1,IFERROR(SUBSTITUTE(PIMExport!U18,".",",")*1,PIMExport!U18)) -> 0.1 | V20: =IFERROR(PIMExport!V18*1,IFERROR(SUBSTITUTE(PIMExport!V18,".",",")*1,PIMExport!V18)) -> 0 | W20: =IFERROR(PIMExport!W18*1,IFERROR(SUBSTITUTE(PIMExport!W18,".",",")*1,PIMExport!W18)) -> 0 | X20: =IFERROR(PIMExport!X18*1,IFERROR(SUBSTITUTE(PIMExport!X18,".",",")*1,PIMExport!X18)) -> 0 | Y20: =IFERROR(PIMExport!Y18*1,IFERROR(SUBSTITUTE(PIMExport!Y18,".",",")*1,PIMExport!Y18)) -> 12000 | Z20: =IFERROR(PIMExport!Z18*1,IFERROR(SUBSTITUTE(PIMExport!Z18,".",",")*1,PIMExport!Z18)) -> 8000 | AA20: =IFERROR(PIMExport!AA18*1,IFERROR(SUBSTITUTE(PIMExport!AA18,".",",")*1,PIMExport!AA18)) -> 0 | AB20: =IFERROR(PIMExport!AB18*1,IFERROR(SUBSTITUTE(PIMExport!AB18,".",",")*1,PIMExport!AB18)) -> 0 | AC20: =IFERROR(PIMExport!AC18*1,IFERROR(SUBSTITUTE(PIMExport!AC18,".",",")*1,PIMExport!AC18)) -> 0 | AD20: =IFERROR(PIMExport!AD18*1,IFERROR(SUBSTITUTE(PIMExport!AD18,".",",")*1,PIMExport!AD18)) -> 0 | AE20: =IFERROR(PIMExport!AE18*1,IFERROR(SUBSTITUTE(PIMExport!AE18,".",",")*1,PIMExport!AE18)) -> 8000 | AF20: =IFERROR(PIMExport!AF18*1,IFERROR(SUBSTITUTE(PIMExport!AF18,".",",")*1,PIMExport!AF18)) -> 8000 | AG20: =IFERROR(PIMExport!AG18*1,IFERROR(SUBSTITUTE(PIMExport!AG18,".",",")*1,PIMExport!AG18)) -> 780 | AH20: =IFERROR(PIMExport!AH18*1,IFERROR(SUBSTITUTE(PIMExport!AH18,".",",")*1,PIMExport!AH18)) -> 1750 | AI20: =IFERROR(PIMExport!AI18*1,IFERROR(SUBSTITUTE(PIMExport!AI18,".",",")*1,PIMExport!AI18)) -> 1750 | AJ20: =IFERROR(PIMExport!AJ18*1,IFERROR(SUBSTITUTE(PIMExport!AJ18,".",",")*1,PIMExport!AJ18)) -> 0 | AK20: =IFERROR(PIMExport!AK18*1,IFERROR(SUBSTITUTE(PIMExport!AK18,".",",")*1,PIMExport!AK18)) -> 0 | AL20: =IFERROR(PIMExport!AL18*1,IFERROR(SUBSTITUTE(PIMExport!AL18,".",",")*1,PIMExport!AL18)) -> 0.5 | AM20: =IFERROR(PIMExport!AM18*1,IFERROR(SUBSTITUTE(PIMExport!AM18,".",",")*1,PIMExport!AM18)) -> 20 | AN20: =IFERROR(PIMExport!AN18*1,IFERROR(SUBSTITUTE(PIMExport!AN18,".",",")*1,PIMExport!AN18)) -> 1 | AO20: =IFERROR(PIMExport!AO18*1,IFERROR(SUBSTITUTE(PIMExport!AO18,".",",")*1,PIMExport!AO18)) -> 71860 | AP20: =IFERROR(PIMExport!AP18*1,IFERROR(SUBSTITUTE(PIMExport!AP18,".",",")*1,PIMExport!AP18)) -> 600 | AQ20: =IFERROR(PIMExport!AQ18*1,IFERROR(SUBSTITUTE(PIMExport!AQ18,".",",")*1,PIMExport!AQ18)) -> 0 | AR20: =IFERROR(PIMExport!AR18*1,IFERROR(SUBSTITUTE(PIMExport!AR18,".",",")*1,PIMExport!AR18)) -> 0 | AS20: =IFERROR(PIMExport!AS18*1,IFERROR(SUBSTITUTE(PIMExport!AS18,".",",")*1,PIMExport!AS18)) -> 0 | AT20: =IFERROR(PIMExport!AT18*1,IFERROR(SUBSTITUTE(PIMExport!AT18,".",",")*1,PIMExport!AT18)) -> 0 | AU20: =IFERROR(PIMExport!AU18*1,IFERROR(SUBSTITUTE(PIMExport!AU18,".",",")*1,PIMExport!AU18)) -> 0 | AV20: =IFERROR(PIMExport!AV18*1,IFERROR(SUBSTITUTE(PIMExport!AV18,".",",")*1,PIMExport!AV18)) -> 0 | AW20: =IFERROR(PIMExport!AW18*1,IFERROR(SUBSTITUTE(PIMExport!AW18,".",",")*1,PIMExport!AW18)) -> 0 | AX20: =IFERROR(PIMExport!AX18*1,IFERROR(SUBSTITUTE(PIMExport!AX18,".",",")*1,PIMExport!AX18)) -> 0 | AY20: =IFERROR(PIMExport!AY18*1,IFERROR(SUBSTITUTE(PIMExport!AY18,".",",")*1,PIMExport!AY18)) -> 0 | AZ20: =IFERROR(PIMExport!AZ18*1,IFERROR(SUBSTITUTE(PIMExport!AZ18,".",",")*1,PIMExport!AZ18)) -> 0 | BA20: =IFERROR(PIMExport!BA18*1,IFERROR(SUBSTITUTE(PIMExport!BA18,".",",")*1,PIMExport!BA18)) -> 0 | BB20: =IFERROR(PIMExport!BB18*1,IFERROR(SUBSTITUTE(PIMExport!BB18,".",",")*1,PIMExport!BB18)) -> 0 | BC20: =IFERROR(PIMExport!BC18*1,IFERROR(SUBSTITUTE(PIMExport!BC18,".",",")*1,PIMExport!BC18)) -> 0 | BD20: =IFERROR(PIMExport!BD18*1,IFERROR(SUBSTITUTE(PIMExport!BD18,".",",")*1,PIMExport!BD18)) -> 0 | BE20: =IFERROR(PIMExport!BE18*1,IFERROR(SUBSTITUTE(PIMExport!BE18,".",",")*1,PIMExport!BE18)) -> 0 | BF20: =IFERROR(PIMExport!BF18*1,IFERROR(SUBSTITUTE(PIMExport!BF18,".",",")*1,PIMExport!BF18)) -> 0 | BG20: =IFERROR(PIMExport!BG18*1,IFERROR(SUBSTITUTE(PIMExport!BG18,".",",")*1,PIMExport!BG18)) -> 530 | BH20: =IFERROR(PIMExport!BH18*1,IFERROR(SUBSTITUTE(PIMExport!BH18,".",",")*1,PIMExport!BH18)) -> 770 | BI20: =IFERROR(PIMExport!BI18*1,IFERROR(SUBSTITUTE(PIMExport!BI18,".",",")*1,PIMExport!BI18)) -> 830 | BJ20: =IFERROR(PIMExport!BJ18*1,IFERROR(SUBSTITUTE(PIMExport!BJ18,".",",")*1,PIMExport!BJ18)) -> 890 | BK20: =IFERROR(PIMExport!BK18*1,IFERROR(SUBSTITUTE(PIMExport!BK18,".",",")*1,PIMExport!BK18)) -> 950 | BL20: =IFERROR(PIMExport!BL18*1,IFERROR(SUBSTITUTE(PIMExport!BL18,".",",")*1,PIMExport!BL18)) -> 1010 | BM20: =IFERROR(PIMExport!BM18*1,IFERROR(SUBSTITUTE(PIMExport!BM18,".",",")*1,PIMExport!BM18)) -> 1070 | BN20: =IFERROR(PIMExport!BN18*1,IFERROR(SUBSTITUTE(PIMExport!BN18,".",",")*1,PIMExport!BN18)) -> 1130 | BO20: =IFERROR(PIMExport!BO18*1,IFERROR(SUBSTITUTE(PIMExport!BO18,".",",")*1,PIMExport!BO18)) -> 1190 | BP20: =IFERROR(PIMExport!BP18*1,IFERROR(SUBSTITUTE(PIMExport!BP18,".",",")*1,PIMExport!BP18)) -> 0 | BQ20: =IFERROR(PIMExport!BQ18*1,IFERROR(SUBSTITUTE(PIMExport!BQ18,".",",")*1,PIMExport!BQ18)) -> 0 | BR20: =IFERROR(PIMExport!BR18*1,IFERROR(SUBSTITUTE(PIMExport!BR18,".",",")*1,PIMExport!BR18)) -> 0 | BS20: =IFERROR(PIMExport!BS18*1,IFERROR(SUBSTITUTE(PIMExport!BS18,".",",")*1,PIMExport!BS18)) -> 0 | BT20: =IFERROR(PIMExport!BT18*1,IFERROR(SUBSTITUTE(PIMExport!BT18,".",",")*1,PIMExport!BT18)) -> 0 | BU20: =IFERROR(PIMExport!BU18*1,IFERROR(SUBSTITUTE(PIMExport!BU18,".",",")*1,PIMExport!BU18)) -> 0 | BV20: =IFERROR(PIMExport!BV18*1,IFERROR(SUBSTITUTE(PIMExport!BV18,".",",")*1,PIMExport!BV18)) -> 0 | BW20: =IFERROR(PIMExport!BW18*1,IFERROR(SUBSTITUTE(PIMExport!BW18,".",",")*1,PIMExport!BW18)) -> 0 | BX20: =IFERROR(PIMExport!BX18*1,IFERROR(SUBSTITUTE(PIMExport!BX18,".",",")*1,PIMExport!BX18)) -> 0 | BY20: =IFERROR(PIMExport!BY18*1,IFERROR(SUBSTITUTE(PIMExport!BY18,".",",")*1,PIMExport!BY18)) -> 0 | BZ20: =IFERROR(PIMExport!BZ18*1,IFERROR(SUBSTITUTE(PIMExport!BZ18,".",",")*1,PIMExport!BZ18)) -> 0 | CA20: =IFERROR(PIMExport!CA18*1,IFERROR(SUBSTITUTE(PIMExport!CA18,".",",")*1,PIMExport!CA18)) -> 0 | CB20: =IFERROR(PIMExport!CB18*1,IFERROR(SUBSTITUTE(PIMExport!CB18,".",",")*1,PIMExport!CB18)) -> 571 | CC20: =IFERROR(PIMExport!CC18*1,IFERROR(SUBSTITUTE(PIMExport!CC18,".",",")*1,PIMExport!CC18)) -> 961 | CD20: =IFERROR(PIMExport!CD18*1,IFERROR(SUBSTITUTE(PIMExport!CD18,".",",")*1,PIMExport!CD18)) -> 1701 | CE20: =IFERROR(PIMExport!CE18*1,IFERROR(SUBSTITUTE(PIMExport!CE18,".",",")*1,PIMExport!CE18)) -> 2441 | CF20: =IFERROR(PIMExport!CF18*1,IFERROR(SUBSTITUTE(PIMExport!CF18,".",",")*1,PIMExport!CF18)) -> 3181 | CG20: =IFERROR(PIMExport!CG18*1,IFERROR(SUBSTITUTE(PIMExport!CG18,".",",")*1,PIMExport!CG18)) -> 3921 | CH20: =IFERROR(PIMExport!CH18*1,IFERROR(SUBSTITUTE(PIMExport!CH18,".",",")*1,PIMExport!CH18)) -> 4661 | CI20: =IFERROR(PIMExport!CI18*1,IFERROR(SUBSTITUTE(PIMExport!CI18,".",",")*1,PIMExport!CI18)) -> 4821 | CJ20: =IFERROR(PIMExport!CJ18*1,IFERROR(SUBSTITUTE(PIMExport!CJ18,".",",")*1,PIMExport!CJ18)) -> 0 | CK20: =IFERROR(PIMExport!CK18*1,IFERROR(SUBSTITUTE(PIMExport!CK18,".",",")*1,PIMExport!CK18)) -> 0 | CL20: =IFERROR(PIMExport!CL18*1,IFERROR(SUBSTITUTE(PIMExport!CL18,".",",")*1,PIMExport!CL18)) -> 0 | CM20: =IFERROR(PIMExport!CM18*1,IFERROR(SUBSTITUTE(PIMExport!CM18,".",",")*1,PIMExport!CM18)) -> 0 | CN20: =IFERROR(PIMExport!CN18*1,IFERROR(SUBSTITUTE(PIMExport!CN18,".",",")*1,PIMExport!CN18)) -> 0 | CO20: =IFERROR(PIMExport!CO18*1,IFERROR(SUBSTITUTE(PIMExport!CO18,".",",")*1,PIMExport!CO18)) -> 0 | CP20: =IFERROR(PIMExport!CP18*1,IFERROR(SUBSTITUTE(PIMExport!CP18,".",",")*1,PIMExport!CP18)) -> 0 | CQ20: =IFERROR(PIMExport!CQ18*1,IFERROR(SUBSTITUTE(PIMExport!CQ18,".",",")*1,PIMExport!CQ18)) -> 0 | CR20: =IFERROR(PIMExport!CR18*1,IFERROR(SUBSTITUTE(PIMExport!CR18,".",",")*1,PIMExport!CR18)) -> 0 | CS20: =IFERROR(PIMExport!CS18*1,IFERROR(SUBSTITUTE(PIMExport!CS18,".",",")*1,PIMExport!CS18)) -> 0 | CT20: =IFERROR(PIMExport!CT18*1,IFERROR(SUBSTITUTE(PIMExport!CT18,".",",")*1,PIMExport!CT18)) -> 0 | CU20: =IFERROR(PIMExport!CU18*1,IFERROR(SUBSTITUTE(PIMExport!CU18,".",",")*1,PIMExport!CU18)) -> 10 | CV20: =IFERROR(PIMExport!CV18*1,IFERROR(SUBSTITUTE(PIMExport!CV18,".",",")*1,PIMExport!CV18)) -> 33400 | CW20: =IFERROR(PIMExport!CW18*1,IFERROR(SUBSTITUTE(PIMExport!CW18,".",",")*1,PIMExport!CW18)) -> 0.000634 | CX20: =IFERROR(PIMExport!CX18*1,IFERROR(SUBSTITUTE(PIMExport!CX18,".",",")*1,PIMExport!CX18)) -> 500 | CY20: =IFERROR(PIMExport!CY18*1,IFERROR(SUBSTITUTE(PIMExport!CY18,".",",")*1,PIMExport!CY18)) -> 700 | CZ20: =IFERROR(PIMExport!CZ18*1,IFERROR(SUBSTITUTE(PIMExport!CZ18,".",",")*1,PIMExport!CZ18)) -> 42300 | DA20: =IFERROR(PIMExport!DA18*1,IFERROR(SUBSTITUTE(PIMExport!DA18,".",",")*1,PIMExport!DA18)) -> 700 | DB20: =IFERROR(PIMExport!DB18*1,IFERROR(SUBSTITUTE(PIMExport!DB18,".",",")*1,PIMExport!DB18)) -> 0 | DC20: =IFERROR(PIMExport!DC18*1,IFERROR(SUBSTITUTE(PIMExport!DC18,".",",")*1,PIMExport!DC18)) -> 0 | DD20: =IFERROR(PIMExport!DD18*1,IFERROR(SUBSTITUTE(PIMExport!DD18,".",",")*1,PIMExport!DD18)) -> 0 | DE20: =IFERROR(PIMExport!DE18*1,IFERROR(SUBSTITUTE(PIMExport!DE18,".",",")*1,PIMExport!DE18)) -> 0 | DF20: =IFERROR(PIMExport!DF18*1,IFERROR(SUBSTITUTE(PIMExport!DF18,".",",")*1,PIMExport!DF18)) -> 0 | DG20: =IFERROR(PIMExport!DG18*1,IFERROR(SUBSTITUTE(PIMExport!DG18,".",",")*1,PIMExport!DG18)) -> 0 | DH20: =IFERROR(PIMExport!DH18*1,IFERROR(SUBSTITUTE(PIMExport!DH18,".",",")*1,PIMExport!DH18)) -> Equal to or better than 0.025 mm | DI20: =IFERROR(PIMExport!DI18*1,IFERROR(SUBSTITUTE(PIMExport!DI18,".",",")*1,PIMExport!DI18)) -> 0 | DJ20: =IFERROR(PIMExport!DJ18*1,IFERROR(SUBSTITUTE(PIMExport!DJ18,".",",")*1,PIMExport!DJ18)) -> 240 x 85 mm | DK20: =IFERROR(PIMExport!DK18*1,IFERROR(SUBSTITUTE(PIMExport!DK18,".",",")*1,PIMExport!DK18)) -> 32 mm | DL20: =IFERROR(PIMExport!DL18*1,IFERROR(SUBSTITUTE(PIMExport!DL18,".",",")*1,PIMExport!DL18)) -> 520 | DM20: =IFERROR(PIMExport!DM18*1,IFERROR(SUBSTITUTE(PIMExport!DM18,".",",")*1,PIMExport!DM18)) -> 5700 | DN20: =IFERROR(PIMExport!DN18*1,IFERROR(SUBSTITUTE(PIMExport!DN18,".",",")*1,PIMExport!DN18)) -> 0 | DO20: =IFERROR(PIMExport!DO18*1,IFERROR(SUBSTITUTE(PIMExport!DO18,".",",")*1,PIMExport!DO18)) -> 0
